{"text_format":"3","workbook":"xlsx","n_sheets":1,"sheets":["调整后项目库"],"not_rendered":{"images":2,"external_links":1,"defined_names":5},"read":"whole","date_system":"1900"}

{"sheet":"调整后项目库","index":0,"n_rows":503,"n_cols":32,"rows_kept":503,"merged":[[0,0,0,31],[1,0,3,0],[1,1,3,1],[1,2,2,3],[1,4,3,4],[1,5,3,5],[1,6,3,6],[1,7,3,7],[1,8,3,8],[1,9,3,9],[1,10,1,12],[1,13,1,17],[1,18,3,18],[1,19,3,19],[1,20,3,20],[1,21,3,21],[1,22,3,22],[1,23,3,23],[1,24,3,24],[1,25,3,25],[1,26,3,26],[1,27,3,27],[1,28,3,28],[1,29,3,29],[1,30,3,30],[1,31,3,31],[2,10,3,10],[2,11,3,11],[2,12,3,12],[2,13,2,14],[2,15,2,16],[2,17,3,17],[4,0,4,1],[5,2,5,3],[325,2,325,3],[326,2,326,3],[327,2,327,3],[328,2,328,3],[329,2,329,3],[330,2,330,3],[331,2,331,3],[332,2,332,3],[355,2,355,3]]}
["2025年度巩固拓展脱贫攻坚成果和乡村振兴项目库表"]
["序号","县（市、区）","项目实施地点",null,"项目类型","项目名称","规划年度","建设性质","项目概要及建设主要内容","项目概算投资（万元）","年度资金计划（万元）",null,null,"绩效目标预测",{"$nulls":4},"是否到户项目","联农带农机制","是否符合符合规划、土地、环保要求","是否易地搬迁后扶项目","是否劳动密集型产业","是否壮大集体经济项目","项目负责人","联系电话","县级行业主管部门","后续管护营运单位","是否纳入年度实施计划","是否属于新增或调整项目信息项目","州市行业主管部门审核意见","备注"]
[{"$nulls":10},"小  计","衔接资金","其他资金","项目受益人数",null,"其中：脱贫人口及监测对象",null,"总体目标"]
[null,null,"乡","村",{"$nulls":9},"户","人","户","人"]
["合计",{"$nulls":8},{"$f":"SUM(J6:J503)","v":61730.74},{"$f":"SUM(K6:K503)","v":60262.25},{"$f":"SUM(L6:L503)","v":55261.04},5001.21,316765,903275,50746,112730]
[1,"玉溪市本级","玉溪市玉白顶国有林场",null,"产业发展—产业园（区）","玉溪市玉白顶国有林场2025年欠发达国有林场项目","2025年","新建","长蕊甜菜种植5000株；围栏建设3500米；有机肥12500千克；普钙10000千克；复合肥10000千克；给水管6.5千米；100立方水池一座；抽水设备、滴灌设施等；病虫害防治。",{"v":110,"d":"110.00"},{"v":110,"d":"110.00"},{"v":110,"d":"110.00"},{"v":0,"d":"0.00"},18,27,0,0,"通过该项目的实施，利用林场的资源探索出一条适合林场及周边村社林地环境发展的模式、途径和管理办法，以林场提供技术的方式，带动周边群众发展林下产业，增加林农收入，形成林业与农业土地资源共享、优势互补的生态产业模式，促进国有林场转型升级，培养经济新增长点，带动周边村集体经济发展和美丽乡村建设，推进巩固拓展脱贫攻坚成果同乡村振兴有效衔接。\n项目的实施可增加护林员收入及改善老工棚林区职工的生活用水，减少因水质带来的疾病，保障职工身体健康，增强林区职工幸福感。","否","吸纳劳动力稳定就业增收—其他","是","否","否","否","杨兴明",18087795966,"玉白顶国有林场","玉白顶国有林场","是","否"]
[2,"红塔区","小石桥乡","玉苗","产业发展—庭院特色休闲旅游","小石桥乡“玉见玉苗”田园综合体农文旅产业项目","2025年","新建","新建综合楼1栋，760.34平方米；提升改造村内道路3条车行道，470.189米。",{"v":397,"d":"397.00"},{"$f":"L7+M7","v":{"v":387,"d":"387.00"}},{"v":387,"d":"387.00"},{"v":0,"d":"0.00"},329,936,76,265,"项目建成将壮大村组集体经济收入，增加贫困户利益联结机制，助销本地多类农特产品。可实现村组集体经济效益50万，吸纳就业20余名，促进户均增收2万元以上，可孵化培育民宿小院10家、发展农家乐5家.","否","吸纳农村劳动力稳定就业增收—股权合作","是","否","否","否","贾沐文",17787706480,"红塔区农业农村局（乡村振兴局）","玉苗村","是","是"]
[3,"红塔区","小石桥乡","玉苗村委会新铺村","乡村建设行动—村容村貌提升","小石桥乡玉苗村委会新铺村民族村寨旅游提升工程项目","2025年","新建","小石桥乡道 Y002 道路进行硬化及道路两侧附属设施建设，包括排水沟、挡土墙、管道敷设等。道路占地面积：2385 ㎡。",{"v":50,"d":"50.00"},{"v":30,"d":"30.00"},{"v":30,"d":"30.00"},{"v":0,"d":"0.00"},693,1961,76,265,"改善基础设施条件，有效推动乡村振兴","否","吸纳农村劳动力稳定就业增收","是","否","否","否","期绍飞",13887766716,"红塔区民宗局","玉苗村委会新铺村","是","是"]
[4,"红塔区","北城街道","梅园社区1组","乡村建设行动—村容村貌提升","大凹村人畜饮水、污水管网建设项目","2025年","新建","村内道路约6750.34㎡，新建混凝土挡墙37.32m，大凹路铺设沥青混凝土149.12m，铁艺栏杆1264.29m，排水部分1项，给水部分1项。",312.29,{"v":300,"d":"300.00"},{"v":300,"d":"300.00"},{"v":0,"d":"0.00"},82,262,0,0,"解决262人饮水、生产用水的困难，实现雨污分流，改善村庄环境。","否","吸纳农村劳动力稳定就业增收—股权合作","是","否","否","否","宋红兵",13508899860,"红塔区农业农村局（乡村振兴局）","梅园社区1组","是","否"]
[5,"红塔区","北城街道","大营社区","乡村建设行动—村容村貌提升","北城街道大营社区人居环境提升改造项目","2025年","新建","三组片区建设1条主路和10条支路，共长695.2m，水泥砼路面宽5～10m，五组片区建设1条主路和18条支路，共长963.9m，水泥砼路面宽3～9m；",{"v":366,"d":"366.00"},{"v":300,"d":"300.00"},{"v":300,"d":"300.00"},{"v":0,"d":"0.00"},1580,4340,6,16,"提升人居环境，打造为产业兴、环境美、生活甜、治理优的和美示范社区。","否","吸纳农村劳动力稳定就业增收—股权合作","是","否","否","否","许俊",13988412037,"红塔区农业农村局（乡村振兴局）","大营社区","是","是"]
[6,"红塔区","北城街道","大营社区","产业发展—产业园（区）","北城街道大营社区等2个社区牛羊屠宰厂建设项目","2025年","新建","建设牛羊屠宰车间720m²，购买设备及其他附属设施",{"v":1200,"d":"1200.00"},{"v":370,"d":"370.00"},{"v":370,"d":"370.00"},{"v":0,"d":"0.00"},153,489,14,34,"集中建设肉牛羊集中屠宰，项目建成后，有效促进当地群众增收，发挥衔接资金撬动社会资本的作用。","否","吸纳农村劳动力稳定就业增收—股权合作","是","否","否","否","普荣金",15987706123,"红塔区农业农村局（乡村振兴局）","大营社区","是","是"]
[7,"红塔区","北城街道","大营社区、梅园社区、莲池社区","乡村建设行动—村容村貌提升","红塔区北城街道民族团结进步示范乡镇项目","2025年","新建","打造莲池社区3组美食街区，完善梅园社区道路设施，建设大营社区等2个社区牛羊屠宰厂建设项目屠宰车间及附属设施等",{"v":430,"d":"430.00"},{"v":405,"d":"405.00"},{"v":405,"d":"405.00"},{"v":0,"d":"0.00"},2348,6906,2,4,"项目完成后，相关社区得到更好的发展机会、生产环境将全面提升。","否","促进农户共享资产收益增收—入股经营获取收益及分红","是","否","否","否","李红月",18708776024,"红塔区民宗局","大营社区、梅园社区、莲池社区","是","是"]
[8,"红塔区","北城街道","大石板","乡村建设行动—村容村貌提升","北城街道大石板社区民族村寨旅游提升工程项目","2025年","新建","社区主要道路沿线安装路灯,破损围墙拆除65m，破损地面拆除52.5㎡，排水沟35m，安全防护栏65m，DN65钢丝网骨架复合管145m，碎石场地120㎡，铺装地面55㎡。管道工程：包含新增DN50PE给水管一条，离心泵一台及其配套设施",{"v":50,"d":"50.00"},{"v":30,"d":"30.00"},{"v":30,"d":"30.00"},{"v":0,"d":"0.00"},432,1470,24,67,"提升北城街道大石板社区民族村寨旅游效果，稳步推进乡村振兴","否","吸纳农村劳动力稳定就业增收—股权合作","是","否","否","否","李红月",18708776024,"红塔区民宗局","大石板","是","是"]
[9,"红塔区","春和街道","孙井社区","产业发展—种植业基地","春和街道孙井社区高效设施农业示范项目(一期）","2025年","新建","建设现代化设施温室大棚48亩，配套控温、控湿、控光的相关设备、安装净化水设施，铺设滴管设施并配套机耕路、排洪沟渠、水肥一体设施等。",{"v":111,"d":"111.00"},{"v":80,"d":"80.00"},{"v":80,"d":"80.00"},{"v":0,"d":"0.00"},1161,3591,0,0,"项目建成后，通过种植彩椒、草莓、甜瓜、农特产品展销、预计每年收益320万元，实现纯收入120万元。","否","带动农户发展生产增产增收—订单生产","是","否","否","否","许俊",13988412037,"红塔区农业农村局（乡村振兴局）","孙井社区","是","是"]
[10,"红塔区","春和街道","黄草坝村","产业发展—休闲农业与乡村旅游","春和街道黄草坝村民族手工业融合创新发展项目","2025年","新建","建设电烤房一个，腊肉和咸菜设备一套。",{"$f":"K15","v":{"v":20,"d":"20.00"}},{"$f":"L15+M15","v":{"v":20,"d":"20.00"}},{"v":20,"d":"20.00"},{"v":0,"d":"0.00"},432,1470,24,67,"促进当地特色产业发展","否","促进农户共享资产收益增收—入股经营获取收益及分红","是","否","否","否","李红月",18708776024,"红塔区民宗局","黄草坝村","是","是"]
[11,"红塔区","洛河乡","洛河村委会连山坡","乡村建设行动—村容村貌提升","洛河村委会四组（连山坡）旧村改造项目(一期）","2025年","新建","一、污水处理设施：1、DN400HDPE污主管960米，单价450元，费用43.2万元。2、DN300HDPE污支管1155米，单价350元，费用40.43万元。3、φ1000圆形塑料检查井28座，单价3800元，费用10.64万元。4、φ700圆形塑料检查井40座，单价2100元，费用8.4万元。5、污水处理设施2座，单价20万元，费用40万元。\n二、引水工程：1、DN50镀锌管主管2960米，单价58元，费用17.17万元。2、DN25镀锌管岔管2360米，单价35元，费用8.26万。\n三、村内道路硬化工程：1、8m宽60mm厚沥青综合料面层，200mm填隙碎石层，长200米，单价550元，费用11万元。2、6m宽60mm厚沥青综合料面层，200mm填隙碎石层，长480米，单价430万元，费用20.64万元。\n四、基础照明工程：7m 高太阳能灯10盏，单价5500元，费用5.5万元。\n五、人畜分离：新建集中养殖场2000平方米，含单层钢结构建筑、场地水电，单价500元，费用100万元。",154.85,{"v":144,"d":"144.00"},{"v":144,"d":"144.00"},{"v":0,"d":"0.00"},153,489,14,34,"村庄道路的硬化，路灯、雨污管网、污水处理设施的完善，将解决洛河村委会四组的出行问题，以及改善村庄人居环境；饮水管网建设将解决洛河村委会四组饮水困难的问题。\n便利的交通及优美的村庄环境，将增加村庄与外界交流的机会，进一步促使外界了解洛河村委会四组，给村组带来更大的商机，促进其他产业的发展。","否","吸纳农村劳动力稳定就业增收—股权合作","是","否","否","否","普荣金",15987706123,"红塔区农业农村局（乡村振兴局）","洛河村委会连山坡","是","是"]
[12,"红塔区","洛河乡","双龙村","乡村建设行动—农村道路建设（通村路、通户路、小型桥梁等）","洛河乡双龙村集中安置区“补短板、促发展”建设项目","2025年","新建","道路硬化439.4米，新建污水管网450米，新建排水检查井32座，新建雨水口34座。",{"v":90,"d":"90.00"},{"v":90,"d":"90.00"},{"v":90,"d":"90.00"},{"v":0,"d":"0.00"},153,489,14,34,"改善当地道路，排水等条件","否","吸纳农村劳动力参与项目建设—吸纳就业","是","是","否","否","李红月",18708776024,"红塔区发改局","双龙村","是","是"]
[13,"红塔区","洛河乡","法冲村","产业发展—新型农村集体经济发展项目","洛河乡室内层架式红托竹荪种植产业建设项目","2025年","新建","1,新建1200*3500*8000规格的不锈钢出菇层架206套.2,新建103座电子烤房的增光系统206套.3,新建103座电子烤房增湿系统206套.4,新建1200*3500*8000规格的不锈钢烘烤格网板206块(格板用于烘干樱桃,核桃,中药材等农产品).",{"v":394.2,"d":"394.20"},{"v":392,"d":"392.00"},{"v":392,"d":"392.00"},{"v":0,"d":"0.00"},240,800,13,31,"发展法冲村委会干沟村食用菌产业项目,壮大法冲村集体经济","否","吸纳农村劳动力稳定就业增收—股权合作","是","否","否","否","普侠兴",15096788818,"红塔区农业农村局（乡村振兴局）","法冲村","是","否"]
[14,"红塔区","大营街街道","赵桅社区","乡村建设行动—村容村貌提升","2025年红塔区学习运用浙江“千万工程”大营街街道赵桅社区示范村建设项目","2025年","新建","完善村庄基础设施短板，实施道路硬化工程、排水管网工程、排水沟盖板工程等项目。",56.15,{"$f":"L19+M19","v":{"v":50,"d":"50.00"}},{"v":50,"d":"50.00"},{"v":0,"d":"0.00"},729,2429,66,261,"该项目的实施采取“村集体股份经济合作联合社+村小组股份经济合作社+农户”的模式，由村股份经济合作联合社争取衔接资金投入，村小组股份合作社负责日常管理维护，村民采取到基地务工提高收入的方式带动村民增收；预计解决长期务工5人，季节性务工20人；同时可带动周边农户种植除虫菊增加收入。","否","吸纳农村劳动力稳定就业增收—股权合作","是","否","否","否","谢永林",13987720421,"红塔区农业农村局（乡村振兴局）","赵桅社区","是","是"]
[15,"红塔区","玉带街道","郑井社区","产业发展—特色种植","洛河乡洛河村等4个（村）社区高端温室种植坊建设项目","2025年","新建","建设现代钢架结构温室7亩，共投资340万元，项目主要为：\n（1）280万元衔接资金：\n①5333平方米温室及附属配套温室设施共计143.5万元。②灌溉系统55万元。③种植设施及基质40万元。④建设采收处理车间270平方米，切花处理台6个，废物回收设备1套，共计20.5万元。⑤配套电力、安保设施28万元。\n（2）70万元自筹资金：\n①土地平整5400平方米，6万元。②道路硬化1150平方米，17.25万元。③安全系统10万元。④支付15年土地租金36.75万元。",{"v":300,"d":"300.00"},{"v":280,"d":"280.00"},{"v":280,"d":"280.00"},{"v":0,"d":"0.00"},3228,10367,345,1294,"该项目的实施由社区争取衔接资金投入，村办公司负责运营，带动村民加入的方式带动村民增收。项目建成可实现每亩保底生产20万支单头鲜切花，AB级占比60以上。盘活集体闲置资源，提供多个就业岗位提高村民收入，对美丽宜居乡村建设和乡村振兴起到了促进作用。","否","村办集体公司，村、社区10367人享受分红收益。","是","否","否","否","宋剑峰",18687739688,"红塔区委组织部","郑井社区","是","是"]
[16,"红塔区","春和街道","王大户社区","产业发展—产业园（区）","春和街道王大户社区宜居宜业和美示范村创建项目（二期）","2025年","新建","建设现代化指挥温室大棚17000㎡，兰花协会园区道路硬化900米，补光设备50台、水净化设施2套。",{"$f":"K21","v":{"v":300,"d":"300.00"}},{"v":300,"d":"300.00"},{"v":196,"d":"196.00"},{"v":104,"d":"104.00"},1580,4340,6,16,"实施宜居宜业和美示范村创建项目，推动高原特色现代农业产业发展，增加村集体经济收入，把王大户社区打造为产业兴、环境美、生活甜、治理优的和美示范社区。","否","促进农户共享资产收益增收—土地流转获得租金","是","否","否","是","许俊",13988412037,"红塔区农业农村局（乡村振兴局）","王大户社区","否","否"]
[17,"红塔区","洛河乡","法冲村","产业发展—产业园（区）","红塔区洛河彝族乡法冲村委会2025年以工代赈项目","2025年","新建","林下灌木丛清理200072㎡、围网建设4520m、新建1000m³柔性蓄水池1个、供水管网建设72923m、挖天麻种植坑20100个、天麻种植坑清理20100个、设施管理用房156.24㎡等。",{"v":393,"d":"393.00"},{"v":393,"d":"393.00"},{"v":393,"d":"393.00"},{"v":0,"d":"0.00"},153,489,14,34,"项目建成后，实现以工代赈效果，有效促进当地群众增收，发挥衔接资金撬动社会资本的作用。","否","吸纳农村劳动力稳定就业增收—股权合作","是","否","否","是","普荣金",15987706123,"红塔区农业农村局（乡村振兴局）","法冲村","否","否"]
[18,"红塔区","研和街道","贾井社区","产业发展—休闲农业与乡村旅游","红塔区研和街道贾井社区南湖景区文旅民宿产业建设项目","2025年","新建","项目建设内容：计划建设民宿房屋4间及相应的配套基础设施。每间民宿为28平方米，用竹木材质建造，每间概算15万元，合计60万元；透水砖铺设 80平方米 ，概算20万元。",{"v":85,"d":"85.00"},{"v":85,"d":"85.00"},{"v":70,"d":"70.00"},{"v":15,"d":"15.00"},2215,6481,5,12,"项目为南湖景区乡村民宿建设，位于南湖景区界限内，建成后显著提升附近村庄人居环境，同时解决社区就业问题，对整体南湖公园项目也能起到引流推广的作用。项目建成后租赁给玉溪荣旺项目管理有限公司运营，每年收取固定收益租金5万元壮大社区集体经济。","否","促进农户共享资产收益增收—入股经营获取收益及分红","是","否","否","是","赖正声","13887783096","红塔区委组织部","贾井社区","否","否"]
[19,"红塔区","研和街道","研和社区","产业发展—庭院特色休闲旅游","红塔区研和街道研和社区南湖景区文旅民宿产业建设项目","2025年","新建","项目建设内容：计划建设民宿房屋3间及相应的配套基础设施提升改造。每间民宿为36平方米，用竹木材质建造，每间概算22万元，合计66万元；透水砖铺设 60平方米 ，概算14万元。",{"v":80,"d":"80.00"},{"v":80,"d":"80.00"},{"v":70,"d":"70.00"},{"v":10,"d":"10.00"},1912,4930,3,14,"项目为南湖景区乡村民宿建设，位于南湖景区界限内，建成后显著提升附近村庄人居环境，同时解决社区就业问题，对整体南湖公园项目也能起到引流推广的作用。项目建成后租赁给玉溪荣旺项目管理有限公司运营，每年收取固定收益租金5万元壮大社区集体经济。","否","促进农户共享资产收益增收—入股经营获取收益及分红","是","否","否","是","杨东",13013486775,"红塔区委组织部","研和社区","否","否"]
[20,"红塔区","小石桥乡","响水村、玉苗村","产业发展—产业园（区）","红塔区小石桥乡民族团结进步示范乡项目","2025年","新建","（1）投资257万建设特色农产品综合交易中心。拆除原有危房整合闲置土地新建综合用房，共2层单层建筑面积584㎡总建筑面积1168㎡，层高一层4.2米二层3.9米，主要用于特色农产品交易、展示以及网络直播带货、农资销售等农业服务设施。其中一楼用于特色农产品交易展示，二楼用于特色农产品初加工、网络直播带货、农资销售等。\n（2）投资101万元完善响水村二组、三组基础设施。对1850米进村道路进行硬化提升，道路宽3-5米投资约74万元、修缮雨污分流及水电完善总投资13.3万元，新建村内太阳能路灯25盏投资13.7万元。\n（3）投资65万元实施现代高端特色蔬菜种植项目。建设占地4亩大棚，购买水肥一体机，修建20方水池一个，安装喷灌系统，新建32㎡简易生产用房一间。\n（4）投资312万元实施年产800吨烘干产品项目（乡村振兴衔接资金补助100万元、村委会自筹10万元、合作企业投资202万元）。占地面积约2亩，其中：新建厂房建筑面积1200平方米，投资192万元；场地硬化1200平方米，投资45万元；室外变压器1台，电缆架设150m，投资25万元；给排水管网180m，投资20万元；烘干设备生产线1条，投资120万元。",{"v":735,"d":"735.00"},{"$f":"L25+M25","v":{"v":735,"d":"735.00"}},{"v":500,"d":"500.00"},{"v":235,"d":"235.00"},329,936,76,265,"项目实施后成效显著，一是解决村委会周边680户1992名农户没有交易市场的突出矛盾和热难点问题，改善占道经营现象，拓宽农户销售渠道，增加农民收入，增加就业岗位30个以上，增加村集体经济收益12万元。二是完善进村道路，解决群众出行难问题，提升响水村的人居环境。三是通过“村办公司+彝丰农业合作社+脱贫户”模式，壮大村集体收入，带动和吸纳周边各民族群众种植高端蔬菜，壮大本地农产品特色产业发展，吸纳脱贫户返乡就业，促进脱贫户稳定增收，基层治理平安和谐。四是以“村集体+企业+农户”的模式，由企业自主运营。村集体以厂房、设备、土地等形式入股，企业投资并运营项目，企业按照约定每年定期支付收益给村集体，企业对厂房、设备等进行使用、管理和维护，农户按照企业需求，种植蔬菜供企业生产。\n","否","促进农户共享资产收益增收—入股经营获取收益及分红","是","否","否","是","李红月",18708776024,"红塔区民宗局","响水村、玉苗村","否","否"]
[21,"红塔区","洛河乡","法冲村","产业发展—休闲农业与乡村旅游","红塔区洛河乡法冲村委会老矣黑村民族团结进步示范村项目","2025年","新建","投资116万元在洛河乡法冲村委会老矣黑村实施文旅融合发展项目，建设游客接待和民俗体验活动室。主要建设内容：新建民俗体验活动室300㎡、改造游客接待中心400㎡及相关配套设施等。",{"v":116,"d":"116.00"},{"v":116,"d":"116.00"},{"v":100,"d":"100.00"},{"v":16,"d":"16.00"},153,489,14,34,"老矣黑村位于高鲁山核心区具有良好的生态旅游资源，文旅发展潜力大，洛河乡政府拟通过文旅融合发展，带动民族地区共同进步。该项目的实施采取“村集体股份经济合作联合社+村小组集体入股+营业公司运作管理”，可以实现村委会和村小组集体资金壮大，由村股份经济合作联合社争取衔接资金投入，通过招商专业的民俗文化运营商负责经营，集民俗文化互动、农耕体验、品尝体验、加工体验为载体，村民参与务工提高收入。同时通过示范带动当地群众发展文旅产业增收致富，带动群众增收。","否","促进农户共享资产收益增收—入股经营获取收益及分红","是","否","否","是","李红月",18708776024,"红塔区民宗局","法冲村","否","否"]
[22,"红塔区","春和街道","黑村社区","乡村建设行动—村容村貌提升","红塔区春和街道黑村社区民族团结进步示范社区项目","2025年","新建","修建一条长450米，宽4.5米的机耕路，路基修建400米、路面硬化450米，其中路基方面含:现场清理、土方开挖回填、土石方运输、混凝土浇筑挡土墙、路基路床夯实等预计15万元。路面方面含:厚200mm的水泥稳定碎石底基层、基层;厚100mm的级配碎(砾)石底基层、基层;厚60mm的沥青铺装路面及相关辅助材料等预计30万元。安全实施和预埋管材以及项目管理费用、安全文明施工费用等预计5万元。",{"v":50,"d":"50.00"},{"v":50,"d":"50.00"},{"v":40,"d":"40.00"},{"v":10,"d":"10.00"},2348,6906,2,4,"项目完成后，黑村社区现代农业基地和该片区农田将得到有力的保障和更好的发展、生产环境将全面提升。路硬化和排水沟修建有助于黑村社区128亩的现代农业基地以及周边2000多名群众的500余亩农田的生产运输环境带来改善，以及在雨季排水能力的提升，受水灾风险减小。","否","促进农户共享资产收益增收—入股经营获取收益及分红","是","否","否","是","李红月",18708776024,"红塔区民宗局","黑村社区","否","否"]
[23,"红塔区","春和街道","黄草坝村","乡村建设行动—村容村貌提升","红塔区春和街道黄草坝村民族团结进步示范村项目","2025年","新建","1、新建1000立方高位储水池1个，              \n2、对玉碗水原有的小坝塘进行加固整治，进行加固水池、防漏改造；铺设水管3000米。",{"v":135.6,"d":"135.60"},{"v":135.6,"d":"135.60"},{"v":100,"d":"100.00"},{"v":35.6,"d":"35.60"},432,1470,24,67,"1、解决农户生活生产用水、改善村民生活条件，提升农业生产效益，帮助农户增收，切实推动地区发展。\n2、水池加固完成后能解决森林火灾及民房火灾的消防用水，保障玉碗水小组300多亩地的生产用水。","否","促进农户共享资产收益增收—入股经营获取收益及分红","是","否","否","是","李红月",18708776024,"红塔区民宗局","黄草坝村","否","否"]
[24,"红塔区","大营街街道","大密罗社区","产业发展—种植业基地","红塔区大营街街道大密罗社区民族团结进步示范村项目","2025年","新建","投资104.67万元在大密罗社区大水冲实施除虫菊产业发展项目，由大密罗社区水田彝谷农业公司租用八九十组25亩农田栽种除虫菊。其中，投资36.8万元新建农业生产大棚23亩；投资24万元浇筑排洪河道800米；投资10.17万元新建机耕路806米，宽2.5米，表面铺设瓜子石；投资7.2万元浇筑除虫菊晾晒场地900平方米；投资22万元新建除虫菊仓库200平方米；其他费用4.5万元。",104.67,104.67,{"v":100,"d":"100.00"},4.67,729,2429,66,261,"该项目的实施采取“村集体股份经济合作联合社+村小组股份经济合作社+农户”的模式，由村股份经济合作联合社争取衔接资金投入，村小组股份合作社负责日常管理维护，村民采取到基地务工提高收入的方式带动村民增收；预计解决长期务工5人，季节性务工20人；同时可带动周边农户种植除虫菊增加收入。","否","促进农户共享资产收益增收—入股经营获取收益及分红","是","否","否","是","李红月",18708776024,"红塔区民宗局","大密罗社区","否","否"]
[25,"红塔区","红塔区乡村振兴局","红塔区","产业发展—小额贷款贴息","产业发展-小额贷款贴息","2025年","新建","通过一卡通系统为获得小额信贷的脱贫户发放贴息资金，利息由财政全额贴息，1年期（含）以下贷款利率不超过1年期LPR，1年期至3年期（含）贷款利率不超过5年期以上LPR，全年计划补助不少于300户，计划投入补助资金75万元。",{"v":70,"d":"70.00"},{"v":70,"d":"70.00"},{"v":70,"d":"70.00"},{"v":0,"d":"0.00"},350,1050,350,1050,"通过实施“脱贫人口小额信贷”工作，为脱贫人口发展产业提供资金支持，同时财政贴息减轻了农户获得资金的成本压力，帮助脱贫人口通过发展产业实现增收目标。","是","带动农户发展生产增产增收—其他","不涉及","否","否","否","代云鹏",15987099687,"红塔区农业农村局（乡村振兴局）","不形成资产","否","否"]
[26,"红塔区","红塔区乡村振兴局","红塔区","巩固三保障成果—享受“雨露计划”职业教育补助","巩固三保障成果-享受“雨露计划”职业教育补助","2025年","新建","对符合条件的接受中高等职业教育的脱贫家庭（含监测对象）学生进行补助，补助标准为1500-2500元/人/学期。（接受全日制普通大专、高职院校、技师学院、职业本科院校等高等职业教育的补助标准为2500元/人/学期，接受全日制普通中专、技工院校中等职业教育的补助标准为2000元/人/学期，接受全日制职业高中中等职业教育的补助标准为1500元/人/学期）",{"v":80,"d":"80.00"},{"v":80,"d":"80.00"},{"v":80,"d":"80.00"},{"v":0,"d":"0.00"},180,540,180,540,"通过“雨露计划”实施工作，对脱贫人口及监测对象接受中、高等职业教育的子女做到应补尽补，提升接受补助的脱贫人口及监测对象接受中、高等职业教育的子女的就业率。","是","吸纳农村劳动力稳定就业增收—其他","不涉及","否","否","否","代云鹏",15987099687,"红塔区农业农村局（乡村振兴局）","不形成资产","否","否"]
[27,"红塔区","红塔区就业局","红塔区","就业项目—技能培训","就业项目-技能培训","2025年","新建","对有培训意愿的脱贫户（监测户）开展种植业培训，计划培训185人。",{"v":40,"d":"40.00"},{"v":40,"d":"40.00"},{"v":40,"d":"40.00"},{"v":0,"d":"0.00"},185,550,185,550,"保障具有劳动力的建档立卡贫困人口户有一技之长，适应社会需求，能自食其力，为家庭创收，改变家庭贫困，早日脱贫。","是","吸纳农村劳动力稳定就业增收—其他","不涉及","否","否","否","廖梓成",18687769086,"红塔区人社局（红塔区就业局）","不形成资产","否","否"]
[28,"红塔区","春和街道、北城街道","黄草坝、波衣、大石板、莲池","产业发展—休闲农业与乡村旅游","红塔区竹产业发展项目","2025年","新建","红塔区竹产业发展总面积为1.5万亩，其中布局于春和街道黄草坝社区6195亩，配备2个大型蓄水池、2个水泵站、铺设供水管网5000米；布局于春和街道波衣社区6765亩，配备2个大型蓄水池、2个水泵站、铺设供水管网4000米；布局于北城街道大石板社区1635亩，配备2个大型蓄水池、2个水泵站、铺设供水管网5000米；布局于北城街道莲池社区405亩，",898.37,898.37,{"v":382,"d":"382.00"},516.37,432,1470,24,67,"三年发展6195亩笋用竹","否","吸纳农村劳动力稳定就业增收—股权合作","是","否","否","是","许俊",13988412037,"红塔区林草局","黄草坝、波衣、大石板、莲池","否","否"]
[29,"红塔区","春和、北城等街道","黄草坝、波衣、大石板、莲池等社区","就业项目—帮扶车间（特色手工基地）建设","就业项目—帮扶车间（特色手工基地）建设","2025年","新建","就业帮扶车间计划吸纳脱贫劳动力140人",{"v":110,"d":"110.00"},{"v":110,"d":"110.00"},{"v":110,"d":"110.00"},{"v":0,"d":"0.00"},140,420,140,420,"实施就业帮扶车间项目，帮助实现就业帮扶有","否","吸纳农村劳动力稳定就业增收—其他","不涉及","否","否","否","孙睿",18987733030,"红塔区人社局（红塔区就业局）","不形成资产","否","否"]
[30,"红塔区","大营街街道","大密罗社区","产业发展—庭院特色休闲旅游","红塔区大营街街道大密罗社区文旅融合产业发展项目","2025年","新建","1、将上龙潭老公房改建为民宿，建筑面积480平方米，计划投资24万元。\n2、将上龙潭党支部底层4间办公室建面60平方米，改造成民宿，投资1.8万元。\n3、将塔娜庄园旁7间老烤房改造成民宿，建面210平方米，计划投资21万元。\n4、大密罗幼儿园加盖两层做民宿，改造底层392平方米，新建两层钢架房784平方米，投资133.28万元。\n5、配套设施（水、电、巷道硬化、场地硬化、排污等）计划投资20万元。",209.68,209.68,{"v":180,"d":"180.00"},29.68,701,2426,66,261,"该项目的实施采取“村集体股份经济合作联合社+公司+农户”的模式，由村股份经济合作联合社争取衔接资金投入，公司负责运营，带动村民加入的方式带动村民增收。项目建成可实现村组集体经济增收20万，增加贫困户利益联结机制，提供多个就业岗位提高村民收入，助销本地多类农特产品（蔬菜、密罗桃、野山菌）的销售。“以农带旅，以旅兴农”，盘活集体闲置资源，带动周边85户农户闲置民房部分加入做民宿产业增加收入，带动附近8家农家乐产业增收。同时也提升了人居环境，对美丽宜居乡村建设和乡村振兴起到了促进作用。","否","农户（村集体）直接入股经营。","是","否","否","是","李晓琼",{"v":13987759846,"d":"13987759846.00"},"红塔区农业农村局（乡村振兴局）","大密罗社区","否","否"]
[31,"红塔区","红塔区就业局","红塔区","就业项目—跨省务工及省内跨州（市）务工脱贫劳动力一次性交通补助","就业项目—跨省务工及省内跨州（市）务工脱贫劳动力一次性交通补助","2025年","新建","对符合标准的跨省就业脱贫劳动力（含监测帮扶对象），按照每人每年不超过1000元的标准给予外出务工一次性交通补助；对符合标准的省内跨州(市)就业脱贫劳动力(含监测帮扶对象)，按照每人每年不超过500元的标准给予外出务工一次性交通补助。预计补助跨省就业脱贫劳动力（含监测帮扶对象）173人次，省内跨州(市)就业脱贫劳动力(含监测帮扶对象)120人次。",{"v":23.3,"d":"23.30"},{"v":23.3,"d":"23.30"},{"v":23.3,"d":"23.30"},{"v":0,"d":"0.00"},293,870,293,870,"通过开展跨省务工及省内跨州（市）务工脱贫劳动力一次性交通补助项目,提升脱贫人口和监测对象外出务工的就业意愿，促进了脱贫人口和监测对象的稳岗就业。","是","吸纳农村劳动力稳定就业增收—其他","不涉及","否","否","否","孙睿",{"v":18987733030,"d":"18987733030.00"},"红塔区人社局（红塔区就业局）","不形成资产","否","否"]
[32,"红塔区","小石桥乡","玉苗村","产业发展—特色种植","小石桥乡玉苗村高原特色现代农业产业基地建设项目","2025年","新建","一、常规标准棚建设。\n（1）连栋温室主体，面积3335㎡，包括灌溉设施、半自动消毒系统、漫雾式全自动打药系统，拟投资398866元；加工安装费，拟投资92546元；\n（2）遮阳系统，面积3335㎡，拟投资52026元；加工安装费，37019元；共计合计580457元。\n二、 配套设施。\n（1）水肥车间，面积300㎡，拟投资43680元；加工安装费，拟投资11655元；共计合计55335元。\n三、水肥一体化（三通道）。包括安装费、有A、B、C三通道，全自动化控制系统，拟投资108780元；\n四、土地平整及简易生产用房，拟投资55428元。\n（一）+（二）+（三）+（四）=800000元。",{"v":80,"d":"80.00"},{"v":80,"d":"80.00"},{"v":70,"d":"70.00"},{"v":10,"d":"10.00"},693,1961,76,265,"该项目的实施采取“村办公司+农户”的模式，由村级争取项目衔接资金投入，村办公司负责具体运营，带动村民通过加入的方式带动村民增收致富。项目建成可实现村组集体经济增收10万，增加贫困户利益联结机制，提供多个就业岗位提高村民收入，带动和助销本地特色蔬菜的销售。该收益纳入集体“三资”管理，使用严格按照“四议两公开”程序确定，主要用于：公共基础设施建设、公共事务管理和发展公益事业；村干部创收奖励、慰问党员群众、开展助学奖学、救助生活困难党员群众、开展“三会一课”、主题党日等党组织活动和党员群众教育培训，开展群众性文体活动等。","否","吸纳农村劳动力稳定就业增收","是","否","否","是","期绍飞",{"v":13887766716,"d":"13887766716.00"},"红塔区委组织部","玉苗村","否","否"]
[33,"红塔区","大营街街道","甸苴社区","产业发展—养殖业基地","大营街街道甸苴社区梅花鹿养殖基地二期建设项目","2025年","改（扩）建","大营街街道甸苴社区梅花鹿养殖基地二期建设项目：\n（1）新建鹿茸加工晾晒区6米×20米；\n（2）新建青储池一座，18米×4.5米×4米；\n（3）道路硬化，143.5米×4米;\n（4）动力线路改造500米;\n（5）购买鹿茸加工设备。",77.15,77.15,{"v":70,"d":"70.00"},7.15,1465,4338,72,257,"通过梅花鹿养殖项目的实施，进一步增加社区集体经营性收入，确保已脱贫人口稳定脱贫，防止返贫现象的发生。甸苴社区农业发展有限公司梅花鹿养殖基地项目扩建申报是通过发展梅花鹿特色养殖产业，巩固脱贫攻坚成果，推动乡村振兴，提升产业发展水平，促进社区可持续发展。","否","吸纳农村劳动力稳定就业增收，解决农户玉米粒销售10吨，玉米秆销售400吨，待养殖技术成熟时带动农户养殖。","是","否","否","是","王家恒",{"v":13987753566,"d":"13987753566.00"},"红塔区委组织部","甸苴社区","否","否"]
[34,"红塔区","洛河乡","把者岱村","乡村建设行动—村容村貌提升","红塔区洛河乡把者岱村委会锅西甸村民族团结进步示范村项目","2025年","新建","1.污水管：DN150污水管360米、DN400污水管1300米、DN600污水管400米、检查井50座；\n2.雨水管：DN150雨水管360米、DN400雨水管1300米、DN600雨水管400米、水箅子50座；\n3.人饮管道DN100水池到村内主管980米、DN50镀锌管主管2150米、岔管DN25镀锌管1730米、200立方人饮蓄水池一座。",{"v":105,"d":"105.00"},{"v":105,"d":"105.00"},{"v":100,"d":"100.00"},{"v":5,"d":"5.00"},135,535,39,165,"村庄雨污管网、污水处理设施的完善，将解决出行问题，以及改善村庄人居环境；饮水管网建设将解决饮水困难的问题。","否","促进农户共享资产收益增收—入股经营获取收益及分红","是","否","否","是","周永坚",18687766726,"红塔区民宗局","把者岱村","否","否"]
[35,"红塔区","研和街道","可官社区","产业发展—小型农田水利设施建设","红塔区研和街道可官社区农业产业管网建设项目(一期)","2025年","新建","可官村片区：1、DN100镀锌管671米，2、PE63塑料管9700米，3、PE25塑料管500米，4、角钢管道支架1500公斤，5、PE63球阀17个，6、PE25球阀480个，7、智能水表400套（包含水表箱、配件）；\n潘井村片区：1、DN100镀锌管200米，2、PE63塑料管3000米，3、PE25塑料管380米，4、角钢管道支架1000公斤，5、PE63球阀5个，6、PE25球阀200个，7、智能水表220套（包含水表箱、配件）；\n玉屏清水河片区：1、DN80镀锌管2000米，2、泵房修缮。                                         \n  ",{"v":130,"d":"130.00"},{"v":104,"d":"104.00"},{"v":104,"d":"104.00"},{"v":0,"d":"0.00"},799,2417,3,5,"项目建成后由社区成立水务公司负责管理经营，项目水源为污水处理厂处理后的中水，日供水量可达600­800立方米，预计农户年用水量18万立方米，计划水费收取价3元/m³，预计可实现年收益54万元。该项目的实施有效解决600亩农田干旱、农业用水短缺等问题，有效提升农产品质量，带动330户农户农业生产发展，有效提高农户经济效益，形成高质、高效的现代化农业基地。","是","带动农户发展生产增产增收—其他","是","否","否","是","廖红军",15987092294,"红塔区农业农村局（乡村振兴局）","可官社区","是","是"]
[36,"江川区","星云街道","早街社区","产业发展—市场建设和农村物流","星云街道早街民族团结进步示范村项目","2025年","新建","新建 1 个乡 村农产品交易和物流中心，占地面积约 1705.32m²。临时商 铺搭设，平整、硬化场地，排水沟建设，新建围墙。",{"v":100,"d":"100.00"},{"v":100,"d":"100.00"},{"v":100,"d":"100.00"},{"v":0,"d":"0.00"},1646,5158,12,39,"完善产业基础设施建设：投资100万元，在早街社区居委会五甲第一居民小组新建1个乡村农产品交易和物流中心，占地面积约2亩。其中，投资30万元，按照230元/平方米的单价，平整硬化场地1300平方米；投资8万元，按照220元/米的单价，铺设雨污管网290米；投资72万元，按照550元/平方米的单价，建盖1层高8.5米钢结构树脂瓦顶的农产品和物流中心。","否","促进农户共享资产收益增收—其他","是","否","否","是","吴冬丽",{"v":13887745075,"d":"13887745075.00"},"玉溪市江川区民宗局","早街社区","是","否"]
[37,"江川区","星云街道","三街社区","产业发展—产业园（区）","江川区三街社区现代设施农业示范基地建设项目","2025年","新建","(一)6条农业道路，3.0m宽，总长1517.02m，道路路肩为C25素混凝土，土夹石回填压实路面，压实系数K>0.92%。;4条排水沟0.3m(宽)x0.4m(高)，总长1027.4m排水沟为 C25 素混凝土排水沟。(二)水肥一体灌溉设施安装。(三)基地内低压电力建设(10KV电源由当地电力部门接入)。",260,260,250.87,9.13,2472,7665,12,41,"通过新建230.93亩现代设施农业示范地基地建设，提升土地产值，构建“村党组织+村办公司+农户”生产方式，增加村级集体经济收入每年增加收益80万元以上，保住村组级集体经济收入不减，同时带动周边部分农户就业。","否","发展产业带动集体增收，农户通过共享收益、土地流转、务工等方式增收","是","否","否","是","徐乾清",{"v":13013482908,"d":"13013482908.00"},"区农业农村局","三街社区","是","是"]
[38,"江川区","宁海街道","海浒社区","产业发展—其他","海浒社区产业路建设项目","2025年","新建","（1）产业路道路硬化 2 段\n1700m，道路清表，路床整形，风化料回填，排水沟修复。\n（2）上海浒、古城村内道路修补硬化约 1055m。",{"v":150,"d":"150.00"},{"v":150,"d":"150.00"},{"v":150,"d":"150.00"},{"v":0,"d":"0.00"},1969,7934,33,123,"提升产业配套设施，促进沿湖种植业，乡村旅游发展。","否","带动农户发展生产增产增收—其他","是","否","否","是","徐乾清",13013482908,"玉溪市江川区农业农村局","海浒社区","是","否"]
[39,"江川区","宁海街道","伏家营社区","乡村建设行动—村容村貌提升","伏家营社区伏家营小组避难场所建设","2025年","新建","场地硬化1块，面积1352.56㎡，排水沟90m。",{"v":17,"d":"17.00"},{"v":17,"d":"17.00"},{"v":17,"d":"17.00"},null,2079,6168,43,114,"通过在倚伏家营修建应急避难场所，进行场地硬化1块，面积1352.56㎡，建排水沟90m。方便群众出行，在突发事件发生时确保群众人生财产安全。","否","不需要","是","否","否","否","徐乾清",13013482908,"玉溪市江川区农业农村局","伏家营社区","是","是"]
[40,"江川区","江城镇","海门村","产业发展—休闲农业与乡村旅游","江城镇海门村“古香海门”农文旅融合发展项目","2025年","新建","(1)茶马古道延长线旅游道路修复:修建挡墙总长 130m,高约 3.5m,合计 550m';(2)护栏总长 640m;新建游步道总长 457m。",{"v":160,"d":"160.00"},{"v":160,"d":"160.00"},{"v":160,"d":"160.00"},{"v":0,"d":"0.00"},750,1897,1,4,"以“两湖原乡 • 海门古驿”为总体定位，紧抓古滇文化和一山观两湖的环境特色，以文体旅融合发展为产业路径，打造集古滇文化体验、高山湖泊休闲度假功能于一体的融合型山地运动休闲度假目的地，通过对海门村的产业、环境和文化进行保护、梳理、提升、改造，植入“文旅＋康养、研学、度假”的业态，实现产业布局结构的优化和调整，从而形成宜居宜业的乡村振兴新局面，将海门村打造成省级文旅带动型乡村振兴示范点、昆玉红旅游文化带上的山地运动度假体验基地、古滇文化体验首选地。\n","否","促进农户共享资产收益增收—其他","是","否","否","是","李佩佩、徐乾清","18788526631、13013482908","江川区委组织部、玉溪市江川区农业农村局","海门村","是","否"]
[41,"江川区","江城镇","白家营村","产业发展—农产品仓储保鲜冷链基础设施建设","江城镇白家营村农产品冷链物流基地建设项目","2025年","新建","新建冷库1 个，占地 328.46㎡。",70,70,70,{"v":0,"d":"0.00"},3948,50,180,null,"增加村集体经济，带动蔬菜产业发展。","否","促进农户共享资产收益增收—其他","是","否","否","是","李佩佩","18788526631","江川区委组织部","白家营村","是","是"]
[42,"江川区","江城镇","祁家营","乡村建设行动—产业路、资源路、旅游路建设","江城镇祁家营产业道路建设","2025年","新建","新建3.5m宽道路长888m，新建排水明沟215m；新建路肩墙长158m，过路桥加宽1.1m。",{"v":67,"d":"67.00"},{"v":67,"d":"67.00"},{"v":67,"d":"67.00"},{"v":0,"d":"0.00"},490,1275,75,275,"对促进村庄未来的发展有着积极的作用，有利于带动村子及附近区域经济社会的发展.通过本项目的建设，提高群众生活质量和生活水平.","否","促进农户共享资产收益增收—其他","是","否","否","否","徐乾清",13013482908,"玉溪市江川区农业农村局","祁家营","是","是"]
[43,"江川区","江城镇","侯家沟","乡村建设行动—村容村貌提升","江城镇侯家沟村人居环境提升改造项目","2025年","新建","1.张家头路面硬化600m；2.水沟修建784m；3.应急避难场所25㎡；4.沼气池围墙4m；5.挡墙150m；6.小花圃100㎡（自筹资金）。",{"v":40.3,"d":"40.30"},{"v":40.3,"d":"40.30"},{"v":40,"d":"40.00"},{"v":0.3,"d":"0.30"},114,336,2,9,"对促进村庄未来的发展有着积极的作用，有利于带动村子及附近区域经济社会的发展.通过本项目的建设，提高群众生活质量和生活水平.","否","促进农户共享资产收益增收—其他","是","否","否","否","徐乾清",13013482908,"玉溪市江川区农业农村局","侯家沟","是","否"]
[44,"江川区","前卫镇","石河村","乡村建设行动—产业路、资源路、旅游路建设","前卫镇小石河村民族团结进步示范村项目","2025年","新建","（1）硬化小石河村电烤房产业路 1506.94m²，附属挡土墙、围墙，排\n水沟 67.2m;(2）在原编烟棚一侧扩建编烟棚 1075.6m2\n;（3）新建太阳能路灯 2 盏。",{"v":100,"d":"100.00"},{"v":100,"d":"100.00"},{"v":100,"d":"100.00"},0,119,356,7,27,"项目位于石河村委会小石河小组，多年来，小石河的群众大多以农业为生，烟草是小石河的主要经济收入来源。项目的实施可以有效解决小石河小组彝族村民拉烟等重力运输打滑、倾覆等安全隐患以及编烟装烟的场地需求，带动小石河村民增产增收，预计每年产生经济效益48万元。","否","带动农户发展生产增产增收—其他","是","否","否","否","吴冬丽",{"v":13887745075,"d":"13887745075.00"},"玉溪市江川区民宗局","石河村","是","否"]
[45,"江川区","前卫镇","渔村村","产业发展—市场建设和农村物流","前卫镇渔村等2个村鲜切花交易中心建设项目","2025年","新建","新建1幢鲜切花交易中心，为钢框架结构，建筑占地面积520.8m²。",{"v":140,"d":"140.00"},{"v":140,"d":"140.00"},{"v":140,"d":"140.00"},{"v":0,"d":"0.00"},2516,6496,30,87,"通过建设交易中心，一是实现经济效益。预计每年实现利润约16.04万元。二是实现联农带农。①为周边企业、合作社提供鲜花采购、销售渠道，提升服务企业质效。②服务前卫镇128户花卉种植户，强化花卉种植风险抵御能力。③可吸纳周边50名劳动力就地就近务工，其中管理岗位2个（3000元/月，年收入3.6万元），48个分拣工岗位（1500元/月，年收入1.8万元）。三是打造文化名片。发展花卉产业，打造品牌、质量、效益同步提升的“花经济”，扩大知名度，带动当地旅游业发展。","否","带动花卉销售","是","否","否","是","徐乾清",{"v":13013482909,"d":"13013482909.00"},"江川区组织部","渔村村","是","是"]
[46,"江川区","前卫镇","前卫社区","产业发展—市场建设和农村物流","前卫镇前卫社区农贸市场建设项目","2025年","新建","建设1幢农贸市场，二层混凝土框架结构，占地面积合计 202㎡。",{"v":70,"d":"70.00"},{"v":70,"d":"70.00"},{"v":70,"d":"70.00"},{"v":0,"d":"0.00"},2516,6496,30,87,"通过在前卫镇前卫社区建设农贸市场，增加村集体经济，带动蔬菜产业发展。","否","带动农户发展生产增产增收—其他","是","否","否","是","徐乾清",13013482908,"玉溪市江川区农业农村局","前卫社区","是","是"]
[47,"江川区","九溪镇","六十亩村","产业发展—产业园（区）","六十亩村委会六十亩小组民族团结进步示范村建设项目","2025年","新建","场地平整 9789 ㎡,新建鲜花种植大棚2幢总面积 6144m;道路硬化面积 642.0㎡。",{"v":100,"d":"100.00"},{"v":100,"d":"100.00"},{"v":100,"d":"100.00"},{"v":0,"d":"0.00"},2516,6496,30,87,"六十亩村百合花产业面临种植成本高、无菌技术要求高、运输费用高的难题，通过完善百合花产业基地建设，采用“企业+村办公司+农户”的运营模式，签订“双绑利益联结协议”，提升百合花种植设施投入，助推农业产业发展，可有效降低农户种植成本、提高亩均效益，完善百合花种植种球端和销售端产业链，受益1022户2419人，预计能为农户提供50亩种苗，帮助578户农户销售百合花，节约成本1500元/亩，提高百合花品质，进一步扩大百合花在斗南冬季交易市场占比70%的市场优势，同时增加村集体收入20万元/年，提升各族群众幸福感。","否","促进农户共享资产收益增收—其他","是","否","否","是","吴冬丽",{"v":13887745075,"d":"13887745075.00"},"玉溪市江川区民宗局","六十亩村","是","否"]
[48,"江川区","九溪镇","大村","产业发展—农产品仓储保鲜冷链基础设施建设","大村一组农产品综合交易市场","2025年","新建","（1）原有场地平整1712.21m²，含地面硬化、挡墙、围墙、大门；新建钢结构加工车间 260.76m²；新建228.0m2新建制冷机房 21.66m2；新建配套用房 65.0m2。（2）龙泉小组新农村旁田间道路硬化 1040.53m²。",{"v":215,"d":"215.00"},{"v":215,"d":"215.00"},{"v":215,"d":"215.00"},{"v":0,"d":"0.00"},1207,3424,86,276,"建设草莓交易收购中心，招商引资和第三方合作，获取收益，预计年收益8万元。","否","促进农户共享资产收益增收—其他","是","否","否","是","徐乾清",13013482908,"玉溪市江川区农业农村局","大村","是","否"]
[49,"江川区","九溪镇","矣文村","产业发展—种植业基地","九溪镇矣文村食用菌产业发展种植配套建设项目","2025年","新建","1.建设温控大棚2亩，建设普通简易棚建设10亩及配套水电基础设施；2.配套道路硬化400m、排水沟建设400m。",{"v":115,"d":"115.00"},{"v":115,"d":"115.00"},{"v":115,"d":"115.00"},{"v":0,"d":"0.00"},773,2241,98,308,"进一步补齐项目短板，拓展乡村产业多元化发展，带动群众发展，提高村民收入。","否","带动农户发展生产增产增收—保护价收购","是","否","否","是","徐乾清",13013482908,"玉溪市江川区农业农村局","矣文村","是","否"]
[50,"江川区","九溪镇","九溪社区","产业发展—农产品仓储保鲜冷链基础设施建设","九溪社区民族村寨旅游提升项目","2025年","新建","(1)改造建设农特产品展销服务平台1个，建筑面积 51.73 ㎡;(2)新建农产品仓库 36.32 ㎡;(3)新增场地硬化860 ㎡;(4)新建挡墙10m。",{"v":30,"d":"30.00"},{"v":30,"d":"30.00"},{"v":30,"d":"30.00"},{"v":0,"d":"0.00"},1605,4089,18,60,"通过1)改造建设农特产品展销服务平台1个，建筑面积 51.73 ㎡;(2)新建农产品仓库 36.32 ㎡;(3)新增场地硬化860 ㎡;(4)新建挡墙10m。能够带动花卉、草莓产业发展，促进群众增收。","否","带动农户发展生产增产增收—其他","是","否","否","是","徐乾清",13013482908,"玉溪市江川区农业农村局","九溪社区","是","是"]
[51,"江川区","九溪镇","九溪社区","产业发展—其他","九溪社区民族手工业(陶器制作非遗技艺)融合创新发展项目","2025年","新建","建设陶器展销区1栋，一层混凝土框架结构，占地80.83 ㎡，用于游客陶艺制作体验。",{"v":20,"d":"20.00"},{"v":20,"d":"20.00"},{"v":20,"d":"20.00"},{"v":0,"d":"0.00"},1605,4089,18,60,"通过建设陶器展销区1栋，一层混凝土框架结构，占地80.83 ㎡，可用于游客陶艺制作体验，带动旅游业发展，民族手工业(陶器制作非遗技艺)得于传承和发扬。","否","带动农户发展生产增产增收—其他","是","否","否","否","吴冬丽",{"v":13887745075,"d":"13887745075.00"},"玉溪市江川区民宗局","九溪社区","是","是"]
[52,"江川区","九溪镇","九溪社区","乡村建设行动—农村道路建设（通村路、通户路、小型桥梁等）","九溪镇九溪社区民族团结进步示范社区建设项目","2025年","新建","在九溪镇太和小组窑泥坡田间道路进行硬化，总长度\n712.52 米，其中 1#道路长 386.21 米，宽度为 4.5 米；2#道路长 175.96 米，宽度为 3.5 米；3#道路长 150.35 米，宽度为4.4 米。",{"v":42,"d":"42.00"},{"v":42,"d":"42.00"},{"v":42,"d":"42.00"},{"v":0,"d":"0.00"},156,416,2,4,"完善农业基础设施：该项目的实施，能有效改善九溪社区的农业基础设施，对社区的烤烟、草莓、蔬菜产业发展起到了积极的推动作用，带动  群众受益104户416人，群众满意率达90%以上，有效促进社区农业经济的快速发展。","否","不需要","是","否","否","否","吴冬丽",{"v":13887745075,"d":"13887745075.00"},"玉溪市江川区民宗局","九溪社区","是","是"]
[53,"江川区","九溪镇","阳山庄","乡村建设行动—农村道路建设（通村路、通户路、小型桥梁等）","九溪镇阳山庄示范村基础设施提升工程","2025年","新建","新农村道路硬化4513㎡；2.房前屋后地面硬化2730㎡；3.砖砌挡墙30m³，砌筑路沿石700m。",101.54,101.54,{"v":60,"d":"60.00"},41.54,219,592,6,16,"改善人居环境条件，提升村容村貌，加快美丽宜居和美乡村建设，增加群众幸福感和获得感。","否","不需要","是","否","否","否","徐乾清",13013482908,"玉溪市江川区农业农村局","阳山庄","是","是"]
[54,"江川区","雄关乡","石岩村","乡村建设行动—村容村貌提升","雄关乡白石岩村小田小组民族团结示范村项目","2025年","新建","(1)修建旅游登山道路755m(原计划路宽 4m,现变更为 5m)，附属排水沟建设;(2)新增限高杆 1套;(3)新增挡土墙 20m';(4)新增错车台 800 ㎡;(5)开挖碎石1000m。工",{"v":103.9,"d":"103.90"},{"v":103.9,"d":"103.90"},{"v":103.9,"d":"103.90"},{"v":0,"d":"0.00"},42,127,13,49,"通过项目建设，推动当地旅游业发展，依托现状空间肌理，“田村林水”资源禀赋，打通空间联系，以“轻介入、微改造”理念，通过农业科技+艺术景观激活房屋、场地、农田、水库等，构建串联地域空间、资源要素的产业链条，打造白石岩宜居宜业和美乡村品牌。项目建成后，预计吸引游客1000人/年，带动40余户100余本土居民参与白石岩旅游业发展，促进群众增收每年8万元以上。","否","带动农户发展生产增产增收—其他","是","否","否","否","吴冬丽",{"v":13887745075,"d":"13887745075.00"},"玉溪市江川区民宗局","石岩村","是","否"]
[55,"江川区","雄关乡","雄关社区","产业发展—种植业基地","雄关乡雄关社区沙拉生菜水培基地建设项目","2025年","新建","(1)改造升级10亩高标准连体大棚;(2)新建 1.5 亩育苗和水肥控制中心(在现在大棚内新建)，配备注水管理系统、营养液供应系统、灌溉系统、光照系统、温度控制设备;(3)增加完善育苗和水费控制中心内部设施，包括苗床 10 排，营养液池2个，增加增氧机和紫外线杀菌装置，恒温机2台，净水器1台，输肥供液泵2台，过滤器2个，控制柜1套及配套线路。",{"v":123,"d":"123.00"},{"v":123,"d":"123.00"},{"v":123,"d":"123.00"},{"v":0,"d":"0.00"},54,153,3,12,"通过试点示范，带动传统产业提档升级，蔬菜产业高端化。","否","促进农户共享资产收益增收—其他","是","否","否","是","李佩佩","18788526631","江川区委组织部","雄关社区","是","是"]
[56,"江川区","雄关乡","窑房村","产业发展—加工业","雄关乡窑房产业片区产业配套设施建设项目","2025年","新建","场地硬化 1140 ㎡;新建冷链储藏冷库2个占地 555.44 ㎡。",{"v":120,"d":"120.00"},{"v":120,"d":"120.00"},{"v":120,"d":"120.00"},{"v":0,"d":"0.00"},221,657,8,23,"通过建设梅干菜加工厂，带动蔬菜种植，增加村集体经济收入。","否","促进农户共享资产收益增收—其他","是","否","否","是","徐乾清",13013482908,"玉溪市江川区农业农村局","窑房村","是","否"]
[57,"江川区","雄关乡","下营村","产业发展—农产品仓储保鲜冷链基础设施建设","雄关乡下营村花卉基地配套设施建设项目","2025年","新建","(1)新建基地冷库房420.76 m(分2 间，每间 210.38 ㎡，其中1间包含冷库装修及制冷设备采购:1 间不含装修及制冷设备采购);(2)晾晒场地 683.08 m;(3)围墙163m。",{"v":100,"d":"100.00"},{"v":100,"d":"100.00"},{"v":100,"d":"100.00"},{"v":0,"d":"0.00"},284,857,21,70,"通过扶持农业经营主体，一方面通过资产收益方式带动村集体增收，一方面通过带动就业务工，带动生产等方式发挥联农带农效益。","否","带动农户发展生产增产增收—其他","是","否","否","是","徐乾清",13013482908,"玉溪市江川区农业农村局","下营村","是","否"]
[58,"江川区","雄关乡","白石岩","乡村建设行动—村容村貌提升","雄关乡白石岩小田示范村基础设施提升项目","2025年","新建","1.路面硬化、修补，总面积3500㎡；2.新建挡墙413m³；3.新建防护栏437米；4.新建雨污分离主管550m；5.新建公路护栏50米；6.新建污水处理池1个（规格：10m³）;7.新建“四小园”700㎡。",{"v":60,"d":"60.00"},{"v":60,"d":"60.00"},{"v":45,"d":"45.00"},{"v":15,"d":"15.00"},42,127,13,49,"项目的建设完善了雄关乡白石岩的基础设施建设，对促进雄关乡白石岩未来的发展有着积极的作用，有利于带动附近区域经济社会的发展。","否","促进农户共享资产收益增收—其他","是","否","否","否","徐乾清",13013482908,"玉溪市江川区农业农村局","白石岩","是","否"]
[59,"江川区","安化彝","安化社区","产业发展—加工业","安化彝族乡安化社区安山源有基质厂扩建项目","2025年","新建","（1）建设防护栏 220m（; 2）新建道路 400m²，混凝土排水沟 180m;（3）育苗、栽培基质生产线一套，标准化叉车一辆。",{"v":100,"d":"100.00"},{"v":100,"d":"100.00"},{"v":100,"d":"100.00"},{"v":0,"d":"0.00"},42,127,13,49,"项目采取“党组织+合作社+农户”的模式，通过该项目建设，完善生产链优化产品质量，更好地满足市场订单产品需求，带动群众就业10余人，促进村集体创收20万元，有效带动全社区居民提升年收入，绘就“民族团结+乡村振兴”的美丽画卷。","否","促进农户共享资产收益增收—其他","是","否","否","是","吴冬丽",{"v":13887745075,"d":"13887745075.00"},"玉溪市江川区民宗局","安化社区","是","否"]
[60,"江川区","安化彝","光山村","产业发展—休闲农业与乡村旅游","安化乡光山多肉村农文旅融合发展基础设施建设项目","2025年","新建","1.UPVC入户管650m，PE螺旋波纹管800m，检查井45座，混凝土井盖45个；2.土方开挖1600m³，土方回填1200m³，路面破除及恢复1100㎡；3.道路硬化218m，挡土墙109m，便民场地整治提升300㎡；4.场地硬化450㎡，砌体墙拆除170m³，钢丝网加固土墙面450㎡，墙面抹灰及刮腻子700㎡等，机耕路395m。",{"v":150,"d":"150.00"},{"v":150,"d":"150.00"},{"v":100,"d":"100.00"},{"v":50,"d":"50.00"},235,665,40,129,"通过项目实施，带动花卉产业发展，吸纳就业200余人，壮大村集体经济10万元/年","否","促进农户共享资产收益增收—其他","是","否","否","是","徐乾清",13013482908,"玉溪市江川区农业农村局","光山村","是","否"]
[61,"江川区","安化彝","新庄村","产业发展—其他","安化彝族乡现代农业产业基地配套设施建设项目","2025年","新建","(1)新庄村新建农业温室大棚建设11亩，含棚内通道等附属设施;排水沟、护边墙 520m。(2)光山村修复机耕路 535m;新建排水沟 470m;新建路肩墙 265m，路口道路硬化 25m?新建混凝土涵管 16m，新建沉砂池4座。",{"v":140,"d":"140.00"},{"v":140,"d":"140.00"},{"v":140,"d":"140.00"},{"v":0,"d":"0.00"},703,2024,93,336,"通过在)新庄村新建农业温室大棚建设11亩，光山村修复机耕路能够发展花卉产业，促进农民增收，增加村集体经济收入。","否","带动农户发展生产增产增收—其他","是","否","否","是","徐乾清",13013482908,"玉溪市江川区农业农村局","新庄村","是","是"]
[62,"江川区","江城镇","左卫村","产业发展—农产品仓储保鲜冷链基础设施建设","江城镇左卫村花卉产业提升工程","2025年","新建","1.宝塔营小组修建产业路410m，排洪沟480m，挡土墙22m；2.龙街村建设花冷库1个230㎡，分捡台130㎡；3.古埂小组新建编烟棚490㎡。",16.06,16.06,16.06,{"v":0,"d":"0.00"},3948,9147,53,179,"通过支持新型经营主体产业项目建设，提升经营主体的带动作用。解决部分群众务工问题，带动村民增收。","否","促进农户共享资产收益增收—其他","是","否","否","是","徐乾清",13013482908,"玉溪市江川区农业农村局","左卫村","是","是"]
[63,"江川区","雄关乡","白石岩","产业发展—休闲农业与乡村旅游","雄关乡白石岩星级村提升工程项目","2025年","新建","1、修建登山道路900m；2、修建排水沟900m；3、原有防火通道硬化1900m；4、碎石找平层厚度10cm，面积5700㎡。",{"v":180,"d":"180.00"},{"v":180,"d":"180.00"},7.15,172.85,83,279,33,120,"项目的实施不断完善了雄关乡白石岩村委会的基础设施建设，引进第三方资本，促进当地旅游业发展，带动周边群众参与，使群众的生活环境得到改善，为经济社会的进一步发展创造了基本条件。项目建成产生收益后从村集体收入中提取15%用于当地贫困户的生活补助发放。","否","促进农户共享资产收益增收—其他","是","否","否","否","徐乾清",13013482908,"区民宗局","白石岩","是","是"]
[64,"江川区","雄关乡","窑房村","产业发展—加工业","雄关乡窑房村梅干菜加工厂扩建项目","2025年","新建","扩建梅于菜加工厂1个，1、采购烘干设备1台；2、新建梅于菜发酵厂房1座；3、新建过磅秤及配套过磅房1个；4、新建泡菜池10个。",{"v":200,"d":"200.00"},{"v":200,"d":"200.00"},18.75,181.25,221,657,8,23,"项目的实施，引进鸿宇生物公司，有效带动当地群众实现就地就近就业，增加村集体收入，项目的实施具有长期的效益收获期。项目建成产生收益后从村集体收入中提取15%用于当地贫困户的生活补助发放。","否","促进农户共享资产收益增收—其他","是","否","否","否","徐乾清",13013482908,"玉溪市江川区农业农村局","窑房村","是","是"]
[65,"江川区","星云街道","河咀社区","产业发展—市场建设和农村物流","星云街道老河咀蔬菜分拣及农产品交易市场建设项目","2025年",null,"1.拆除废弃烤房、花池723.9㎡；2.市场改造611.33㎡；3.新建农产品分拣房128.33㎡；4.场地硬化2265.33㎡；5.市场配套售卖台、鱼池210.13㎡；6.水管424.3m；7.修建328.5m³洗菜池1个。",{"v":158,"d":"158.00"},{"v":158,"d":"158.00"},{"v":15,"d":"15.00"},{"v":143,"d":"143.00"},1526,5459,34,114,"增加集体收入，方便群众农产品交易","否","带动农户发展生产增产增收—其他","是","否","否","是","徐乾清",13013482908,"玉溪市江川区农业农村局","河咀社区","是","是"]
[66,"江川区","江川区","江川区","产业发展—小额贷款贴息","江川区小额信贷帮扶贴息资金","2025年","新建","用于脱贫户、监测户小额贷款贴息。",{"v":105,"d":"105.00"},{"v":105,"d":"105.00"},{"v":105,"d":"105.00"},{"v":0,"d":"0.00"},900,3100,900,3100,"通过实施小额信贷贴息项目，帮助低收入人口获得产业发展资金。脱贫户和监测对象扶贫小额信贷及时足额发放，解决脱贫户和监测对象产业发展资金难题，帮助脱贫户发展种养殖等产业，实现稳定增收。","是","带动农户发展生产增产增收—其他","不涉及","否","否","否","徐乾清",13013482908,"玉溪市江川区农业农村局","不形成资产","是","否"]
[67,"江川区","江川区","江川区","巩固三保障成果—享受“雨露计划”职业教育补助","江川区雨露计划补助资金","2025年","新建","按照省级每年规定的标准补助脱贫户、监测户家庭职业教育学生。",{"v":100,"d":"100.00"},{"v":100,"d":"100.00"},{"v":100,"d":"100.00"},{"v":0,"d":"0.00"},460,460,460,460,"全面贯彻落实国家“雨露计划”支持农村贫困家庭新成长劳动力接受职业教育政策，通过政策扶持，让农村贫困家庭子女初、高中毕业后接受中、高等职业教育的比例逐步提高，每个贫困家庭孩子掌握一项实用技术，实现贫困家庭新成长劳动力创业就业能力得到提升，一个家庭有一名劳动力长期就业，家庭工资性收入占比显著提高。","是","不需要","不涉及","否","否","否","徐乾清",13013482908,"玉溪市江川区农业农村局、教体局","不形成资产","是","否"]
[68,"江川区","江川区","江川区","就业项目—公益性岗位","江川区脱贫户及监测对象公益性岗位安置项目","2025年","新建","对超出人社局安置范围且符合岗位要求、有意愿的脱贫户及监测对象，通过财政衔接资金开发乡村公益性岗位进行安置。",{"v":395,"d":"395.00"},{"v":395,"d":"395.00"},{"v":395,"d":"395.00"},{"v":0,"d":"0.00"},230,230,230,230,"通过公益岗位安置，为低收入人口提供就业渠道，增加收入。","是","不需要","不涉及","否","否","否","徐乾清",13013482908,"玉溪市江川区农业农村局","不形成资产","是","否"]
[69,"江川区","江川区","江川区","就业项目—帮扶车间（特色手工基地）建设","江川区就业帮扶车间补助","2025年","新建","经市级认定的就业帮扶车间，对帮扶车间吸纳5人以上脱贫劳动力就业1个月以上的，按其发给脱贫劳动力工资的15%给予奖补。",{"v":20,"d":"20.00"},{"v":20,"d":"20.00"},{"v":20,"d":"20.00"},{"v":0,"d":"0.00"},35,35,35,35,"对帮扶车间吸纳5人以上脱贫劳动力就业1个月以上的，按月按其发给脱贫劳动力工资额的15%给予就业奖补。鼓励更多经营主体带动脱贫人口务工增收。","是","不需要","不涉及","否","否","否","徐乾清",13013482908,"玉溪市江川区农业农村局","不形成资产","是","否"]
[70,"江川区","江川区","江川区","就业项目—技能培训","脱贫户及监测对象培训补助项目","2025年","新建","用于脱贫人口参加就业技能培训相关支出。",{"v":50,"d":"50.00"},{"v":50,"d":"50.00"},{"v":50,"d":"50.00"},{"v":0,"d":"0.00"},245,245,10,10,"通过技能培训提升脱贫人口就业能力。","是","不需要","不涉及","否","否","否","徐乾清",13013482908,"玉溪市江川区农业农村局","不形成资产","是","否"]
[71,"江川区","江川区","江川区","就业项目—交通费补助","脱贫人口一次性外出务工交通补助","2025年","新建","对跨省外出务工且稳定就业3个月以上的脱贫人口及三类监测对象，按照跨省务工每人1000元，跨州市务工每人500元的标准给予一次性外出务工交通补助（每年享受1次）。",{"v":90,"d":"90.00"},{"v":90,"d":"90.00"},{"v":90,"d":"90.00"},{"v":0,"d":"0.00"},200,200,200,200,"鼓励脱贫人口外出务工，稳定脱贫人口工资性收入。","是","不需要","不涉及","否","否","否","徐乾清",13013482908,"玉溪市江川区农业农村局","不形成资产","是","否"]
[72,"江川区","江川区","江川区","项目管理费—项目管理费","乡村振兴项目管理费","2025年","新建","从到县衔接资金中统一提取管理费，用于工程项目方案设计、招标、监理等工作，中央提取1%，省级提取5%。",{"$f":"SUM(K77,P77)","v":85.27},85.27,85.27,{"v":0,"d":"0.00"},"——","——","——","——","保障财政衔接资金项目顺利实施。","是","不需要","不涉及","否","否","否","徐乾清",13013482908,"玉溪市江川区农业农村局","不形成资产","是","否"]
[73,"江川区","星云街道","土官田村委会一组","乡村建设行动—产业路、资源路、旅游路建设","土官田村产业基地道路建设工程","2025年","新建","产业基地道路硬化，全长1000米，宽4米，村内道路硬化1500平米。",{"v":70,"d":"70.00"},{"v":70,"d":"70.00"},{"v":60,"d":"60.00"},{"v":10,"d":"10.00"},343,1036,13,53,"开发利用闲置土地，推进乡村产业振兴项目建设","否","带动农户发展生产增产增收—其他","是","否","否","否","徐乾清",13013482908,"玉溪市江川区农业农村局","土官田村","是","否"]
[74,"江川区","星云街道","五甲二组、三义庙一组","乡村建设行动—农村道路建设（通村路、通户路、小型桥梁等）","星云街道早街社区五甲二组、三义庙一组道路硬化项目","2025年","新建","五甲二组道路平整硬化C25混凝土硬化面积3800平方米，三义庙一组道路平整硬化C25混凝土硬化面积3670平方米，安装路灯30盏，村容村貌整治",{"v":120,"d":"120.00"},{"v":120,"d":"120.00"},{"v":60,"d":"60.00"},{"v":60,"d":"60.00"},675,1160,1,2,"改善村组人居环境","否","促进农户共享资产收益增收—其他","是","否","否","否","徐乾清",13013482908,"玉溪市江川区农业农村局","五甲二组、三义庙一组","是","否"]
[75,"江川区","江城镇","温泉村委会","乡村建设行动—村容村貌提升","江城镇温泉村委会庄科旧村改造后提升项目","2025年","新建","雨污管3000米，村庄道路硬化600米。",{"v":150,"d":"150.00"},{"v":150,"d":"150.00"},{"v":140,"d":"140.00"},{"v":10,"d":"10.00"},302,854,4,12,"项目的实施改善公共服务设施，改善生活环境，增加收入具有十分重要的意义。项目的实施不断完善了当地基础设施，农业产业建设，群众的生活环境得到改善.打造乡村振兴示范村。","否","促进农户共享资产收益增收—其他","是","否","否","否","徐乾清",13013482908,"玉溪市江川区农业农村局","温泉村委会","是","否"]
[76,"江川区","前卫镇","周官村","产业发展—市场建设和农村物流","前卫镇周官村农贸市场提升改建项目","2025年","新建","（1）周官菜市场临近老晋思线，交通便利，辐射周边户数超5000户，市场占地约5亩，改建后预计增加摊位40个摊位，规范市场运营秩序；\n（2）计划搭建雨棚，规划电动车停车区；\n（3）项目建成后，从市场管理、商品销售到物流配送等各个环节，可带动就业50余人。",{"v":70,"d":"70.00"},{"v":70,"d":"70.00"},{"v":70,"d":"70.00"},{"v":0,"d":"0.00"},2586,5376,20,66,"增加村集体经济，改造提升农贸市场，便利村民生产生活。","否","促进农户共享资产收益增收—其他","是","否","否","是","李佩佩","18788526631","江川区委组织部","周官村","是","否"]
[77,"澄江市",null,null,"产业发展—小额贷款贴息","澄江市2025年小额信贷贴息项目","2025年","新建","向符合条件的脱贫人口及监测对象发放小额扶贫贷款贴息160万元/年",{"v":160,"d":"160.00"},{"$f":"SUM(L82:M82)","v":{"v":160,"d":"160.00"}},{"v":160,"d":"160.00"},{"v":0,"d":"0.00"},749,749,749,749,"通过项目实施，帮助解决脱贫人口和监测对象贷款难的问题，有效提高脱贫群众和监测对象生活水平。","是","带动农户发展生产增产增收—其他","不涉及","否","否","否","陈银","13320588336","澄江市农业农村局","不形成资产","是","否"]
[78,"澄江市",null,null,"就业项目—公益性岗位","澄江市2025年脱贫劳动力及监测对象公益性岗位项目","2025年","新建","设设置保洁员、护路员、护林员、治安协管员、护水员等公益岗位812个，为脱贫户提供岗位，促进就业，提高脱贫户收益；",{"v":1081.2,"d":"1081.20"},{"v":1081.2,"d":"1081.20"},{"v":1081.2,"d":"1081.20"},{"v":0,"d":"0.00"},416,416,416,416,"通过项目的实施，可设置公益性岗位60个，向60名监测对象提供公益性岗位，提高监测对象收入水平。","是","不需要","不涉及","否","否","否","陈银","13320588336","澄江市农业农村局","不形成资产","是","否"]
[79,"澄江市",null,null,"巩固三保障成果—享受“雨露计划”职业教育补助","澄江市2025年中高等职业学校脱贫家庭经济困难学生生活补助项目","2025年","新建","澄江市2025年中高等职业学校建档立卡脱贫家庭经济困难学生生活补助项目对象568人次。接受全日制普通大专、高职院校、技师学院、职业本科院校等高等职业教育的补助标准为2500元/学期·生，接受全日制普通中专、技工院校中等职业教育的补助标准为2000元/学期·生，接受全日制职业高中中等职业教育的补助标准为1500元/学期·生。全年补助资金一次性预算，分春秋学期2次发放。",{"v":120,"d":"120.00"},{"v":120,"d":"120.00"},{"v":120,"d":"120.00"},{"v":0,"d":"0.00"},568,568,568,568,"通过实施项目，向脱贫人口及监测对象在读子女提供经济资助，帮助这部分学生顺利完成学业，进而改善他们的生活条件和家庭经济状况。","是","不需要","不涉及","否","否","否","陈银","13320588336","澄江市农业农村局","不形成资产","是","否"]
[80,"澄江市",null,null,"项目管理费—项目管理费","澄江市2025年衔接资金项目管理费","2025年","新建","1.用于组织开展澄江市2025年衔接资金全过程绩效管理工作；2.用于2025年衔接资金项目日常管理",{"$f":"K85","v":{"v":40,"d":"40.00"}},{"v":40,"d":"40.00"},{"v":40,"d":"40.00"},{"v":0,"d":"0.00"},"——","——","——","——","通过项目实施，提升衔接资金项目管理规范性、准确性。","否","不需要","不涉及","否","否","否","陈银","13320588336","澄江市农业农村局","不形成资产","是","否"]
[81,"澄江市",null,null,"就业项目—交通费补助","澄江市2025年跨州市务工一次性交通补助项目","2025年","新建","为澄江市720余名跨州市务工3个月以上的脱贫户及监测对象发放500元/人的补助。",{"v":36,"d":"36.00"},{"v":36,"d":"36.00"},{"v":36,"d":"36.00"},{"v":0,"d":"0.00"},720,720,720,720,"通过项目实施，为750名跨州市务工的建档立卡及监测对象发放500元的跨州市务工补贴，减轻务工成本，提高群众收入。","是","不需要","不涉及","否","否","否","陈银","13320588336","澄江市农业农村局","不形成资产","是","否"]
[82,"澄江市",null,null,"就业项目—交通费补助","脱贫劳动力跨省外出务工一次性交通补助","2025年","新建","对跨省务工就业3个月以上脱贫人口，按照每人1000元标准给予一次性外出务工交通补助（每年享受1次）",{"v":35,"d":"35.00"},{"v":35,"d":"35.00"},{"v":35,"d":"35.00"},{"v":0,"d":"0.00"},300,300,300,300,"享受跨省务工一次性补助脱贫劳动力（含监测对象）≥300人","是","不需要","不涉及","否","否","否","师维",15188769595,"澄江市人力资源和社会保障局","不形成资产","是","否"]
[83,"澄江市",null,null,"就业项目—技能培训","脱贫劳动力职业技能培训","2025年","新建","深入贯彻落实“技能云南”行动要求。以提技能、促就业、增收入”为核心，以“规范、提质”为目标，组织脱贫人口开展生产经营和就业技能等职业培训，提升职业技能水平，提高持证率和就业率。",155.96,155.96,155.96,{"v":0,"d":"0.00"},120,120,120,120,"持证脱贫劳动力较上年增加，提升职业技能水平。","是","不需要","不涉及","否","否","否","师维",15188769595,"澄江市人力资源和社会保障局","不形成资产","是","否"]
[84,"澄江市","抚仙湖国有林场",null,"产业发展—林草基地建设","澄江市抚仙湖国有林场2025年中央财政衔接推进乡村振兴巩固提升项目","2025年","新建","（1）培育苗木21.3万株。（2）苗床整地25亩.（3）安装喷灌系统25亩。（4）安装苗圃保障性引水管道8公里。（5）安装消防取水栓6套。",139.83,139.83,{"v":133,"d":"133.00"},6.83,34,34,0,0,"一是进一步改善林区管护人员的生产生活条件；二是用于产业发展实施特色树种苗木培育示范建设，增加保障性苗圃苗木储备量，充分发挥国有林场在后备森林资源培育的示范作用和生态建设的骨干作用，为省、市生态修复提供更多优质的保障性特色树种苗木，推动省、市生态修复进程发挥积极作用。","否","带动农户发展生产增产增收—其他","不涉及","否","否","否","鲍绍辉","0877-6225557","澄江市林业和草原局","澄江市抚仙湖国有林场","是","否"]
[85,"澄江市","龙街街道","万海社区","产业发展—种植业基地","澄江市龙街街道万海社区2024年财政衔接推进乡村振兴-村集体种植业基地建设项目","2025年","新建","1.新建简易水池3个；2.新建给水管800m；3.给水泵1套；4.场地平整土方开挖22600m³；5.砖砌排水沟650m；6.铺设园区生产道路650m；7.钢制大门1道；8.搭建保温大棚31123.97㎡；9.蓝莓种植专用盆21620个；10.防草布36123.97㎡；11.新建水肥房60㎡；12.新建管理用房200㎡；13.新建捡果车间300㎡；14.新建卫生间30㎡；15.新建农具用房240㎡；16.新建灌溉主管2750m(其中DN63PE管1450m，DN110PE管620m，DN160PE管680m)；17.输电线路2200m（其中10KV输电线路600m，380V输电线路1600m)；18.250KV变压器1套；19.其他1项。",136.42,{"$f":"SUM(L90:M90)","v":136.42},136.42,{"v":0,"d":"0.00"},3512,9082,53,164,"项目建成后，能够巩固拓展万海社区脱贫攻坚成果，壮大村集体经济收入，解决周边群众就业问题，全面推进万海社区物质文明、精神文明、生态文明建设，实现乡村振兴发展。","否","吸纳农村劳动力稳定就业增收—其他","是","否","否","是","刘晟宇",18187722126,"澄江市农业农村局","万海社区","否","否"]
[86,"澄江市","龙街街道","左所社区","产业发展—加工业","澄江市龙街街道左所社区2024年衔接资金-高原特色农业种植秸秆资源化利用示范项目","2025年","新建","1.新建3200平方米轻钢结构大棚1座，新建50.40平方米值班室1座；2.场地土方开挖15096.10立方米，土方回填5998.62立方米；3.3.5米高混凝土挡土墙浇筑960.00立方米；4.室外1.2米直径6.00mm厚排水管安装170.00米。",385.73,{"$f":"SUM(L91:M91)","v":385.73},385.73,{"v":0,"d":"0.00"},2622,6659,60,197,"项目建成后可以促进农业绿色发展，提升农业固体废弃物管理和综合利用的需要，改善龙街片区基础设施现状，提升村民生活质量，改善群众生产生活条件、增加群众收入，壮大农村集体经济。","否","吸纳农村劳动力稳定就业增收—其他","是","否","否","是","刘晟宇",18187722126,"澄江市农业农村局","左所社区","是","否"]
[87,"澄江市","龙街街道","华光社区","产业发展—休闲农业与乡村旅游","澄江市2025年中央财政衔接资金-龙街街道办事处华光社区民族村寨旅游提升建设项目","2025年","改（扩）建","该项目占地面积215平方米，主要建设：1.原屋面拆除322.50平方米；2.破损主体木结构拆除215.00平方米；3.内部满堂脚手架搭建420.00平方米；4.主体木结构安装215.00平方米；5.房屋山墙修缮268.50平方米。",30.37,{"$f":"L92+M92","v":30.37},{"v":30,"d":"30.00"},0.37,585,1724,29,97,"  通过实施澄江市2025年中央财政衔接资金-龙街街道办事处华光社区民族村寨旅游提升建设项目，一是解决了村容村貌脏、乱、差的问题，又为华光村村民提供了休闲、娱乐及旅游接待场所，不断打牢铸牢中华民族共同体意识的物质基础。二是将民族工作植入日常监督，推动铸牢中华民族共同体意识入脑入心。三是增加了村民茶余饭后休闲的娱乐场所，提升村民生活幸福指数，促进旅游业发展，进一步消化农村剩余劳动力、培育农村市场、搞活商品流通、缩小城乡差距，实现乡村全面振兴。","否","促进农户共享资产收益增收—其他","是","否","否","是","刘晟宇",18187722126,"澄江市农业农村局","华光社区","是","是"]
[88,"澄江市","龙街街道","华光社区","产业发展—休闲农业与乡村旅游","澄江市2025年中央财政衔接资金-龙街街道办事处华光社区一组民族村寨旅游提升建设项目","2025年","改（扩）建","该项目占地面积286平方米，主要建设：1.瓦屋面铺设322.5平方米；2.内墙装修改造635平方米；3.地面地砖铺设286平方米；4.木质门窗安装58平方米；5.室内水电改造286平方米。",{"v":33.5,"d":"33.50"},{"$f":"L93+M93","v":{"v":33.5,"d":"33.50"}},{"v":30,"d":"30.00"},{"v":3.5,"d":"3.50"},585,1724,29,97,"  通过实施澄江市2025年中央财政衔接资金-龙街街道办事处华光社区一组民族村寨旅游提升建设项目，对深入开展铸牢中华民族共同体意识宣传教育、构筑中华民族共有精神家园、补齐基础设施短板、加强旅游公共设施建设、推动公共文化和旅游服务融合、打造特色乡村旅游新业态新产品、提升传统优势产业、加强文化遗产传承和利用、打造民族团结进步创建工作升级版等方面具有十分重要的意义。同时，项目的建设对打造一批有特色、有品位、带动强的农文旅融合示范点具有重要意义。项目建成后将丰富华光人民群众文化生活，提高群众生活质量水平，带动社会经济的发展，从而促进项目影响区域的经济繁荣，使群众素质得到不断提高，促进社会和谐发展有着积极的作用。","否","促进农户共享资产收益增收—其他","是","否","否","是","刘晟宇",18187722126,"澄江市农业农村局","华光社区","是","是"]
[89,"澄江市","龙街街道","立昌社区","产业发展—市场建设和农村物流","澄江市龙街街道立昌社区2025年财政衔接资金农特产品分拣包装车间及交易中心建设项目","2025年","改（扩）建","本项目建设内容为利用现有社区闲置资产改造农特产品分拣包装车间及交易中心。改造交易中心建筑面积341.36平方米，改造部位为32栋负一层，改造内容包括室内装修改造、给排水改造、电气改造等；改造农特产品分拣包装车间建筑面积341.36平方米，改造部位为8栋负一层，改造内容包括室内装修改造、给排水改造、电气改造等。",132.42,{"$f":"L94+M94","v":132.42},{"v":100,"d":"100.00"},32.42,1260,3338,23,80," 实施澄江市龙街街道立昌社区2025年财政衔接资金农特产品分拣包装车间及交易中心建设项目，不仅能为居民和外来旅居游客提供便捷的食材采购场所，能够巩固拓展立昌社区脱贫攻坚成果，方便社区内老人的生活需求，还能为当地农产品的销售搭建平台，促进农业产业发展，促进群众增加收入，完善产业配套设施，提升人居环境整治，壮大村集体经济收入，助力乡村振兴。","否","吸纳农村劳动力稳定就业增收—吸纳就业","是","否","否","是","刘晟宇",18187722126,"澄江市农业农村局","立昌社区","是","是"]
[90,"澄江市","龙街街道","提古社区","产业发展—种植业基地","澄江市龙街街道养提古社区民族团结进步示范村项目","2025年","新建"," 该项目占地面积220亩，土地现状为种植包谷等农作物，土地性质为一般耕地。一是投资20万元进行水管管道等基础设施配套建设；二是投资90万元完成种植基地的土层改良。",{"v":110,"d":"110.0000"},{"v":110,"d":"110.00"},{"v":100,"d":"100.00"},{"v":10,"d":"10.00"},496,1642,9,40,"该项目采取“党总支+村办公司+企业”的模式，由村党总支带领村办公司争取衔接资金投入并自筹部分资金建设，引入有技术的企业与村办公司合作开展种植，建设完成后由村办公司运营。社会效益：项目建成后解决本村剩余劳动力1000余人次的用工问题。经济效益：增加10余户脱贫户及监测户的收入，使本村村办公司年收入达20万元以上。联农带农：进一步扶持提古社区农业特色产业，形成示范带动效应，同时带动本村群众及周边地区种植300余亩。","否","吸纳农村劳动力稳定就业增收—吸纳就业","是","否","否","是","刘晟宇",18187722126,"澄江市民族宗教事务局","提古社区","否","否"]
[91,"澄江市","龙街街道","养白牛白石坝","产业发展—加工业","2025年度中央和省级财政扶持新型农村集体经济发展—养白牛社区白石坝老腊肉加工用房扩建项目","2025年","改（扩）建","项目总投资75万元，其中中央财政衔接推进乡村振兴补助资金70万元，社区自筹资金5万元，主要用于：\n(1)70万元中央财政衔接推进乡村振兴补助资金：老腊肉加工用房建设，投资概算70万元。①加工间42㎡，概算投资10万元；②晾晒间159㎡，概算投资38万元；③储存间 63㎡，概算投资12万元；④消毒间36㎡，概算投资10万元。\n(2)5万元社区自筹资金：老腊肉用房相关附属建设，投资概算5万元。①水电设施改造，概算投资3万元；②老腊肉加工用房周边绿化200㎡，概算投资2万元。",{"v":75,"d":"75.00"},{"v":75,"d":"75.00"},{"v":70,"d":"70.00"},{"v":5,"d":"5.00"},46,116,11,35,"  通过实施2025年度中央和省级财政扶持新型农村集体经济发展—养白牛社区白石坝老腊肉加工用房扩建项目，扩大养白牛老腊肉生产产能，扩大客源，留住“乡愁”，盘活闲置土地资源，完善设施设备，升级制作工艺，提高制作产量及效率，增加就业渠道，壮大农村集体经济。","否","吸纳农村劳动力稳定就业增收—其他","是","否","否","是","刘晟宇",{"v":18187722126,"d":"18187722126.00"},"中共澄江市委组织部","养白牛白石坝","是","是"]
[92,"澄江市","右所镇","右所社区","产业发展—农产品仓储保鲜冷链基础设施建设","澄江市右所镇民族团结进步示范镇项目（果蔬保鲜冷链项目）","2025年","新建","       该项目总占地面积2600平方米，土地现状为废弃烤房800平方米及连片空闲地1800平方米，土地性质为集体建设用地。一是建设占地2000平方米，储量为1600吨的恒温冷库车间一个，内含4个冷库库房，主要包括设施用房建设、制冷设备购置及配套设施等，其中：4个冷库库房建筑面积约1600平方米，加工车间400平方米，投资约480万。二是配套建设装卸场地约600平方米，投资约50万元。",{"v":530,"d":"530.00"},{"v":530,"d":"530.00"},{"v":530,"d":"530.00"},{"v":0,"d":"0.00"},440,1099,5,15,"       该项目采取“村办公司+村集体”模式，用集体土地入股，争取上级部门资金及集体自筹资金模式进行建设，建成后由村办公司运营。项目选址区位优势：周围有澄呈高速、绕城高速、昆石高速，交通便利，利于运输。社会效益：右所辖区内共种植有蓝莓3500余亩、菌类600余亩，项目建成后冷库年均贮藏能力可达7000吨，该项目的实施可以延长农业产业链，提高农业产品附加值，壮大村办龙头企业和村集体经济，推动农业产业化经营。对农业结构调整、农业增效、农民增收具有促进作用。经济效益：项目可直接带动农户100余户，户均增收5000元。同时可拉动包装、运输、维修等相关产业发展，间接安置农村富余劳动力800余人，集体经济每年净利润75万元。生态效益：带动蓝莓、羊肚菌等农业种植基地发展。通过推广水肥一体化管理，减少农业面源污染，对抚仙湖保护具有积极的作用。","否","吸纳农村劳动力稳定就业增收—吸纳就业","是","否","否","是","崔翔宇",18887721415,"澄江市民族宗教事务局","右所社区","是","否"]
[93,"澄江市","右所镇","旧城村委会","产业发展—种植业基地","右所镇旧城村委会新型农业设施大棚建设项目","2025年","新建","新建新型农业大棚3栋，单栋大棚东长度30m,宽度开间10m;大棚肩高 3.0m脊高4.8m,总占地面积1000㎡，安装温度、湿度、C02浓度等可调控设备，配备湿度传感器和加湿设备，设置合适的遮阳和补光系统，温湿度控制设备:30000元，灯光设备:20000元，种植装置:10000元，其他辅助设备:10000元，设施搭建费用:50000元。",{"v":70,"d":"70.00"},{"v":70,"d":"70.00"},{"v":70,"d":"70.00"},{"v":0,"d":"0.00"},152,380,3,8,"项目通过建设高效农业大棚，促进旧城村农业生产结构的调整，加速旧城村由传统农业种植模式向现代农业设施栽培模式转变，提高村集体经济效益，以点带面，同时也为广大群众增收致富提供了可靠的保障。","否","带动农户发展生产增产增收—其他","是","否","是","是","崔翔宇",18887721415,"澄江市农业农村局","旧城村委会","否","否"]
[94,"澄江市","右所镇","补益村委会","产业发展—加工业","澄江市—右所镇_产业发展_加工流通项目_澄江市右所镇右所社区兜底寺小组 2023 年财政衔接推进 乡村振兴烤房建设项目","2023年","新建","新建轻钢结构管理房1座，建筑面积68.40㎡，新建编烟棚一座，建筑面积301.16㎡，烤房片区混凝土场地硬化1050.00㎡。烤房场地铺设砂砾石4600.00㎡。新建A1型护栏200.00m。排水沟加设盖板240m。修筑入口大门1座。建设安装电启动额定功率300kW三相柴油发电机2台。安装动力柜2台，动力柜安装315KVA变压器2台。",{"v":60,"d":"60.00"},{"v":60,"d":"60.00"},{"v":60,"d":"60.00"},{"v":0,"d":"0.00"},436,1195,3,12,"增强村、组的社会服务功能，推动农村经济结构战略性调整、确保农业农村经济稳定增长。","否","带动农户发展生产增产增收—其他","是","否","否","是","崔翔宇",18887721415,"澄江市农业农村局","补益村委会","是","否"]
[95,"澄江市","右所镇","右所社区","产业发展—加工业","澄江市—右所镇_产业发展_加工流通项目_澄江市右所镇补益村委会土老村小组 2023 年财政衔接推 进乡村振兴烤房建设项目","2023年","新建","新建轻钢结构管理房1座，建筑面积58.80㎡，新建编烟棚一座，建筑面积169.36㎡，烤房片区混凝土场地硬化500.00㎡，新建A1型护栏65.00m，房屋拆除300㎡，修筑大门1座。安装14HP闭式空气源热泵烤房10座，监控系统1套，安装电启动额定功率300kW三相柴油发电机1台，安装动力柜1台动力柜，安装315KVA变压器1台。",{"v":30,"d":"30.00"},{"v":30,"d":"30.00"},{"v":30,"d":"30.00"},{"v":0,"d":"0.00"},91,279,5,18,"增强村、组的社会服务功能，推动农村经济结构战略性调整、确保农业农村经济稳定增长。","否","带动农户发展生产增产增收—其他","是","否","否","是","崔翔宇",18887721415,"澄江市农业农村局","右所社区","是","否"]
[96,"澄江市","右所镇","矣旧社区","产业发展—休闲农业与乡村旅游","澄江市右所镇矣旧社区 2025 年衔接资金乡村旅游创意园建设项目（二期）","2025年","新建","1.一号提升点：规划总用地 1279 平方米，其中地面硬化1129 平方米，临时建筑总面积 270 平方米，设置有 19 个车位，绿化面积 159 平方 米，挡土墙 40 米，乔木种植 9 棵；本提升点为 2025 年实施；\n2.二号提升点（分两阶段实施）：\n第一阶段：1.一号提升点：2025 年实施地面硬化 913 平方米，树池坐凳面积 35.4 平方米，设置有 59 个车位，绿化面积 181 平方米，路口改造 118 平方米，挡墙 420 立方米，场地填方 760 立方米，村名标牌 1 座。第二阶段：地面硬化 2976 平方米，停车位 59 个，拆除建筑 41 平方米，挡土墙 431.5 立方米，乔木种植 1 棵，场地填方 3042 立方米。",156.88,156.88,120,36.88,1024,2787,3,10,"1.经济效益：通过联农带农提高群众收入水平和生活质量，带动社会经济的发展；\n2.社会效益：改善基础设施，提供就业岗位，促进农旅融合,促进项目影响区域的经济繁荣使群众素质得到不断提高，促进社会和谐发展提供重要作用；\n3.生态效益：通过美化工程和规范建设，提升村庄人居环境品质","否","带动农户发展生产增产增收—其他","是","否","否","是","崔翔宇",18887721415,"澄江市农业农村局","矣旧社区","是","是"]
[97,"澄江市","右所镇","吉花社区","产业发展—休闲农业与乡村旅游","澄江市2025年中央财政衔接资金-右所镇民族手工业融合创新发展项目","2025年","新建","项目建设内容主要如下；\n（一）民族手工艺研学体验区改造工程：1、民族手工艺研学体验区改造200平方米；\n（二）民族手工艺研学体验区采购安装工程：澄江手工藕粉制作器材购买\n安装，华宁陶、建水陶、江川铜锅、澄江竹编、彝绣、等工艺品采购摆放，展架购置安装购买安装",20,20,20,{"v":0,"d":"0.00"},430,1325,28,86,"项目依托洋潦营产业配套用房区位优势及旅游资源优势，立足优秀民族传统文化传承与发展，致力以文旅融合创新发展项目开发为抓手，进一步补充丰富党群服务中心服务模块，增加洋潦营产业配套用房空间利用价值，实效带动实现洋潦营新村及周边居民创新创业技能培育、就近就业渠道拓展及村集体经济增收，项目建成并正式运营后将引入更多人流量、客单消费量，其带来的良好经济效益和积极社会效益，对洋潦营新村综合业态长足高质量发展具有实际推动作用及重要长远意义。","否","吸纳农村劳动力稳定就业增收—吸纳就业","是","否","否","是","崔翔宇",18887721415,"澄江市农业农村局","吉花社区","是","是"]
[98,"澄江市","右所镇","吉花社区","产业发展—休闲农业与乡村旅游","澄江市右所镇吉花社区2025年衔接资金-洋潦营小组旅游产业配套设施建设项目","2025年","新建","本次项目拟计划在该地块新建旅游产业配套设施用房1栋，新建建筑退让道路及周边民房后一层占地面积280.00平方米，总建筑面积584.70平方米。建筑层数三层，建筑一层高度4.20米，二层高度3.90米，三层高度3.60米，建筑总高度14.40米。",{"v":228,"d":"228.00"},{"v":228,"d":"228.00"},{"v":136.8,"d":"136.80"},{"v":91.2,"d":"91.20"},430,1325,28,86,"以建设改善右所镇吉花片区群众生活水平为主题，改善该片区旅游配套设施现状，实现人居环境、自然生态、产业发展、农民增收、社会保障、社区服务以及农民素质的全面提升，提高整体生活水平。带动区域经济增长：项目实施在盘活闲置资源的同时区域产业服务设施得到进一步完善，带动周边餐饮、住宿等相关产业发展，形成产业集群，创造更多就业岗位和经济效益，为村集体建立了长期稳定的增收产业，缓解就业压力。同时，通过吸引游客消费，带动相关产业的发展，促进区域经济的增长，推动乡村振兴和城市化进程。","否","带动农户发展生产增产增收—其他","是","否","否","是","崔翔宇",18887721415,"澄江市农业农村局","吉花社区","是","是"]
[99,"澄江市","右所镇","小湾社区","产业发展—其他","右所镇小湾社区旅居建设项目","2025年","新建","（1）建筑外观改造，修缮外立面720㎡，投资概算10万元。\n（2）内部空间改造，投资概算60万元。①室内改造装修，约420㎡，投资概算40万元。②设施设备配置，配置15个客房设施（包含空调、电视、家具等），投资概算20万元。",{"$f":"SUM(K104:L104)","v":{"v":140,"d":"140.00"}},{"$f":"SUM(L104:M104)","v":{"v":70,"d":"70.00"}},{"v":70,"d":"70.00"},{"v":0,"d":"0.00"},296,786,0,0,"项目建成计产生收益20万余元，为当地提供10余个就业岗位，提高区域就业率，形成互相促进的产业体系。","否","促进农户共享资产收益增收—房屋租赁获得租金","是","否","否","是","崔翔宇",18887721415,"中共澄江市委组织部","小湾社区","是","否"]
[100,"澄江市","右所镇","吉花社区","产业发展—其他","右所镇吉花社区洋潦营乡村大食堂建设项目","2025年","新建","拆除原洋潦营小组简易用房，新建洋潦营农耕文化体验馆用房1栋。项目建设主要内容为乡村大食堂：\n（1）建筑主体，概算投资40万元。①结构建设，建筑面积约300平方米，投资概算25万元；②就餐区，建设可容纳150-200人就餐区，投资概算15万元.\n（2）厨房操作区，面积约80㎡，投资概算20万元。\n（3）水电系统，投资概算10万元。",{"$f":"SUM(K105:L105)","v":{"v":140,"d":"140.00"}},{"$f":"SUM(L105:M105)","v":{"v":70,"d":"70.00"}},{"v":70,"d":"70.00"},{"v":0,"d":"0.00"},430,1325,28,86,"项目建成后通过经营乡村大食堂预计产生收益5万余元，配套农耕文化体验馆场地、旅游项目的开发和经营，带动周边村民创业，群众增收致富。","否","吸纳农村劳动力稳定就业增收—吸纳就业","是","否","否","是","崔翔宇",18887721415,"中共澄江市委组织部","吉花社区","否","否"]
[101,"澄江市","九村镇","九村社区","产业发展—加工业","澄江市九村镇九村社区花园小组2023年衔接推进乡村振兴烤房建设项目","2025年","先建后补","建设安装14HP闭式空气源热泵烤房10座（包含烤房主体及内部设备安装）",{"v":30,"d":"30.00"},{"v":30,"d":"30.00"},{"v":30,"d":"30.00"},{"v":0,"d":"0.00"},38,80,5,13,"壮大村集体经济，为烤烟生产提质增效。","否","订单合同","是","否","否","是","李辉","0877—6717117","澄江市农业农村局","九村社区","是","否"]
[102,"澄江市","九村镇","东山村委会","产业发展—加工业","澄江市九村镇东山村委会牛场小组2023年衔接推进乡村振兴烤房建设项目","2025年","先建后补","建设安装14HP闭式空气源热泵烤房20座（包含烤房主体及内部设备安装）",{"v":70,"d":"70.00"},{"v":70,"d":"70.00"},{"v":70,"d":"70.00"},{"v":0,"d":"0.00"},122,393,32,84,"壮大村集体经济，为烤烟生产提质增效。","否","订单合同","是","否","否","是","李辉","0877—6717117","澄江市农业农村局","东山村委会","是","否"]
[103,"澄江市","九村镇","七江村委会","产业发展—加工业","澄江市九村镇七江村2023年财政衔接推进乡村振兴烤房建设项目","2025年","先建后补","（一）白家村小组烤房建设内容\n1.建设安装14HP闭式空气源热泵烤房5座（包含烤房主体及内部设备安装）。2.新建编烟棚一座，编烟棚长14.10米，宽6.14米，建筑面积86.57平方米，编烟棚主体采用钢架结构。\n（二）大山小组烤房建设内容：\n1. 建设安装14HP闭式空气源热泵烤房15座（包含烤房主体及内部设备安装）。2. 新建编烟棚一座，编烟棚长44.30米，宽6.30米，建筑面积279.09平方米，编烟棚主体采用钢架结构。",{"v":70,"d":"70.00"},{"v":70,"d":"70.00"},{"v":70,"d":"70.00"},{"v":0,"d":"0.00"},142,389,32,101,"壮大村集体经济，为烤烟生产提质增效，吸纳脱贫劳动力就业，促进群众增收。","否","订单合同","是","否","否","是","李辉","0877—6717117","澄江市农业农村局","七江村委会","是","否"]
[104,"澄江市","九村镇","龙潭村委会","产业发展—加工业","澄江市九村镇龙潭村委会鱼塘小组2023年财政衔接推进乡村振兴烤房建设项目","2025年","先建后补","建设安装14HP闭式空气源热泵烤房20座（包含烤房主体及内部设备安装）。",{"v":70,"d":"70.00"},{"v":70,"d":"70.00"},{"v":70,"d":"70.00"},{"v":0,"d":"0.00"},148,410,3,10,"壮大村集体经济，为烤烟生产提质增效，吸纳脱贫劳动力就业，促进群众增收。","否","订单合同","是","否","否","是","李辉","0877—6717117","澄江市农业农村局","龙潭村委会","是","否"]
[105,"澄江市","九村镇","龙潭村","产业发展—种植业基地","澄江市九村镇2025年衔接资金-龙潭村委会蔬菜种植基地建设项目","2025年","新建","1.场地土方开挖6035.71立方米，场地土方回填5116.29立方米；2.场地修建砖砌排水管690.00米，预埋DN400水泥承插管16米，新建86.40平方米轻钢结构管理用房1座；3.种植大棚搭建7.73亩。",51.23,51.23,{"v":50,"d":"50.00"},1.23,129,298,51,172,"通过项目的实施，可调整龙潭村委会产业结构，带动务工，壮大村集体经济的同时带动群众增收。","否","带动农户发展生产增产增收—其他","是","否","否","是","李辉","0877—6717117","澄江是民族宗教事务管理局","龙潭村","是","是"]
[106,"澄江市","九村镇","东山村","乡村建设行动—农村道路建设（通村路、通户路、小型桥梁等）","澄江市九村镇东山村委会2025年衔接资金-黄家庄小组、狮子山小组以工代赈村内道路建设项目","2025年","新建","1.安置点道路土方开挖7639.90立方米，土方回填4696.20立方米，场地余方弃置2943.70立方米；2.200mm厚C25混凝土路面硬化9256.40平方米；\n3.砖砌挡土墙砌筑118.60立方米，挡土墙墙面抹灰566.43平方米，100mm厚C20混凝土散水浇筑61.24立方米；C20混凝土挡土墙浇筑1246.20立方米。4.交通标识牌安装10块。",312.44,312.44,312.44,{"v":0,"d":"0.00"},875,2301,181,515,"通过项目的实施，将有效改善本村的基础设施条件，可解决该片区出行难等一系列保障问题，交通的便利促进本村与外界互通有无，更好的丰富和满足群众生活需求和精神文明的需求。","否","不需要","是","否","否","否","李辉","0877—6717117","澄江市农业农村局","东山村","是","是"]
[107,"澄江市","海口镇","松元村委会","产业发展—其他","澄江市海口镇松元村委会关地小组2023年财政衔接推进乡村振兴烤房建设项目","2025年","先建后补","    为加强农业产业配套基础设施建设，计划在关地小组新建一群电力热泵烤房，改善烤烟生产条件，提升烟叶烘烤质量，少数民族地区群众增收困难的问题。\n    1. 新建轻钢结构管理房 1座，建筑面积 58.80 ㎡(内含值班室、配电室及储油间)。2.新建编烟棚一座，编烟棚长 29.20 米，宽5.30 米，建筑面积154.76 ㎡，编烟棚主体采用钢架结构，具体做法详见施工图。3.烤房片区混凝土场地硬化 506.00 ㎡。4.烤房场地铺设砂砾石380.00㎡。5.新建护栏:A1型护栏 120.00m。6.修筑入口大门1 座。7.建设安装14HP闭式空气源热泵烤房 10 座(包含烤房主体及内部设备安装)。8.为考虑安全场地内安装监控系统1套(具体参数由专业厂家二次深化设计)。9.购买电启动额定功率300kW三相柴油发电机1台。10.安装动力柜1台动力柜(内含柜体、双头刀闸、电流表、电压表、空开)。11.安装 315KVA 变压器1 台(专业公司设计安装)",{"v":30,"d":"30.00"},{"v":30,"d":"30.00"},{"v":30,"d":"30.00"},{"v":0,"d":"0.00"},33,109,4,15," 为加强农业产业配套基础设施建设，计划在关地小组新建一群电力热泵烤房，改善烤烟生产条件，提升烟叶烘烤质量，少数民族地区群众增收困难的问题。","否","带动农户发展生产增产增收—其他","是","否","否","是","张晨",18287704004,"澄江市农业农村局","松元村委会","是","否"]
[108,"澄江市","海口镇","松元村委会","产业发展—其他","澄江市海口镇松元村委会石龙小组2023年财政衔接推进乡村振兴烤房建设项目","2025年","先建后补","    为加强农业产业配套基础设施建设，计划在石龙小组新建一群电力热泵烤房，改善烤烟生产条件，提升烟叶烘烤质量，少数民族地区群众增收困难的问题。\n        1.新建轻钢结构管理房 1座，建筑面积 58.80 ㎡(内含值班室、配电室及储油间)。2.新建编烟棚一座，编烟棚长 29.20 米，宽5.30 米，建筑面积154.76 ㎡，编烟棚主体采用钢架结构，具体做法详见施工图。3.烤房片区混凝土场地硬化 506.00 ㎡。4.烤房场地铺设砂砾石470.00㎡。5.新建护栏:A1型护栏 85m；A2型护栏46 m。6.新建石挡土墙115m³；7.修筑入口大门1 座。8.建设安装14HP闭式空气源热泵烤房 10 座(包含烤房主体及内部设备安装)。9.为考虑安全场地内安装监控系统1套(具体参数由专业厂家二次深化设计)。10.购买电启动额定功率300kW三相柴油发电机1台。11.安装动力柜1台动力柜(内含柜体、双头刀闸、电流表、电压表、空开)。12.安装 315KVA 变压器1 台(专业公司设计安装)。",{"v":30,"d":"30.00"},{"v":30,"d":"30.00"},{"v":30,"d":"30.00"},{"v":0,"d":"0.00"},231,609,14,40,"为加强农业产业配套基础设施建设，计划在石龙小组新建一群电力热泵烤房，改善烤烟生产条件，提升烟叶烘烤质量，少数民族地区群众增收困难的问题。","否","带动农户发展生产增产增收—其他","是","否","否","是","张晨",18287704004,"澄江市农业农村局","松元村委会","是","否"]
[109,"澄江市","海口镇","松元村委会","产业发展—其他","澄江市海口镇松元村委会松子园小组2023年财政衔接推进乡村振兴烤房建设项目","2025年","先建后补","    为加强农业产业配套基础设施建设，计划在松子元小组新建一群电力热泵烤房，改善烤烟生产条件，提升烟叶烘烤质量，少数民族地区群众增收困难的问题。\n    1. 新建轻钢结构管理房 1座，建筑面积 58.80 ㎡(内含值班室、配电室及储油间)。2.新建编烟棚一座，编烟棚长 29.20 米，宽5.08米，建筑面积148.34 ㎡，编烟棚主体采用钢架结构，具体做法详见施工图。3.拆除现有空心砖石棉瓦简易房750.00㎡。4.拆除1.60m宽高0.45m砖砌体56m。5.拆除200mm厚混凝土场地115㎡。6.烤房片区混凝土场地硬化1080㎡。7.乔木移栽18株。8.建设安装14HP闭式空气源热泵烤房 10 座(包含烤房主体及内部设备安装)。9.为考虑安全场地内安装监控系统1套(具体参数由专业厂家二次深化设计)。10.购买电启动额定功率300kW三相柴油发电机1台。11.安装动力柜1台动力柜(内含柜体、双头刀闸、电流表、电压表、空开)。12.安装 315KVA 变压器1 台(专业公司设计安装)。",{"v":30,"d":"30.00"},{"v":30,"d":"30.00"},{"v":30,"d":"30.00"},{"v":0,"d":"0.00"},235,720,0,0,"为加强农业产业配套基础设施建设，计划在松子元小组新建一群电力热泵烤房，改善烤烟生产条件，提升烟叶烘烤质量，少数民族地区群众增收困难的问题。","否","带动农户发展生产增产增收—其他","是","否","否","是","张晨",18287704004,"澄江市农业农村局","松元村委会","是","否"]
[110,"澄江市","海口镇","永和村委会","产业发展—市场建设和农村物流","澄江市海口镇2025年乡村振兴衔接资金项目——永和村韭菜交易市场配套基础设施建设工程","2025年","新建","     永和村是澄江市的七个建档立卡脱贫村之一，主要致贫原因是基础设施建设落后和产业发展不充分。自2015年实施精准扶贫后，为了加大产业扶持力度，永和村充分利用南盘江河谷地带的温热气候，大力发展韭菜种植业，通过多年的扶持发展壮大，目前永和村成为了澄江韭菜种植的主产地，种植面积约2000多亩。为了方便群众售卖韭菜，永和村利用村内空地搭建简易的交易市场，引进农业企业进驻收购韭菜，从而降低群众的运输成本，提高经济收入。但由于场地过于简陋，缺少必要的遮雨棚和管理用房等，雨水季节及冬季严重影响交易活动。\n   为此永和村计划在简易市场上搭建1346平方米的遮雨棚，配套建设一间管理用房、一间农资交易中心。从而提升韭菜交易市场的硬件条件，方便群众和壮大村集体经济。",{"v":72,"d":"72.00"},{"v":72,"d":"72.00"},{"v":72,"d":"72.00"},{"v":0,"d":"0.00"},510,1614,82,268,"完善蔬菜交易市场必要的配套设施，改善交易市场硬件条件，降低蔬菜运输成本，促进产业发展和农民增收。","否","带动农户发展生产增产增收—产品代销","是","否","否","是","张晨",18287704004,"澄江市农业农村局","永和村委会","是","否"]
[111,"澄江市","海口镇","松元村委会","产业发展—小型农田水利设施建设","澄江市海口镇2025年乡村振兴衔接资金项目——松元村松子元小组水缸坝农业产业区农业生产供水工程","2025年","新建","水缸坝农业产业区位于松子元与浑水塘交界处，总面积约600余亩，地势平坦，是松子元小组的农业主产区，但由于常年缺水导致产业发展有限，每年的小春产业发展不充分。\n现计划对水缸坝设施供水工程，从湖外用水循环项目的主水池引水至水缸坝农业产业区，按照智能水表方便群众用水，从而解决水缸坝的缺水问题，促进农业产业发展，完善联农带农机制促进农民增收。",{"v":200,"d":"200.00"},{"v":200,"d":"200.00"},{"v":200,"d":"200.00"},{"v":0,"d":"0.00"},235,720,0,0,"完成主水池到田间地头分水管的安装，改善农业生产用水条件，充分发展大小春产业，促进农民增收；安装智能水表，刷卡取水、节约用水，方便群众生产和规范用水秩序。","否","带动农户发展生产增产增收—托养托管","是","否","否","是","张晨",18287704004,"澄江市农业农村局","松元村委会","是","否"]
[112,"澄江市","海口镇","海口社区","乡村建设行动—农村道路建设（通村路、通户路、小型桥梁等）","澄江市海口镇2025年乡村振兴衔接资金项目——海口社区上下红坡地质灾害搬迁点基础设施以工代赈建设工程","2025年","新建","    为了消除海口下红坡地质灾害点安全隐患和改善上红坡村民的居住条件，2023年海口镇对下红坡地灾区内的35户116人进行易地搬迁，对上红坡基础设施落后、居住环境差的54户195人进行迁村并点，规划用地面积34379.26㎡（约51亩），建筑占地面积12410.95 ㎡，总建筑面积34105㎡，规划安置居住户数97 户。目前群众自建房已经全部完成，但由于资金短缺问题，基础配套设施极其落后，导致村内部分区域高差较大、无挡土墙，严重危险村民生命财产安全；村内道路没有硬化，严重影响村民出行及居住；雨污设施未落实，影响村内环境卫生和抚仙湖保护。项目计划实施搬迁点村内的挡土墙、道路、雨污等急需实施的配套建设。",{"v":500,"d":"500.00"},{"$f":"L117+M117","v":{"v":500,"d":"500.00"}},{"v":400,"d":"400.00"},{"v":100,"d":"100.00"},104,305,7,20,"完成上下红坡搬迁村村内挡土墙建设，消除村内道路垮塌风险，消除安全隐患；完成村内生活污水排污工程，解决村民生活污水排放问题；完成村内道路硬化工程，改善村民居住条件和人居环境。","否","不需要","是","否","否","否","张晨",18287704004,"澄江市农业农村局","海口社区","是","否"]
[113,"澄江市","海口镇","海关社区","产业发展—休闲农业与乡村旅游","澄江市海口镇海关社区民族团结进步示范村项目","2025年","新建","该项目占地面积5000平方米，土地现状为沙石地面，土地性质为村集体建设用地。一是投资78万元对4800平方米的沙石路面进行硬化。二是投资32万元建设农村特色市集，新建木质房屋200平方米及部分临时农产品交易点，带动周边群众自产的蓝莓、葡萄等农产品交易。",{"v":100,"d":"100.00"},{"v":100,"d":"100.00"},{"v":100,"d":"100.00"},{"v":0,"d":"0.00"},289,822,10,26," 该项目采取“政府+村集体+群众”的模式，用集体土地入股，争取上级部门资金及集体自筹资金模式进行建设，建成后由村办公司运营。。社会效益：本项目能够有力地促进海关社区农业、旅游业发展的集约化、规模化、产业化，可以形成良好的产业配套条件和投资环境，有利于形成以“文旅+产业”为核心的产业结构，进一步改善投资环境，对区域发展有极大的促进作用。经济效益：本项目的建设和实施将有效带动多行业的发展，同时提升村庄知名度和产业品牌，促进村10户餐饮业、15户民宿业的发展，农业方面可带动10亩葡萄、100亩蓝莓、20亩桃子及500余亩各类蔬菜种植交易，带动约200人就业增收。村集体经济每年增收15万元，促进矣渡片区服务能力的提升。","否","吸纳农村劳动力稳定就业增收—吸纳就业","是","否","否","是","张晨",18287704004,"澄江市民族宗教事务局","海关社区","是","否"]
[114,"澄江市","海口镇","海关社区","产业发展—其他","澄江市海口镇海关社区矣渡村2025年衔接资金乡村旅游创意集市建设项目","2025年","新建","块新建产业配套用房 2 栋，新建建筑退让道路后单栋一层占地面积 129.60 平方米，两栋总建筑面积 259.20 平方米。建筑层数一层，建筑高度 4.50 米",{"v":70,"d":"70.00"},{"v":70,"d":"70.00"},{"v":70,"d":"70.00"},{"v":0,"d":"0.00"},287,824,9,26,"以建设改善海口镇海关片区群众生活水平为主题，改善该片区旅游配套设施现状，实现人\n居环境、自然生态、产业发展、农民增收、社会保障、社区服务以及农民素质的全面提升，\n提高整体生活水平。\n","否","吸纳农村劳动力稳定就业增收—吸纳就业","是","否","否","是","张晨",18287704004,"澄江市农业农村局","海关社区","是","是"]
[115,"澄江市","海口镇","新村村委会","产业发展—小型农田水利设施建设","澄江市海口镇新村委会浑水塘2025年衔接资金-农业产业区供水工程建设项目（发展蔬菜种植产业）","2025年","新建","安装 DN20～DN200 镀锌钢管共 10420.3m,DW273.1 螺旋钢管\n176.4m，DW323.9 螺旋钢管 184.8m；DN300 暗杆螺旋闸阀(Z41H-16C)1\n套，DN200 暗杆螺旋闸阀(Z41H-16C)1 套，DN100 暗杆螺旋闸阀\n(Z41H-16C)1 套，安装 DN80 暗杆螺旋闸阀(Z41H-16C)2 套；安装放空\n阀(Z41H-16C，DN50）6 套；安装 DN40 排气阀 16 套；智能水表 65\n套，混凝土浇筑田间配水阀井 65 座，DN25 田间配水闸阀 16 套，DN40\n田间配水闸阀 49 套\n",{"v":234,"d":"234.00"},{"v":234,"d":"234.00"},{"v":140.4,"d":"140.40"},{"v":93.6,"d":"93.60"},157,516,1,4,"以建设改善村小组群众生活水平为主题，在浑水塘小组实施产业\n发展、农民增收、社会保障、村委会服务以及农民素质的全面提升，\n提高整体居住水平\n","否","带动农户发展生产增产增收—其他","是","否","否","是","张晨",18287704004,"澄江市农业农村局","新村村委会","是","是"]
[116,"澄江市","路居镇","三百亩村委会","乡村建设行动—产业路、资源路、旅游路建设","澄江市路居镇2025年财政衔接推进乡村振兴—路居镇三百亩莫洛山柏油路建设项目","2025年","改建","三莫公路长1.6千米，现为弹石路。因年久失修，路面坑洼不平，为改善人居环境，促进旅游业发展，拟建设成柏油路。",{"v":260,"d":"260.00"},{"v":260,"d":"260.00"},{"v":260,"d":"260.00"},{"v":0,"d":"0.00"},301,860,82,324,"通过建设莫洛山柏油路，提升人居环境，促进旅游业发展。","否","不需要","是","否","否","否","郭彪",13988492573,"澄江市农业农村局","三百亩村委会","否","否"]
[117,"澄江市","路居镇","三百亩村委会","产业发展—农产品仓储保鲜冷链基础设施建设","澄江市路居镇2025年财政衔接推进乡村振兴-冷库建设项目","2025年","新建","三百亩村委会家家户户种植香椿，为使村民的香椿卖上好价钱，村集体公司统购统销，拟建设冷库，促进香椿产业发展。",{"v":8.7,"d":"8.70"},{"v":8.7,"d":"8.70"},{"v":8.7,"d":"8.70"},{"v":0,"d":"0.00"},301,860,82,324,"通过建设冷库，促进香椿产业发展。","否","带动农户发展生产增产增收—其他","是","否","是","是","郭彪",13988492573,"澄江市农业农村局","三百亩村委会","是","否"]
[118,"澄江市","路居镇","三百亩村委会","产业发展—品牌打造和展销平台","澄江市路居镇2025年财政衔接推进乡村振兴-香椿有机认证项目","2025年","新建","三百亩的香椿已连续认证2年，为使香椿价格稳定，需每年做有机产品认证。",{"v":1.5,"d":"1.50"},{"v":1.5,"d":"1.50"},{"v":1.5,"d":"1.50"},{"v":0,"d":"0.00"},301,860,82,324,"通过香椿有机产品认证，促进香椿产业发展。","否","带动农户发展生产增产增收—其他","是","否","否","否","郭彪",13988492573,"澄江市农业农村局","三百亩村委会","否","否"]
[119,"澄江市","路居镇","中坝社区","产业发展—农产品仓储保鲜冷链基础设施建设","路居镇中坝社区食用菌工厂化种植车间改造项目","2025年","新建","将社区50个电烤棚改造为食用菌工厂化种植车间，改造面积约3600平方米，发展食用菌工厂化种植。",{"$f":"SUM(K124:L124)","v":{"v":140,"d":"140.00"}},{"$f":"SUM(L124:M124)","v":{"v":70,"d":"70.00"}},{"v":70,"d":"70.00"},{"v":0,"d":"0.00"},2176,5536,38,112,"有效盘活资源，带动产业发展，预计增收10万元。","否","吸纳农村劳动力稳定就业增收—吸纳就业","是","否","是","是","郭彪",13988492573,"中共澄江市委组织部","中坝社区","是","否"]
[120,"澄江市","路居镇","下坝社区","产业发展—其他","路居镇下坝社区田园综合体项目","2025年","新建","（1）农场夏令营：投入资金70万，以农耕研学为主题，修建农耕研学栈道，配备研学桌椅、器材等10套，同时还配备咖啡机、奶茶机设备、软装、集装箱改造，为游客提供农事体验、农事教育、农事科普、休闲娱乐等经营活动的场所；（2）嬉水游娱：投入资金8万元，依托调蓄带打造水上游乐项目，配置无动力小游船3类20组，救生设备20套。",{"$f":"SUM(K125:L125)","v":{"v":140,"d":"140.00"}},{"v":70,"d":"70.00"},{"v":70,"d":"70.00"},{"v":0,"d":"0.00"},50,198,null,null,"打造多个空间节点串联的休闲、度假、研学、文娱、商服等多业态融合的综合田园体项目，激活整个农文旅产业链条，助力东西海边村旅游业发展，壮大村集体经济。","否","吸纳农村劳动力稳定就业增收—吸纳就业","是","否","否","是","郭彪",13988492573,"中共澄江市委组织部","下坝社区","否","否"]
[121,"澄江市","路居镇","三百亩","产业发展—其他","路居镇三百亩村山野卡丁项目","2025年","新建","购置无动力卡丁车20个、购置防碰撞设施若干，设置警示标牌若干，配套其余设施。",{"$f":"SUM(K126:L126)","v":{"v":140,"d":"140.00"}},{"v":70,"d":"70.00"},{"v":70,"d":"70.00"},{"v":0,"d":"0.00"},301,860,82,324,"项目建成后每年收入5万元，有效吸引游客，推动三百亩经济发展，带动乡村旅游业发展。","否","吸纳农村劳动力稳定就业增收—吸纳就业","是","否","否","是","郭彪",13988492573,"中共澄江市委组织部","三百亩","否","否"]
[122,"澄江市","路居镇","三百亩村","产业发展—种植业基地","澄江市人民政府关于澄江市路居镇2025年财政衔接推进乡村振兴—三百亩提水泵站建设项目","2025年","新建","1.高位水池工程；（端新建200m3高位水池）2.管道建设工程；（共建设输水管道18.737km，其中新建提水管道总长4.884km。新建输水管道总长9.263km，新建人饮配水管道长4.590km）",{"v":204.3,"d":"204.3000"},{"v":204.3,"d":"204.30"},{"v":204.3,"d":"204.30"},{"v":0,"d":"0.00"},303,857,82,327,"通过澄江市路居镇2025年财政衔接推进乡村振兴-三百亩提水泵站建设项目建设：1.有利于解决农业灌溉用水问题，同时适当解决部分农村人饮用水问题。工程建成后，可解决三百亩村全村耕地（旱地）面积2221.65亩农田灌溉问题，以及三百亩村、菜鲁、小白岩村组现状1072人的人饮供水问题；2.为贫困群众建立长期稳定的增收岗位，后期种植经营主体在生产过程中，也将带动当地农民就业，预计提供灵活就业岗位30个；3.改善三百亩提水现状，通过提水泵站工程等配套设施的健全，使群众交易现状得到改善、社会综合治理等方面得到有效地提高，大幅度提高了农村公共服务水平。","否","促进农户共享资产收益增收—其他","是","否","不涉及","是","郭彪",13988492573,"澄江市农业农村局","三百亩村","是","是"]
[123,"澄江市","海口镇","海关社区","产业发展—休闲农业与乡村旅游","澄江市海口镇2025年乡村振兴衔接资金项目——海关社区矣渡村乡村振兴文旅融合产业示范建设工程",2025,"新建","1.村内道路等基础设施提升改造；2.村内污水管网提升改造；3.旅居民宿房屋改造；4.村内挡墙建设，村内道路坍塌区域需挡墙支护修复；5.防护栏杆安装， 村内坡度较陡、临空高度较高的道路旁增设护栏。",1121.76,1121.76,1121.76,{"v":0,"d":"0.00"},289,846,9,20,"以建设改善海口镇海关社区矣渡小组群众生活水平为主题，改善该片区旅游配套设施现状，实现人居环境、自然生态、产业发展、农民增收、社会保障、社区服务以及农民素质的全面提升，提高整体生活水平。带动区域经济增长：项目实施在盘活闲置资源的同时区域产业服务设施得到进一步完善，带动周边餐饮、住宿等相关产业发展，形成产业集群，创造更多就业岗位和经济效益，为村集体建立了长期稳定的增收产业，缓解就业压力。同时，通过吸引游客消费，带动相关产业的发展，促进区域经济的增长，推动乡村振兴进程。","是","带动农户发展生产增产增收—其他","是","否","否","否","张晨",18287704004,"澄江市农业农村局","海关社区","是","否"]
[124,"通海县","全县","全县范围","就业项目—技能培训","2025年通海县脱贫人口劳动力转移培训","2025年","新建","结合“雨露计划＋就业”针对全县790户脱贫户组织实施通海县脱贫人口劳动技能提升培训班，结合脱贫户实际需要，通过手把手、面对面的教学方式，把理论培训转向课堂培训和现场指导，提升了参训人员实践能力。帮助脱贫群众树立发展产业的信心，以技术帮扶和送教到村到户，促进农民增产增收。",{"v":10,"d":"10.00"},{"v":10,"d":"10.00"},{"v":10,"d":"10.00"},{"v":0,"d":"0.00"},790,2574,790,2574,"通过项目实施，有效增加了群众劳动技能，增加市场竞争力，提高家庭收入受益脱贫户790户。","是","公司+贫困户”","不涉及","否","否","否","杨金木",15187700051,"通海县农业农村局","不形成资产","是","否"]
[125,"通海县","全县","全县范围","就业项目—公益性岗位","2025年通海县乡村公益性岗位开发","2025年","新建","为持续做好我县脱贫人口（含监测对象）的就业帮扶工作，巩固拓展脱贫攻坚成果，助力全面推进乡村振兴，按照“按需设岗、以岗聘任、在岗领补、退岗有序”的乡村公益性岗位开发机制，开发一批乡村乡村公益性岗位，重点安置“无法离乡、无业可扶、无力脱贫”且有能力胜任岗位工作的脱贫劳动力（含监测对象），确保有愿意的脱贫劳动力家庭至少有1人实现稳定就业。按照不低于800元/月的标准给予乡村公益性岗位补贴，实现脱贫劳动力（含监测户）持续稳定增收。",{"v":192,"d":"192.00"},{"v":153,"d":"153.00"},{"v":153,"d":"153.00"},{"v":0,"d":"0.00"},796,2564,796,2564,"带动脱贫劳动力和监测对象增收年均增收1万元以上。","是","吸纳农村劳动力稳定就业增收—吸纳就业","不涉及","否","否","否","叶晓娇",13708678998,"通海县人力资源和社会保障局","不形成资产","是","否"]
[126,"通海县","全县","全县范围","就业项目—交通费补助","2025年通海县脱贫劳动力（含监测户）跨省务工一次性交通补助","2025年","新建","为进一步巩固脱贫攻坚成果，确保我县脱贫劳动力（含监测帮扶对象）稳岗就业、持续增收，对跨省外出务工且稳定就业 3 个月以上的脱贫人口（含监测对象），按照跨省务工人员给予一次性外出务工交通补助（每年享受 1 次）。",{"v":7,"d":"7.00"},{"v":7,"d":"7.00"},{"v":7,"d":"7.00"},{"v":0,"d":"0.00"},796,2564,796,2564,"带动跨省外出务工且稳定就业3个月以上脱贫人口（含监测对象）增收1000元/年/人","是","吸纳农村劳动力稳定就业增收—吸纳就业","不涉及","否","否","否","叶晓娇",13708678998,"通海县人力资源和社会保障局","不形成资产","是","否"]
[127,"通海县","全县","全县范围","就业项目—交通费补助","2025年通海县脱贫劳动力（含监测户）省内跨州市务工一次性交通补助","2025年","新建","为进一步巩固脱贫攻坚成果，确保我县脱贫劳动力（含监测帮扶对象）稳岗就业、持续增收，对省内跨州市外出务工且稳定就业 3 个月以上的脱贫人口（含监测对象），按照省内跨州市务工人员给予一次性外出务工交通补助（每年享受 1 次）。",{"v":7,"d":"7.00"},{"v":7,"d":"7.00"},{"v":7,"d":"7.00"},{"v":0,"d":"0.00"},796,2564,796,2564,"带动省内跨州市务工且稳定就业3个月以上脱贫人口（含监测对象）增收500元/年/人","是","吸纳农村劳动力稳定就业增收—吸纳就业","不涉及","否","否","否","杨金木",15187700051,"通海县农业农村局","不形成资产","是","否"]
[128,"通海县","全县","全县范围","巩固三保障成果—享受“雨露计划”职业教育补助","2025年通海县雨露计划职业教育学生补助","2025年","新建","全县脱贫户家庭子女接受职业教育进行补助每人每年约3000-5000元。",{"v":50,"d":"50.00"},{"v":50,"d":"50.00"},{"v":50,"d":"50.00"},{"v":0,"d":"0.00"},790,2574,790,2574,"全县脱贫户家庭子女接受职业教育进行补助每人每年3000-5000元。切实增加脱贫户家庭年收入。","是","吸纳农村劳动力稳定就业增收—其他","不涉及","否","否","否","杨金木",15187700051,"通海县农业农村局","不形成资产","是","否"]
[129,"通海县","全县","全县范围","产业发展—小额贷款贴息","通海县_金融扶贫_2025年扶贫小额信贷贴息项目","2025年","新建","为2023-2025年发放的小额信用贷款发放贴息资金。",{"v":70,"d":"70.00"},{"v":70,"d":"70.00"},{"v":70,"d":"70.00"},{"v":0,"d":"0.00"},790,2574,790,2574,"户均增收5000元","是","带动农户发展生产增产增收—订单生产","不涉及","否","否","否","杨金木",15187700051,"通海县农业农村局","不形成资产","是","否"]
[130,"通海县","河西镇","改水沟村","产业发展—市场建设和农村物流","2025年通海县河西镇改水沟村农资仓储中心建设项目","2025年","新建","新建化肥农药等农资仓储中心200平米，污水处理排放建设，为改水沟村村民种植提供服务，缩减运输成本，方便群众生产经营。铺设改水沟二组新农村雨污管网，提升群众人居环境。",91.63,91.63,{"v":70,"d":"70.00"},21.63,184,556,71,218,"方便当地群众生产经营，带动改水沟村农业、经济的发展，提升农村人居环境，从而促进项目影响区域的经济繁荣。","否","吸纳农村劳动力稳定就业增收—吸纳就业","是","否","是","是","陈兆宝",15894287081,"通海县农业农村局","河西镇改水沟村民委员","是","否"]
[131,"通海县","河西镇","河西社区","产业发展—休闲农业与乡村旅游","2025年河西镇河西社区蓝莓采摘园基地建设（通海县河西镇河西社区水果种植采摘园建设项目）","2025年","新建","（1）土地平整7亩；\n（2）钢构大棚主体建设；\n（3）安装灌溉管道1200米及相关配套设施。",73.18,73.18,{"v":70,"d":"70.00"},3.18,100,450,4,8,"有效提高集体经济收入；辐射带动群众增收；能吸引脱贫户和边缘户就业，增加收入","否","带动农户发展生产增产增收—其他","是","否","否","是","程宝康",13619475607,"通海县委组织部","河西镇河西社区","是","是"]
[132,"通海县","河西镇","石山嘴村","乡村建设行动—农村供水保障设施建设","2025年河西镇石山嘴村人畜饮水管网改造项目","2025年","新建","为整合石山嘴村山地资源，石山嘴村计划于2024年在我村凤山顶新建一个1000㎥的高位蓄水池，进行石山嘴村山地进行灌溉蓄水。将八组龙潭地表水用新建管道将水抽入新建高位蓄水池内，作为高位水池的取水点供应山地灌溉，水管规格：DN100，总长8700m,道路修建：3KM.",15.27,15.27,{"v":15,"d":"15.00"},0.27,2142,5656,5,23,"完善基础设施，带动村民增收","否","带动农户发展生产增产增收—其他","是","否","是","是","李秀娟",13577791560,"通海县农业农村局","河西镇石山嘴村民委员会","是","是"]
[133,"通海县","秀山街道","黄龙社区","产业发展—市场建设和农村物流","2025年通海县秀山街道黄龙社区农贸市场建设项目","2025年","新建","建设钢架结构交易大棚两个，一个建设面积为200㎡，一个建设面积为300㎡，总建设面积500㎡。",{"v":63.1,"d":"63.10"},{"v":63.1,"d":"63.10"},{"v":60,"d":"60.00"},{"v":3.1,"d":"3.10"},1620,5352,0,0,"通过2025年通海县秀山街道黄龙社区土特产交易中心建设项目的实施，提升人民群众生活质量，发展壮大集体经济。","否","吸纳农村劳动力稳定就业增收—吸纳就业；盘活闲置土地资源，壮大社区组织集体经济。","是","否","否","是","张兴龙",13887700365,"通海县农业农村局","秀山街道黄龙社区","是","是"]
[134,"通海县","秀山街道","长河社区","产业发展—种植业基地","2025年通海县秀山街道长河社区溥家山有机蔬菜种植基地大棚建设项目","2025年","新建","建设农业有机蔬菜基地大棚及配套设施，占地面积20亩。",42.38,42.38,{"v":40,"d":"40.00"},2.38,1255,4228,0,0,"通过2025年通海县秀山街道长河社区溥家山有机蔬菜种植基地大棚建设项目的实施，提升人民群众生活质量，发展壮大集体经济。","否","吸纳农村劳动力稳定就业增收—吸纳就业；盘活闲置土地资源，壮大社区组织集体经济。","是","否","否","是","张兴龙",13887700365,"通海县农业农村局","秀山街道长河社区","是","否"]
[135,"通海县","秀山街道","万家社区","乡村建设行动—农村道路建设（通村路、通户路、小型桥梁等）","2025年通海县秀山街道万家社区“千万工程”示范村建设项目（万家社区五组至二组村内道路）","2025年","改（扩）建","万家社区总户数1654户，总人口5144人。该道路是从西自东贯通万家社区五六组和5个沿湖小组的主要村内道路，同时也是秀二小片区部分学生上下学必经之路，涉及人口户数996户，人口3006人。计划投入资金125万元，对该主要村庄道路，长1000米，道路宽8米，厚度0.2米，进行平整夯实及硬化。",87.33,87.33,{"v":50,"d":"50.00"},37.33,2650,8150,0,0,"通过2025年通海县秀山街道万家社区“千万工程”示范村建设项目（万家社区主要村内道路硬化）的实施，方便农产品运输，夯实农业基础设施，强化整治人居环境，巩固提升人民群众生活质量，；进一步改善秀山二小学生上下学交通条件，缓解交通压力。","否","带动农户发展生产增产增收—其他","是","否","否","否","张兴龙",13887700365,"通海县农业农村局","秀山街道万家社区","是","否"]
[136,"通海县","秀山街道","东村社区","乡村建设行动—农村道路建设（通村路、通户路、小型桥梁等）","2025年通海县秀山街道东村社区（二组）村庄道路硬化建设项目","2025年","新建","村庄道路硬化长287.5米，宽10米，2875平方米；场地硬化长39米，宽28米，1092平方米。",65.84,65.84,{"v":50,"d":"50.00"},15.84,156,375,1,3,"通过项目的实施，提升人民群众生活质量，完善村内基础设施，强化整治人居环境。","否","不涉及","是","否","否","否","张兴龙",13887700365,"通海县农业农村局","秀山街道东村社区","是","是"]
[137,"通海县","九龙街道","碧溪社区","产业发展—新型农村集体经济发展项目","2025年通海县九龙街道碧溪社区充电桩建设项目","2025年","新建","近年来新能源车普及，对充电桩的需求日益增长，农村建设充电桩相对滞后，为方便周边群众出行，改善农村环境，提高农村新能源利用效率，选择在碧溪社区七组空地处建设充电桩。该地距离通海火车站1公里，便于火车站接送旅客车辆出行充电，获得收益能壮大村集体经济。项目建设内容如下：1、投资35万元安装1250KVA欧变变压器一台，配套高压电力施工长度约100米；2、投资27.5万元安装12个120KW快充直流桩1000V风冷双/单枪新能源充电接口，满足充电桩的正常运营。选用符合国家标准的新能源充电设备，通过NB/T33008.1(2)-2018最新国标认证，防水防尘、准确计量、快捷支付，确保充电安全可靠；3、场地建设面积1亩，投资6万元对场地硬化；4、投资7万元搭建遮雨棚、自动门闸等配套设施；5、投资25万元安装光伏发电板，做到场地多效合一，能源共享。",76.87,76.87,{"v":40,"d":"40.00"},36.87,1786,5780,0,0,"促进农村新能源结构调整，提高能源利用效率，降低农村居民的能源消费成本，解决居民在家充电的用电安全问题。完善基层便民服务设施，提升居民满意度。充电桩收益有利于壮大经济经济收入。","否","吸纳农村劳动力稳定就业增收—吸纳就业","是","否","否","是","钟为庆",13987792595,"通海县农业农村局","九龙街道碧溪社区","是","否"]
[138,"通海县","九龙街道","大梨社区","产业发展—市场建设和农村物流","2025年通海县九龙街道大梨社区梨苑农贸市场提档升级改造项目","2025年","新建","大梨社区梨苑早市、夜市提档升级改造项目共投资32.6万元，对以下四项进行提档升级改造：1、早市/夜市统一固定摊位架，铁制（3米×1.2米×1.8米）120个，2300元/个，共27.6万元；2、集市电力设施改造800米，其中早市区500米，夜市区300米，50元每米（含材料及工时等费用）共4万元；3、增加市集垃圾桶20个，180元/个合计3600元；4、市集指示牌、摊位固定宣传指标语标牌共计80块，每块80元共6400元。",{"v":29.2,"d":"29.20"},{"v":29.2,"d":"29.20"},{"v":28,"d":"28.00"},{"v":1.2,"d":"1.20"},1568,4886,0,0,"项目实施完成后，可增加社区集体经济收益10万元以上，实现社区民族团结示范创建与经济发展同步推进。","否","吸纳农村劳动力稳定就业增收—吸纳就业","是","否","否","是","钟为庆",13987792595,"通海县农业农村局","九龙街道大梨社区","是","是"]
[139,"通海县","杨广镇","五垴山","乡村建设行动—农村供水保障设施建设","2025年通海县杨广镇五垴山村人畜饮水安全提升改造工程","2025年","新建","打深井1口，大约300——400米，架设管网600米（DN50管），安装线路300米。",{"v":80,"d":"80.00"},{"v":80,"d":"80.00"},{"v":70,"d":"70.00"},{"v":10,"d":"10.00"},454,1511,17,54,"解决多年来四、五、六三个组人畜饮水困难。增加村集体经济收入。（每年可增加收入10万）。","否","促进农户共享资产收益增收—其他","是","否","否","否","管家许",15808665129,"通海县农业农村局","杨广镇五垴山村民委员会","是","否"]
[140,"通海县","杨广镇","落凤村","产业发展—新型农村集体经济发展项目","2025年通海县杨广镇落凤村水果种植及初加工基地建设项目","2025年","新建","（1）新建西梅种植基地30亩，含土地平整、道路修建等；\n（2）种植基地滴灌、喷灌系统安装；\n（3）建设温室大棚与冷藏室占地面积5亩；\n（4）设建水管网5000米；\n（5）建设水果分拣厂；",{"v":76,"d":"76.00"},{"v":76,"d":"76.00"},{"v":70,"d":"70.00"},{"v":6,"d":"6.00"},787,2289,148,503,"有效提高集体经济收入；辐射带动群众增收；能吸引脱贫户和边缘户就业，增加收入","否","吸纳农村劳动力稳定就业增收—吸纳就业","是","否","否","是","程宝康",13619475607,"通海县委组织部","杨广镇落凤村民委员会","是","否"]
[141,"通海县","杨广镇","云龙","产业发展—其他","2025年通海县杨广镇云龙村蔬菜交易市场配套基础设施项目","2025年","新建","①洗菜池208.25㎡，②路面硬化276.3㎡",51.75,51.75,{"v":50,"d":"50.00"},1.75,1552,4235,1,4,"每包菜收取0.5-1元的费用，每年可增加约8万元集体经济收入。雨季用于蓄水，平时可为群众提供洗菜用地，减少社会矛盾。结合东村农田尾水引入二次利用，减少杞麓湖入户河道水污染，有利于生态平衡。","否","吸纳农村劳动力稳定就业增收—吸纳就业","是","否","否","是","董艳梅",13987765499,"通海县农业农村局","杨广镇云龙村民委员会","是","否"]
[142,"通海县","杨广镇","兴义村","产业发展—市场建设和农村物流","2025年通海县杨广镇兴义村农贸市场建设项目","2025年","新建","场地硬化1500平方米，搭建钢架大棚，规划摊位50个，配套市场照明、水电、管网排水、道闸建设",68.22,68.22,{"v":50,"d":"50.00"},18.22,1268,3686,1,5,"该项目的实施采取“村集体股份经济合作联合社+村小组股份经济合作社”的模式，利用小组的闲置用地，采取村委会和村小组合作建设农贸市场一个，吸引县内商户到市场进行经营，方便兴义村9个村民小组，3700余人购买蔬菜及生活物资采购，解决以路为市进行交易的现状，消除安全隐患。项目由村股份经济合作联合社争取衔接资金投入，项目建设完成后由村组集体经营管理，该项目建设后每年能够为村集体创收10万元，为村低收入村民提供就业岗位。","否","带动农户发展生产增产增收—产品代销","是","否","否","是","尹存俊",13577730203,"通海县农业农村局","杨广镇兴义村民委员会","是","否"]
[143,"通海县","杨广镇","古城村","乡村建设行动—农村道路建设（通村路、通户路、小型桥梁等）","2025年通海县杨广镇古城村村庄道路硬化建设项目","2025年","新建","古城村村庄道路硬化建设项目位于古城小新村村口至新村委会门口。该道路是小新村片区6个村民小组的主要村内道路，同时也是村委会、三圣宫、朱氏宗祠的必经之路，涉及人口户数697户，人口2358人。计划投入资金41万元，对该主要村庄道路约0.8公里进行沟盖板及扩宽：位于古城十组新农村道路进行沟道疏通后沟盖板将道路浇筑至8米宽，位于牛头山脚部分进行土方开挖将道路扩宽至约10米，位于村委会门口路段进行沟盖板后浇筑至约8米宽。",{"v":41,"d":"41.00"},{"v":41,"d":"41.00"},{"v":40,"d":"40.00"},{"v":1,"d":"1.00"},697,2358,1,4,"项目的实施能改善村内人居环境，提升岳家营精忠文化的影响力，为下一步发展农文旅产业奠定基础。","否","不涉及","是","否","否","否","杨开雄",13527996688,"通海县农业农村局","杨广镇古城村","是","是"]
[144,"通海县","杨广镇","马家湾","乡村建设行动—村容村貌提升","2025年通海县杨广镇马家湾村千万工程示范村农村村貌提升项目","2025年","新建","杨广镇马家湾村一组至四组（2个自然村）村庄道路硬化建设项目，计划建设内容：1.新农村道路硬化11828㎡，200mm厚C25砼2365.6m³，15cm天然碎砾石垫层，平整路面。2.C25砼挡土墙：长106m,高4m，顶宽0.4m，底宽1.6m，挡墙424m³，开挖土石方519 m³。",{"v":120,"d":"120.00"},{"v":120,"d":"120.00"},{"v":40,"d":"40.00"},{"v":80,"d":"80.00"},701,2026,1,3,"改善村内人居环境，实现整村道路环境提升","否","不涉及","是","否","否","否","王洪喜",13988403687,"通海县农业农村局","杨广镇马家湾村民委员会","是","否"]
[145,"通海县","杨广镇","镇海村","乡村建设行动—农村道路建设（通村路、通户路、小型桥梁等）","2025年通海县杨广镇镇海村村庄基础设施建设项目","2025年","新建","①张家营给水管铺设（DN50 PE给水管:352.7m；DN50闸阀4个；DN50×50三通4个）；\n②村庄内排水沟及盖板建施（详图纸）；\n③村内道路及场地硬化：635.10m2。",49.49,49.49,{"v":40,"d":"40.00"},9.49,1861,4890,1,6,"项目的实施能改善村内人居环境，提升岳家营精忠文化的影响力，为下一步发展农文旅产业奠定基础。","否","不涉及","是","否","否","否","杨开雄",13527996688,"通海县农业农村局","杨广镇镇海村","是","是"]
[146,"通海县","四街镇","十街村九组","产业发展—其他","通海古酱菜技艺文化研习基地项目","2025年","新建","1.改造龙泉小学原校址（占地面积：2589.2㎡，建筑面积：1880㎡）；2.改造部分教学楼及操场。",{"v":40,"d":"40.00"},{"v":40,"d":"40.00"},{"v":30,"d":"30.00"},{"v":10,"d":"10.00"},8720,38650,11,36,"通过项目的实施，挖掘和保护通海传统酱咸菜技艺，带动酱菜产业上下游产业链发展，培养行业传承人和传统产品的商品化转型，提供部分就业岗位，壮大集体经济。","否","提供就业岗位，增加农民收入，收益分红。","是","否","是","是","季树崇",15187734300,"通海县农业农村局","四街镇十街村九组","是","是"]
[147,"通海县","四街镇","大营村","产业发展—市场建设和农村物流","四街镇大营村农产品交易市场建设项目","2025年","新建","项目分两期建设，本次项目建设第一期，建设钢框架结构交易市场一层（至标高7.800m），占地面积901.47平方米，建筑面积901.47平方米，单层建筑高度7.8米，包含主体结构工程，水电安装工程以及装饰装修工程（不含外墙涂料）等，其余为二期建设。",217.96,217.96,{"v":70,"d":"70.00"},147.96,350,1446,3,12,"有效提高集体经济收入；辐射带动群众增收；能吸引脱贫户和边缘户就业，增加收入","否","提供就业岗位、收益分红","是","否","否","是","程宝康",13619475607,"通海县委组织部","四街镇大营村民委员会","是","是"]
[148,"通海县","四街镇","二街村","产业发展—其他","2025年四街镇二街村水资源综合利用建设项目","2025年","新建","①给水管（自来水管）326米，②灌溉沟213米。",31.14,31.14,{"v":30,"d":"30.00"},1.14,1042,5164,5,10,"通过项目的实施，改善村民用水安全，社会和环境效益显著提高，保证了农村资源利用的最大化，提高农村经济水平。","否","提供就业岗位、增加农民收入","是","否","否","是","季树崇",15187734300,"通海县农业农村局","四街镇二街村民委员会","是","是"]
[149,"通海县","四街镇","海东村","乡村建设行动—其他","2025年通海县四街镇海东村村庄基础设施建设项目","2025年","新建","1、村内道路建设2940.41平方米；2、雨水管网：塑料管DN300：330.86m，塑料管 DN400：79.14m，HDPE检查井：16座，单篦雨水口（0.8m深）：44座。",57.33,57.33,{"v":40,"d":"40.00"},17.33,125,619,5,14,"通过基础设施完善，持续改善当地生产生活条件，依托老熊箐小组的种养殖资源优势，逐步探索新发展模式，减少招商引资难度，增加土地流转面积，通过建立合作社、引进公司等方式，种植人工菌、玉米等，提升安置区经济自循环能力，实现从“输血式”帮扶向“造血式”发展的转变。","否","不涉及","是","否","否","否","季树崇",15187734300,"通海县农业农村局","四街镇海东村","是","是"]
[150,"通海县","四街镇","六街村","乡村建设行动—其他","2025年通海县四街镇六街村村庄基础设施建设项目","2025年","新建","1、村内道路硬化3842.46平方米含路面回填；2、DN200聚乙烯双壁波纹管235米，DN300聚乙烯双壁波纹管470.48米，DN500聚乙烯双壁波纹管100.30米，单篦雨水口48座，（1000*1000）方检查井18座，2000*1200交汇井3座以及管道土方开挖、",72.26,72.26,{"v":60,"d":"60.00"},12.26,1123,6540,25,81,"通过基础设施完善，持续改善当地生产生活条件，依托老熊箐小组的种养殖资源优势，逐步探索新发展模式，减少招商引资难度，增加土地流转面积，通过建立合作社、引进公司等方式，种植人工菌、玉米等，提升安置区经济自循环能力，实现从“输血式”帮扶向“造血式”发展的转变。","否","不涉及","是","否","否","否","季树崇",15187734300,"通海县农业农村局","四街镇六街村","是","是"]
[151,"通海县","四街镇","龚杨村","乡村建设行动—农村道路建设（通村路、通户路、小型桥梁等）","2025年通海县四街镇龚杨村“千万工程”示范村建设项目","2025年","新建","路面硬化10287.16平方米。",141.15,141.15,{"v":100,"d":"100.00"},41.15,287,1300,3,13,"改善村内人居环境，实现整村道路环境提升","否","不涉及","是","否","否","否","季树崇",15187734300,"通海县农业农村局","四街镇龚杨村","是","是"]
[152,"通海县","四街镇","十街村","产业发展—种植业基地","2025年通海县四街镇十街村现代农业种植示范基地建设项目","2025年","新建","1、大棚建设30亩；2、水肥一体化智能设施设备一套；3、建设相关附属设施（喷灌、滴灌、沟渠及田间道路）；4、位置老公路以下，临湖核心区。",{"v":300,"d":"300.00"},{"v":300,"d":"300.00"},{"v":250,"d":"250.00"},{"v":50,"d":"50.00"},2139,6526,12,38,"通过项目的实施，推动农业现代化、促进绿色发展的有力举措，够提升农业生产效率与质量，促进农业转型升级与绿色发展，还能提高农民收入与就业水平，引领农业科技创新与示范推广","否","提供就业岗位、收益分红","是","否","否","是","季树崇",15187734300,"通海县农业农村局","四街镇十街村","是","是"]
[153,"通海县","纳古镇","纳家营村","产业发展—种植业基地","2025年通海县纳古镇纳家营烤烟种植基地建设项目","2025年","新建","在纳家营村后山完善500亩烤烟种植基础设施。其中：道路硬化1980立方米；完善排水沟201米；修建蓄水池、灌溉设施；设置变压器1台，电路10KM。",50.06,50.06,{"v":50,"d":"50.00"},0.06,2495,7034,4,12,"该项目的实施采取“村集体股份经济合作联合社+村小组股份经济合作社+农户”的模式，采取村委会和村小组集中对现有的500亩山地进行流转，由村股份经济合作联合社争取衔接资金投入完善基础设施，提高山地烤烟种植收益，带动群众增收。","否","通过新增就业岗位，带动群众就业；盘活闲置土地资源，促进群众增收致富。","是","否","否","是","宋应贵",15825155762,"通海县民族宗教事务局","纳古镇纳家营村","是","否"]
[154,"通海县","纳古镇","纳家营村\n古城村","产业发展—种植业基地","2025年通海县纳古镇环境友好型作物种植项目","2025年","新建","（一）乡村振兴生态水田纳家营基地63万。在纳家营村海泥田片区种植环境友好型作物100亩。其中：种植荷花100亩，购买荷种12万株；修缮沟渠、找平沟底1500米；土地整理、生态水田管理费用；架设电路2500米，安装100KVA变压器1台；设置安全护栏2千米。",100.78,100.78,{"v":100,"d":"100.00"},0.78,3383,9575,6,20,"该项目的实施以推动群众增收致富为着力点，采取“村集体股份经济合作联合社+公司+农户”的模式，采取村委会和村小组集中对现有闲置低效利用土地进行流转，由村股份经济合作联合社争取衔接资金投入完善基础设施，提高山地种植收益，带动群众增收。","否","部分菌包低价卖给低收入群众，带动脱贫户、监测对象、低收入者增收。\n通过新增就业岗位，带动群众就业；盘活闲置土地资源，促进群众增收致富。","是","否","否","是","宋应贵",15825155762,"通海县农业农村局","纳古镇古城村","是","是"]
[155,"通海县","纳古镇","纳家营一组","产业发展—加工流通项目","2025年通海县纳古镇纳家营一组民族团结进步示范村","2025年","新建","投资102万元，在通海县纳古镇振兴路建设夜市经济市场项目。项目建设：1.建设1000平方米场地硬化，200米排水沟渠，投资30万元；2.创意售卖亭20个，投资50万元；3.市场配套水电设施，投资22万元。",{"v":102,"d":"102.00"},{"v":102,"d":"102.00"},{"v":100,"d":"100.00"},{"v":2,"d":"2.00"},2507,7070,5,16,"该项目的实施采取“村集体+公司”的模式，采取场地免租、减租、有偿出租等多种方式合理利用现有的场地，争取衔接资金投入，村集体完善基础设施，公司负责后续运营；鼓励20户纳古镇食品从业者入驻经营，优先考虑低收入群众；增加集体经济收入，每年增收6万元；解决夜市不规范问题，吸引更多人进行消费，推进纳古镇经济多元化发展。","否","该项目的实施采取“村集体+公司”的模式，采取场地免租、减租、有偿出租等多种方式合理利用现有的场地，鼓励20户纳古镇食品从业者入驻经营，优先考虑低收入群众；增加集体经济收入，每年增收6万元。","是","否","否","是","宋应贵",15825155762,"通海县民族宗教事务局","纳古镇纳家营村","是","是"]
[156,"通海县","纳古镇","纳家营四组","产业发展—加工流通项目","2025年通海县纳古镇纳家营四组民族团结进步示范村","2025年","新建","投资203万元，在通海县纳古镇忠爱大街建设农特产品交易市场项目。建设内容：1.硬化场地2100平方米，200米排水沟渠，投资60万元；2.建设移动摊位25个，固定摊位15个，投资78万元；3.变压器等相关设备，投资35万元。4.餐饮休憩等其他配套设施，投资30万元。",{"v":203,"d":"203.00"},{"v":203,"d":"203.00"},{"v":200,"d":"200.00"},{"v":3,"d":"3.00"},2507,7070,5,16,"通过实施农特产品交易市场项目建设，改善农贸市场基础设施，规范交易市场行为，打造纳古镇集美食、工艺、农特产品、购物为一体的交易平台；增加交易平台出租数量，带动不少于40户群众增收致富，不断满足各族群众农产品交易需求，增加集体经济收入，每年增收9万元，切实为各族群众办好事、实事，助力农户增收致富，促进村集体经济的发展，加快乡镇建设步伐，拓宽市场信息的传播渠道，使广大群众及时地掌握各类经济信息，使产品购销更加快捷，为乡村振兴注入新动能。","否","通过实施农特产品交易市场项目建设，增加交易平台出租数量，带动不少于40户群众增收致富，不断满足各族群众农产品交易需求，增加集体经济收入，每年增收9万元，助力农户增收致富，促进村集体经济的发展，拓宽市场信息的传播渠道，使广大群众及时地掌握各类经济信息，使产品购销更加快捷，为乡村振兴注入新动能。","是","否","否","是","宋应贵",15825155762,"通海县民族宗教事务局","纳古镇纳家营村","是","是"]
[157,"通海县","兴蒙乡","下村","产业发展—新型农村集体经济发展项目","2025年通海县兴蒙蒙古乡下村羊肚菌产业示范基地建设项目","2025年","新建","（1）羊肚菌示范基地建设，占地5亩。其中：搭建大棚主体；平整土地；建工具房2个，建水池1个。\n（2）附属设施建设，其中：水电安装；喷灌系统。周边场地及道路硬化；购买水肥一体机；购买大棚塑料膜、双层黑色遮阳网。",72.89,72.89,{"v":70,"d":"70.00"},2.89,667,1835,5,19,"有效提高集体经济收入；辐射带动群众增收；能吸引脱贫户和边缘户就业，增加收入","否","吸纳农村劳动力稳定就业增收—吸纳就业","是","否","否","是","程宝康",13619475607,"通海县委组织部","兴蒙乡下村村民委员会","是","否"]
[158,"通海县","兴蒙乡","下村","产业发展—其他","2025年通海县兴蒙乡民族手工业发展建设项目","2025年","新建","建设民族手工业工作室，设有民族服饰、民族手工具以及各类草编产品等展厅展示各种民族手工艺品，同时设置服饰和草墩制作区带动村民群众发展致富，让游客参与体验民族文化。主要建设内容为：一是外部改造及氛围营造：1.门口地面挡墙、花台及楼梯墙砌筑；2.门口地面青石板铺贴；3.入口大门及相应设施；4.锦绣中华小品1套；3.民族团结宣传墙及宣传标语；4.文化展架2架；二是室内改造：1.仿古门窗；2.民族服饰陈列柜；3.水电路改造；4.配套相应灯具；5.和相应的室内装饰。5.购买一台做民族服饰的缝纫机。",22.48,22.48,{"v":20,"d":"20.00"},2.48,528,1856,6,24,"有效提高集体经济收入；辐射带动群众增收；能吸引脱贫户和边缘户就业，增加收入","否","吸纳农村劳动力稳定就业增收—吸纳就业","是","否","否","否","期应杰",19108771997,"通海县民族宗教事务局","兴蒙乡下村村民委员会","是","是"]
[159,"通海县","里山乡","五山村","产业发展—新型农村集体经济发展项目","2025年通海县盆景产业园-百样殊盆景文化小镇建设项目（一期）","2025年","新建","混凝土道路硬化面积1520平方米、新建76.5米钢筋砼挡土墙。",30.56,30.56,{"v":30,"d":"30.00"},0.56,552,1515,3,11,"有效提高村集体经济、增加群众收益，促进农村经济发展。","否","吸纳农村劳动力稳定就业增收—吸纳就业；带动群众发展盆景经济。","是","否","否","是","施宇彪",18987728466,"通海县民族宗教事务局","里山乡五山村民委员会","是","否"]
[160,"通海县","里山乡","象平村","产业发展—养殖业基地","2025年通海县里山乡象平村梅花鹿养殖","2025年","新建","1.新建饲养房一幢，建筑层数为一层，结构类型为钢架结构，建筑占地面积：317.16平方米，总建筑面积207.93平方米。建筑层高：3.00米，建筑功能包括母鹿饲养圈，公鹿饲养圈，饲料房，生活用房。2.新建1.5米高钢筋混凝土挡墙，总长约24米。3.新建基地围栏，总长约25米。4.基地配套给，排水管网，食槽，水盆，基地地面硬化等内容。",40.84,40.84,{"v":40,"d":"40.00"},0.84,150,560,3,5,"象平村梅花鹿养殖项目按照投入资金的10%进行收益测算，可增加村集体经济10万元。","否","吸纳就业、带动脱贫户发展养殖业增收。","是","否","否","是","施宇彪",18987728466,"通海县农业农村局","里山乡象平村民委员会","是","否"]
[161,"通海县","高大乡","高大社区","产业发展—市场建设和农村物流","2025年通海县高大乡高大社区集贸市场建设项目","2025年","改（扩）建","盘活资产，建设集贸交易市场，占地面积840㎡，建筑面积1680㎡（钢结构）、计划投资168万元。建盖1600平方米钢架大棚、计划投资160万元。为群众提供交易便利，壮大村集体经济。",101.83,101.83,{"v":100,"d":"100.00"},1.83,446,1007,33,96,"通过项目实施，带动社区经济发展，提高群众就业率，进一步壮大村集体经济，每年收入达60万元。","否","吸纳农村劳动力稳定就业增收—吸纳就业、促进农户共享资产收益增收—土地流转获得租金","是","否","否","是","王永明",13170652668,"通海县农业农村局","高大乡高大社区","是","否"]
[162,"通海县","高大乡","普丛村","产业发展—新型农村集体经济发展项目","2025年通海县高大乡普丛村农产品分拣及初加工项目","2025年","新建","（1）项目主体建设：①仓储房6间共216㎡；②网套设备一台；③洗蒜机2台。④分拣间占地面积240㎡；⑤分拣间占地面积240㎡，采用钢框架结构。\n（2）附属配套设施工程：①网套设备水电线路安装。②洗蒜机水电线路安装、抽水设备购买。",75.99,75.99,{"v":70,"d":"70.00"},5.99,930,2696,20,63,"有效提高集体经济收入；辐射带动群众增收；能吸引脱贫户和边缘户就业，增加收入","否","带动农户发展生产增产增收—其他、吸纳农村劳动力稳定就业增收—吸纳就业","是","否","否","是","程宝康",13619475607,"通海县委组织部","高大乡普丛村民委员会","是","否"]
[163,"通海县","高大乡","高大社区","乡村建设行动—其他","2025年通海县高大乡高大社区四组、五组新农村基础设施建设项目","2025年","改（扩）建","道路硬化120米长、6米宽，基础照明设施安装，硬化700平方米，铺设雨污分流管道，新建公厕1座。",30.11,30.11,{"v":30,"d":"30.00"},0.11,105,275,4,13,"通过项目实施，完善新农村基础设施，群众生活生产条件得到改善，进一步提升了群众获得感、幸福感。","否","不涉及","是","否","否","否","王永明",13170652668,"通海县民族宗教事务局","高大社区","是","否"]
[164,"通海县","高大乡","代办村","产业发展—道路硬化","通海县高大乡老熊箐集中安置区2025年产业发展示范项目","2025年","新建","硬化道路693米，平均5米宽，厚度0.25米。（新村子到老村子路段）",{"v":50.6,"d":"50.60"},{"v":50.6,"d":"50.60"},{"v":50,"d":"50.00"},{"v":0.6,"d":"0.60"},60,183,38,90,"通过基础设施完善，持续改善当地生产生活条件，依托老熊箐小组的种养殖资源优势，逐步探索新发展模式，减少招商引资难度，增加土地流转面积，通过建立合作社、引进公司等方式，种植人工菌、玉米等，提升安置区经济自循环能力，实现从“输血式”帮扶向“造血式”发展的转变。","否","吸纳农村劳动力参与项目建设—吸纳就业","是","是","否","否","曹红军",13608892849,"通海县发展和改革局","高大乡代办村","是","是"]
[165,"通海县","秀山街道","黄龙社区","产业发展—种植业基地","2025年通海县秀山街道黄龙社区现代农业绿色高效种植示范基地","2025年","新建","项目覆盖社区农户1620户5344人。建设标准化钢架农业种植大棚、水肥一体化及无土栽培配套设施24亩，定制安装设备车间（临时建筑）100平方米。",150,150,105,{"v":45,"d":"45.00"},1620,5352,0,0,"现代农业绿色高效种植示范基地建设，有助于推动农业现代化、促进绿色发展，够提升农业生产效率与质量，促进农业转型升级与绿色发展，还能提高农民收入与就业水平，引领农业科技创新与示范推广。","否","带动农户发展生产增产增收—其他、吸纳农村劳动力稳定就业增收—吸纳就业","是","否","否","是","张兴龙",13887700365,"通海县农业农村局","秀山街道黄龙社区","是","否"]
[166,"华宁县","宁州街道","舍木多村委会","产业发展—其他","2025年华宁县宁州街道舍木多火特村委会产业配套设施建设项目","2025年","新建","以现代农业服务公司为主体，采购2台东方红1504农耕机，采用有偿耕地的方式，辐射土地3000亩，每年耕地2次，增加集体收入18万元。每台采购价25万元。",{"v":50,"d":"50.00"},{"v":50,"d":"50.00"},{"v":50,"d":"50.00"},{"v":0,"d":"0.00"},1362,4838,140,480,"1.增加村集体经济收入；2.服务群众。","否","带动农户发展生产增产增收—其他","是","否","否","是","刘株含",{"v":18787629369,"d":"18787629369.00"},"华宁县农业农村局","舍木多村委会","是","否"]
[167,"华宁县","宁州街道","咱乐村委会","乡村建设行动—村容村貌提升","2025年华宁县宁州街道咱乐村委会邑格小组基础设施建设项目","2025年","新建","（1）人居环境提升：污水管网建设536米，包含DN300HDPE双壁波纹管，检查井32座，化粪池1座，PVC入户管154米；排水沟建设350米，免烧砖砌排水沟建设350米；太阳能路灯安装7盏，包含安装、调试。（2）产业设施建设：交易场地建设850平方米，包含土地平整，C25砼硬化。",50,{"v":50,"d":"50.00"},{"v":50,"d":"50.00"},{"v":0,"d":"0.00"},22,98,4,11,"1.完善村庄基础设施；2.提升村庄人居环境。","否","不需要","是","否","否","否","刘株含",{"v":18787629369,"d":"18787629369.00"},"华宁县农业农村局","咱乐村委会","是","否"]
[168,"华宁县","宁州街道","西冲村委会","产业发展—其他","2025年华宁县宁州街道西冲村、法果村、吗哒村产业道路建设项目","2025年","新建","法果村委会：拖卓小组新建交易市场860平米，C25砼。\n西冲村委会：西冲大山脚路（西冲至岔纳）产业道路建设520米：平均宽度5米，C25砼。\n吗哒村委会：美叠小组下麦塘山脚至肥扩产业发展道路，共涉及美叠、大吗达、小寨、普土寨四个小组，全长1.3公里宽3米，用土夹石铺设方便农产品运输。",{"v":72,"d":"72.00"},{"v":72,"d":"72.00"},{"v":72,"d":"72.00"},{"v":0,"d":"0.00"},503,1487,25,71,"1.解决农户到烤房前烤烟路难行走的问题；2.解决岔河村委会的小学生到西冲小学上学路难行的问题；3.解决村民到地间做活路难行赵的问题；4.完善蔬菜交易产业设施；5.完善机耕路建设。","否","带动农户发展生产增产增收—其他","是","否","否","是","刘株含",{"v":18787629369,"d":"18787629369.00"},"华宁县农业农村局","西冲村委会","是","否"]
[169,"华宁县","宁州街道","平地社区","乡村建设行动—农村道路建设（通村路、通户路、小型桥梁等）","2025年华宁县宁州街道冲麦村、平地社区“以工代赈”建设项目","2025年","新建","冲麦村委会：休闲活动场所建设1200平方米，包含配套设施。老寨子进村道路建设557米：平均宽8米，支护工程。\n平地社区：高寨小组场地建设2563平方米：上场长71米，宽27米；下场长38米，宽17米，C25砼。马家冲小组进村道路建设527米：平均宽5米，C25砼，配套排水沟。",{"v":94,"d":"94.00"},{"v":94,"d":"94.00"},{"v":94,"d":"94.00"},{"v":0,"d":"0.00"},314,1132,12,44,"1.解决马家冲学生到学校上学问题；2.辐射道路两旁田地；3.提升高寨人居环境。4.增加休闲活动场所，丰富群众精神生活。","否","不需要","是","否","否","否","刘株含",{"v":18787629369,"d":"18787629369.00"},"华宁县农业农村局","平地社区","是","否"]
[170,"华宁县","宁州街道","红坡村委会","产业发展—小型农田水利设施建设","2025年华宁县宁州街道石门坎小组、红坡小组、落水洞小组产业设施建设","2025年","新建","毛石支砌截水沟30米（带盖板）3.5米宽，1.7米深。",{"v":40,"d":"40.00"},{"v":40,"d":"40.00"},{"v":40,"d":"40.00"},{"v":0,"d":"0.00"},90,300,32,116,"1.保障村民生产用水；2.提升群众的幸福感。","否","带动农户发展生产增产增收—其他","是","否","否","否","刘株含",{"v":18787629369,"d":"18787629369.00"},"华宁县农业农村局","红坡村委会","是","否"]
[171,"华宁县","宁州街道","暮车村委会","产业发展—休闲农业与乡村旅游","2025年华宁县宁州街道暮车村委会上下暮车产村融合建设项目","2025年","新建","（1）产业设施建设：一是大黄梨采摘体验园3925平方米，包含土方回填、平整，产业步道及配套设施建设；二是养殖小区5000平方米，包含土方开挖、回填及配套设施建设。（2）人居环境提升：一是污水管网建设1458米，采用DN300HDPE双壁波纹管及中、粗砂填槽夯实，包含检查井；二是活动场地建设912平方米：包含土地平整、夯实，C25砼硬化、场地铺砖及安全护栏。",{"v":150,"d":"150.00"},{"v":150,"d":"150.00"},{"v":150,"d":"150.00"},{"v":0,"d":"0.00"},187,576,28,71,"1.发展大黄梨产业；2.壮大村集体经济；3.实现产村融合。","否","带动农户发展生产增产增收—其他","是","否","否","是","刘株含",{"v":18787629369,"d":"18787629369.00"},"华宁县农业农村局","暮车村委会","是","否"]
[172,"华宁县","宁州街道","马鞍山社区","产业发展—市场建设和农村物流","2025年华宁县宁州街道马鞍山社区果蔬交易市场建设项目","2025年","新建","老待客处：建设果蔬交易市场2200平方米：含场地建设2200平方米，交易场所建设700平方米（钢架彩钢瓦，免烧砖砌外墙）",{"v":68,"d":"68.00"},{"v":68,"d":"68.00"},{"v":68,"d":"68.00"},{"v":0,"d":"0.00"},661,2017,23,85,"1.提升村集体经济收入；2.解决果农公路旁交易的问题。","否","带动农户发展生产增产增收—其他","是","否","是","是","刘株含",{"v":18787629369,"d":"18787629369.00"},"华宁县农业农村局","马鞍山社区","是","否"]
[173,"华宁县","宁州街道","吗哒村委会","乡村建设行动—农村道路建设（通村路、通户路、小型桥梁等）","2025年华宁县宁州街道吗哒村委会小寨基础设施提升项目","2025年","新建","道路建设300米：平均宽度4.5米，含土方开挖、回填、平整、C25砼及支护工程；活动场所建设620平方米：含原破损建筑拆除、平整及C25砼；产业设施建设500平方米：采用钢结构树脂瓦顶；水源点围护设施1项：青砖支砌。",{"v":68,"d":"68.00"},{"v":68,"d":"68.00"},{"v":68,"d":"68.00"},{"v":0,"d":"0.00"},62,225,4,13,"1.提升村庄人居环境；2.促进村庄新规划宅基地新建。","否","不需要","是","否","否","否","刘株含",{"v":18787629369,"d":"18787629369.00"},"华宁县农业农村局","吗哒村委会","是","否"]
[174,"华宁县","宁州街道","咱乐村委会","产业发展—其他","2025年华宁县宁州街道咱乐村委会产业配套设施建设项目","2025年","新建","咱乐村委会白坡小组：1.DN80镀锌管3400米；2.新建200立方米蓄水池1座。",{"v":45,"d":"45.00"},{"v":45,"d":"45.00"},{"v":45,"d":"45.00"},{"v":0,"d":"0.00"},45,161,2,4,"1.解决白坡小组产业灌溉用水问题。","否","带动农户发展生产增产增收—其他","是","否","否","否","刘株含",{"v":18787629369,"d":"18787629369.00"},"华宁县农业农村局","咱乐村委会","是","否"]
[175,"华宁县","宁州街道","城关社区","产业发展—种植业基地","2025年华宁县宁州街道城关社区林下种养殖示范基地建设项目","2025年","新建","位于华盖山，推广联农带农林下种养殖示范基地210亩。\n1、人行步道建设2200米：平均宽2米，红砖铺地；\n2、产业道路建设1400米：平均宽度3米，C25砼；\n3、提水工程1项：DN50镀锌主管7000米，抽水设施1台，50m³蓄水池1座；\n4、工具房1座：占地60平方米，钢架树脂瓦房屋；\n5、中药材苗种采购1项。",{"v":74,"d":"74.00"},{"v":74,"d":"74.00"},{"v":74,"d":"74.00"},{"v":0,"d":"0.00"},780,3650,8,31,"1.建设林下中药材、食用菌种植基地；2.壮大村集体经济；3.辐射带动街道产业发展。","否","带动农户发展生产增产增收—其他","是","否","是","是","刘株含",{"v":18787629369,"d":"18787629369.00"},"华宁县农业农村局","城关社区","是","否"]
[176,"华宁县","宁州街道","新城村委会","产业发展—其他","2025年华宁县宁州街道新城村委会基础设施建设项目","2025年","新建","产业设施：1.农资设施2间，每间30平方米，共60平方米，钢架树脂瓦；2.灌溉沟渠建设127米；3.采购1台东方红1504农耕机，采用有偿耕地的方式，辐射土地3500亩。",{"v":30,"d":"30.00"},{"v":30,"d":"30.00"},{"v":30,"d":"30.00"},{"v":0,"d":"0.00"},904,3122,50,153,"1.提升村集体经济；2.解决生产用水问题。","否","带动农户发展生产增产增收—其他","是","否","是","是","刘株含",{"v":18787629369,"d":"18787629369.00"},"华宁县农业农村局","新城村委会","是","否"]
[177,"华宁县","宁州街道","甸尾社区","产业发展—小型农田水利设施建设","2025年华宁县宁州街道甸尾社区产业设施建设项目","2025年","新建","1.灌溉管道建设390米：DN800混凝土管铺设370，检查井25个；DN300混凝土管铺设20米；\n2.产业道路建设370米：平均宽度2米，C20砼；",{"v":65,"d":"65.00"},{"v":65,"d":"65.00"},{"v":65,"d":"65.00"},{"v":0,"d":"0.00"},140,474,8,25,"1.建设灌溉管网；2.完善村庄产业设施。","否","带动农户发展生产增产增收—其他","是","否","否","否","刘株含",{"v":18787629369,"d":"18787629369.00"},"华宁县农业农村局","甸尾社区","是","否"]
[178,"华宁县","宁州街道","郭家营社区","乡村建设行动—村容村貌提升","2025年华宁县宁州街道郭家营社区小山小组村容村貌提升工程","2025年","新建","郭家营社区辖区内小山小组村内建设活动场所，面积3000平方米。",{"v":45,"d":"45.00"},{"v":45,"d":"45.00"},{"v":45,"d":"45.00"},{"v":0,"d":"0.00"},195,655,7,27,"1.完善基础设施；2.增加村民的自娱自乐性，让村民们有更多的机会聚集在一起，进行各种文化娱乐活动，营造和谐、积极向上的乡村文化氛围。","否","不需要","是","否","否","否","刘株含",{"v":18787629369,"d":"18787629369.00"},"华宁县农业农村局","郭家营社区","是","否"]
[179,"华宁县","宁州街道","葫芦冲村委会","乡村建设行动—农村道路建设（通村路、通户路、小型桥梁等）","2025年华宁县宁州街道葫芦冲村委会“以工代赈”建设项目","2025年","新建","建设内容：下新寨搬迁点道路建设120米、污水处理池1座。葫芦冲场地建设700平方米。",{"v":45,"d":"45.00"},{"v":45,"d":"45.00"},{"v":45,"d":"45.00"},{"v":0,"d":"0.00"},141,468,9,32,"1.完善下新寨搬迁点基础设施；2.提升葫芦冲小组村内人居环境。","否","不需要","是","否","否","否","刘株含",{"v":18787629369,"d":"18787629369.00"},"华宁县农业农村局","葫芦冲村委会","是","否"]
[180,"华宁县","宁州街道","新庄社区","乡村建设行动—村容村貌提升","2025年华宁县宁州街道新庄社区基础设施提质项目","2025年","新建","排水管道600米，垃圾亭1座，免烧砖砌花台204米，活动设施75平方米，活动场所建设4914.56平方米，支护工程332立方米，太阳能灯30盏，道路建设690平方米。",246.58,246.58,246.58,{"v":0,"d":"0.00"},204,728,5,16,"1.完善村庄基础设施；2.提升村庄人居环境。","否","不需要","是","否","否","否","刘株含",{"v":18787629369,"d":"18787629369.00"},"华宁县农业农村局","新庄社区","是","否"]
[181,"华宁县","宁州街道","那果村委会、咱乐村委会，马鞍山社区","产业发展—小型农田水利设施建设","2025年华宁县宁州街道生产生活用水设施建设项目","2025年","新建","那果农村饮水提水项目（泵房、125kva变压器一台、水泵一套、DN80抽水管道1800米、200立方蓄水池一座）上咱乐小组50立方水池、阿矣寨小组50立方水池",{"v":63,"d":"63.00"},{"v":63,"d":"63.00"},{"v":63,"d":"63.00"},{"v":0,"d":"0.00"},182,654,61,192,"1.保障村民饮水供给；2.加强灌溉用水保障。","否","带动农户发展生产增产增收—其他","是","否","否","否","刘株含",{"v":18787629369,"d":"18787629369.00"},"华宁县水利局","那果村委会、咱乐村委会，马鞍山社区","是","否"]
[182,"华宁县","宁州街道","吗哒村委会、法果村委会、冲麦村委会、铁埂社区、红坡村委会","产业发展—小型农田水利设施建设","2025年华宁县宁州街道产业灌溉设施建设项目","2025年","新建","对宁州辖区的吗哒秧田冲坝塘、法果新坟脚坝塘、冲麦绿林庄坝塘、铁埂煤炭窝坝塘、铁埂赵家坟坝塘、红坡坝塘外坡倒塌土方、溢洪道、排洪沟、放水涵洞等进行清理修复。",{"v":35,"d":"35.00"},{"v":35,"d":"35.00"},{"v":35,"d":"35.00"},{"v":0,"d":"0.00"},535,1908,108,352,"1.修缮小坝塘，提高蓄水能力；2.强化灌溉设施。","否","带动农户发展生产增产增收—其他","是","否","否","否","刘株含",{"v":18787629369,"d":"18787629369.00"},"华宁县水利局","吗哒村委会、法果村委会、冲麦村委会、铁埂社区、红坡村委会","是","否"]
[183,"华宁县","宁州街道","普茶寨村委会","产业发展—其他","2025年华宁县宁州街道普茶寨村委会产业发展道路建设项目","2025年","新建","红皮寨小组产业发展道路建设1200米：土地平整、C20砼、路边排水沟建设。",{"v":80,"d":"80.00"},{"v":80,"d":"80.00"},{"v":80,"d":"80.00"},{"v":0,"d":"0.00"},39,147,3,5,"1.完善村庄产业设施；2.保障农户生产出行。","否","带动农户发展生产增产增收—其他","是","否","否","否","刘株含",{"v":18787629369,"d":"18787629369.00"},"华宁县农业农村局","普茶寨村委会","是","否"]
[184,"华宁县","青龙镇","紫马龙村委会","乡村建设行动—村容村貌提升","2025年华宁县青龙镇紫马龙村委会紫马龙小组“以工代赈”建设项目","2025年","新建","1.雨、污治理一项。2.道路建设5550㎡。3.垃圾房建设1座。4.LED太阳能单臂路灯12套。5.养殖畜圈场地内场地平整965㎡。6.闲置土地利用：种植红土回填624m³，种植红叶石楠，女贞等绿植425株，种植875㎡，砖砌花台453m。",{"v":100,"d":"100.00"},100,{"v":100,"d":"100.00"},{"v":0,"d":"0.00"},134,388,9,17,"户均增收≥300元/户，直接受益人口数≥388人","否","不需要","是","否","否","否","普志辉","0877-8886323","华宁县农业农村局","紫马龙村委会","是","否"]
[185,"华宁县","青龙镇","大母公竜村委会","乡村建设行动—村容村貌提升","2025年华宁县青龙镇大母公竜村委会长坡小组\"以工代赈\"建设项目","2025年","新建","1、道路建设1483㎡；2、挡土墙528.84㎡；5、路灯10套；6、猫猫箐人饮管道6分热镀锌钢管950m；5、污水管网埋设220m；6、砖砌检查井11座；7、30立方米氧化池一座等。",{"v":58,"d":"58.00"},{"v":58,"d":"58.00"},{"v":58,"d":"58.00"},{"v":0,"d":"0.00"},23,69,3,10,"户均增收≥200元/户， 直接受益人口数≥69人","否","不需要","是","否","否","否","普志辉","0877-8886323","华宁县农业农村局","大母公竜村委会","是","否"]
[186,"华宁县","青龙镇","倒马坎村委会","产业发展—产业园（区）","2025年华宁县青龙镇倒马坎村委会者红寨小组产村融合建设项目（二期）","2025年","新建","1.道路建设95m；2.场地建设800平米；3.毛石护坡100m³；4.太阳能灯安装12盏；5.GB DN80镀锌管4000m；6.DN40智能水表30只。",70.94,70.94,69.34,{"v":1.6,"d":"1.60"},78,275,26,81,"户均增收≥500元/户， 直接受益人口数≥275人","否","吸纳农村劳动力稳定就业增收—股权合作","是","否","否","是","普志辉","0877-8886323","华宁县农业农村局","倒马坎村委会","是","否"]
[187,"华宁县","青龙镇","糯租村委会","产业发展—市场建设和农村物流","2025年华宁县青龙镇糯租村委会农产品综合交易市场建设项目","2025年","新建","1.综合交易设施建设1160.00㎡，（含主体、装饰装修、水电安装等），2.附属工程：场地建设560㎡，场地平整560㎡",81.07,81.07,{"v":80,"d":"80.00"},1.07,689,2543,43,132,"户均增收≥1000元/户，直接受益人口数≥2000人","否","带动农户发展生产增产增收—其他","是","否","否","是","普志辉","0877-8886323","华宁县农业农村局","糯租村委会","是","否"]
[188,"华宁县","青龙镇","大村村委会、禄丰村委会、糯租村委会、马鹿塘村委会","产业发展—小型农田水利设施建设","2025年华宁县青龙镇农业发展水利灌溉配套设施建设项目","2025年","新建","对青龙辖区的大村上塘子坝塘、禄丰鲁伯比坝塘、糯租水龙箐坝塘外坡、坝埂倒塌土方、排洪沟等进行清理修复，竹山水库补水工程（水泵一台、机房一座、变压器160KVA一台、DN125管道460米）",{"v":55,"d":"55.00"},{"v":55,"d":"55.00"},{"v":55,"d":"55.00"},{"v":0,"d":"0.00"},1131,4313,187,555,"户均增收≥1000元/户，直接受益人口数≥4313人","否","带动农户发展生产增产增收—其他","不涉及","否","否","是","普志辉","0877-8886324","华宁县水利局","大村村委会、禄丰村委会、糯租村委会、马鹿塘村委会","是","否"]
[189,"华宁县","青龙镇","禄丰村委会","产业发展—小型农田水利设施建设","2025年华宁县青龙镇禄丰村委会矣则小组产业发展配套设施建设项目","2025年","新建","1.高压线路及125变压器安装；2.提水站建设（流量85m³/s，扬程300m）；3.GB DN100mm镀锌管1100m焊接,提抽水房配套实施安装；4.机耕路建设1000m。",76.78,76.78,76.78,{"v":0,"d":"0.00"},37,126,14,45,"户均增收≥1000元/户，直接受益人口数≥126人","否","带动农户发展生产增产增收—其他","不涉及","否","否","是","普志辉","0877-8886323","华宁县农业农村局","禄丰村委会","是","否"]
[190,"华宁县","青龙镇","革勒村委会","产业发展—小型农田水利设施建设","2025年华宁县革勒村委会产业灌溉设施提升改造建设项目","2025年","新建","1.新建水泵一台（扬程300m，46m3/h）；2.GB DN100镀锌管3300m；3.200KV变压器一台；4.墩子3座；5.二级站改造。",{"v":83.9,"d":"83.90"},{"v":83.9,"d":"83.90"},{"v":83.9,"d":"83.90"},{"v":0,"d":"0.00"},353,1100,23,56,"户均增收≥500元/户，直接受益人口数≥1100人","否","带动农户发展生产增产增收—其他","是","否","否","否","普志辉","0877-8886323","华宁县农业农村局","革勒村委会","是","否"]
[191,"华宁县","青龙镇","斗居村委会","产业发展—产业园（区）","2025年华宁县青龙镇斗居村委会分水岭小组产业配套设施建设项目","2025年","新建","（1）产业发展道路建设：路长620米，路宽4米（包含：路床(槽）整形；水泥混凝土道路面层；路基护坡；排水沟350米；DN1000混凝土管埋设80米）；（2）产业配套设施建设一项（包含：场地基础护坡；场地土方回填场地碎石基层；水泥混凝土场地面层）。",100,{"v":100,"d":"100.00"},{"v":100,"d":"100.00"},{"v":0,"d":"0.00"},37,147,3,6,"户均增收≥1000元/户，直接受益人口数≥147人","否","带动农户发展生产增产增收—其他","是","否","否","否","普志辉","0877-8886323","华宁县农业农村局","斗居村委会","是","否"]
[192,"华宁县","青龙镇","城门硐村委会","产业发展—产业园（区）","2025年华宁县青龙镇城门硐村委会粮烟协同文旅融合配套设施建设项目","2025年","新建","一、产业配套设施建设：1、产业道路建设3978米。2、新建机耕路900米。二、附属设施建设1、休息场所建设1项。2简易厕所安装6套。3、节点建设80平方。",{"v":73,"d":"73.00"},{"v":73,"d":"73.00"},{"v":73,"d":"73.00"},{"v":0,"d":"0.00"},564,1921,51,149,"户均增收≥2000元/户，直接受益人口数≥1921人","否","带动农户发展生产增产增收—其他","是","否","是","否","普志辉","0877-8886323","华宁县农业农村局","城门硐村委会","是","否"]
[193,"华宁县","青龙镇","马鹿塘村委会","产业发展—加工业","2025年华宁县青龙镇马鹿塘村委会产业发展基础设施建设项目","2025年","新建","1.村内道路修缮114m；2.新建电能烤房2座；3.道路建设2064㎡；4.护坡挡墙560m³；5.太阳能路灯12盏。",{"v":50,"d":"50.00"},{"v":50,"d":"50.00"},{"v":50,"d":"50.00"},{"v":0,"d":"0.00"},65,253,8,26,"户均增收≥1000元/户，直接受益人口数≥253人","否","带动农户发展生产增产增收—其他","是","否","否","是","普志辉","0877-8886323","华宁县农业农村局","马鹿塘村委会","是","否"]
[194,"华宁县","青龙镇","落梅村委会","乡村建设行动—村容村貌提升","2025年华宁县青龙镇落梅村委会落梅小组\"以工代赈\"建设项目","2025年","新建","1村内建设：道路硬化9524m2，挡土墙120m，检查井122座，混凝土承插管3008m（DN600:560m、DN500:1186m、DN300:1262m），双壁波纹管（DN200：2368m），路边排水沟，混凝土沟盖板。2.村容村貌整治：建设小花园，安装防护栏杆，粉刷墙面。",482.14,482.14,482.14,{"v":0,"d":"0.00"},1547,5578,49,168,"户均增收≥300元/户，直接受益人口数≥5578人","否","不需要","是","否","否","否","普志辉","0877-8886323","华宁县农业农村局","落梅村委会","是","否"]
[195,"华宁县","盘溪镇","东升社区凤凰村、盘江社区八方树","产业发展—产业园（区）","2025年华宁县盘溪镇东升社区凤凰村、盘江社区八方树村乡村振兴示范点建设项目","2025年","新建","凤凰村：（一）产业发展设施建设：产业发展道路建设，路长730米，宽3.5米：含路肩混凝土挡墙783.35立方米、道路边沟沟帮加高22.5立方米、道路风化料面层2555平方米、DN800混凝土管过水管埋12米等；（二）旅游产业配套设施建设：1.旅游产业配套设施5项，占地面积210平方米，建筑面积210平方米。2.村内道路改造，路长：长525米，宽4米：含路面风化石层2170平方米、路边围挡9.24立方米、混凝土沟盖板7.2立方米、路肩挡土墙12立方米、路面现浇构件钢筋（跨沟处）0.362t等；3.村节点打造和拆除空位利用：含场地杂物清理1113.42平方米、混凝土地面建设343.47平方米、透水砖地面铺设141.07平方米、石桌、石凳3套、红土回填314.05立方米、小菜园围边226.2米、栽植树木35棵、公共照明设施（其中：有灯杆12套和无灯杆100套）等；4.村内污水管网：含埋设污水管636米、砖砌检查井（1000*1000）21座、污水收集池1座等。\n八方树村：人居环境整治设施建设：（一）道路改造，长778米，宽4米、原检查井井盖提高；（二）村内节点打造和拆除空位利用：含场地杂物清理220平方米、透水砖地面铺设124.07平方米、石桌、石凳1套、红土回填286立方米、栽植树木38棵、公共照明设施10套、砖砌围挡55米、照明设施（无灯杆）100套。",{"v":280,"d":"280.00"},{"v":280,"d":"280.00"},{"v":280,"d":"280.00"},{"v":0,"d":"0.00"},632,2120,19,52," 通过项目实施，东升社区凤凰村和盘江社区八方树村将得到进一步改善，产业配套设施得到提升，解决村内部分污水未纳入管理，基础设施薄弱、产业道路不通的问题，间接增加群众收入，方便群众生产出行，提升群众精神面貌。","否","带动农户发展生产增产增收—其他","是","否","否","否","代迪","0877-6187105","华宁县农业农村局","东升社区凤凰村、盘江社区八方树村","是","是"]
[196,"华宁县","盘溪镇","龙潭营村委会","乡村建设行动—农村电网建设（通生产、生活用电、提高综合电压和供电可靠性）","2025年华宁县盘溪镇龙潭营村委会生产用水电网建设项目","2025年","新建","1.龙潭营村民委员会隧道口新建10kV线路工程（从110kV盘溪变10kV南头线阿白咪支线#10塔（沿用）\"T\"接至龙潭营村民委员会隧道口） 2、新建支线＃01号杆上安装断路器1台；3、新增190× 15米电杆13基，新建10kV线路1.046km，（其中采用JKLGYJ-120mm²导线架设0.802km，采用JL/LB20A-120/25铝包钢芯铝绞线架设0.244km）；4、采用带电作业法搭头1次。",{"v":27,"d":"27.00"},{"v":27,"d":"27.00"},{"v":27,"d":"27.00"},{"v":0,"d":"0.00"},30,114,2,6,"通过在华宁盘溪龙潭营村民委员会隧道口新建10kV线路工程，将完善阿白米至龙潭营村民委员会隧道口的生产用水用电线路，缓解周边用电紧张问题，化解因用电矛盾，降低群众生产生活成本，提高柑桔管理效益，进一步致富增收。","否","带动农户发展生产增产增收—其他","是","否","否","否","代迪","0877-6187105","华宁县农业农村局","龙潭营村委会","是","否"]
[197,"华宁县","盘溪镇","矣得村委会矣得小组","产业发展—种植业基地","2025年华宁县盘溪镇矣得村委会矣得小组特色产业建设项目","2025年","新建","一、特色山菜：（1）产业设施：①、建设250m³冷链设施一项，计划投资47万元；②、特色产业“树头菜”、“羊奶菜”、“梁王茶尖”）苗圃基地建设一项，计划投资35万元。二、人工菌培育：村集体在矣得小学校址内，1、发展人工菌培育项目基地10万元，2、加工包装设备8万元。",{"v":100,"d":"100.00"},{"v":100,"d":"100.00"},{"v":100,"d":"100.00"},{"v":0,"d":"0.00"},327,1068,115,447,"通过矣得村委会山区自然资源及派驻农业技术人员进行指导，配套喷灌、育苗、冷链服务为一体的特色山菜推广种植示范中心，集“卖苗+蔬菜+冷链服务”为一体的经营模式，向脱贫户免费发放特色山菜苗木的方式，引导脱贫群众大规模种植，进而增收致富。通过在矣得建设人工菌培育基地和配套加工包装设备，调整丰富矣得村委会产业结构，促进群众发展生产、增收，从而带动当地乡村的经济发展；项目实施后，为矣得村委会矣得小组的经济发展打下良好的基础和注入强劲动力，改善农村生产条件，加快农村经济发展，增加居民收入。","否","带动农户发展生产增产增收—其他","是","否","否","是","代迪","0877-6187105","华宁县农业农村局","矣得村委会矣得小组","是","否"]
[198,"华宁县","盘溪镇","富民村委会白云庵小组","乡村建设行动—村容村貌提升","2025年华宁县盘溪镇富民村委会白云庵小组美丽乡村建设项目","2025年","新建","1.基础设施一项:道路扩宽102.29 米，路宽 3 米、块石堆砌护坡、晒场建设、主干道路边拆除空位“节点”打造等;2.产业设施一项:建设养殖畜圈 19间(层高 3 米，有四种规格畜圈分别为：20 平方米 2 间，23.34平方米 8 间、41.78 平方米 3 间、44.78 平方米 6 间四种规格畜圈，总占地面积 620.74 米):含基础护坡建设、土方开挖、土方回填、场区道路建设、排水沟、厌氧池等。",{"v":100,"d":"100.00"},{"v":100,"d":"100.00"},{"v":100,"d":"100.00"},{"v":0,"d":"0.00"},90,235,3,9,"通过拆除“六必拆”建筑消除危房安全隐患、实施“八小工程”、污水管网铺设等工程建设，改变村内污水横流现象，提升村容村貌、整治人居环境，改变不良陋习，改变群众精神面貌，增强群众幸福感、获得感，为乡村全面振兴奠定坚实基础。","否","带动农户发展生产增产增收—其他","是","否","否","否","代迪","0877-6187105","华宁县农业农村局","富民村委会白云庵小组","是","否"]
[199,"华宁县","盘溪镇","法高村法高小组","乡村建设行动—村容村貌提升","2025年华宁县盘溪镇法高村委会法高小组农村基础设施建设项目","2025年","新建","（一）村内基础设施配套1项：（1）农产品集散场地：占地面积339.3平方米，建筑面积339.3平方米，结构形式为钢结构(主体结构及建筑砌体、门、窗、照明工程、给排水工程)；（2）附属设施1项：场地建设，混凝土护脚，DN200双壁波纹管埋设等。（二）生产用水配套设施1项：GB DN150热镀锌钢管（焊连接，壁厚4.5mm）780m，混凝土支墩、镇墩，DN150手动闸阀。",{"v":55,"d":"55.00"},{"v":55,"d":"55.00"},{"v":55,"d":"55.00"},{"v":0,"d":"0.00"},113,344,7,22,"通过提升村内基础设施、活动中心、冷链物流中心及村内环境整治，完善村庄产业发展配套设施，促进产业发展，带动群众增收、发展，从而带动当地乡村的经济发展；项目实施后，提升整治法高小组人居环境，改善村庄村容村貌。为法高村委会法高的经济发展打下良好的基础和注入强劲动力，改善农村生产条件，加快农村经济发展，增加居民收入。","否","带动农户发展生产增产增收—其他","是","否","否","是","代迪","0877-6187105","华宁县农业农村局","法高村法高小组","是","否"]
[200,"华宁县","盘溪镇","矣得、龙潭营、各纳甸","产业发展—小型农田水利设施建设","2025年华宁县盘溪镇各纳甸村委、龙潭营村、矣得村、月红寨村生产生活用水补短板建设项目","2025年","新建","一、矣得村委会矣得小组：在矣得村委会矣得小组打探深井1口20万元，安装变压器一台20万元，投资建成后由村集体经营，一是解决农户生产用水短缺问题补齐产业发展短板，二是壮大出集体经济。二、各纳甸大龙树1.提水设施：（1）抽水设备：D155-67*3功率=132kw 1台;（2）电机功力=132KW水泵启动柜（变频）1套；（3）闸阀DN150 4个 （4）止回阀DN150 3个 以上计划6.5万元。2.引水管网2300米等配件27万元，其中群众自筹14万元。三、月红寨村委会新寨小组建设生产用水蓄水池2个200立方，配套相应管网1000米。",{"v":90,"d":"90.00"},{"v":90,"d":"90.00"},{"v":90,"d":"90.00"},{"v":0,"d":"0.00"},424,1309,68,240,"通过打深井解决矣得村委会矣得小组、各纳甸大龙树小组群众生产生活用水难题，通过改造提水设备，增加管网配套设施，提升群众柑橘等产业生产用水，为群众降低生产成本，增加集体经济收入。","否","促进农户共享资产收益增收—其他","是","否","否","是","代迪","0877-6187105","华宁县农业农村局","矣得、龙潭营、各纳甸","是","否"]
[201,"华宁县","盘溪镇","盘江社区","乡村建设行动—村容村貌提升","2025年盘溪镇盘江社北门片区美丽乡村建设项目","2025年","新建","基础设施（1）道路、活动场及铺地面积1976㎡，计划投资50万元；（2）污水管网铺设527米，含检查井，计划投资29万元；（3）雨水管网535米，含检查井，计划投资30万元；（4）公共照明设施、弱电等，计划投资23万元。",{"v":132,"d":"132.00"},{"v":132,"d":"132.00"},{"v":132,"d":"132.00"},{"v":0,"d":"0.00"},553,1633,15,54,"通过拆除“六必拆”建筑消除危房安全隐患、实施“八小工程”、污水管网铺设等工程建设，改变村内污水横流现象，提升村容村貌、整治人居环境，改变群众精神面貌，增强群众幸福感、获得感，壮大村集体经济，为乡村全面振兴奠定坚实基础。","否","带动农户发展生产增产增收—其他","是","否","否","否","代迪","0877-6187105","华宁县农业农村局","盘江社区","是","否"]
[202,"华宁县","盘溪镇","磨沙塘村委会中寨村","乡村建设行动—产业路、资源路、旅游路建设","2025年华宁县盘溪镇磨沙塘村委会中寨产业发展道路以工代赈建设项目","2025年","新建","产业发展道路风化料基层长1800m，宽3m，计划投资83万元（含调型及1800m边沟）。",{"v":95,"d":"95.00"},{"v":95,"d":"95.00"},{"v":95,"d":"95.00"},{"v":0,"d":"0.00"},176,514,3,9,"通过建设1.8公里产业发展道路，促进产业发展，改善对外运输困难，解决交通不便的问题，促进群众发展生产、增收，从而带动当地乡村的经济发展；项目实施后，为磨沙塘村委会的经济发展打下良好的基础和注入强劲动力，改善农村生产条件，加快农村经济发展，增加居民收入。","否","带动农户发展生产增产增收—其他","是","否","否","否","代迪","0877-6187105","华宁县农业农村局","磨沙塘村委会中寨村","是","否"]
[203,"华宁县","盘溪镇","九甸村委会坝埂脚小组","产业发展—农产品仓储保鲜冷链基础设施建设","2025年华宁县盘溪镇九甸村委会坝埂脚小组仓储保鲜冷链设施配套建设项目","2025年","新建","配套面积在700平方米冷库10套，计划投资100万元。",{"v":100,"d":"100.00"},{"v":100,"d":"100.00"},{"v":100,"d":"100.00"},{"v":0,"d":"0.00"},247,695,3,13,"通过配套10套冷链设施并出租，进一步壮大村集体经济收入，带动周边群众增收致富，持续壮大柑桔产业效益。","否","带动农户发展生产增产增收—其他","是","否","否","是","代迪","0877-6187105","华宁县农业农村局","九甸村委会坝埂脚小组","是","否"]
[204,"华宁县","华溪镇","华溪社区","产业发展—休闲农业与乡村旅游","2025年华宁县华溪镇华溪社区第六居民小组产村融合建设项目","2025年","改（扩）建","一、产业发展设施1项：农产展销设施16套，每套20平方米。     \n二、产业配套设施1项包括：产业发展道路改扩建640米（路面扩宽3米）；DN800混凝土污水管网铺设700米；基础照明设施25套 。",193.6,{"v":193.6,"d":"193.60"},{"v":183.6,"d":"183.60"},{"v":10,"d":"10.00"},1638,4589,103,328,"项目实施后，完善集镇区翠溪湖周边的基础设施建设，村庄的宜居宜业性进一步增强，改善集镇区居民及外来务工人员的居住环境，极大缓解交通拥堵现状，推进经济社会更好、更快发展。通过项目建设，带动集镇夜间经济发展和贫困户、监测户就业增收，预计实现每年15万元以上村集体经济收入。","否","带动农户发展生产增产增收—其他","是","否","是","是","杨宏敏",{"v":15912756100,"d":"15912756100.00"},"县农业农村局","华溪社区","是","否"]
[205,"华宁县","华溪镇","华溪社区","乡村建设行动—村容村貌提升","2025年华宁县华溪镇华溪社区西沙井小组“以工代赈”建设项目","2025年","改（扩）建","1.村内道路硬化（长560米，宽4.5米）；2.排污管道410米。",{"v":120,"d":"120.00"},{"v":120,"d":"120.00"},{"v":100,"d":"100.00"},{"v":20,"d":"20.00"},144,442,34,95,"项目实施后，完善了村内基础设施，改善了村容村貌，丰富了农村物质文明和精神文明建设，更有利于集人气、聚财气，对西沙井小组经济发展起到积极的推动作用。","否","带动农户发展生产增产增收—其他","是","否","是","是","杨宏敏",{"v":15912756103,"d":"15912756103.00"},"县农业农村局","华溪社区","是","否"]
[206,"华宁县","华溪镇","华溪社区","乡村建设行动—村容村貌提升","2025年华宁县华溪镇华溪社区数字小镇水果市场片区基础设施建设项目","2025年","改（扩）建","1.水果市场内道路扩改硬化（长900m，宽8m）；2.污水管网埋设900m；3.基础照明设施20套。",{"v":220,"d":"220.00"},{"v":220,"d":"220.00"},{"v":200,"d":"200.00"},{"v":20,"d":"20.00"},1638,4589,103,328,"项目实施后，大大改善水果批发交易市场的基础设施建设，改善水果批发市场内交通运输的压力，更加有利于水果交易，通过华溪社区华溪社区数字小镇水果市场基础设施的建设，提高土地综合利用效益，群众水果交易场所将得到大幅改善，推进经济社会更好、更快的发展，极大程度上改善水果交易的环境，避免交通拥堵。","否","带动农户发展生产增产增收—其他","是","否","是","是","杨宏敏",{"v":15912756105,"d":"15912756105.00"},"县农业农村局","华溪社区","是","否"]
[207,"华宁县","华溪镇","独家村村委会","乡村建设行动—村容村貌提升","2025年华宁县华溪镇独家村村委会二亩地小组美丽乡村建设项目","2025年","新建","1.硬化路面（长500米，宽6米）；2.排污管道总管250米，支管300米；3.村内污水集中处理站1项；4.基础照明设施20套。",{"v":80,"d":"80.00"},{"v":80,"d":"80.00"},{"v":80,"d":"80.00"},{"v":0,"d":"0.00"},122,306,11,39,"项目实施后，完善了村内基础设施，改善了村容村貌，丰富了农村物质文明和精神文明建设，更有利于集人气、聚财气，对二亩地小组经济发展起到积极的推动作用。","否","带动农户发展生产增产增收—其他","是","否","是","是","杨宏敏",{"v":15912756108,"d":"15912756108.00"},"县农业农村局","独家村村委会","是","否"]
[208,"华宁县","通红甸乡","大婆左村委会","产业发展—其他","2025年华宁县通红甸乡大婆左村委会塘子小组产业发展配套设施建设项目","2025年","新建","产业发展道路建设：1.产业道路建设500米，宽4米；2.毛石混凝土挡墙支砌316.20立方米；边沟支砌300米；村内道路建设：1.村内道路建设300米，宽4米；2.道路挡土墙支砌175.21立方米。",{"v":85,"d":"85.00"},{"v":85,"d":"85.00"},{"v":85,"d":"85.00"},{"v":0,"d":"0.00"},100,372,26,95,"项目的实施将补齐产业基础设施的短板，有效改善人居环境，助力生态振兴，以点带面引领少数民族聚集区实现产业兴旺、生态宜居、乡风文明、治理有效、生活富裕作出示范和样板。","否","增产增收、其他","是","否","否","是","邹天聪",{"v":15758116046,"d":"15758116046.00"},"华宁县农业农村局","大婆左村委会","是","否"]
[209,"华宁县","通红甸乡","小得勒村委会","乡村建设行动—村容村貌提升","2025年华宁县通红甸乡长田小组美丽乡村建设项目","2025年","新建","进村道路扩改建设2000㎡、道路支护750㎡，路灯12盏，村内道路建设1200㎡，安全栏杆200m,污水管网200m，污水处理池1座。",{"v":80,"d":"80.00"},{"v":80,"d":"80.00"},{"v":80,"d":"80.00"},{"v":0,"d":"0.00"},57,205,4,18,"建设宜居宜业和美乡村是推进乡村全面振兴的必然要求，通过对长田小组基础设施建设，聚焦提升了人居环境舒适度、优势产业集聚度、基础设施完备度、公共服务便利度、乡村社会善治度，因地制宜、分类施策，持续推进宜居宜业和美乡村建设。","否","增产增收、其他","是","否","否","是","邹天聪","15758116046","华宁县农业农村局","小得勒村委会","是","否"]
[210,"华宁县","通红甸乡","所梅早村委会","产业发展—休闲农业与乡村旅游","2025年华宁县通红甸乡么波冲民族旅游产业配套设施建设项目","2025年","新建","产业道路建设5600㎡，安全栏杆安装200m，太阳能路灯20盏，涵洞：沉沙池1个、消力池污水1个、排洪管道86m，支护结构2100m³，游客集散场地平整3000㎡",{"v":120,"d":"120.00"},{"v":120,"d":"120.00"},{"v":120,"d":"120.00"},{"v":0,"d":"0.00"},40,126,25,79,"通过其独特的自然资源、乡土风情，发展形式多样、特色鲜明的少数民族文化产业、观光农业休闲产业，将改善么波冲文旅产业基础设施，实现特色民居和高山草甸农旅产业发展，促进群众增收。","否","增产增收、其他","是","否","否","是","邹天聪","15758116046","华宁县农业农村局","所梅早村委会","是","否"]
[211,"华宁县","通红甸乡","通红甸社区","产业发展—产业园（区）","2025年华宁县通红甸乡通红甸小组产业发展配套设施建设项目","2025年","新建","产业发展配套设施建设：产业道路建设3800㎡，支护工程 1800m³安全栏杆安装300m，太阳能路灯12盏，人行楼梯浇筑50㎡，排污沟300m，土方开挖15000m³，土方回填6000m³",{"v":100,"d":"100.00"},{"v":100,"d":"100.00"},{"v":100,"d":"100.00"},{"v":0,"d":"0.00"},135,529,11,33,"通过产业发展配套设施的完善，实现通红甸小组产业发展与文化、环境和风貌协调发展；同时改善人居环境，丰富生态文明建设，带动柑橘产业发展，带动民俗文化传承，有利于一二三产业的融合发展，激活农村发展的潜力和内生动力，实现通红甸小组社会、经济、生态、文化的跨越发展。","否","增产增收、其他","是","否","否","是","邹天聪","15758116046","华宁县农业农村局","通红甸社区","是","否"]
[212,"华宁县","通红甸乡","通红甸社区","产业发展—产业园（区）","2025年华宁县通红甸乡通红甸社区产业配套设施建设项目","2025年","新建","（1）管网铺设包含：DN200国标镀锌管铺设4800米（含法兰盘等）、DN200铜闸阀3个、零星砌体（埋石混凝土支座）30个、C25混凝土5.64立方米。（2）1000立方米水池一座包含：挖沟坑（槽）土方1706立方米、土方回填125立方米、余方弃置201.2立方米、现浇构件钢筋9.974吨、现浇构件钢筋4.307吨、现浇构件钢筋0.674吨、混凝土池壁、池底178立方米、垫层55.24立方米、砂浆找平层502.4平方米、楼（地）面涂膜防水502.4平方米，排水沟、溢水管、进水管5米、模板601.5平方米。（3）抽水设备包含：自平衡多级离心泵2台、变频启动柜2套、电力投资2台、抽水机房1间。",151.25,151.25,151.25,{"v":0,"d":"0.00"},410,1605,11,33,"水利工程的稳步发展，保障了广大农村人民群众生产用水，同时有效灌溉面积也大大提升，在干旱的季节活年份，满足群众农业生产对用水的需求，解决了社会发展的后顾之忧，推动社会进步，项目实施解决了广大农村人民群众生产用水难的问题。","否","增产增收、其他","是","否","否","是","邹天聪","15758116046","华宁县农业农村局","通红甸社区","是","否"]
[213,"华宁县","通红甸乡","山羊母村委会","产业发展—休闲农业与乡村旅游","2025年华宁县通红甸乡新发寨红色文化旅游配套基础设施建设项目","2025年","新建","活动场地修建：600平方米，场地碎石回填面层，场地土方回填，场地支护；人行步道修建：块石人行路面（路宽4米，长250米），路床混凝土路肩，排水沟，毛石堆砌挡墙，路段支护，舍身崖群雕支护，安全栏杆；卫生公厕一座：建设2男2女卫生间，占地面积19.35平方米，建筑面积19.35平方米。含主体结构，装饰装修工程，水电安装工程。",{"v":62,"d":"62.00"},{"v":62,"d":"62.00"},{"v":62,"d":"62.00"},{"v":0,"d":"0.00"},23,78,2,5,"通过传承红色文化，发挥典型示范，能有效带动群众了解革命历史，发挥艰苦奋斗精神致力于家乡建设，前来开展爱国教育的广大干部职工也能为村庄带来人流量，有利于村民开展配套服务，促进经济增收。","否","增产增收、其他","是","否","否","是","邹天聪","15758116046","农业农村乡村振兴局","山羊母村委会","是","否"]
[214,"华宁县","华溪镇","大新寨村委会大新寨小组","产业发展—小型农田水利设施建设","2025年华宁县华溪镇大新寨民族团结进步示范村建设项目","2025年","新建","1投资100万实施：（1）大新寨村民小组麦塘坝老路6寸管网一条1200米，计划投资30.68万元；咪唑坎两条线600米，计划投资12.84万元；二灯满一条线250米，计划投资5.35万元。（2）清水塘小组红木-嘻嘻冲一条线200米，计划投资4.28万元；红木一条线120米，计划投资3.21万元；关塘低一条线200米，计划投资4.28万元；茨坝一条线136米，计划投资2.91万元；红木-白木冲门一条线700米，计划投资14.98万元；（3）三家小组火坟-公路一条线900米，计划投资21.47万元。\n ",{"v":100,"d":"100.00"},{"v":100,"d":"100.00"},{"v":100,"d":"100.00"},{"v":0,"d":"0.00"},189,623,52,170,"项目实施后，群众生产条件将得到明显改善，生产效率显著提高，村容村貌将发生重大变化，群众经济收入将大幅提升，预计每年可为村集体增加收入20万，完善了田间管道改造，农村生产生活基础设施建设的不断完善，降低农业生产成本，增强经济发展后劲，村民生产更加方便，促进当地经济多元化发展，促进就业，实现各民族共同富裕。","否","带动农户发展生产增产增收","是","否","是","是","王悦潇",{"v":18887721799,"d":"18887721799.00"},"县民宗局","大新寨村委会大新寨小组","是","否"]
[215,"华宁县","青龙镇","老田村委会","乡村建设行动—农村供水保障设施建设","2025年华宁县青龙镇老田民族团结进步示范村建设项目","2025年","新建","实施产业发展道路及现代农业灌溉配套设施建设。1.产业道路:产业道路修缮820平方米，DN300混凝土管10米，护坡挡土墙103立方米。2.农产品集散场地:农产品集散场地修缮350平方米,照明设施8套。3.输水管网及配套设施:GBDN50热镀锌钢管7125米，GBDN25热镀锌钢管842米，DN25智能水表8套，DN20智能水表262套，镇支架、闸阀球阀等配套设施;4.储水设施:50立方米蓄水池1座。",{"v":99,"d":"99.00"},{"v":99,"d":"99.00"},{"v":99,"d":"99.00"},{"v":0,"d":"0.00"},325,1148,29,72,"老田村委会示范村建设工程能够优化农村发展的硬环境，为农村经济发展打下良好的基础和注入强劲动力。改善农村生产生活条件，促进本村农产业的发展，松棵小组村容村貌会收到前所未有的效果，村内环境会发生翻天覆地的变化。","否","不需要","是","否","是","是","盆少生",{"v":15912758355,"d":"15912758355.00"},"县民宗局","老田村委会","是","否"]
[216,"华宁县","盘溪镇","富民村委会","产业发展—市场建设和农村物流","2025年华宁县盘溪镇富民村委会白云庵小组民族团结进步示范村建设项目","2025年","新建","本项目主要围绕农产品交易市场建设，预计总投资111.4 万元。其中：投入81.4万元在富民村委会冯家坟交易市场建设；投资30万元新建宽2米，长3000米的产业道路，用于村小组柑橘产业道路建设，便于群众开展生产。",{"v":111.4,"d":"111.40"},{"v":111.4,"d":"111.40"},{"v":100,"d":"100.00"},{"v":11.4,"d":"11.40"},446,1364,28,88,"目规划实施后，改善群众生产运输条件、公共服务设施，改善生活环境，增加收入具有十分重要的意义。项目的实施不断完善村庄的基础设施建设，群众的生活环境得到改善，为经济社会的进一步发展创造了基本条件该项目的实施，同时方便当地群众农产品交易，解决农产品交易难的问题；收取卫生管理费增加村集体经济收入。全村受益人口446户，1364人（其中脱贫户28户，88人）。同时，道路修通后，可降低群众生产成本，增加群众收入。","否","带动农户发展生产增产增收—其他","是","否","是","否","李昀宸",{"v":18187733173,"d":"18187733173.00"},"县民宗局","富民村委会","是","否"]
[217,"华宁县","宁州街道","马鞍山社区","产业发展—农田水利设施建设项目","2025年华宁县宁州街道马鞍山社区普鲁味小组民族团结进步示范村建设项目","2025年","新建","实施产业发展配套设施及用房建设：1.水泵房设计建筑层数:一层，建筑面积14.39平方米占地面积14.39平方米，本项目建设基础及土建、安装部分。2.20立方米进水前池1座。3.300立方米高位水池1座。4.供水管制作、安装:含GBDN100热镀锌钢管(法兰连接，壁4.0m)2080m;挖沟槽土方;混凝土支墩、镇墩;闸阀;止回阀;正三通;阀门等内容。5.电动给水泵制作、安装:电动给水泵1台(参数为:电机功率:90kw，额定流量(m/h):46，额定扬程(m):350，转速(r/min):1450，效率(%):70;启动柜1台;配电箱1台;变压器1台(容量200KVA变压器)。",{"v":101.4,"d":"101.40"},{"v":101.4,"d":"101.40"},{"v":100,"d":"100.00"},{"v":1.4,"d":"1.40"},57,179,4,16,"该项目实施采取“社区村集体股份经济合作联合社+村小组股份经济合作社”的模式，采取社区和村小组共同进行入股合作发展，由社区争取衔接资金投入，村小组股份合作社负责日常管理维护，统一进行运营管理。项目实施，使该村57户179人直接受益，并辐射周边3个小组3千余亩农业生产用水，对于改善该村及周边村组生产、生活用水，发展农村经济、增加集体收入、助力乡村振兴有较大促进作用。","否","带动农户发展生产增产增收—其他","是","否","否","是","刘株含",{"v":18787629369,"d":"18787629369.00"},"县民宗局","马鞍山社区","是","否"]
[218,"华宁县","宁州街道","吗哒村委会","产业发展—农田水利设施建设项目","2025年华宁县宁州街道吗哒村委会亮木箐小组民族团结进步示范村建设项目","2025年","新建","投资102.9万元，在吗哒村委会亮木箐小组实施高原无公害蔬菜产业发展种植基地1800亩。投资61.7万元，建3.5米宽1500长的产业发展道路，便于群众开展生产；投资8万元，新建100方米的蓄水池一个，灌溉用水；投资5.8万元，新建DN50水管网1000米，灌溉总管；投资14.4万，新建钢架彩钢瓦蔬菜交易场所，240平方米；投资13万元，新建小冷库一座，蔬菜储备。安装杀虫灯20盏，单价1400元/盏。",{"v":102.9,"d":"102.90"},{"v":102.9,"d":"102.90"},{"v":100,"d":"100.00"},{"v":2.9,"d":"2.90"},140,358,5,16,"该项目的实施采取“村集体股份经济合作联合社+村小组股份经济合作社+农户”的联农带农模式，采取村委会和村小组集中对现有的1800亩高原蔬菜种植基地进行流转或者动员部分群众以现有菜地进行入股合作发展，由村股份经济合作联合社争取衔接资金投入，村小组股份合作社负责日常管理维护，收取灌溉、分拣等入股服务费壮大村级集体经济，村民采取到基地务工提高收入的方式，统一进行运营管理。\n","否","带动农户发展生产增产增收—其他","是","否","否","否","刘株含",{"v":18787629369,"d":"18787629369.00"},"县民宗局","吗哒村委会","是","否"]
[219,"华宁县","通红甸乡","小得勒村委会","产业发展—市场建设和农村物流","2025年华宁县通红甸乡小得勒村委会苟崩竜小组示范村建设项目","2025年","新建","本项目主要围绕产业发展配套设施建设、村庄基础设施建设两个方面进行，投资112.5万元，在小得勒村委会上、下苟崩竜村小组实施柑橘、蔬菜产业发展配套设施建设项目。其中：投资60万元，按照单价100元/平方米，新建3米宽，长2000米的产业发展道路，便于群众开展生产；投资41.2万元，建设村内主干道，含土方开挖320m³、土方回填415m³、场地平整462㎡、风化料垫层462㎡、c30混凝土365m³、毛石挡土墙271m³；投资11.3万元，建设其它配套设施，含排水沟185m、太阳能路灯15盏。",{"v":112.5,"d":"112.50"},{"v":112.5,"d":"112.50"},{"v":100,"d":"100.00"},{"v":12.5,"d":"12.50"},55,198,8,22,"项目规划实施后，改善群众生产运输条件、公共服务设施，改善生活环境，增加收入具有十分重要的意义。项目的实施不断完善村庄的基础设施建设，群众的生活环境得到改善，为经济社会的进一步发展创造了基本条件。同时，项目实施后，为小组300多亩柑桔和蔬菜交易搭建了交易平台，有效拓宽了市场销售渠道。","否","带动农户发展生产增产增收—其他","是","否","是","否","刘星明",{"v":18288905816,"d":"18288905816.00"},"县民宗局","小得勒村委会","是","否"]
[220,"华宁县","宁州街道","岔纳村委会","产业发展—农田水利设施建设项目","2025年华宁县宁州街道岔纳村委会小白厂小组民族团结进步示范村","2025年","新建","投资101.48万元，在岔纳村委会小白厂村小组实施产业设施项目，辐射青花、白花产业种植2000余亩。其中：一、提水泵工程：355350元。1、管材部分223250元。其中国标DN125mm镀锌管（配件+购置+运费）180000元，DN125普通闸阀2000元，焊接安装+搬运41250元；2、机电部分218600元。其中D型多级离心泵（D46-50×7）制安：（含水泵、90kw电机、底座、闸阀、止回阀、底阀）49000元，启动柜（软启动）9600元，配件43500元。\n二、库区浮船泵工程66100元。其中潜水泵（流量60m³/h)三、土建工程380656元。其中1、20m³进水前池25000元，2、抽水机房(4×4×2.8，含门窗、基础、粉刷、二次搬运等)32000元，3、500m³蓄水池323656元（土方开挖16470元，石方开挖15921元，土方回填5035元，M7.5浆砌石垫层18290元，C25钢筋砼底板37630元，C25钢筋砼侧墙25440元，C25钢筋砼支柱4505元，C25钢筋砼顶板19080元，模板27600元，钢筋制安114870元，池壁粉刷31815元，溢流管，清洗管、出水管及闸阀、爬梯等配套零件5000元，临时施工路2000元）。\n四、配水管网212650元。国标DN100mm镀锌管（配件+购置+运费）150000元，DN100普通闸3150元，焊接安装+搬运59500元。",101.48,101.48,{"v":100,"d":"100.00"},1.48,289,856,23,95,"该项目的实施采取“村集体股份经济合作联合社+村小组股份经济合作社+农户”的模式，采取村委会和村小组集中对现有的2000亩青花白花补足产业基础设施，壮大产业发展条件，群众生产条件将得到明显改善，灌溉耕地2500余亩，受益4个村民小组，群众289户856人，生产效率显著提高；由村委会负责日常管理维护，村民交费取水，村集体收到每年4万元；农业用水有效供给保障农业种植产量提高，每年增加群众收入700万元，实现农村经济全面发展，助推各族人民走向共同富裕。 ","否","带动农户发展生产增产增收—其他","是","否","否","是","刘株含",{"v":18787629369,"d":"18787629369.00"},"县民宗局","岔纳村委会","是","否"]
[221,"华宁县","盘溪镇","东升社区","产业发展—农产品仓储保鲜冷链基础设施建设","2025年华宁县盘溪镇东升社区小型柑桔零售市场建设项目","2025年","新建","本项目主要围绕冷库主体房屋建设，预计总投资45万元。其中：5万元用于回填基础；10万元用于场地硬化；20万元用于搭建轻钢结构；4万元用于购置自动卷帘门4道；6万元用于搭建铝制瓦顶。",34.98,34.98,{"v":30,"d":"30.00"},4.98,2090,4788,29,97,"项目规划实施后，改善群众生产条件、公共服务设施，改善生活环境，增加收入具有十分重要的意义。项目的实施不断完善社区的基础设施建设，群众的生活环境得到改善，为经济社会的进一步发展创造了基本条件。项目建成后可以带动约40人就业，提升社区农产品质量和价格，预计每年小组可以增加10万元的集体经济收入。","否","带动农户发展生产增产增收—其他","是","否","否","是","李昀宸",{"v":18187733173,"d":"18187733173.00"},"县民宗局","东升社区","是","是"]
[222,"华宁县","华溪镇","小寨村委会小寨村小组","其他—民族村寨旅游提升项目","2025年华宁县华溪镇小寨村委会朵洛田园综合体二期建设项目","2025年","新建","实施田园旅游配套设施建设：1.场地平整(968.58平方米)、树木种植55株、照明设施5套。2.游客观光步道290米，宽2.0米。3.果园节水灌溉塘:土方开挖988.4立方米、塘壁堆砌41.08立方米、铺设土工合成材料423.6平方米、红土回填塘底铺设105.9立方米、进出水管埋设，砖砌进出水池以及取水平台等。4.农特产品展示设施以及民族节庆活动配套设施:农特产品展销设施6套、农特产品展示设施1套、民族节庆活动配套设施1套。",{"v":29.7,"d":"29.70"},{"v":29.7,"d":"29.70"},{"v":29.7,"d":"29.70"},{"v":0,"d":"0.00"},580,2227,7,32,"该项目的实施通过科学管理和技术创新，提高果品的平均产量和优果率，增加果品总产量，从而提升经济效益，推动农业与旅游业的融合发展；增加游客接待量，项目的建设和运营需要一定的人力资源，可以通过招聘当地村民或提供培训机会，促进当地就业，提高村民收入；项目的建设和运营会带动周边餐饮、住宿、交通等相关产业的发展，形成产业联动效应，促进当地经济多元化发展；项目可以作为生态农业的展示窗口和推广基地，向游客普及生态农业知识和理念，推动生态农业的普及和发展。","否","带动农户发展生产增产增收—其他","是","否","是","是","王悦潇",{"v":18887721799,"d":"18887721799.00"},"县民宗局","小寨村委会小寨村小组","是","否"]
[223,"华宁县","宁州街道","城关社区","产业发展—加工业","2025年华宁县宁州街道城关社区民族手工业融合创新发展项目","2025年","新建","投资30万元，在城关社区食用菌产业基地内，实施农文旅产业发展项目，占地15亩。其中：投资5万元，用于项目前期场地建设；投资20万元，按照单价60元/平方米，新建农文旅融合农业基地及采摘园，打造研学特色品牌，把农业与观光农业、食用菌相结合；投资5万元，新建1.5米宽，长200米的文化展示路，安装路灯5盏，单价1200元/盏。",{"v":20,"d":"20.00"},{"v":20,"d":"20.00"},{"v":20,"d":"20.00"},{"v":0,"d":"0.00"},4434,13456,36,114,"城关社区坚持以铸牢中华民族共同体意识为主线，通过完善食用菌产业发展配套设施，依托前期产业发展服务中心，深入推进产学研一体化、旅游观光、科普教育等农文旅融合发展。该项目实施后，将有效带动全县、全市食用菌产业高效高质发展，盘活区域农业资源，实现项目地产业升级，将辐射受益城关社区4434户13456人，其中：脱贫户和三类监测对象36户114人。","否","带动农户发展生产增产增收—其他","是","否","否","是","刘株含",{"v":18787629369,"d":"18787629369.00"},"县民宗局","城关社区","是","否"]
[224,"华宁县","宁州街道","城关社区"," 产业发展—农业社会化服务","2025年宁州街道城关社区民族村寨旅游提升项目","2025年","新建","新建农文旅融合农业基地及采摘园大棚2620平方米,新建产业道路87.5米，改造园区主要道路257米，安装照明设施1套，安装采摘园区导览设施1套。",{"v":30,"d":"30.00"},{"v":30,"d":"30.00"},{"v":30,"d":"30.00"},{"v":0,"d":"0.00"},4434,13456,36,114,"城关社区坚持以“中华民族一家亲 同心共筑中国梦”为共同目标，通过扩大加工规模、畅通销售渠道来带动辖区内传统手工食品持续发展。项目实施后，可就地就近加工食用菌产业基地各类菌，发展壮大宁州街道辖区内传统手工食品，有效迎接消费升级、需求多样的新趋势、新变化，催生更广阔的食品市场。","否","带动农户发展生产增产增收—其他","是","否","否","是","刘株含",{"v":18787629369,"d":"18787629369.00"},"县民宗局","城关社区","是","否"]
[225,"华宁县","宁州街道","甸尾社区、茂地村村委会、葫芦冲村委会、岔纳村委会","产业发展—新型农村集体经济发展项目","华宁县2025年扶持新型农村集体经济发展项目（宁州街道甸尾、茂地村、葫芦冲村、岔纳村4个村（社区）智慧冷链物流园区—农副产品检测中心项目）","2025年","新建","项目土地类型属于工业规划用地;土地权属于甸尾社区西菜园居民小组集体所有。项目采取甸尾社区、茂地村、葫芦冲村、岔纳村资金入股模式实施。 项目拟建设规划用地3900平方米，预计总投资670万元，旨在打造集果蔬质量检测一体化服务中心，对进出园区的果蔬进行严格的质量检测，确保食品安全，为进出口报关报检打牢基础。\n具体建设内容包括：\n新建2000平米的果蔬检测中心；场地硬化1900平方米；水电设施建设；检测设备引进及搭建；检验人才引进等。",670,670,280,{"v":390,"d":"390.00"},4391,15196,203,663,"随着乡村数字经济快速发展，农民数字素养与技能不断提升，正深刻改变着农业生产方式、农村治理方式和农民生活方式。为坚持农业农村优先发展，确保增加农民收入、壮大村级集体经济收入，该项目以加快补齐产地冷藏保鲜设施短板，增强农产品产地仓储保鲜、商品化处理能力为目标，着力打造集果蔬质量检测一体化的多功能服务中心，建成街道、村、组三级冷链物流仓储网络，实现保鲜“果盘子”“菜篮子”。同时，以“党建引领 强村共富”为抓手，4个村抱团入股、融合共赢，充分发挥联农带农作用，带动村集体经济增收、实现村民家门口就业。","否","促进农户共享资产收益增收—入股经营获取收益及分红","是","否","否","是","杨梦娟",18214180574,"华宁县委组织部","甸尾社区、茂地村村委会、葫芦冲村委会、岔纳村委会","是","否"]
[226,"华宁县","盘溪镇","大寨社区、东升社区、下街社区、方那社区","产业发展—新型农村集体经济发展项目","华宁县2025年扶持新型农村集体经济发展项目（盘溪镇下街社区等4个社区农业综合市场建设项目）","2025年","新建","（1）280万元项目资金。新建两层框架结构综合农产品交易市场一个，结构形式为框架结构，建筑面积1596.68㎡。含主体结构及建筑砌体、主体给排水工程等，概算投资280万元。\n（2）150万元下街社区自筹资金。①场地平整：场地土方开挖1256.5m³，场地土方回填895.6m³，概算投资32万元。②室外排水排污设施：污水管网DN600混凝土管230m，Φ1200检查井13座，污水收集池1座、雨水管网DN800混凝土管240m，Φ1200检查井13座，雨水口39座，排水沟180m，概算投资82万元。③室外给水设施：DN150镀锌钢管给水管250m，闸阀井5座，室外消防设施1项，概算投资36万元。",430,430,280,{"v":150,"d":"150.00"},6661,15679,99,334,"盘溪镇居住人口密集，随着华宁县“一县两城”的发展及盘溪绿色化工园区的落地，将迎来人口的爆发期。当前盘溪镇共有2个市场，其中盘溪农贸市场位于集镇中心，为临时建造无法满足辖区群众需求，下街生猪市场位于集镇南方，市场面积小，承载力无法适应后续发展需求。盘溪镇计划联合下街社区、方那社区、大寨社区、东升社区4个社区争取上级财政衔接资金，盘活下街社区低效集体自有土地，建设1个综合农业综合市场。项目建成后与现有市场功能定位形成互补，将改变盘溪镇农副产品经营销售规模小，经营方式单一的现状，能辐射带动周边村（社区）精品柑桔、牛羊肉等农产品发展，规范农产品收购价格，为居民提供农产品交易场所，缓解集镇区农产品交易以路为市、交通堵塞的问题，形成集镇区新商圈，促进镇域经济发展，助推基层社会治理，提升群众获得感、幸福感。","否","带动农户发展生产增产增收—其他","是","否","否","是","孙宁彬",15126091792,"华宁县委组织部","大寨社区、东升社区、下街社区、方那社区","是","是"]
[227,"华宁县","华溪镇","小寨村委会","产业发展—新型农村集体经济发展项目","华宁县2025年扶持新型农村集体经济发展项目（华溪镇小寨村委会农旅融合配套设施建设项目（二期））","2025年","改（扩）建","户外采摘园配套设施建设（采摘园15亩）",{"v":70,"d":"70.00"},{"v":70,"d":"70.00"},{"v":70,"d":"70.00"},{"v":0,"d":"0.00"},586,2073,127,462,"通过华溪镇小寨村委会农旅融合配套设施建设项目，能极大促进农旅融合乡村休闲农业发展，推动乡村产业兴旺，壮大产业规模，立足小寨村独特的地理优势，因地制宜，培育壮大田园综合体等一批新型休闲产业，打造出有特色、更宜居、更富有的田园乡村新面貌，实现乡村持续发展和农业持续增收的良好局面。","否","带动农户发展生产增产增收—其他","是","否","是","是","王悦潇",{"v":18887721799,"d":"18887721799.00"},"华宁县委组织部","小寨村委会","否","否"]
[228,"华宁县","通红甸乡","大婆左","产业发展—新型农村集体经济发展项目","华宁县2025年扶持新型农村集体经济发展项目（大婆左农产品交易服务中心建设项目）","2025年","新建","1.土方开挖8598m³；2.土方回填110m³；3.场地平整2100㎡；4.钢架结构管理用房600㎡；5.挡浇筑160m³；6.排水沟开挖浇筑120m。",{"v":70,"d":"70.00"},{"v":70,"d":"70.00"},{"v":70,"d":"70.00"},{"v":0,"d":"0.00"},718,2475,26,95,"项目建成后补齐大婆左村委会农业配套设施设备的短板，方便群众进行农产品交易，能辐射带动大婆左村委会、小得勒村委会、大龙树村委会、通红甸社区共计1715户6515人农产品种植效率，提高产品优质率，发展新型农业，提供种植经验交流场所。","否","带动农户发展生产增产增收-其他","是","否","否","是","李海燕",{"v":13187728866,"d":"13187728866.00"},"华宁县委组织部","大婆左","否","否"]
[229,"华宁县","全县",null,"就业项目—技能培训","2025年华宁县脱贫劳动力“人人持证、技能致富”项目","2025年","新建","培训脱贫人口200人，提升其职业技能水平",{"v":44,"d":"44.00"},{"v":44,"d":"44.00"},{"v":44,"d":"44.00"},{"v":0,"d":"0.00"},200,200,200,200,"华宁县脱贫劳动力“人人持证、技能致富”培训200人，平均每人补助1600元，计32万元，生活费补助60元/人/天，平均10天/人，计12万元，合计44万元。","是","吸纳农村劳动力稳定就业增收—其他","不涉及","否","否","否","唐全","0877-5020606","华宁县人力资源和社会保障局","不形成资产","是","否"]
[230,"华宁县","全县",null,"就业项目—交通费补助","2025年华宁县省内跨州市务工交通补助项目","2025年","新建","脱贫劳动力省内跨州市务工满3个月的，每人每年奖补500元，补助200人，促进就业创业和增收",{"v":10,"d":"10.00"},{"v":10,"d":"10.00"},{"v":10,"d":"10.00"},{"v":0,"d":"0.00"},200,200,200,200,"省内跨州市务工补助200人，每人补助500元，计划10万元。","是","吸纳农村劳动力稳定就业增收—其他","不涉及","否","否","否","李玲","0877-5011042","华宁县农业农村局","不形成资产","是","否"]
[231,"华宁县","全县",null,"就业项目—交通费补助","2025年华宁县省外务工交通补助项目","2025年","新建","脱贫劳动力外务工满3个月的，每人每年奖补1000元，补助300人，促进就业创业和增收",{"v":40,"d":"40.00"},{"v":40,"d":"40.00"},{"v":40,"d":"40.00"},{"v":0,"d":"0.00"},190,400,190,400,"外出务工补贴300人，每人补助1000元，计划资金30万元。","是","吸纳农村劳动力稳定就业增收—其他","不涉及","否","否","否","代恩德","0877-5018806","华宁县人力资源和社会保障局","不形成资产","是","否"]
[232,"华宁县",null,null,"就业项目—公益性岗位","2025年新开发农村公益性岗位项目","2025年","新建","全县新开发农村公益性岗位169人。工资每月800元/人，工资合计：110.72万元。",110.72,110.72,110.72,{"v":0,"d":"0.00"},169,169,169,169,"促进脱贫户和监测对象增收","是","不需要","不涉及","否","否","否","李玲","0877-5011042","华宁县农业农村局","不形成资产","是","否"]
[233,"华宁县",null,null,"巩固三保障成果—享受“雨露计划”职业教育补助","2025年度雨露计划项目","2025年","新建","发放2025年度雨露计划项目264人。",{"v":172.6,"d":"172.60"},{"v":172.6,"d":"172.60"},{"v":172.6,"d":"172.60"},{"v":0,"d":"0.00"},264,264,264,264,"接受中专、职业教育脱贫户增收","是","不需要","不涉及","否","否","否","李玲","0877-5011042","华宁县农业农村局","不形成资产","是","否"]
[234,"华宁县",null,null,"产业发展—小额贷款贴息","2025年小额信贷贴息项目","2025年","新建","发放2025年小额信贷4500万元。",{"v":158,"d":"158.00"},{"v":158,"d":"158.00"},{"v":158,"d":"158.00"},{"v":0,"d":"0.00"},900,900,900,900,"促进每户贷款贫困户增收","是","不需要","不涉及","否","否","否","李玲","0877-5011042","华宁县农业农村局","不形成资产","是","否"]
[235,"华宁县",null,null,"项目管理费—项目管理费","2025年项目管理费","2025年","新建","中央按1%提取，省级按5%提取。",66.85,66.85,66.85,{"v":0,"d":"0.00"},"__","__","__","__","为稳步推进扶贫项目建设、同步拨付扶贫资金提供有力补充","否","不需要","不涉及","否","否","否","李玲","0877-5011042","华宁县农业农村局","不形成资产","是","否"]
[236,"华宁县","宁州街道","暮车村","产业发展—小型农田水利设施建设","2025年华宁县宁州街道柒树林小组小铺子易地扶贫搬迁安置区2025年产业发展示范项目","2025年","新建","新建机耕路4公里，平均宽度4米，包含土方开挖、回填、夯实；新建蓄水池2座，包含100立方米蓄水池1座，50立方米蓄水池1座；养殖小区配套设施完善1项，包含道路建设170米，平均宽度4米，DN300双壁波纹污水管170米，检查井15座，化粪池1座。",{"v":50,"d":"50.00"},{"v":50,"d":"50.00"},{"v":50,"d":"50.00"},{"v":0,"d":"0.00"},{"v":44,"d":"44.00"},{"v":144,"d":"144.00"},{"v":2,"d":"2.00"},{"v":2,"d":"2.00"},"进一步完善易地扶贫安置区产业设施，壮大安置区产业条件，持续推动安置区群众稳定增收。","否","吸纳农村劳动力参与项目建设—吸纳就业","是","是","否","否","赵家会",13988497089,"华宁县发改局","暮车村","是","是"]
[237,"华宁县","青龙镇","矣甫村委会大黄草岭","乡村建设行动—村容村貌提升","2025年华宁县青龙镇矣甫村委会大黄草岭小组人居环境提升改造建设项目","2025年","新建","道路建设（3477.50 ㎡）、农作物晾晒场平整硬化（1466.39 ㎡）、埋设排水管（DN400 混凝土管 104m）、新建排水沟（350m）、安全栏杆安装（170m）、安装基础照明设施（30 套）",100.61,100.61,{"v":100,"d":"100.00"},0.61,27,101,0,0,"改善大黄草岭小组生产生活条件，促进本村农产业的发展，小组村容村貌会产生明显改观，村内环境会发生显著变化。","否","不需要","不涉及","否","否","否","王光成",15087700975,"华宁县农业农村局","矣甫村委会大黄草岭","是","是"]
[238,"华宁县","盘溪镇","盘江社区","产业发展—品牌打造和展销平台","2025 年华宁县盘溪镇盘江社区认一村多业态产业融合建设项目","2025年","新建","（一）农特产品物流服务区 1 项：建筑占地面积405.30 平方米，建筑面积 405.30 平方米，结构形式为钢框架结构(主体结构及建筑砌体、门、窗、照明工程、给排水工程)；（二）农特产品交易区 1 项：建筑占地面积 835.87 平方米，建筑面积835.87 平方米，结构形式为钢结构(主体结构、照明工程、给排水工程)；（三）配套附属设施 1 项：DN300 双壁波纹管埋设 81.67米含路面拆除、路面恢复、管道基础土方开挖、管道回填方、余方弃置、管道中粗砂回填、污水检查井 5 座、排水沟 455 米、污水收集池 3 座，隔油池 1 座等。",{"v":197,"d":"197.00"},{"v":197,"d":"197.00"},{"v":197,"d":"197.00"},{"v":0,"d":"0.00"},226,743,0,0,"通过建设商贸服务中心1幢及附属配套设施盘活盘江社区闲置资产，完善盘江认一村产业服务基础设施，壮大村集体经济，带动群众发展增收。","否","带动农户发展生产增产增收—其他","是","否","否","是","代迪","0877-6187105","华宁县农业农村局","盘江社区","是","是"]
[239,"华宁县","华溪镇","黑牛白村委会","产业发展—其他","2025年华宁县华溪镇黑牛白村委会产业发展配套设施建设项目","2025年","改（扩）建","1.民旺柑橘交易市场基础设施配套提升：3200㎡C25场地硬化、C25支护工程（A段顶宽0.4m，底宽0.8m，高1.5m，长80m；B段顶宽0.3m，底宽0.3m，均高0.7m，长80m）\n2.黑牛白、小河边小组生产用水管道铺设DN100热镀锌钢管4.5km\n3.小总多小组基础设施建设：C20支护工程（长80米，高3米、（顶宽1米、底宽2米））、C25混凝土路面（长280m，宽4米）、DN400排污管铺设320m、17阶C25浇混凝土台阶浇筑\n4.黑牛白小组人饮工程：取水池改扩建（底面积50㎡，增高2m）、20㎡机房、DN50镀锌钢管铺设长度1km、380V动力电路架设（长300米，含线杆）、容量50m³抽水池\n5.大总多小组人饮工程：DN50镀锌钢管铺设长度1km，20m³机房、380V动力电路架设1km",{"v":147,"d":"147.00"},{"v":147,"d":"147.00"},{"v":147,"d":"147.00"},{"v":0,"d":"0.00"},285,799,85,302,"通过项目实施，改善群众生产运输条件，提高农业生产效率，提升公共服务设施，完善村内生产生活基础设施，保障生产生活用水，提高群众生活质量，增强农业经济发展后劲，带动农村经济可持续发展。","否","带动农户发展生产增产增收—其他","是","否","否","是","杨宏敏",15912756100,"县农业农村局","黑牛白村委会","是","是"]
[240,"华宁县",null,null,"项目管理费—项目管理费","2025年华宁县项目管理费（民宗局少数民族发展方向）","2025年","新建","中央衔接资金按1%计提管理费，用于项目规划设计、评审、监理、招标、审计等。",{"v":2.3,"d":"2.30"},{"v":2.3,"d":"2.30"},{"v":2.3,"d":"2.30"},{"v":0,"d":"0.00"},"__","__","__","__","专门用于与项目前期准备和实施相关的规划编制、项目评估、检查验收、绩效评价、成果宣传、档案管理、项目公告公示、资金监管经费开支。","否","不需要","不涉及","否","否","否","杨艳",18687782833,"华宁县民宗局","不形成资产","是","是"]
[241,"华宁县","青龙镇","青龙社区对门地小组\n中村村委会中村小组\n大母公竜村委会上营小组\n山岐村委会龙潭小组\n山岐村委会矣白甸小组\n革勒村委会水井湾小组","乡村建设行动—村容村貌提升","华宁县青龙镇2025年水毁受灾应急修复项目","2025年","新建","生产生活渡河防护设施建设90米\n清理210立方米土石方、新建支护工程59.76立方米、新建抽水房10.24平方米\n新建支护工程80.08立方米、混凝土路面：9.28平方米\n新建支护工程31.20立方米\n新建新建支护工程68.17立方米\n新建混凝土路面277.00平方米",{"v":31.5,"d":"31.50"},{"v":31.5,"d":"31.50"},{"v":31.5,"d":"31.50"},{"v":0,"d":"0.00"},572,2073,85,249,"完善因暴雨天气损毁的道路、水利等基础设施，消除安全隐患，提高群众生产生活便利度。","否","带动农户发展生产增产增收—其他","是","否","否","否","普志辉","0877-8886323","华宁县农业农村局","青龙社区对门地小组\n中村村委会中村小组\n大母公竜村委会上营小组\n山岐村委会龙潭小组\n山岐村委会矣白甸小组\n革勒村委会水井湾小组","是","是"]
[242,"华宁县","盘溪镇","大寨社区福照庄村","产业发展—其他","2025年华宁县农产品进出口集中查检配套设施项目","2025年","新建","农产品进出口冷库1项：占地面积454.51平方米，建筑面积454.51平方米，结构形式为钢结构(主体结构及围护结构、门、照明工程)，建筑高度7米，容量2636.4m³",{"v":50,"d":"50.00"},{"v":50,"d":"50.00"},{"v":50,"d":"50.00"},{"v":0,"d":"0.00"},286,936,0,0,"通过完善农产品进出口集中查检配套设施，通过整合中央财政衔接资金与地方资源，补齐柑橘产业链短板，推动产业升级与农户增收，助力盘溪镇打造“滇东南柑橘产业高地”","否","房屋租赁获得租金-就业带动增收","是","否","否","是","黄俊杰","0877-6187105","县农业农村局","大寨社区福照庄村","是","是"]
[243,"易门县","绿汁镇","小绿汁社区","乡村建设行动—农村污水治理","绿汁镇小绿汁民族团结示范社区建设项目","2025年","新建","投资30万元，在绿汁镇小绿汁社区实施青年路南侧污水治理工程。其中：投资6万元，用于混凝土路面破除及修复400㎡；投资9万元，铺设污水主管500m；投资8万元，铺设污水支管1000m；投资4万元，新建25m³化粪池1座；投资2万元，新建砖砌检查井10座³；投资1万元，新建3m³玻璃钢化粪池3个。",{"v":30,"d":"30.00"},{"v":30,"d":"30.00"},{"v":30,"d":"30.00"},{"v":0,"d":"0.00"},8602,3582,0,0,"该项目的实施，受益群众502户680人，能明显改善小绿汁社区居民生活区的居住环境，补齐完善居民生活区配套功能设施，提高污水收集处理率和污水治理率。","否","不需要","是","否","否","否","李汝庆",13908899690,"易门县民宗局","小绿汁社区","是","否"]
[244,"易门县","绿汁镇","木厂村","乡村建设行动—农村供水保障设施建设","木厂村委会人畜饮水建设项目","2025年","新建","1.新建压力水池2个,其中10立方米1个，2立方米1个；2.热镀锌钢管（DN40）供水管道架设2500米；3.新建切水墙等配套设施。",{"v":20,"d":"20.00"},{"v":20,"d":"20.00"},{"v":20,"d":"20.00"},{"v":0,"d":"0.00"},190,597,4,17,"通过项目建设，解决山田、大干田、小干田、坡脚四个自然村190余户群众在冬春季节季节性缺水的问题。","否","不需要","是","否","是","是","李汝庆",13908899690,"县农业农村局","木厂村","是","否"]
[245,"易门县","绿汁镇","绿汁村","产业发展—休闲农业与乡村旅游","绿汁村委会丫口村民族村寨旅游提升项目","2025年","新建","1.污水收纳处理：混凝土路面破除及修复200㎡；浇筑排水沟100m³，铺设污水主管300m；铺设污水支管1000m，新建砖砌检查井20座。",{"v":30,"d":"30.00"},{"v":30,"d":"30.00"},{"v":30,"d":"30.00"},{"v":0,"d":"0.00"},77,275,null,null,"通过项目实施，改善垭口村人居环境，提升村庄整体形象，统筹兼顾，处理好功能与品位、人文与自然的关系，建设成规划布局科学合理、公共服务功能完善、基础设施健全、人居环境优美、村强民富和谐、宜居宜业的美丽乡村。","否","就业务工、带动生产","是","否","否","否","李汝庆",13908899690,"易门县民宗局","绿汁村","是","是"]
[246,"易门县","绿汁镇","绿汁村","产业发展—市场建设和农村物流","绿汁镇农贸市场提档升级壮大集体经济项目","2025年","新建","场地平整2152㎡，C25混凝土场地硬化2118㎡，环氧地坪1526.75㎡，M7.5砂浆支砌毛石挡墙198m³，新建钢结构大棚1526.75㎡及售货台砌筑、水电安装，新建管理房3间，功能房12间，钢制货架180套，给排水工程1项，监控系统1套，消防系统1套，洗手台2套，市场管理制度牌6套。",{"v":200,"d":"200.00"},{"v":200,"d":"200.00"},{"v":200,"d":"200.00"},{"v":0,"d":"0.00"},774,2927,15,52,"通过项目实施，改善农贸市场卫生环境水平，提升镇容镇貌，农贸市场将成为扶持壮大村（社区）集体经济的重要载体，保持绿汁镇较快的经济发展速度，区域综合竞争力加强。","否","资产入股、帮助产销对接、收益分红","是","否","否","是","李汝庆",13908899690,"县农业农村局、县委组织部","绿汁村","是","是"]
[247,"易门县","十街乡","张所村","产业发展—种植业基地","十街彝族乡张所村50亩设施农业种植示范基地建设项目","2025年","新建","1.高标准设施大棚10个共计3000平方米、2.智能化供水系统1套、3.活动板房735平方米、4.土工膜237平方米、5.碎石场地140平方米。引进第三方企业共同投资经营，收益共同分配。",{"v":120,"d":"120.00"},{"v":120,"d":"120.00"},{"v":120,"d":"120.00"},{"v":0,"d":"0.00"},447,1615,19,57,"壮大扶持村级集体经济发展，通过项目的实施，一是促进流通，活跃农村市场，拓宽增收渠道，增加农民收入，满足村民物质和精神文化生活水平；二是充分发挥资源优势，突出特色，带动项目村二、三产业的发展，促进城乡经济社会稳步协调发展，让农民享受到与城镇居民同样的文明和实惠，使整个城乡经济社会全面、协调、可持续发展。","否","带动农户发展生产增产增收—其他","是","是","是","是","赵卿",15825126995,"易门县农业农村局","张所村","是","否"]
[248,"易门县","十街乡","十街村","乡村建设行动—农村污水治理","十街村委会建大、汇川、新城村人居环境整治项目","2025年","新建","1.污水收纳处理：埋设DN200pvc排污管1150米，埋设DN110pvc排污管3100米，新建排污管道检查井105个，新建砖砌化粪池7个，现浇C25沟帮、沟盖板等混凝土155立方米。2.人居环境提升：清水塘淤泥1052.3立方米，新建烤房群遮雨棚380㎡，人饮管网提升改造940米等。",{"v":106,"d":"106.00"},{"v":106,"d":"106.00"},{"v":106,"d":"106.00"},{"v":0,"d":"0.00"},233,800,16,54,"通过一系列污水设施的建设，带来项目地环境质量的极大提高和改善，极大提质量高村内生态环境","否","不需要","是","否","否","否","赵卿",15825126995,"易门县农业农村局","十街村","是","是"]
[249,"易门县","浦贝乡","浦贝社区","产业发展—种植业基地","浦贝乡浦贝社区花卉种植示范园建设项目","2025年","新建","投入衔接资金200万元：1.建设6660平方米主体大棚；2、安装种植槽；3、安装滴管及其他配套设施。投入其他资金1100万元建设27亩大棚及其配套设施。",{"v":1300,"d":"1300.00"},{"v":1300,"d":"1300.00"},{"v":100,"d":"100.00"},{"v":1200,"d":"1200.00"},1634,4833,67,193,"通过项目的实施，带动玫瑰花产业发展，促进土地流转，带动当地务工就业，增加群众收入。。","否","促进农户共享资产收益增收—土地流转获得租金","是","否","是","是","李磊、杨喻越","0877-4751008","县乡村振兴局","浦贝社区","是","否"]
[250,"易门县","浦贝乡","水塘村","产业发展—小型农田水利设施建设","浦贝彝族乡水塘村和木箐组790亩烤烟、豌豆种植区灌溉设施建设工程","2025年","新建","1.修复1000m³灌溉水池1个，修复500m³水池1个，扩改建200m³灌溉水池为450m³；2.安装灌溉管网7230m，其中DN100镀锌钢管860m，DN80镀锌钢管3172m，DN50镀锌钢管1198m，DN20镀锌钢管2000m。投资衔接资金110.28万元。智能水表安装80套，群众自筹3.6万元解决。",113.88,113.88,110.28,{"v":3.6,"d":"3.60"},43,175,2,7,"通过修复3个灌溉池、新建灌溉管网，解决长期以来灌溉缺水的问题，提高农作物产量，调动农户发展种植业积极性，实现增收致富。","否","带动农户发展生产增产增收—其他","是","否","是","否","赵学保、杨喻越","0877-4751008","县乡村振兴局","水塘村","是","否"]
[251,"易门县","浦贝乡","阿姑村","乡村建设行动—农村供水保障设施建设","阿姑村委会赖家村人饮安全巩固提升项目","2025年","新建","阿姑村委会赖家村新建200m³蓄水池一座。",{"v":13,"d":"13.00"},{"v":13,"d":"13.00"},{"v":13,"d":"13.00"},{"v":0,"d":"0.00"},32,96,1,3,"通过实施阿姑村委会赖家村人饮安全巩固提升项目，提升供水保证率，减少干旱季节或用水高峰期的缺水问题，确保村民全年稳定用水。","否","不需要","是","否","否","否","李磊、杨喻越","0877-4751008","易门县农业农村局","阿姑村","是","是"]
[252,"易门县","龙泉街道","江口社区","乡村建设行动—农村污水治理","龙泉街道江口社区上营自然村农村生活污水治理项目","2025年","新建","1.埋设PE110排污管850米，接通至现有排污主管（含切缝、破拆路面、挖方、填砂、路面恢复）；2.砖砌排水沟150米，盖板规格500*500*80；3.砖砌化粪池3座，容积1.2立方米；4.砖砌隔油池2座；5.800*800*800沉沙井5座；6.DN100雨水塑料管架设300米，Φ200PVC塑料排污管埋设100米；7.自来水管改造1项。",{"v":35,"d":"35.00"},{"v":35,"d":"35.00"},{"v":35,"d":"35.00"},{"v":0,"d":"0.00"},182,552,11,40,"通过一系列基础设施的建设和改造，对江口社区上营自然村进行农村生活污水治理，全面改善上营自然村的生活污水治理状况，提升居民生活质量，保护当地水资源，促进可持续发展。","否","不需要","是","否","不涉及","否","苏海涛","15208779760","易门县农业农村局","江口社区","是","否"]
[253,"易门县","龙泉街道","韩所社区","乡村建设行动—村容村貌提升","龙泉街道韩所社区西海自然村农村生活污水治理项目","2025年","新建","1.架设DN315*4毫米排污螺旋焊管750米，支砌混凝土支墩60.48立方米；\n2.新建占地120平方米废旧物资分类回收站1座；\n3.块料道路硬化100平方米；\n4.村内现有破损公共设施改造1项。",{"v":60,"d":"60.00"},{"v":60,"d":"60.00"},{"v":60,"d":"60.00"},{"v":0,"d":"0.00"},326,1190,1,6,"通过改造污水排放设施，有效收集村内生活污水，减少污水无序排放，防止水体污染，保护农村生态环境。通过分类回收废旧物资，可以减少垃圾产生量，降低环境污染，同时实现资源的再利用。改善村内道路条件和提升公共设施水平，全面提升农村环境质量和居民生活质量，推动农村可持续发展。","否","不需要","是","否","不涉及","否","苏海涛","15208779760","易门县农业农村局","韩所社区","是","否"]
[254,"易门县","龙泉街道","梅营社区","产业发展—种植业基地","易门县龙泉街道梅营社区蔬菜分拣大棚建设项目","2025年","新建","1.新建占地1656平方米蔬菜分拣包装大棚1项；2.新建棚区内道路1284.09平方米；3.配套供电工程1项；4.配套消防工程1项。",{"v":80,"d":"80.00"},{"v":80,"d":"80.00"},{"v":80,"d":"80.00"},{"v":0,"d":"0.00"},1128,4100,6,19,"通过提升蔬菜分拣与包装效率、改善棚区交通与物流条件、确保设施运行安全稳定以及促进蔬菜产业现代化发展，提升蔬菜产业的竞争力和可持续发展能力。","否","带动农户发展生产增产增收—其他","是","否","否","是","苏海涛","15208779760","易门县农业农村局","梅营社区","是","否"]
[255,"易门县","龙泉街道","曾所社区","产业发展—加工业","易门县龙泉街道曾所社区下江口壮大村集体经济项目","2025年","新建","1.新建下江口大龙潭拦水坝1座；2. 新建占地30平方米二级提水泵房1座，配套抽水泵、电路工程；3.安装DN100×4.0内外涂塑钢管280米，DN150×4.5内外涂塑钢管300米，安装DN200×6内外涂塑钢管2100米，配套法兰片、阀门；4.新建300立方米蓄水池1座。",{"v":100,"d":"100.00"},{"v":100,"d":"100.00"},{"v":100,"d":"100.00"},{"v":0,"d":"0.00"},1122,4612,7,21,"通过建设一套完善的水资源拦蓄、提升、输送和储存系统，以满足特定区域的灌溉、供水等需求，为当地居民的生产和生活提供稳定的水资源保障。通过对水资源的有效管理和利用，促进当地农业和经济的发展。","否","促进农户共享资产收益增收—其他","是","否","否","是","苏海涛","15208779760","易门县农业农村局","曾所社区","是","否"]
[256,"易门县","铜厂乡","西山村","乡村建设行动—村容村貌提升","铜厂乡西山村委会上西山人居环境整治项目","2025年","新建","1.DN200 PVC污水管安装1150m，DN110 PVC污水管安装3000m，排水沟浇筑500m，建设检查井、沉砂池，氧化塘1个；2.村内道路、场地硬化1000㎡，挡墙支砌1053m³；3.建设防洪、防涝设施5处。",{"v":100,"d":"100.00"},{"v":100,"d":"100.00"},{"v":100,"d":"100.00"},{"v":0,"d":"0.00"},172,600,44,178,"通过项目实施，项目村所在地基础设施将会有很大改变，项目村发展后续逐步得到增强，逐步实现该村人民生产发展、经济结构优化、效益提高，财政状况好转，农民富裕的经济发展态势","否","不需要","是","否","否","否","马国祥",13988463605,"易门县农业农村局","西山村","是","否"]
[257,"易门县","铜厂乡","米苴村委会","乡村建设行动—农村污水治理","铜厂乡米苴村委会沙滩组民族团结进步示范村项目","2025年","新建","投资100万元，在铜厂乡米苴村委会沙滩小组实施农村生活污水治理工程。其中：投资60万元新建截污管网DN200 PVC管2000m、DN110 PVC管1000m、人工土方回填260.64m³；投资20万元修建C20砼沟底128m³、检查井（井深0.5）80座、φ700砖砌检查井（井深0.9）80座、砖砌户用清扫池（0.5*0.5*0.15）63座；投资5万元新建砖砌化粪池（25m³）2座；投资10万元新建氧化塘2座；投资5万元硬化C25砼道路及场地（厚度200mm）500㎡等农村生活污水收集处理设施。",{"v":100,"d":"100.00"},{"v":100,"d":"100.00"},{"v":100,"d":"100.00"},{"v":0,"d":"0.00"},112,482,44,156,"该项目的实施，受益群众112户482人，其中：脱贫人口及监测对象44户156人。能明显改善米苴村委会沙滩小组的农民群众生产生活条件：一是群众生产生活更加便利，村容村貌将发生明显变化，提高污水收集处理率和污水治理率；二是群众获得感进一步提高，改善项目实施地的运输条件，提高生产效率，减轻生产负担，增加群众收入，提升群众幸福感和获得感；三是社会更加和谐稳定。随着基础设施的不断完善，群众的精神文化生活不断丰富，人的精神面貌将会发生明显变化，基层组织的凝聚力和战斗力将进一步增强。","否","不需要","是","否","否","否","刘忻",15087718182,"易门县民宗局","米苴村委会","是","否"]
[258,"易门县","铜厂乡","米苴村","乡村建设行动—农村道路建设（通村路、通户路、小型桥梁等）","米苴村委会村内道路硬化","2025年","新建","岭岗村道路硬化350m，排水沟浇筑及涵管支砌，挡土墙90m³。",{"v":33,"d":"33.00"},{"v":33,"d":"33.00"},{"v":33,"d":"33.00"},{"v":0,"d":"0.00"},29,107,9,30,"通过项目实施，项目村所在地基础设施将会有很大改变，项目村发展后续逐步得到增强，逐步实现该村人民生产发展、经济结构优化、效益提高，财政状况好转，农民富裕的经济发展态势","否","不需要","是","否","否","否","马国祥",13988463608,"易门县农业农村局","米苴村","是","否"]
[259,"易门县","铜厂乡","芭蕉箐村","产业发展—种植业基地","可视化智能食用菌种植仓建设项目","2025年","新建","建设食用菌种植仓7个，包含底座、仓体、种植架、装卸设备，配套控温、控湿、控光系统，配套智能化监测控制设备。",{"v":200,"d":"200.00"},{"v":200,"d":"200.00"},{"v":200,"d":"200.00"},{"v":0,"d":"0.00"},457,1524,149,582,"通过项目建设，增加碧多、芭蕉箐、沙衣、西山4个脱贫村村集体收入。","否","带动生产、收益分红","是","否","否","是","马国祥",13988463602,"易门县农业农村局","芭蕉箐村","是","否"]
[260,"易门县","铜厂乡","碧多村","产业发展—种植业基地","碧多村产业路建设","2025年","新建","罗亩箐村后600亩耕地产业路建设，长度3200米，宽度4米。",{"v":30,"d":"30.00"},{"v":30,"d":"30.00"},{"v":30,"d":"30.00"},{"v":0,"d":"0.00"},198,676,69,250,"通过实施产业路建设项目，解决了项目区道路问题，改善了土地利用格局，促进土地耕种规模化，集约化发展，提高了土地利用率。","否","带动生产、收益分红","是","否","否","否","马国祥",13988463602,"易门县农业农村局","碧多村","是","是"]
[261,"易门县","铜厂乡","股水村","产业发展—市场建设和农村物流","股水村壮大集体经济项目","2025年","新建","①场地工程：耕作层清运1554.29㎡，C25砼地坪（厚度：0.2m）2130㎡，实心砖砌水沟（含盖板）280m，地磅秤120T安装1台，成品栅栏（高1.8m）540㎡；②农用物资交易区及餐饮区建设442.63㎡；③钢结构交易大棚工程建设865.20㎡；④新建公厕1座；⑤新建垃圾收集房1座。",{"v":146,"d":"146.00"},{"v":146,"d":"146.00"},{"v":146,"d":"146.00"},{"v":0,"d":"0.00"},657,2194,194,720,"通过项目实施，项目村所在地基础设施将会有很大改变，项目村发展后续逐步得到增强，逐步实现该村生产发展、经济结构优化、效益提高，财政状况好转，农民富裕的经济发展态势；提升了当地群众的生产生活条件，推动山区农业生产，增强全乡经济发展后劲，通过产业建设带动群众增收，随着壮大村集体经济项目的实施，股水村委会通过租赁和收取赶集日摊位费的形式获取收益，预计每年最少可取得5万元的收益来壮大村集体经济，基础设施建设增强发展后劲同时带动农副产品销售，为群众增收打下坚实基础。\n","否","带动生产、收益分红","是","否","否","是","马国祥",13988463602,"易门县农业农村局","股水村","是","是"]
[262,"易门县","铜厂乡","铜厂村","产业发展—庭院生产生活服务","铜厂乡铜厂村委会干海孜产村融合发展示范项目","2025年","新建","①村内道路硬化：村内道路硬化1000㎡，M7.5浆砌石挡墙建设90m³，镀锌管护栏安装220m；②排水工程：砖砌排水沟300m（含盖板）；③村内小药园、小果园建设：干砌石挡墙建设420m³，M7.5浆砌石挡墙建设180m³，实心砖支砌86.4m³，青瓦砌筑50m³，空心砖砌筑100m³，旧房拆除建筑废料清运1000㎡，种植土回填336m³，成品围栏安装500m，新建垃圾收集房1座，新建柴房100㎡。",{"v":80,"d":"80.00"},{"v":80,"d":"80.00"},{"v":80,"d":"80.00"},{"v":0,"d":"0.00"},69,221,18,64,"通过项目实施，项目村所在地基础设施将会有很大改变，项目村发展后续逐步得到增强，逐步实现该村生产发展、经济结构优化、效益提高，财政状况好转，农民富裕的经济发展态势；提高了当地群众的生产生活条件，推动山区农业生产，增强全乡经济发展后劲，通过产业建设带动群众增收，基础设施建设增强发展后劲同时带动农副产品销售，为群众增收打下坚实基础。","否","土地流转","是","否","否","否","马国祥",13988463602,"易门县农业农村局","铜厂村","是","是"]
[263,"易门县","铜厂乡","铜厂村","产业发展—种植业基地","铜厂乡林下立体种植循环示范项目","2025年","新建","种植面积100亩，管理用房120平方米；喷灌管网安装2300m；隔离围栏安装1200米、林下土方人工开挖。",{"v":70,"d":"70.00"},{"v":70,"d":"70.00"},{"v":70,"d":"70.00"},{"v":0,"d":"0.00"},62,188,16,58,"通过种植示范基地，成立专业合作社，组织并带动天麻种植，促进农业经济发展。提升了林地资源利用率，有效地保护生态环境，建成具有铜厂特色的种植基地。并促进9个村村级集体经济增入。","否","土地流转、带动生产、收益分红","是","否","否","是","马国祥",13988463602,"易门县农业农村局","铜厂村","是","是"]
[264,"易门县","六街街道","柏树社区","乡村建设行动—农村污水治理","易门县六街街道柏树社区摩所村乡村旅游基础设施建设项目","2025年","新建","1.建设可回收垃圾收储房1间32平方米；2.污水纳管收集2470米，排水沟建设800米，配套检查井、沉砂池；三格式化粪池建设1座45立方米，公厕建设1座11.52平方米，道路硬化220米；挡墙支砌120立方米；配套防洪、防涝设施7处。",{"v":120,"d":"120.00"},{"v":120,"d":"120.00"},{"v":120,"d":"120.00"},{"v":0,"d":"0.00"},256,920,0,0,"通过实施易门县六街街道柏树社区摩所村乡村旅游基础设施建设项目,巩固拓展近年来脱贫攻坚成果,改善群众生产生活条件,壮大村集体经济,进一步为六街街道经济发展提供坚实的“硬件”支撑。","否","不需要","是","否","否","否","魏冬",18208807410,"县农业农村局","柏树社区","是","否"]
[265,"易门县","六街街道","柏树社区","产业发展—其他","易门县六街街道柏树社区白泥田村产业发展配套设施项目","2025年","新建","1.水池建设200立方米1个；2.供水管道架设250米；3.排涝沟建设200米；4.机耕路建设100米；5.乡村13亩；6.污水管安装430米，化粪池建设1座28立方米，氧化塘建设100平方米。",{"v":50.7,"d":"50.70"},{"v":50.7,"d":"50.70"},{"v":50.7,"d":"50.70"},{"v":0,"d":"0.00"},11,46,0,0,"通过项目实施，完善产业发展基础设施及村庄基础设施，改善群众生产生活条件，促进乡村产业发展，促进群众增收。","否","带动农户发展生产增产增收—其他","是","否","否","否","魏冬",18208807410,"县农业农村局","柏树社区","是","否"]
[266,"易门县","六街街道","茶树社区","乡村建设行动—农村道路建设","易门县六街街道茶树社区人居环境整治项目","2025年","新建","小新村挡墙支砌16立方米，硬化进村道路295米，路宽5米；东村进村道路硬化道路；峨罗邑垃圾房修建，道路硬化1500平方米。",{"v":75,"d":"75.00"},{"v":75,"d":"75.00"},{"v":75,"d":"75.00"},{"v":0,"d":"0.00"},37,155,0,0,"通过项目建设 ,可完善该项目区基础配套设施 ,实现群众生产、生活质量提高的目标 ,促进社会稳定。","否","不需要","是","否","否","否","魏冬",18208807410,"县农业农村局","茶树社区","是","否"]
[267,"易门县","六街街道","柏树社区","产业发展—休闲农业与乡村旅游","易门县六街街道柏树社区摩所村农特产品分拣厂建设项目","2025年","新建","盘活柏树社区摩所村闲置场地1200平方米，建设农产品分拣包装车间493平方米，用于民族地区农特产包装分拣，促进农业增效、农民增收。",{"v":100,"d":"100.00"},{"v":100,"d":"100.00"},{"v":100,"d":"100.00"},{"v":0,"d":"0.00"},295,929,0,0,"通过实施易门县六街街道柏树社区摩所村农产品分拣包装车间建设项目，盘活闲置场地1200平方米，完善民族地区村庄基础设施,改善群众生产生活条件,促进乡村产业发展、群众增收。","否","就业务工、带动生产","是","否","否","否","魏冬",18208807410,"易门县民宗局","柏树社区","是","是"]
[268,"易门县","六街街道","铁厂村,白邑村","产业发展—小型农田水利设施建设","易门县六街街道白邑、铁厂村委会产业发展基础设施建设项目","2025年","新建","1、白邑村委会新修生产路1200米，宽4米，路面铺砂填石；2、铁厂村委会新建200立方米水池1个、100立方米水池2个，架设DN50㎜镀锌管414米，DN125㎜米镀锌管道528米，生产路扩修800米，排灌沟建设430米。",{"v":78.7,"d":"78.70"},{"v":78.7,"d":"78.70"},{"v":78.7,"d":"78.70"},{"v":0,"d":"0.00"},277,965,83,286,"通过项目的实施，提高群众生产、生活条件，加强产业发展基础设施建设，增加农产品的产量和质量，提高农民的收入，形成产业集聚效应，带动上下游产业的协同发展，促进当地经济的快速发展。","否","土地流转、带动生产","是","否","否","否","魏冬",18208807410,"县农业农村局","铁厂村,白邑村","是","是"]
[269,"易门县","小街乡","木冲村","产业发展—农业社会化服务","小街乡木冲下村丫巴拉箐至李罗亩大山垭口产业路建设项目","2025年","新建","木冲丫巴拉箐150亩耕地因没有生产道路，导致150耕地无人耕种，多年撂荒，为改善生产条件，加大耕地利用效率，扩大村集体收益，需修建一条机耕道路。1.路基土方开挖，规格：2150*3*0.2；2.路基平整规格：2150*3*0.3；3.砂砾石路基回填及夯实，规格：2150*3*0.4；4.C20砼排水沟浇筑（三面光含模板安装与拆卸），规格：2150*0.4*0.4；5.3500mm管涵，90米；6.路基挡墙M7.5浆砌石支砌。",32.88,32.88,32.88,{"v":0,"d":"0.00"},129,421,17,52,"项目建成后将改善周边土地交通运输条件，提高周边耕地耕作效率，使撂荒耕地得到利用，增加村集体经济。","否","带动农户发展生产增产增收—其他","是","否","否","是","柏永明","0877-4611017","县农业农村局","木冲村","是","否"]
[270,"易门县","小街乡","普厂村","产业发展—种植业基地","小街乡普厂村委会果蔬菌种植示范基地建设项目","2025年","新建","（一）基础工程：1.砖砌台阶36立方米，2.基地防护围栏安装（高：1.8m）1500平方米，3.大门安装1道；（二）管理用房：1.采购4个集装箱管理用房72平方米，2.管理用房基础水电安装72平方米，3.集装箱管理用房场地地坪硬化24立方米；（三）灌溉与给排水工程：1.新建200立方米圆形农田蓄水池1座，2.新建30立方米矩形管道消力池1座，3供水主管DN80热镀锌管（蓄水池-消力池段）200米，4.DN90PE管（主管）消力池-大棚段800米，5.DN32PE管（支管）1000米，6.喷滴灌两用喷头14000个，7.水肥一体机设备1套，8.净水设备1台，9.修建防洪沟500米；（四）室内外电力工程：1.架空电路搭设4000米，2.电杆组立10根；（五）大棚工程：1.钢架大棚15000平方米，2.大棚内部地膜铺设15000平方米。",{"v":200,"d":"200.00"},{"v":200,"d":"200.00"},{"v":200,"d":"200.00"},{"v":0,"d":"0.00"},784,2736,142,508,"通过实施小街乡普厂村委会果蔬菌种植示范基地建设项目，以绿汁江、下普厂沿线下侧5公里范围以内为重点，按照区域发展、集中连片的原则，发展保护地果蔬菌生产。以示范基地建设为平台，对基地实行“统一选种，统一培管，统一施肥，统一病虫害防治，统一采收销售”的“五统一”建设模式，提升了基地的标准化程度和组织化程度，带动了农户走管理提升、技术提高、品质增强、品牌扩大的集约化发展路子。","否","土地流转、带动生产、就业务工","是","否","否","是","柏永明","0877-4611017","县农业农村局","普厂村","是","是"]
[271,"易门县","小街乡","普厂村","产业发展—加工业","小街乡普厂村蓝莓加工包装车间建设项目","2025年","新建","（一）建筑工程：1.仓库改造：①C15混凝土垫层6立方米，②模板安拆32平方米，③C25地坪混凝土30立方米，④抹灰刮白涂料604平方米，⑤200*200方管立柱32米，⑥6米钢屋架4个；（二）安装工程：1.水电安装工程：①灭火器4具，②配电箱1台，③单联照明开关6个，④声光延时开关1个，⑤插座6个，⑥灯具3套，⑦配管235米，⑧配线205米，⑨DN20镀锌钢管150米；2.分拣安装工程：①塑封机等包装设备1套，②不锈钢分拣台60平方米，③农产品转运箱175个，④叉车1辆，⑤装卸木托30个。",{"v":20,"d":"20.00"},{"v":20,"d":"20.00"},{"v":20,"d":"20.00"},{"v":0,"d":"0.00"},360,1263,77,283,"通过实施小街乡普厂村蓝莓加工包装车间建设项目，引入先进设备和技术，提高了产品附加值，增加了项目自身收入，带动上下游产业，如包装材料、物流运输等，构建从种植到加工、销售的完整产业链，增强了产业抗风险能力。优化产业竞争力，提升了本地蓝莓产业在国内外市场的知名度和影响力。\n","否","就业务工、带动生产、帮助产销对接","是","否","否","否","柏永明","0877-4611017","易门县民宗局","普厂村","是","是"]
[272,"易门县","易门县","易门县","产业发展—小额贷款贴息","扶贫小额贷款贴息","2025年","新建","扶贫小额贷款进行贴息",{"v":220,"d":"220.00"},{"v":220,"d":"220.00"},{"v":220,"d":"220.00"},{"v":0,"d":"0.00"},728,728,728,728,"通过小额扶贫贷款项目的实施，促进了脱贫户和监测对象发展产业的能力，有效解决了脱贫户和监测对象发展产业资金短缺的问题，为脱贫户和监测对象产业增收提供保障。","是","带动农户发展生产增产增收—其他","不涉及","否","否","否","高奎明","0877－4961177","县农业农村局","不形成资产","是","否"]
[273,"易门县","易门县","易门县","巩固三保障成果—享受“雨露计划”职业教育补助","“雨露计划”职业教育补助","2025年","新建","对“雨露计划”职业教育学生补助",{"v":160,"d":"160.00"},{"v":160,"d":"160.00"},{"v":160,"d":"160.00"},{"v":0,"d":"0.00"},418,418,418,418,"通过对就读中职、高职院校的脱贫户、边缘易致贫户、突发严重困难户子女进行助学补助，缓解脱贫户和监测对象就读压力。","是","不需要","不涉及","否","否","否","高奎明","0877－4961177","县农业农村局、教体局","不形成资产","是","否"]
[274,"易门县","易门县","易门县","就业项目—公益性岗位","公益性岗位补助","2025年","新建","对衔接资金开发的公益岗位进行补助",{"v":300,"d":"300.00"},{"v":300,"d":"300.00"},{"v":300,"d":"300.00"},{"v":0,"d":"0.00"},314,314,314,314,"通过开发公益性岗位，解决脱贫人口和监测对象务工困难，促进脱贫人口和监测对象就业增收。","是","不需要","不涉及","否","否","否","高奎明","0877－4961177","县农业农村局","不形成资产","是","否"]
[275,"易门县","易门县","易门县","就业项目—交通费补助","交通费补助","2025年","新建","对跨省外出务工人员进行交通费补助",{"v":65,"d":"65.00"},{"v":65,"d":"65.00"},{"v":65,"d":"65.00"},{"v":0,"d":"0.00"},524,524,524,524,"通过交通费补助安排，提高跨省外出务工人员的积极性、确保了三年增收方案中相关政策得到落实。","是","不需要","不涉及","否","否","否","高奎明","0877－4961177","县农业农村局","不形成资产","是","否"]
[276,"易门县","易门县","易门县","就业项目—技能培训","脱贫劳动力职业培训","2025年","新建","对脱贫劳动力职业培训生活费和交通费补助",{"v":90,"d":"90.00"},{"v":90,"d":"90.00"},{"v":90,"d":"90.00"},{"v":0,"d":"0.00"},702,702,702,702,"通过脱贫劳动力职业技能培训，提升农村劳动力职业技能，为脱贫劳动力就业增收提供保障。","是","不需要","不涉及","否","否","否","高奎明","0877－4961177","县农业农村局","不形成资产","是","否"]
[277,"易门县","易门县","易门县","就业项目—生产奖补、劳务补助等","新型主体联农带农、产业发展补助","2025年","新建","支持联农带农经营主体奖补",{"v":120,"d":"120.00"},{"v":120,"d":"120.00"},{"v":120,"d":"120.00"},{"v":0,"d":"0.00"},1128,4100,6,19,"通过联农带农经营主体奖补，鼓励各类新型经营主体与农民建立稳定的利益联结关系，促进脱贫人口稳定增收。","是","带动农户发展生产增产增收—其他","不涉及","否","否","否","高奎明","0877－4961177","县农业农村局","不形成资产","是","否"]
[278,"易门县","易门县","易门县","项目管理费—项目管理费","项目管理费","2025年","新建","按照中央衔接资金不超过1%，省级衔接资金不超过5%的比例提取项目管理费，由县级统筹使用。项目管理费主要用于项目前期设计、评审、招标、监理以及验收、审计等与项目管理相关的支出。",{"v":40,"d":"40.00"},{"v":40,"d":"40.00"},{"v":40,"d":"40.00"},{"v":0,"d":"0.00"},"——","——","——","——","通过安排项目管理费，提升了2024年项目全过程监管质量，确保了项目建设顺利实施。","否","不需要","不涉及","否","否","否","高奎明","0877－4961177","县农业农村局","不形成资产","是","否"]
[279,"易门县","全县","全县","就业项目—交通费补助","跨州（市）务工交通补助","2025年","新建","对跨州（市）务工满3个月以上的脱贫人口（含监测对象），从省级财政衔接资金中安排每人每年不超过500元的一次性交通补助。",{"v":50,"d":"50.00"},{"v":50,"d":"50.00"},{"v":50,"d":"50.00"},{"v":0,"d":"0.00"},500,500,500,500,"通过对跨州（市）外出务工人员交通费补助，提高脱贫人口和监测对象外出务工积极性，为增加脱贫人口和监测对象的务工收入提供了条件。","是","不需要","不涉及","否","否","否","高奎明","0877－4961177","县农业农村局","不形成资产","是","是"]
[280,"易门县","小街乡","木冲村","乡村建设行动—其他","小街乡木冲村里来苴产业发展项目","2025年","改（扩）建","（一）大坝工程：对小坝坡进行整形培厚并增设砼预制块护坡118立方米，新建M7.5浆砌石226立方米；（二）溢洪道工程：对输水涵洞进口进行改造，新建进口平板闸及消力井，土方开挖86立方米，C25钢筋混凝土边墙34立方米；（三）输水涵洞工程：DN200闸阀1套，DN200伸缩节1套；（四）村庄整治：村内道路修复C25砼82.8立方米，村内新建路面C25砼59.4立方米，砼排水沟8立方米。",{"v":60,"d":"60.00"},{"v":60,"d":"60.00"},{"v":60,"d":"60.00"},{"v":0,"d":"0.00"},176,622,17,49,"通过实施小街乡木冲村里来苴人居环境综合整治及产业灌溉配套设施项目，解决项目区灌溉用水问题，有效改善土地利用格局，促进土地耕种规模化，集约化发展，提高土地利用率，解决区域水资源分布不均、提高灌溉效率，使当地人居环境和生产环境得到极大的改善，基本具备了发展与水源保护相适应的生态农业、观光农业、休闲农业的基础条件，形成富有地方特色的生态产业，从而带动地方经济的可持续发展，为乡村振兴建设提供有力支撑。","否","带动农户发展生产增产增收—其他","是","否","否","否","柏永明","0877-4611017","县农业农村局","木冲村","是","是"]
[281,"易门县","六街街道","二街社区","产业发展—种植业基地","易门县六街街道二街社区食用菌种植基地建设项目","2025年","新建","1.场地平整5042.4平方米;\n2.建设食用菌种植主体车间建设2916.72平方米,其中、生产区1023.2平方米、净化区550平方米、培养一区891平方米、培养二区452.52平方米;\n3.车间内部建设:购安净化车间板材1600平方米、净化钢质门19扇、平移门4扇、镀锌铁皮风管235平方米、保温棉235平方米、高效送风口34套、回风百叶6片、顶部板材1220平方米及相关铝材和接种车间龙骨。\n4.电力设施购安变压器1台、净化平板灯48盏、紫外灯53盏、电线6卷、电缆8卷，配套开关及插座；\n5.配套建设供水设施，建设供水管200米。",{"v":200,"d":"200.00"},{"$f":"L286+M286","v":{"v":200,"d":"200.00"}},{"v":130,"d":"130.00"},{"v":70,"d":"70.00"},1443,5984,83,308,"通过实施易门县六街街道二街社区食用菌种植基地建设项目，带动六街街道二街社区、铁厂村委会菌产业发展和群众就业，促进群众增收，同时通过引进经营主体易门县德桦菌业有限公司经营，通过资产租赁方式，每年增加二街社区和铁厂村委会村级集体经济收入4万元。","否","就业务工、带动生产、收益分红","是","是","否","是","王协东",18288217105,"县农业农村局","二街社区","是","是"]
[282,"易门县","龙泉街道","梅营社区","产业发展—新型农村集体经济发展项目","易门县龙泉街道中心街社区壮大集体经济建设项目（易门县龙泉街道中心街社区蓝莓种植基地建设项目）","2025年","新建","1.新建石挡土墙800立方米；2.场地平整12000平方米；3.温室大棚3500平方米。",70.18,{"$f":"L287+M287","v":70.18},{"v":70,"d":"70.00"},0.18,1128,4100,6,19,"通过项目的实施，对当地经济发展具有显著的推动作用。首先，分拣大棚的建设将极大提升蔬菜处理效率，减少损耗，提高产品质量和市场竞争力。通过统一分拣、包装，蔬菜能够更快更好地进入市场，增加农产品附加值，直接提升农户收入。其次，项目将带动周边相关产业的发展，如物流、包装材料等，形成产业链效应，进一步促进当地经济增长。此外，随着蔬菜产业的规范化、规模化发展，有望吸引更多外部投资，为社区带来长期稳定的经济收益。","否","就业务工、带动生产、收益分红","是","否","否","是","武煜金",{"v":13388897926,"d":"13388897926.00"},"县农业农村局","梅营社区","是","是"]
[283,"峨山县","双江街道办事处","宝山村委会玉湖中寨组、旧寨组","乡村建设行动—村容村貌提升","2024年双江街道宝山村委会玉湖中寨组、旧寨组人居环境整治项目（先建后补项目）","2025年","新建","新建雨污分流、供水供电设施，实施村内道路硬化",{"v":100,"d":"100.00"},{"$f":"L288+M288","v":{"v":100,"d":"100.00"}},{"v":100,"d":"100.00"},{"v":0,"d":"0.00"},3,15,3,15,"通过人居环境整治项目的实施，可有效改善村内生活条件，显著加强农村基础设施建设，不断提高村民的农业生产效率，农民人均纯收入在现有基础上明显增加，农民生产、生活条件显著改善。","否","不需要","是","否","否","否","陈春勇",13608890255,"县农业农村局","双江街道宝山村委会","是","否"]
[284,"峨山县","双江街道办事处","柏锦社区","产业发展—其他","2025年双江街道柏锦社区蔬菜特色产业发展项目","2025年","新建","改扩建柏锦大沟，总长6000米，混凝土结构，断面1.2m×1.2m、1m×1m，设计流量0.83m3/s，概算投资2964000元。修抽水站(1.冰棒厂至多依树坝抽水站预算431160元,2.冰棒厂至大叉箐抽水站预算277120元3.柏锦大沟至柏锦坝抽水站预算249984元4.柏锦大沟至旱塔冲抽水站预算125744元5.柏锦大沟至矣北冲抽水站预算135956元6.柏锦大沟至大冲子箐抽水站预算248056元7.柏锦大沟至小冲子箐抽水站预算70856元。",{"v":450,"d":"450.00"},{"v":450,"d":"450.00"},{"v":220,"d":"220.00"},{"v":230,"d":"230.00"},6,17,6,17,"通过完成柏锦社区蔬菜特色产业发展项目，切实改善和提高项目区1200亩农田灌溉条件，提高项目区水资源利用率、灌溉保证率，提高耕地产出率、增加产值，达到农民增收目标，实现项目区可持续发展。项目设计受益人口3304人，促进农村经济每年增收48万元。","否","带动农户发展生产增产增收—其他","是","否","否","否","陈春勇",13608890255,"县农业农村局","双江街道柏锦社区","是","否"]
[285,"峨山县","双江街道办事处","大白邑社区","乡村建设行动—村容村貌提升","2025年双江街道大白邑社区人居环境整治项目（第三期）","2025年","新建","建设大白邑社区村内雨污分流、道路等人居环境整治项目建设，其他相关附属设施等",{"v":200,"d":"200.00"},{"v":200,"d":"200.00"},{"v":200,"d":"200.00"},{"v":0,"d":"0.00"},373,1394,373,1394,"通过人居环境整治项目的实施，可有效改善大白邑社区718户、2287人的出行条件，显著加强农村基础设施建设，不断提高村民的农业生产效率，农民人均纯收入在现有基础上明显增加，农民生产、生活条件显著改善。","否","不需要","是","否","否","否","陈春勇",13608890255,"县农业农村局","双江街道大白邑社区","是","否"]
[286,"峨山县","小街街道","棚租村","产业发展—加工业","2024年小街街道棚租村委会烤烟特色产业帮扶项目（先建后补）","2025年","新建","新建20座电烤房及相关配套基础设施。",{"v":200,"d":"200.00"},{"v":200,"d":"200.00"},{"v":200,"d":"200.00"},{"v":0,"d":"0.00"},591,2325,{"$f":"SUM(P292:P293)","v":55},{"$f":"SUM(Q292:R293)","v":142},"本项目的实施，将极大地改善农业基础设施条件，推动小街街道烟叶商品化烘烤工作健康持续发展，促进烟农增收致富，每年可减少烟农烟叶烘烤成本，项目建设实施后，为全街道的经济社会发展做出更大的贡献。项目建成后预计年通过村集体经营，预计收益每年不低于20万元，收益主要用于发展壮大集体经济、巩固脱贫户和“监测对象”脱贫成效等。","否","带动农户发展生产增产增收—其他","是","否","否","是","方成彪","13988455035","县农业农村局","峨山县泽源农业发展有限责任公司","是","否"]
[287,"峨山县","小街街道","乐德旧村","产业发展—加工业","2025年小街街道乐德旧村委会烤烟特色产业帮扶项目（先建后补项目）","2025年","新建","新建10座电烤房及相关配套基础设施。",{"v":100,"d":"100.00"},{"v":100,"d":"100.00"},{"v":100,"d":"100.00"},{"v":0,"d":"0.00"},256,801,35,94,"本项目的实施，将极大地改善农业基础设施条件，推动小街街道烟叶商品化烘烤工作健康持续发展，促进烟农增收致富，每年可减少烟农烟叶烘烤成本，项目建设实施后，为全街道的经济社会发展做出更大的贡献。项目建成后预计年通过村集体经营，预计收益每年不低于12万元，收益主要用于发展壮大集体经济、巩固脱贫户和“监测对象”脱贫成效等。","否","带动农户发展生产增产增收—其他","是","否","否","是","赵家龙","13529796041","县农业农村局","峨山县宝岩农业发展有限责任公司","是","否"]
[288,"峨山县","小街街道","小街社区","产业发展—市场建设和农村物流","2025年小街街道农特产品发展商业综合体建设项目","2025年","新建","占用小街烟叶站旁大河边土地（小街社区七组、八组的一般耕地）31.53 亩，用于小街商业综合体项目建设，引入运营企业进行运作，投入300万元衔接资金建设其中仓储、物流、特色产品交易等项目，形成小街街道完整的大牲畜及活禽交易、商住三合一等为一体的商业综合体。",{"v":300,"d":"300.00"},{"v":300,"d":"300.00"},{"v":300,"d":"300.00"},{"v":0,"d":"0.00"},667,2217,20,48,"（一）社会效益\n2024年小街街道农贸市场提升改造项目的实施，可改善集镇区风格风貌，提高人民群众生产生活条件，最终达到“干净、宜居、特色、智慧”的幸福家园建设总体目标。\n（二）经济效益评价\n2024年小街街道农贸市场提升改造项目建设，可实现小街集镇科学规划与建设，能给小街街道的发展带来巨大的发展潜力，在农副产品交易、旅游文化、交通运输、贸易等多个领域实现群众的增产增收。\n（三）生态效益评价\n2024年小街街道农贸市场提升改造项目建设突出农村环境综合整治、基础设施建设等工程项目。项目实施后，可极大改善村庄周边环境卫生，使交通运输便利，改善河流沿岸环境，农户安居乐业有着重要作用，群众人居环境将得到极大改善。","否","带动农户发展生产增产增收—其他","是","否","否","是","矣进伟","18287738955","县农业农村局","小街街道办事处","是","否"]
[289,"峨山县","化念镇","水湾村","产业发展—种植业基地","2025年化念镇水湾村委会水湾村火石坡耕地农用设施建设项目","2025年","新建","盘活火石坡400亩一般耕地基础设施：铺埋灌溉水管网5KM，架设高压线一条，变压器一台，新建300方蓄水池1座。",{"v":100,"d":"100.00"},{"v":100,"d":"100.00"},{"v":100,"d":"100.00"},{"v":0,"d":"0.00"},79,344,7,30,"盘活闲置资源，建好后可通过招租的方式，吸引种植户规模化种植，从而获得租金，吸引就业，壮大集体经济","否","促进农户共享资产收益增收—土地流转获得租金","是","否","否","是","杨  华","14787766733","县农业农村局","化念镇水湾村委会","是","否"]
[290,"峨山县","化念镇","凤凰社区","乡村建设行动—村容村貌提升","2025年化念镇凤凰社区龙潭组旧村改造试点项目（基础类）","2025年","新建","一、雨污分流工程1.雨水管：DN500mm混凝土涵管1500m,DN300mm混凝土涵管1000m，DN100PVC排水管500m。2.污水管：DN500mm混凝土涵管1500m,DN300mm混凝土涵管1000m，DN100PVC排水管500m。二、村内道路通畅工程：村内道路硬化100余米，宽4.5米，厚20cm，用C25混凝土浇筑；三、硬化村内空地1200㎡用作农产品交易场所，用C20混凝土浇筑，厚20cm。",{"v":200,"d":"200.00"},{"v":200,"d":"200.00"},{"v":200,"d":"200.00"},{"v":0,"d":"0.00"},815,2700,31,104,"通过雨污分流工程、村内道路通畅工程、硬化农产品交易场所，提升村庄人居环境，完善基础设施建设，提升村民幸福感。","否","不需要","是","否","不涉及","否","龚  福",18725433040,"县农业农村局","化念镇凤凰社区","是","否"]
[291,"峨山县","甸中镇","下营村委会","产业发展—加工业","2024年甸中镇下营村委会烤烟特色产业帮扶项项目（先建后补项目）","2025年","新建","新建10座电烤房及相关配套基础设施",{"v":100,"d":"100.00"},{"v":100,"d":"100.00"},{"v":100,"d":"100.00"},{"v":0,"d":"0.00"},53,158,15,40,"通过2024年峨山县壮大村集体经济项目，全年可实现收益10万元以上，全面巩固双江社区脱贫成果，防止项目社区出现规模性返贫，脱贫人口和监测人口人均纯收入在现有基础上明显增加。","否","带动农户发展生产增产增收—其他","是","否","否","是","柏青涌",null,"县农业农村局","峨山县翔展农业有限公司","是","否"]
[292,"峨山县","大龙潭乡","迭所村委会、班德村委会","产业发展—加工业","2023年大龙潭乡烟叶烘烤中心建设项目（先建后补项目）","2025年","新建","新建20座电烤房及相关配套基础设施",{"v":160,"d":"160.00"},{"v":160,"d":"160.00"},{"v":160,"d":"160.00"},{"v":0,"d":"0.00"},3,15,1,5,"本项目的实施，将极大地改善农业基础设施条件，推动大龙潭乡烟叶商品化烘烤工作健康持续发展，促进烟农增收致富，为全乡的经济社会发展做出更大的贡献。项目建成后预计年化收益率12%，收益的20%由乡级提取，作为乡产业帮扶发展基金，收益的80%按所占股份分配给各村，再由各村与村民小组自行协商进行分配，主要用于发展壮大集体经济、巩固脱贫户和“监测对象”脱贫成效等。","否","产业化联合体","是","是","否","是","严寅昕",17787716823,"县农业农村局","大龙潭乡龙嘉农业发展服务公司","是","否"]
[293,"峨山县","大龙潭乡","以他斗村","产业发展—加工业","2024年大龙潭乡以他斗村委会烤烟特色产业帮扶项目（先建后补项目）","2025年","新建","新建10座电烤房及相关配套基础设施",{"v":100,"d":"100.00"},{"v":100,"d":"100.00"},{"v":100,"d":"100.00"},{"v":0,"d":"0.00"},5,24,3,8,"本项目的实施，将极大地改善农业基础设施条件，推动大龙潭乡烟叶商品化烘烤工作健康持续发展，促进烟农增收致富，为全乡的经济社会发展做出更大的贡献。项目建成后预计年化收益率12%，收益的20%由乡级提取，作为乡产业帮扶发展基金，收益的80%按所占股份分配给各村，再由各村与村民小组自行协商进行分配，主要用于发展壮大集体经济、巩固脱贫户和“监测对象”脱贫成效等。","否","带动农户发展生产增产增收—订单生产","是","是","否","是","严寅昕",17787716823,"县农业农村局","大龙潭乡龙嘉农业发展服务公司","是","否"]
[294,"峨山县","大龙潭乡","绿溪村","产业发展—市场建设和农村物流","2025年大龙潭乡集镇农特产品交易市场建设项目（二期）","2025年","新建","新建770平方米新村“一村一品”展示中心，进行土方开挖铺设部分雨污管网，根据需求新建50个特色产品交易位，完善建设相关配套设施。",{"v":200,"d":"200.00"},{"v":200,"d":"200.00"},{"v":200,"d":"200.00"},{"v":0,"d":"0.00"},668,2160,32,99,"一是推进农村集体经营性建设用地入市工作具体实施落地。盘活农村闲置土地，避免资源浪费，最大限度发挥土地经济社会效益，改善乡村第三产业发展硬件条件，推动资源、资金、人员加快汇聚融合。二是推动“干部规划家乡行动”见实效。该项目是村庄规划编制中回乡干部、乡贤、群众最真实的声音和最迫切的需求，再加上甸多路、易新高速的建设，可促进我乡吸引各方人财物流动的能力，为全乡群众就近就地发展，增产增收增添信心。三是发展壮大村集体经济。该项目中的土特产品交易中心由龙嘉公司负责运营管理，作为各村“一村一品”农特产品集中展示区，发挥抓典型、推模式、创品牌作用，引导“量身定制”特色产业，做大做强集镇经济，带动乡村振兴事业高效高速发展。四是改善农村人居环境。项目可满足全乡12000多人的农特产品聚集交易和群众街天赶集需求，缓解街天赶集交通拥堵问题，激发市场经营主体活力和产业汇聚活力，改善集镇人居环境质量。","否","带动农户发展生产增产增收—其他","是","否","不涉及","否","严寅昕",17787716823,"县农业农村局","大龙潭乡龙嘉农业发展服务公司","是","否"]
[295,"峨山县","大龙潭乡","绿溪村","乡村建设行动—村容村貌提升","2025年大龙潭乡“千万工程”乡村振兴示范村项目","2025年","新建","大吉、新村组（集镇周边）：铺设污水管网417m，雨水管768m，场地硬化1200m，道路硬化及相关配套设施。绿溪组：铺设污水管网1500m，村内道路路面修缮1200㎡，新建垃圾房2个。",{"v":200,"d":"200.00"},{"v":200,"d":"200.00"},{"v":200,"d":"200.00"},{"v":0,"d":"0.00"},567,1237,8,28,"1. 提升居民文明素质： 加强农村精神文明建设，开展文明村镇、文明家庭等创建活动，提高居民的文明素质和道德水平。加强农村文化建设，弘扬优秀传统文化，丰富居民的精神文化生活。\n2. 促进社会和谐稳定：加强农村社会治安综合治理，打击违法犯罪活动，维护农村社会稳定。建立健全农村矛盾纠纷调解机制，及时化解农村矛盾纠纷，促进农村社会和谐。","否","吸纳农村劳动力稳定就业增收—吸纳就业","是","否","不涉及","否","严寅昕",17787716823,"县农业农村局","大龙潭乡人民政府","是","否"]
[296,"峨山县","富良棚乡","富良棚村、迭舍莫村","产业发展—加工业","2024年富良棚乡富良棚村、迭舍莫村烤烟特色产业帮扶项目（先建后补项目）","2025年","新建","新建20座电烤房及相关配套基础设施",{"v":200,"d":"200.00"},{"v":200,"d":"200.00"},{"v":200,"d":"200.00"},{"v":0,"d":"0.00"},187,421,47,114,"本项目的实施，将极大地改善农业基础设施条件，推动富良棚乡烟叶商品化烘烤工作健康持续发展，促进烟农增收致富，为全乡的经济社会发展做出更大的贡献。项目建成后预计年化收益率12%，收益的20%由乡级提取，作为乡产业帮扶发展基金，收益的80%按所占股份分配给各村，再由各村与村民小组自行协商进行分配，主要用于发展壮大集体经济、巩固脱贫户和“监测对象”脱贫成效等。","否","带动农户发展生产增产增收—订单生产","是","是","否","是","李山",18787760146,"县农业农村局","峨山县坡上农产品开发有限公司、峨山县山哩哩农产品开发有限公司","是","否"]
[297,"峨山县","富良棚乡","婀娜村","产业发展—产业园（区）","2025年富良棚乡婀娜村委会果蔬特色产业建设项目（选果场建设项目）（二期）","2025年","改（扩）建","完善一期：新建占地面积 7250 ㎡交易市场，建选果厂房 3500 ㎡，交易产地 3500 ㎡，搭建钢结构选果厂房，果蔬市场 3000 ㎡，场地硬化砼（C25），5000 ㎡等附属设施建设的工程量。",{"v":150,"d":"150.00"},{"v":150,"d":"150.00"},{"v":150,"d":"150.00"},{"v":0,"d":"0.00"},245,1049,96,403,"通过建设选果厂一期，有效减少生产过程中通过第三方分拣定级的运输鉴定成本，承接周边柑橘种植产业的分拣业务，农产品加工。建设选果厂二期将产品加工成更加标准、更加保鲜、更加安全的食品，打造自营生产包装物流线，能够树立良好的品牌形象，并且能服务周边近年开始尝试种植的经营主体，吸纳村民就业，带动地区产业发展。","否","吸纳农村劳动力稳定就业增收—吸纳就业","是","否","是","是","李山",18787760146,"县农业农村局","峨山县鑫鼎农产品开发有限公司","是","否"]
[298,"峨山县","富良棚乡","翻家村","产业发展—加工业","2025年富良棚乡翻家村委会高寒山区特色中草药加工厂建设项目","2025年","新建","新建中药材初加工厂：新建办公用房240平方米；新建操作车间和仓库 1000㎡；新建300立方米蓄水池2个，配套水、电、路等基础设施工程。花椒新村旁边。",{"v":200,"d":"200.00"},{"v":200,"d":"200.00"},{"v":200,"d":"200.00"},{"v":0,"d":"0.00"},282,884,110,396,"建设中草药加工厂，延伸产品生命线，降低初级农产品因时效短暂带来的价格波动影响。药材加工增加产品附加值，打开上级市场。帮扶富良棚乡翻家村委会地区形成新型产业，改善村集体经济经营困境，增加周边群众就业岗位。","否","带动农户发展生产增产增收—订单生产","是","否","不涉及","是","李山",18787760146,"县农业农村局","峨山县三租莫农产品开发有限公司","是","否"]
[299,"峨山县","塔甸镇","大西村","产业发展—种植业基地","塔甸镇大西村林下仿野生食用菌种植基地建设项目","2025年","新建","1、新建农业大棚（规格：8米*72米*17+8米*72米*18，合计21068㎡，外网固定，内网电动。），投资231.7万元；2、农业大棚喷灌设施，投资15.3万元；3、基地内作业道路建设400m(宽2.5m，砂石路面),投资6.5万元",{"v":253.5,"d":"253.50"},{"v":253.5,"d":"253.50"},{"v":253.5,"d":"253.50"},{"v":0,"d":"0.00"},390,1841,46,148,"受益脱贫户及监测户人数≥95%，通过该项目的实施，为当地群众增加经济收入渠道。","否","吸纳农村劳动力稳定就业增收—吸纳就业","是","否","否","否","刘夏良",17708770112,"县农业农村局","大杉农林科技发展（云南）有限公司","是","否"]
[300,"峨山县","塔甸镇","塔甸村","乡村建设行动—农村污水治理","2025年塔甸镇街子一二组雨污分流项目二期","2025年","新建","1、拆除路面175.5m³（877.5㎡），沟槽土方开挖2737.8 m³，DN300HDPE管900m，入户DN110pvc管1350m，DN200HDPE管1170m，DN400HDPE管1350m，塑料检查井90座。2、40m³混凝土化粪池3座（03S702-G10-40一座、03S702-G10-40S二座）。3、人畜分离20间养殖房等。",205.39,205.39,{"v":100,"d":"100.00"},105.39,192,524,1,3,"改善当地环境，提升旅游目的地价值，促进小草海周边区域协同发展。项目的实施将使项目区生态环境明显改善，村庄环境得到整治和净化，告别脏、乱、差现象，改变往昔落后的生活习惯，逐步提高群众农村生活水平和质量，促进两个文明建设，早日实现“乡村振兴”。受益脱贫户及监测户人数≥100%","否","不需要","是","否","否","否","刘夏良",17708770112,"县农业农村局","塔甸镇塔甸村委会","是","否"]
[301,"峨山县","塔甸镇","塔甸村","乡村建设行动—开展县乡村公共服务一体化示范创建","2025年塔甸镇集镇“千万工程”乡村振兴示范村建设项目","2025年","新建","村内危房拆除、残垣断壁4143㎡，机械加人工开挖土方3014.2m³，C30场地硬化混凝土716m³，机械清运土石方2014.14m³，墙面修复1281㎡，C30道路硬化587.8m³，Φ300涵管36m，道路排水沟754m，C20墙角护墙191m³，拆除原C20硬化混凝土101.2m³",219.89,219.89,219.89,{"v":0,"d":"0.00"},148,608,1,3,"受益脱贫户及监测户：1\n受益脱贫人口数：3，增加脱贫及监测户人口收入110元/人.年\n增加村集体收入20000元/年","否","不需要","是","否","否","是","刘夏良",17708770112,"县农业农村局","塔甸镇人民政府","是","否"]
[302,"峨山县","岔河乡","云美","产业发展—种植业基地","2024年岔河乡云美村委会农业基地建设项目（先建后补）","2025年","新建","建设高标准蔬菜种植大棚6700m²，建设产业基地机耕路2000米，项目区土地平整150亩。",{"v":120,"d":"120.00"},{"v":120,"d":"120.00"},{"v":120,"d":"120.00"},{"v":0,"d":"0.00"},335,1090,15,42,"建设高标准蔬菜种植大棚6700m²，建设产业基地机耕路2000米，项目区土地平整150亩。","否","吸纳农村劳动力稳定就业增收—吸纳就业","是","否","否","否","曹江龙",13628710500,"县农业农村局","赵林（有营业执照的个体户）","是","否"]
[303,"峨山县","岔河乡","棚租坝","产业发展—种植业基地","2025年岔河乡棚租坝村棚租坝组现代农业种植基地项目","2025年","新建","33400㎡土地平整，土壤改良，新建灌溉系统，100㎡管理房，机耕路1000m，100m³灌溉水池1个，新建7mx55m标准化温室农业大棚40个.",{"v":150,"d":"150.00"},{"v":150,"d":"150.00"},{"v":150,"d":"150.00"},{"v":0,"d":"0.00"},460,1654,39,123,"改善农民的生活条件和福利待遇，加强农村社会保障体系建设，提供优质教育、医疗和养老等公共服务，促进农民就业创业和人才培养。","否","吸纳农村劳动力稳定就业增收—吸纳就业","是","否","是","是","曹江龙",13628710500,"县农业农村局","棚租坝村委会","是","否"]
[304,"峨山县","双江街道","丁皎村","乡村建设行动—农村道路建设（通村路、通户路、小型桥梁等）","峨山县双江街道2025年以工代赈项目\n","2025年","新建","改扩建易地扶贫搬迁安置区周边机耕路8.6公里及配套排水沟3.2公里、挡土墙971立方米等。",{"v":246,"d":"246.00"},{"v":246,"d":"246.00"},{"v":246,"d":"246.00"},{"v":0,"d":"0.00"},119,434,67,265,"通过项目的实施，可有效改善丁皎组119农户、434人的出行条件、种植条件、运输条件，显著加强农村基础设施建设，不断提高村民的农业生产效率，农民人均纯收入在现有基础上明显增加，农民生产、生活条件显著改善。","否","吸纳农村劳动力参与项目建设—吸纳就业","是","是","否","是","陈春勇",13608890255,"峨山县发改局","双江街道总果村委会","是","是"]
[305,"峨山县","双江街道办事处","富泉村委会","乡村建设行动—村容村貌提升","2025年双江街道富泉村委会大甸中组、委高井、三合组以工代赈村民自建项目","2025年","新建","1.C30道路混凝土2933.4平方米，排污管DN110塑料管440米，检查井35座，公厕44.96平方米。2.C30道路混凝土2285平方米，排污管混凝土管50米，检查18座，M7.5砂浆砌毛石挡墙158立方米，新建垃圾房12平方一座。",{"v":115,"d":"115.00"},{"v":115,"d":"115.00"},{"v":115,"d":"115.00"},{"v":0,"d":"0.00"},101,364,9,30,"通过项目的实施，项目受益户数101户、人口364人，其中受益脱贫户9户、人口30人。达到基础设施全面改善、产业全面发展、基层组织全面加强，素质全面提升、村容村貌焕然一新，推动全面建成小康社会。","否","不需要","是","否","否","否","陈春勇",13608890255,"县农业农村局","双江街道富泉村委","是","否"]
[306,"峨山县","化念镇","罗里社区","乡村建设行动—农村污水治理","2025年化念镇罗里社区茂卡拉组、万年下组村庄基础设施建设以工代赈村民自建项目","2025年","新建","茂卡拉组新修雨污分流排水沟320米，万年下组雨污分流排水沟300米，（一）排水工程：修建断面为40cm*40cm排水沟安装ΦDN300双璧波纹管300m；安装ΦDN400管60m；检查井及雨水篦子共30个。\n（二）排污工程：安装ΦDN200双壁波纹管60m；安装ΦDN300双壁波纹管300m；安装ΦDN400双壁波纹管450m；检查井12个；污水处理池一座（10m*10m*1.6m）。",{"v":26,"d":"26.00"},{"v":26,"d":"26.00"},{"v":26,"d":"26.00"},{"v":0,"d":"0.00"},33,140,7,26,"通过修建雨污分流管道，优化人居环境","否","不需要","是","否","不涉及","否","吴玉雄",13577765021,"县农业农村局","化念镇罗里社区","是","否"]
[307,"峨山县","甸中镇","小甸中村","乡村建设行动—村容村貌提升","2025年甸中镇小甸中村衔接资金以工代赈村民自建项目（二期）","2025年","改（扩）建","继续进一步通过以工代赈自建模式，完善小甸中村委会基础设施、产业配套等设施，打造以工代赈自建示范效果",{"v":200,"d":"200.00"},{"v":200,"d":"200.00"},{"v":200,"d":"200.00"},{"v":0,"d":"0.00"},15,60,5,22,"美丽乡村的建设将带动小甸中村旅游的发展，对农村经济结构的影响也越来越大，很多原来单纯靠农业种植为生的村落，也开始发展乡村旅游休闲农业，整合村民闲置农田，扩大农业经营范围。小甸中村各地可以开始探索促进乡村旅游发展的新路子，打造乡村民宿，发展农业产业，层出不穷，为小甸中的农村经济注入了新的活力。","否","带动农户发展生产增产增收—订单生产","是","是","否","是","柏青涌",18687788158,"县农业农村局","甸中镇小甸中村","是","否"]
[308,"峨山县","甸中镇","下营村","乡村建设行动—村容村貌提升","2025年甸中镇下营村人居环境整治以工代赈项目","2025年","改（扩）建","雨污分流3100米；污水处理氧化塘3个；道路硬化900平方米；危房闲房拆除、场地平整及“四园”打造750平方米；垃圾集中收集回收、转运设施1个",{"v":200,"d":"200.00"},{"v":200,"d":"200.00"},{"v":200,"d":"200.00"},{"v":0,"d":"0.00"},44,156,7,23,"全面借鉴2024年甸中镇小甸中村衔接资金以工代赈村民自建项目成功的经验，结合“绿美乡村”和“星级美丽村庄”创建契机，积极引导村民参与村庄建设，改善项目区生态环境，整治和净化村庄环境，逐步提高群众农村生活水平和质量。","否","带动农户发展生产增产增收—其他","不涉及","否","否","否","柏青涌",18687788158,"县农业农村局","甸中镇下营村","是","否"]
[309,"峨山县","塔甸镇","甸尾村、嘿腻村","乡村建设行动—村容村貌提升","2025年塔甸镇衔接资金以工代赈村民自建建设项目","2025年","新建","甸尾：1、拆除路面201.13m³，C25砼路面恢复280.7m³，挖沟槽土方2014.14m³，挖沟槽石方1007.92m³，HDPE管1570.9m，塑料检查井85座。投资概算175.97元；\n2、40m³混凝土化粪池5座。投资概算25.39万元；\n3、砖砌化粪池1座。投资概算10.15元；                嘿腻村：新建道路工程2269m，新建生产道路1604m，新建村内道路665m，新建污水管及排水沟工程4016m：其中，DN300mm波纹管920m、DN200mm波纹管460m、DN110mmPVC管2540m、DN75mmPVC管96m；新建人饮管道拆除修复安装1100m；新建40立方米化粪池工程4座；其他：村内危房拆除240m³、材料二次搬运费549.7m³",{"v":475,"d":"475.00"},{"v":475,"d":"475.00"},{"v":475,"d":"475.00"},{"v":0,"d":"0.00"},180,684,6,20,"改善当地环境，提升旅游目的地价值，促进村组周边区域协同发展。项目的实施将使项目区生态环境明显改善，村庄环境得到整治和净化，告别脏、乱、差现象，改变往昔落后的生活习惯，逐步提高群众农村生活水平和质量，促进两个文明建设，早日实现“乡村振兴”。","否","不需要","是","否","否","否","刘夏良",17708770112,"县农业农村局","塔甸镇甸尾村、嘿腻村","是","否"]
[310,"峨山县","岔河乡","青河村","乡村建设行动—农村污水治理","2025年岔河乡青河村哈龙组人居环境提升以工代赈村民自建建设项目","2025年","新建","新建40cmx60cm村内排水沟3000m，ф300排污管道4200m",{"v":100,"d":"100.00"},{"v":100,"d":"100.00"},{"v":100,"d":"100.00"},{"v":0,"d":"0.00"},3,9,1,3,"通过项目实施，促进当地经济发展和民生改善，同时确保资金使用的安全、规范和有效。","否","提升人居环境—其他","是","否","否","是","曹江龙",13628710504,"县农业农村局","岔河乡青河村哈龙组","是","否"]
[311,"峨山县","岔河乡","谢札村","乡村建设行动—农村道路建设（通村路、通户路、小型桥梁等）","2025年岔河乡谢札村委会德明昌机耕路-以工代赈项目","2025年","新建","新修宽4.5m，长2700m机耕路（铺沙填石）。",{"v":35,"d":"35.00"},{"v":35,"d":"35.00"},{"v":35,"d":"35.00"},{"v":0,"d":"0.00"},180,684,6,20,"提升当地交通和生产条件，通过项目实施，带动当地产业发展，增加农民收入。","否","带动农户发展生产增产增收—其他","是","否","否","是","曹江龙",13628710504,"县农业农村局","岔河乡谢札村委会德明昌组","是","否"]
[312,"峨山县","大龙潭乡","司城村","乡村建设行动—村容村貌提升","2025年大龙潭乡司城村大麻栗树组以工代赈村民自建建设项目","2025年","新建","新建垃圾房2座30㎡，村内损毁道路修缮1300㎡，铺设污水管网（沟）1858m。",{"v":92,"d":"92.00"},{"v":92,"d":"92.00"},{"v":92,"d":"92.00"},{"v":0,"d":"0.00"},309,890,5,19,"1. 提升居民文明素质： 加强农村精神文明建设，开展文明村镇、文明家庭等创建活动，提高居民的文明素质和道德水平。加强农村文化建设，弘扬优秀传统文化，丰富居民的精神文化生活。\n2. 促进社会和谐稳定：加强农村社会治安综合治理，打击违法犯罪活动，维护农村社会稳定。建立健全农村矛盾纠纷调解机制，及时化解农村矛盾纠纷，促进农村社会和谐。","否","吸纳农村劳动力稳定就业增收—吸纳就业","是","否","不涉及","否","严寅昕",17787716823,"县农业农村局","大龙潭乡司城村大麻栗树组","是","否"]
[313,"峨山县","小街街道","小街社区","其他—少数民族特色村寨建设项目","小街社区民族团结进步示范村建设项目","2025年","新建","项目计划投资100万元，其中：1.蔬菜育苗基地大棚项目占地10亩，计划投资50万元，规划建设蔬菜育苗基地大棚6500平米，蓄水池200立方米，配套建设附属设施；2.产业路建设620米，计划投资50万元，建设三面沟650米，DN1000涵管14米，DN300涵管16米，硬化2480平米，挡墙65立方米；预计壮大村集体经济8万元，农民人均收入提高300元以上。",{"v":100,"d":"100.00"},{"v":100,"d":"100.00"},{"v":100,"d":"100.00"},{"v":0,"d":"0.00"},983,3077,37,131,"经济效益：建立现代农业为统领，提高农业效益、增加农民收入和促进农村文明为核心，以建设绿色循环经济示范为重点，全面繁荣农村经济，提高农村生产力水平，通过项目实施，蔬菜育苗棚预计增加村集体壮大村集体经济8万元，建设产业路，覆盖4个村民小组，450户农户受益，预计农民人均收入提高300元以上，实现集体经济与村民双受益。社会效益：加强精神文明建设。以多民族“共存、共融、共建、发展、和谐”为主题，扎实开展“三项教育”。生态效益：改善小街社区居民的生产生活条件，促进经济社会发展，同时通过团结进步示范村建设，进一步加强经济发展思路，促进产业结构调整，促进村民自力更生、文明向上的社会主义新风尚的形成，实现小街社区农村经济再上新台阶，产业发展更强劲。","否","吸纳农村劳动力稳定就业增收—吸纳就业","是","否","否","是","郭旭伟",13529750994,"县民宗局","小街街道小街社区","是","否"]
[314,"峨山县","甸中镇","甸头村","其他—少数民族特色村寨建设项目","2025年甸中镇甸头村少数民族村寨建设以工代赈项目","2025年","新建","危房、闲房拆除及拆除后场地平整550平方米；人畜分离圈舍50间",{"v":30,"d":"30.00"},{"v":30,"d":"30.00"},{"v":30,"d":"30.00"},{"v":0,"d":"0.00"},50,174,3,8,"同步抓好美丽乡村建设和乡村产业发展，结合村庄发展规划，科学、合理规划养殖点，解决乡村人居环境整治难点、痛点。","否","带动农户发展生产增产增收—其他","不涉及","否","否","否","柏青涌",18687788158,"县农业农村局","甸中镇甸头村","是","否"]
[315,"峨山县","甸中镇","甸中社区、小甸中村、西就村","产业发展—新型农村集体经济发展项目","甸中镇甸中社区等3个村（社区）“一村一品”特色农产品交易中心项目","2025年","新建","①场地工程：土石方工程2860m³，场地压实，平整，硬化4000㎡；场地排水地沟及铸铁盖板380m，场地栏杆395m。\n②钢结构大棚工程：大棚区场地平整，硬化3150㎡，钢结构大棚主体1440㎡。\n③房屋工程：活动板房改造352㎡，冷库建设110㎡。\n④设施设备：拟购买100KVA变压器、磅秤、制冷设备等设备。",{"v":210,"d":"210.00"},{"v":210,"d":"210.00"},{"v":210,"d":"210.00"},{"v":0,"d":"0.00"},2226,6521,152,420,"一是可有效改变项目区设施农业建设滞后,为传统农业向现代农业转变提供借鉴；二是调节蔬菜上市季节，平衡市场供应；三是改善项目区生产条件，提高耕地排灌能力，减轻农民的劳动强度改善农户的生产生活条件；四是优化资源配置，提高光能利用率和土地利用率，充分利用农业先进技术，加速项目区农业产业结构调整，促进项目区经济发展，社会稳定和社会文明，为乡村振兴打下良好基础；五是促进项目区科技成果的大力推广应用，大幅提高项目区人民群众的环保意识、科技文化水平和综合素质。","否","带动农户发展生产增产增收—其他","是","否","否","否","方勋",null,"县委组织部","项目所在村委会","是","否",null,"进一步细化项目名称及建设内容"]
[316,"峨山县","小街街道","小街社区","乡村建设行动—村容村貌提升","2025年小街街道小街社区柿花园组人居环境整治项目","2025年","新建","污水沟槽开挖13220m,余方弃置330m³，DN300钢带增强波纹管1320m,DE110入户PVC污水管1100m，C25混凝土路面(200mm)2620㎡，埋地式污水处理池1座，其他相关附属设施等",{"v":110,"d":"110.00"},{"v":110,"d":"110.00"},{"v":110,"d":"110.00"},{"v":0,"d":"0.00"},259,388,5,16,"通过人居环境整治项目的实施，可有效改善村内生活条件，显著加强农村基础设施建设，不断提高村民的农业生产效率，农民人均纯收入在现有基础上明显增加，农民生产、生活条件显著改善。","否",null,"是","否","否","是","矣进伟","18287738955","县农业农村局","小街街道办事处","是","否"]
[317,"峨山县","小街街道","小街社区","乡村建设行动—村容村貌提升","2025年小街街道小街社区柿花园组民族团结示范项目（人居环境整治）","2025年","新建","污水沟槽开挖13220m,余方弃置330m³，DN300钢带增强波纹管1320m,DE110入户PVC污水管1100m，C25混凝土路面(200mm)2620㎡，埋地式污水处理池1座，其他相关附属设施等",{"v":80,"d":"80.00"},{"v":80,"d":"80.00"},{"v":80,"d":"80.00"},{"v":0,"d":"0.00"},285,499,47,133,"通过雨污分流工程、村内道路通畅工程、硬化农产品交易场所，提升村庄人居环境，完善基础设施建设，提升村民幸福感。","否",null,"是","否","不涉及","否","柏青涌",18687788158,"县农业农村局","甸中镇甸中社区","是","否"]
[318,"峨山县","小街街道","雨来救村","产业发展—其他","2025年小街街道雨来救片区烤烟特色产业帮扶项目（灌溉工程）","2025年","新建","管网工程总长7.592㎞，其中钢管2.30㎞，塑料管5.292㎞，其他相关附属设施建设等",{"v":100,"d":"100.00"},{"v":100,"d":"100.00"},{"v":100,"d":"100.00"},{"v":0,"d":"0.00"},822,2900,38,122,"有效解决因今年的旱灾，造成人畜饮水困难、生产用水不足的问题。同时在项目建设完成后，能通过收取水费等措施，落实云南省水价改革政策，保障工程的长久运行，产生良好的社会、经济效益。通过“投、融、建、管、营”一体化，有效整合存量资产,助推降本增效，充分发挥优质资源作用，做到用水有保证、总量能控制、高效节水，利用效率明显提高，促进产业发展、乡村振兴。","否","带动农户发展生产增产增收—其他","是","否","否","是","矣进伟","18287738955","县农业农村局","小街街道办事处","是","否"]
[319,"峨山县","甸中镇","甸中社区","乡村建设行动—村容村貌提升","2025年甸中镇甸中社区人居环境整治项目（新大街改造项目）","2025年","新建","对甸中社区新大街进行改造，管网铺设，道路硬化，相关附属设施建设等",{"v":100,"d":"100.00"},{"v":100,"d":"100.00"},{"v":100,"d":"100.00"},{"v":0,"d":"0.00"},285,499,47,133,"通过雨污分流工程、村内道路通畅工程、硬化农产品交易场所，提升村庄人居环境，完善基础设施建设，提升村民幸福感。","否",null,"是","否","不涉及","否","柏青涌",18687788158,"县农业农村局","甸中镇甸中社区","是","否"]
[320,"峨山县","峨山县","永昌社区、宝山村委会、由义社区、凤窝社区","产业发展—休闲农业与乡村旅游","2025年峨山县旅居乡村建设项目","2025年","新建","推进乡村旅居发展的部署要求，满足人民群众多样化、多层次、多方面日益增长的美好生活需求为目标，顺应人民群众新期盼，聚集提高人民生活品质，围绕“有一种叫云南的生活”，推动乡村旅游高质量发展，助力乡村振兴。",{"v":400,"d":"400.00"},{"v":400,"d":"400.00"},{"v":400,"d":"400.00"},{"v":0,"d":"0.00"},1052,2987,76,210,"为深入贯彻党的二十届三中全会、落实省委、省政府关于推进乡村旅居发展的部署要求，满足人民群众多样化、多层次、多方面日益增长的美好生活需求为目标，顺应人民群众新期盼，聚集提高人民生活品质，围绕“有一种叫云南的生活”，推动乡村旅游高质量发展，助力乡村振兴。","否","带动农户发展生产增产增收—其他","是","否","是","是","廖刚","0877-4018176","县农业农村局","永昌社区、宝山村委会、由义社区、凤窝社区","是","否"]
[321,"峨山县","全县八个乡镇街道",null,"产业发展—庭院特色养殖","峨山县2025年各乡镇（街道）庭院经济示范点建设项目","2025年","新建","对各乡镇街道脱贫户和监测劳动力家庭，符合条件的进行庭院经济到户帮扶。计划每户不超过3000补助预留",{"v":150,"d":"150.00"},{"v":150,"d":"150.00"},{"v":150,"d":"150.00"},{"v":0,"d":"0.00"},500,500,500,500,"购买到户的产业发展到户补助类产品，发放至建档户各自进行饲养，进一步稳固脱贫攻坚成果。","是","带动农户发展生产增产增收—其他","不涉及","否","否","否","张文华",15187736683,"县农业农村局","受益户管理","是","否"]
[322,"峨山县","全县八个乡镇街道",null,"巩固三保障成果—享受“雨露计划”职业教育补助","峨山县2025年雨露计划全年补助项目","2025年","新建","按照往年补助情况进行预留2024年春秋两个学期雨露计划补助资金，按照每人每学期1500、2000、2500元进行预留补助。",{"v":200,"d":"200.00"},{"v":200,"d":"200.00"},{"v":200,"d":"200.00"},{"v":0,"d":"0.00"},800,800,800,800,"通过对脱贫及检测家庭的学生进行补助情况进行每人每学期1500、2000、2500元补助。减轻一部分因学带来的脱贫家庭生活负担，让脱贫家庭学生通过中高职就学毕业后促进就业能力。","是","不需要","不涉及","否","否","否","张文华",15187736683,"县农业农村局、教体局","不形成资产","是","否"]
[323,"峨山县","全县八个乡镇街道",null,"产业发展—小额贷款贴息","峨山县2025年小额信贷贴息补助项目","2025年","新建","按照往年贴息情况预留4个贴息金额200万元。",{"v":200,"d":"200.00"},{"v":200,"d":"200.00"},{"v":200,"d":"200.00"},{"v":0,"d":"0.00"},3000,3000,3000,3000,"全额贴息进行贷款补贴，促进脱贫家庭产业发展，拓宽增收途径。","是","带动农户发展生产增产增收—其他、吸纳农村劳动力稳定就业增收—吸纳就业","不涉及","否","否","否","张文华",15187736683,"县农业农村局","不形成资产","是","否"]
[324,"峨山县","全县八个乡镇街道",null,"就业项目—交通费补助","峨山县2025年衔接资金省外务工交通补贴项目","2025年","新建","按照往年省外务工补助情况预留600人务工补贴，每人按照1000元补助标准进行预留。",{"v":60,"d":"60.00"},{"v":60,"d":"60.00"},{"v":60,"d":"60.00"},{"v":0,"d":"0.00"},200,200,200,200,"按照省外务工补助每人1000元补助，为确保有劳动力的零就业家庭动态清零，并推动转移就业劳动力从简单重复型、低收入行业向技能型、合理薪酬行业转移，从临时短期务工岗位向长期稳定务工岗位转移，帮助转移就业劳动力实现稳岗增收。最终达到提升劳动力技能增收一批","是","不需要","不涉及","否","否","否","陈怡含",null,"县人社局","不形成资产","是","否"]
[325,"峨山县","全县八个乡镇街道",null,"就业项目—交通费补助","峨山县2025年衔接资金省内市外务工交通补贴项目","2025年","新建","按照往年省内市外务工补助政策及情况预留700人务工补贴，每人按照500元补助标准进行预留。",{"v":35,"d":"35.00"},{"v":35,"d":"35.00"},{"v":35,"d":"35.00"},{"v":0,"d":"0.00"},700,700,700,700,"按照省外务工补助每人1000元补助，为确保有劳动力的零就业家庭动态清零，并推动转移就业劳动力从简单重复型、低收入行业向技能型、合理薪酬行业转移，从临时短期务工岗位向长期稳定务工岗位转移，帮助转移就业劳动力实现稳岗增收。最终达到提升劳动力技能增收一批","是","不需要","不涉及","否","否","否","陈怡含",null,"县人社局","不形成资产","是","否"]
[326,"峨山县","全县八个乡镇街道",null,"就业项目—公益性岗位","峨山县2025年全年衔接资金公益性岗位开发项目","2025年","新建","按照往年情况预留全年720个岗位每人每月1000元工资进行测算，预留360万元。",{"v":432,"d":"432.00"},{"v":432,"d":"432.00"},{"v":432,"d":"432.00"},{"v":0,"d":"0.00"},600,600,600,600,"通过开发衔接资金公益性岗位，增加无法外出务工的脱贫家庭增加增收渠道，减轻部分生活压力。","是","不需要","不涉及","否","否","否","张文华",15187736683,"县农业农村局","不形成资产","是","否"]
[327,"峨山县","全县八个乡镇街道",null,"就业项目—创业培训","峨山县2025年脱贫劳动力就业培训及输送比亚迪公司就业项目","2025年","新建","按照2023年培训情况，每人补助预计2800元最终补助与人社部门最终审核通过人数为准，预留2024年就业培训补助1500人，每人1500元。",{"v":250,"d":"250.00"},{"v":250,"d":"250.00"},{"v":250,"d":"250.00"},{"v":0,"d":"0.00"},1000,1000,1000,1000,"通过标准化培训，确保有劳动力的零就业家庭动态清零，并推动转移就业劳动力从简单重复型、低收入行业向技能型、合理薪酬行业转移，从临时短期务工岗位向长期稳定务工岗位转移，帮助转移就业劳动力实现稳岗增收。最终达到提升劳动力技能增收一批","是","不需要","不涉及","否","否","否","陈怡含",null,"县人社局","不形成资产","是","否"]
[328,"峨山县","全县八个乡镇街道",null,"就业项目—生产奖补、劳务补助等","峨山县2025年生产奖补项目","2025年","新建","根据联农带农等方式，对产业致富带头人及项目等进行生产奖补",{"v":50,"d":"50.00"},{"v":50,"d":"50.00"},{"v":50,"d":"50.00"},{"v":0,"d":"0.00"},500,500,500,500,"从生产奖补、联农带农效益方面进行政策性奖补","是","带动农户发展生产增产增收—其他","不涉及","否","否","否","张文华",15187736683,"县农业农村局","不形成资产","是","否"]
[329,"峨山县","双江","双江社区、石泉社区","产业发展—产业服务支持项目","  2025年双江街道蔬菜特色产业发展项目（第一期）","2025年","新建","土地平整108771.00㎡、新建田埂3024.00㎡、新建截水沟182.00m、新建机耕路2793.60㎡、新建回车场288.00㎡；地块三：土地平整35457.75㎡、新建田埂1324.00㎡、新建机耕路637.20㎡、新建回车场432㎡。",215,215,{"v":215,"d":"215.00"},{"v":0,"d":"0.00"},19251,49421,379,1387,"本项目以推进双江街道特色产业快速发展、实现产业振兴带动乡村振兴为总体目标，通过对现有农田进行提质改造，打造双江街道蔬菜特色产业的种植示范区、农文旅融合示范区，利用水资源丰富的独特优势，种植荷藕、油菜等兼具农业价值和观赏性的农作物，引入观光旅游、农事研学等旅游服务业态，以农业产业发展带动观光旅游业的发展，从而实现土地保值、产业发展、农产品增值、群众增收的目标。","否","吸纳农村劳动力稳定就业增收—吸纳就业、吸纳农村劳动力稳定就业增收—吸纳就业","是","是","否","是","陈春勇",13608890255,"县农业农村局","双江社区、石泉社区","是","是"]
[330,"峨山县","双江","高平村委会","乡村建设行动—村容村貌提升","2024年双江街道高平村委会乃邑组村庄人居环境整治项目","2025年","新建","新建雨污分离项目，小组公厕，蓄水塘清理加固1座，场地硬化。M7.5砂浆砌毛石挡墙150立方米，C25砼街道硬化3240平方米，DN300预制水泥管安装1080米，水篦子安装54套，检查井安装27座。",{"v":76,"d":"76.00"},{"$f":"L335+M335","v":{"v":76,"d":"76.00"}},{"v":76,"d":"76.00"},{"v":0,"d":"0.00"},54,196,9,33,"通过人居环境整治项目的实施，可有效改善高平村乃邑组54户、196人的出行条件，显著加强农村基础设施建设，不断提高村民的农业生产效率，农民人均纯收入在现有基础上明显增加，农民生产、生活条件显著改善。","否",null,"是","是","是","是","陈春勇",13608890255,"县农业农村局","高平村委会","是","是"]
[331,"峨山县","双江","沐勋村委会","产业发展—其他","2025年双江街道沐勋社区蔬菜储藏加工冷库建设项目","2025年","新建","制冷冷库工程建设300立方米（冷库规格：长14.3米×宽7米×高3米）；其中：库体保温系统一套：库体保温系统建设：安装聚氨酯B2级库板328㎡，安装挤塑100㎡，安装聚氨酯中型平移门1套，保温安装辅材等工程。制冷系统一套：安装制冷机1台，定制冷风机1台制冷安装辅材等工程；电源设施一套：新装变压器一台，冷库电控箱1套，电路改造等工程；新建双层铝瓦屋面钢架房1000㎡，蔬菜分拣设备3套，运输叉车1台等内容；C25场地硬化1500㎡，监控设备安装等工程。含管理费1%。",{"v":140,"d":"140.00"},{"v":140,"d":"140.00"},{"v":140,"d":"140.00"},{"v":0,"d":"0.00"},366,1167,2,7,"通过项目实施，完善农文旅产业基础设施和配套服务设施，改善人居环境、挖掘民俗文化、培育壮大新型经营主体、盘活闲置资产、放活经营方式、激活创业激情，实现土地增值、资产增量、农业增效、农民增收，促进品牌塑造和规模化产销，通过项目实施，壮大集体经济、盘活闲置资产、放活经营方式、激活创业激情。一方面，通过项目的运营增加年村集体经济收入13万元，另一方面，通过就业岗位10个，增加务工年收入36万元，提高群众的收入水平，为沐勋社区的乡村振兴打下良好的产业发展基础。","是","带动农户发展生产增产增收—其他","是","是","是","是","陈春勇",13608890255,"县农业农村局","沐勋村委会","是","是"]
[332,"峨山县","双江街道","双江社区","乡村建设行动—其他","双江街道2025年峨山县少数民族旅游村寨建设项目","2025年","新建","新建砖混结构房207平方米，屋面为铝瓦屋面，层高3.6米，顶高4.5米 ，新建1818平方米场地铺透水砖等工程项目。作为少数民族产业发展展览、非遗传习、文创等展销场所。",{"v":60,"d":"60.00"},{"v":60,"d":"60.00"},{"v":60,"d":"60.00"},{"v":0,"d":"0.00"},2023,4960,373,1375,"通过项目的实施，完善基础设施，加强步道、文化、公共等民族特色旅游设施建设，完善综合服务中心、停车场、旅游公厕等配套设施。提升服务能力，提升村寨旅游“吃、住、行、游、购、娱”配套服务，拓展民族文化旅游市场。促进乡村产业结构调整，促进民族文化产业和旅游业协同发展，推动形成一批“彝”文化旅游产品，拓宽群众就业增收渠道，巩固脱贫攻坚成果。","否",null,"是","正在组织评审","是","是","柏斌",18287770875,"峨山县民宗局","双江社区","是","是"]
[333,"峨山县","双江街道","双江社区","乡村建设行动—其他","双江街道2025年峨山县民族手工业发展项目","2025年","新建","新建砖混结构房134平方米，屋面为铝瓦屋面，层高3.6米，顶高4.5米 ，地面贴地砖。",{"v":20,"d":"20.00"},{"v":20,"d":"20.00"},{"v":20,"d":"20.00"},{"v":0,"d":"0.00"},2023,4960,373,1375,"将民族特色手工业、乡村特色文化产业和旅游产业融合发展，加强民族传统手工艺保护和传承，打造民族文化创意产品和旅游商品品牌，既传承、保护了民族传统文化，又促进了乡村生态产业的发展，助力乡村振兴，对推进经济社会高质量发展具有现实而重大的意义。","否",null,"是","正在组织评审","是","是","柏斌",18287770875,"峨山县民宗局","双江社区","是","是"]
[334,"峨山县","双江街道","登云社区","乡村建设行动—其他","双江街道2025年登云示范社区建设项目","2025年","新建","改扩建路面长328*宽5.5米混凝土道路硬化面积1805平方米。DN300钢带波纹污水管道安装243米。3.钢筋混凝土检查井砌筑9座(1100mm×1100mm×1500mm)。",{"v":30,"d":"30.00"},{"v":30,"d":"30.00"},{"v":30,"d":"30.00"},{"v":0,"d":"0.00"},1009,3178,3,9,"通过项目的实施，公共基础设施更加完善，配套服务保障乡村产业发展，以良好的基础设施来吸引社会资本投入，推动农村电商、乡村旅游等新业态发展。更加完善的基础设施能够提升农业生产效率，增强农业抵御自然灾害的能力，发展产业得到扶持，拓宽了群众增收致富渠道。","否",null,"是","是","否","是","柏斌",18287770875,"县农业农村局","登云社区","是","是"]
[335,"峨山县","小街","由义","乡村建设行动—村容村貌提升","2025 年小街街道由义社区人居环境整治提升项目","2025年","新建","新建沟盖板192m，混凝土沟壁62米（宽0.06m），挡土墙245m，DN800塑料管305米，DN600塑料管735米，DN110塑料管230米;C30水泥混凝土（20cm厚）1147平方米。项目管理费为项目投资总额的1%。",175.66,175.66,{"v":175,"d":"175.00"},0.66,884,2843,40,119,"2025 年小街街道由义社区人居环境整治提升项目，推进由义社区“十四五”巩固拓展脱贫攻坚成果同乡村振兴有效衔接，与爱国卫生“7个专项行动”结合起来，集中全部精力，大力开展提升行动，强力推进人居环境集中整治提升，推进生态文明建设，聚焦群众“急难愁盼”问题，补齐人民群众生活品质短板，切实改善群众生产生活环境。为建设“生产发展、生活宽裕、乡风文明、村容整洁、管理民主”的乡村振兴村打下坚实的基础。项目建设后，将改善社区生活、出行条件，使社区884户2843人受益。","否",null,"是","是","否","是","赵冲",15187786602,"县农业农村局","由义","是","是"]
[336,"峨山县","小街","牛白甸","产业发展-水产养殖业发展","2025 年小街街道牛白甸社区甸百亩组养殖小区建设项目","2025年","新建","1.土石方开挖清运248立方米，2.平整场地7000平方米；毛石挡墙80立方米，DN300污水管500米；DN300雨水管500m；C30混凝土20cm厚6000m2；50m³化粪池2座；电线路520米；变压器1台座。",{"v":223.7,"d":"223.70"},{"v":223.7,"d":"223.70"},{"v":223,"d":"223.00"},{"v":0.7,"d":"0.70"},135,513,9,28,"2025 年小街街道牛白甸社区甸百亩组养殖小区建设，推进组“十四五”巩固拓展脱贫攻坚成果同乡村振兴有效衔接，与爱国卫生“7个专项行动”结合起来，集中全部精力，大力开展提升行动，强力推进人居环境集中整治，推进生态文明建设，聚焦群众“急难愁盼”问题，补齐人民群众生活品质短板，切实改善群众生产生活环境。为建设“生产发展、生活宽裕、乡风文明、村容整洁、管理民主”的乡村振兴村打下坚实的基础。项目建设后，将改善全村村民出行条件，使全组135户513人受益。","是","带动农户发展生产增产增收—其他","是","是","否","是","赵冲",15187786602,"县农业农村局","牛白甸","是","是"]
[337,"峨山县","小街","永昌","乡村建设行动—村容村貌提升","2025年小街街道永昌社区八街窝田园综合体整治提升项目","2025年","新建","雨污分流工程包括挖沟槽土方1070平方米，拆除路面1280平方米，浇筑C25水泥混凝土（厚度20厘米）1280平方米，余方弃置1530立方米；混凝土包管860平方米，铺设DN600HDPE双壁波纹管885米、DN400HDPE双壁波纹管865米、塑料管865米、存水弯120个，建设HDPE塑料检查井90座，安装混凝土雨水篦子97座，建设400毫米×400毫米排水沟、截水沟398米，修筑沟壁模板796立方米，铺设沟盖板62立方米，水管拆安518米，大型机械设备进出场及安拆1台/次，1%项目管理费。",156.66,156.66,{"v":156,"d":"156.00"},0.66,89,276,2,8,"通过小街街道永昌社区八街窝组田园综合体暨美丽乡村“升级”项目建设，重点加强了基础设施建设，精神文明和民主政治建设不断加强，综合生产力全面提高，建档立卡户、监测户人均纯收入在现有基础上稳步增加，项目区域生产、和抗击自然灾害能力显著改善，充分保障经济效益，实现农民持续增收，村级集体经济逐步壮大。使永昌社区建档立卡脱贫户11户37人脱贫人口和监测对象2户8人受益。","否",null,"是","是","否","是","赵冲",15187786602,"县农业农村局","永昌","是","是"]
[338,"峨山县","小街","永昌","乡村建设行动—村容村貌提升","2025年小街街道永昌社区二五组旧村改造项目","2025年","新建","旧村雨污分流工程主要包括开挖沟槽土方1410平方米，拆除路面1049平方米，浇筑C25水泥混凝土（厚度20厘米）1049平方米；混凝土包管1161平方米，铺设DN600HDPE双壁波纹管875米、DN400HDPE双壁波纹管525米、塑料管1234米、存水弯120个，建设HDPE塑料检查井90座，安装混凝土雨水篦子97座，建设600毫米×600毫米排水沟、截水沟398米，铺设沟盖板168立方米，水管拆安1400米等建设内容。大型机械设备进出场及安拆1台/次，1%项目管理费。",204.31,204.31,{"v":200,"d":"200.00"},4.31,150,457,3,9,"通过小街街道永昌社区二五组旧村改造项目实施，重点加强了基础设施建设，盘活了农村闲置土地，精神文明和民主政治建设不断加强，综合生产力全面提高，项目区域生产、和抗击自然灾害能力显著改善，充分保障经济效益，实现农民持续增收，村级集体经济逐步壮大。\n旧村改造理念深入人心，“旧村改造基础设施建设”促进社会主义新农村建设，进一步巩固和发展平等、团结互助、和谐的社会主义民族关系的重要举措，是巩固脱贫攻坚与乡村振兴有效衔接，增加群众幸福感和获得感。","否",null,"是","是","否","是","赵冲",15187786602,"县农业农村局","永昌","是","是"]
[339,"峨山县","小街街道","石邑社区","乡村建设行动—村容村貌提升","2025 年小街街道石邑示范社区建设项目","2025年","新建","1、新建大砖砌筑挡土墙40立方米；2、改建公厕21.5平方米1座及配套设施建设；3、新建环三中新坝塘建设产业道路长1公里，宽4米；4、烧烤区建设：新建烧烤摊位4间，占地64平方米；5、硬化烧烤区场地C30场地混凝土砼（15厘米）350平方米；6、新建钓位50个；7、安装太阳能路灯10盏。",30.66,30.66,{"v":30,"d":"30.00"},0.66,543,1752,29,83,"项目建成后，将实现集体经济和居民双增收。一是将实现村集体经济增收不低于项目投资10%，二是新增就业岗位10个，有效带动当地群众就业，居民在“家门口”就实现增收。","否","吸纳农村劳动力稳定就业增收—吸纳就业、吸纳农村劳动力稳定就业增收—吸纳就业","是","是","否","是","赵冲",15187786602,"县农业农村局","石邑社区","是","是"]
[340,"峨山县","小街街道","水车田村","乡村建设行动—村容村貌提升","2025年小街街道水车田村委会水车田组民族村寨提升建设项目","2025年","新建","1、村内道路挡墙120米。挖沟槽土方(湿土)230.61m³，挖沟槽土方1036.9m³，回填方642.18，石基础153.37m³，石挡土墙483.29m³，泄水孔处排水管88.27m，大型机械设备进出场及安拆1台次。2、村内道路环境治理:毛石挡土墙外人行道路整治。",30.08,30.08,{"v":30,"d":"30.00"},0.08,110,404,4,9,"2025年小街街道水车田村委会水车田组民族村寨提升建设项目的实施更新发展理念，拓宽了群众增收致富渠道，产业得到扶持，种植业、养殖业、服务业进一步发展，文化得以保护、传承和开发，进一步增强当地群众自我发展和自我管理的能力。群众的生产生活条件有明显改善，经济发展路子得到拓宽，收入有明显增加","否",null,"是","是","否","是","赵冲",15187786602,"县农业农村局","水车田村","是","是"]
[341,"峨山县","小街街道","文明社区","产业发展—种植业基地","2025年小街街道文明社区鲜花分拣厂房项目","2025年","新建","建设560m²鲜花分拣厂房（包括柱子、屋架、瓦梁、顶瓦、围墙建设）、修缮排水等基础设施。",26.88,26.88,{"v":20,"d":"20.00"},6.88,682,2208,21,47,"项目建成后，将实现集体经济和居民双增收。一是每年为村集体经济增加2万元收入。二是新增就业岗位15个，有效带动当地群众就业，居民在“家门口”就实现增收。","是","吸纳农村劳动力稳定就业增收—吸纳就业、吸纳农村劳动力稳定就业增收—吸纳就业","是","是","否","是","马创",13637971314,"县农业农村局","文明社区","是","是"]
[342,"峨山县","小街街道","文明社区","产业发展—新型农村集体经济发展项目","2025年小街街道文明社区抓党建促乡村振兴“小街街道文明社区四位一体”项目","2025年","新建","（1）新建农产品交易综合中心1个，概算投资330万元。①钢筋混凝土框架结构，建筑面积1974平方米，占地面积987平方米、概算投资270万元；②水电及附属设施，概算投资60万元。\n（2）新建鲜花分拣车间1个，概算投资20万元。建筑面积560平方米（包含柱子、屋架、瓦梁、顶瓦、围墙建设），划分为分拣区、包装区、质检区、临时仓储区。",{"v":350,"d":"350.00"},{"v":350,"d":"350.00"},{"v":350,"d":"350.00"},{"v":0,"d":"0.00"},682,2208,21,47,"项目建成后，将实现集体经济和居民双增收。一是每年为村集体经济增加2万元收入。二是新增就业岗位15个，有效带动当地群众就业，居民在“家门口”就实现增收。","否","吸纳农村劳动力稳定就业增收—吸纳就业、吸纳农村劳动力稳定就业增收—吸纳就业","是","否","是","是","赵冲",15187786602,"峨山县委组织部","文明社区","是","是"]
[343,"峨山县","化念镇","党宽社区党宽组","乡村建设行动—村容村貌提升","2025年化念镇党宽社区党宽组人居环境整治项目","2025年","新建","（一）村内道路硬化、新建挡土墙工程：村内道路硬化6800㎡；路旁安装安全护栏300m；新建挡土墙733m³；村内活动场所硬化1200m²。\n（二）排水工程：安装DN500雨水管920m，DN300雨水支管550m；单篦式雨水口50座，排水沟（400*400）200，。\n排污工程：安装DN500污水管920m；安装DN300污水支管550m；；安装井径0.7m检查井25座；新修污水处理池（氧化塘）一座。",{"v":285,"d":"285.00"},{"$f":"L348+M348","v":{"v":285,"d":"285.00"}},{"v":285,"d":"285.00"},{"v":0,"d":"0.00"},102,338,25,89,"通过人居环境整治项目的实施，可有效改善党宽社区人民群众出行条件，显著加强农村基础设施建设，不断提高村民的农业生产效率，农民人均纯收入在现有基础上明显增加，农民生产、生活条件显著改善。","否",null,"是","是","否","是","普云洁",15825133960,"县农业农村局","党宽社区党宽组","是","是"]
[344,"峨山县","岔河乡","河外村委会、文山村委会","乡村建设行动—村容村貌提升","2025年岔河乡以工代赈项目（人居环境整治）","2025年","新建","人居环境提升改造（垃圾转运点建设），其中涉及岔河乡文山村、河外村两个村民委员会，共14个村民小组。",{"v":110,"d":"110.00"},{"v":110,"d":"110.00"},{"v":110,"d":"110.00"},{"v":0,"d":"0.00"},425,1350,125,311,"通过人居环境整治项目的实施，可有效改善高平村乃邑组54户、196人的出行条件，显著加强农村基础设施建设，不断提高村民的农业生产效率，农民人均纯收入在现有基础上明显增加，农民生产、生活条件显著改善。","否",null,"是","是","否","是","刘夏良",18608779968,"县农业农村局","河外村委会、文山村委会","是","是"]
[345,"峨山县","塔甸镇","海味村委会","产业发展—种植业基地","2025年塔甸镇海味村国产百合（原种组培球）生产基地建设项目","2025年","新建","1、新建30亩（顶高5.5米，肩高4米）钢架连体大棚主体，电动卷膜器74台，压膜袋32486.4m，丰谷13丝撒光膜58871.13㎡，（95％遮光率）遮阳网58871.13㎡，防鸟网3263.08m³，设备、材料（喷灌和滴灌网）等设施安装20000.1㎡；                                             2、500m³的蓄水池一座。                                                                                              3、新建抽水站1座，水泵型号D25-30*5,1台/套，PE90管435m，Dg80镀锌管1987.95m，机房12㎡，进水池6m³，电力设施1项；                                                           4、含项目管理费。",232.83,232.83,232.83,{"v":0,"d":"0.00"},188,452,55,112,"牛白甸社区林果设施蓝莓特色产业园建设项目采取以农业经营为基础，带动二三产业联动发展，充分发挥平台作用，吸引高层次市场资源，全面推进乡村振兴。1、经济效益：建设现代化农业示范基地，提高农业生产效益，增加农民收入和促进农村文明为核心，提高农业生产力水平，促进社区集体经济发展，吸纳就业人员，预计每年可增加集体经济收入50万元。2、社会效益：产业园建设可关联效应强大的农产品加工、分级包装及人才培养等服务产业，从而促进乡村一二三产业更好的粘连与融合。3、改善农村风貌，建设美丽乡村，促进农业产业升级发展，促进旅游业的发展，在蓝莓产业的基础上，发展完善以乡村振兴和科、教、文、旅主导的一三产业农旅结合。","是","带动农户发展生产增产增收—其他","是","是","否","是","刘夏良",18608779968,"县农业农村局","海味村委会","是","是"]
[346,"峨山县","塔甸镇","嘿腻村委会","产业发展—种植业基地","2025年塔甸镇嘿腻村峨甲莫鲜切花基地冷链物流项目","2025年","新建","1、安装机房制冷设备，25HP水冷制冷机组4台，8台冷风机DD-160，冷风机吊支架8套，供液.回液无缝钢管8套，冷风机制冷用阀件（膨胀阀）8套，冷风机下水管道套，制冷管道保温及包扎带套，5套制冷剂R22，冷冻油8桶，低值消耗品（氧气、乙炔、氮气、银焊条、电焊条等）1批。2、安装保温气调库房，墙板、顶板：δ100厚聚氨酯双面彩钢保温板786㎡，顶板吊支架8套，库门M2400×3000手动气调平移冷库门4扇，地坪保温板：δ100厚挤塑保温板36m³，PVC防潮隔汽膜1卷，包角.角铝.铁弯头.铁三通.波纹管等8套，五金配件(玻璃胶、发泡剂、铆钉、钢钉等）1批。3、安装电器，冷库智能PLC控制柜（含温度控制、显示器）1台，冷库末端控制柜4台，冷库房照明用耐低温防潮LED灯24个，4台离心风幕机L2400，制冷机组电源线4套，冷风机电源线4套，电磁阀控制电源线4套，曲轴加热电源线4套，温控电源线3套，照明连接管线及开关3套，线管、线槽、波纹管等电工辅件3套。4、安装水泵，水塔（30T）4套，水泵4台，4卷。5、安装气调，气调一体机4台，分配站1台，加湿器1台，灭菌机1台，空压机1台，呼吸袋4个，取样阀4台，安全阀4套，无纺布1250m，气密胶215kg，设备安装费1项，气密施工费1250m，运费1项。6、安装钢柱，钢柱1套，钢梁1套，彩钢瓦1套，吊车梁1套，链接材料1套，次结构（支撑 系杆 拉条等等）1套，雨水管1套，安装费1套。7、新建地面硬化工程，土方开挖496.8m³，C20混凝土（含0.3m*0.4m158米排水沟混凝土）406m³，C30路面混凝土（长102米，宽6.5米，厚0.2米）132.6m³。8、含项目管理费。",154.94,154.94,154.94,{"v":0,"d":"0.00"},352,847,76,270,"塔甸镇嘿腻村峨甲莫鲜切花建设项目采取以农业经营为基础，带动二三产业联动发展，充分发挥平台作用，吸引高层次市场资源，全面推进乡村振兴。1、经济效益：建设现代化农业示范基地，提高农业生产效益，增加农民收入和促进农村文明为核心，提高农业生产力水平，促进社区集体经济发展，吸纳就业人员，预计每年可增加集体经济收入。","是","带动农户发展生产增产增收—其他","是","是","否","是","李山",18787760146,"县农业农村局","嘿腻村委会","是","是"]
[347,"峨山县","富良棚乡","美党村委会","产业发展—种植业基地","2025年富良棚乡中草药续断科研晾晒创新基地建设项目","2025年","新建","新建占地面积600㎡晾晒场钢结构晾晒厂房，彩钢瓦屋面990㎡，C25混凝土场地硬化1120㎡，配套水电设施。建设规模为：\n1.场地工程：平整场地920㎡，并做20cm厚C25混凝土场地硬化作为厂房和仓库地面。2.建筑工程：钢结构厂房600㎡，高度10m，下方2m为混凝土实心砖墙结构，内外抹灰，上部分和屋顶为钢结构；彩钢瓦屋面990㎡；新建仓库130㎡，砖混结构，钢筋混凝土顶，安装门窗。3.水电工程：生产水电安装1项和排水沟300m。\n总投资100万元（衔接资金）。项目管理经费占比按照省级资金提取5%以内计算。",{"v":233,"d":"233.00"},{"v":233,"d":"233.00"},{"v":233,"d":"233.00"},{"v":0,"d":"0.00"},322,818,145,312,"富良棚乡中草药续断科研晾晒创新基地项目采取以农业经营为基础，带动二三产业联动发展，充分发挥平台作用，吸引高层次市场资源，全面推进乡村振兴。1、经济效益：建设现代化农业示范基地，提高农业生产效益，增加农民收入和促进农村文明为核心，提高农业生产力水平，促进社区集体经济发展，吸纳就业人员，预计每年可增加集体经济收入。","是","带动农户发展生产增产增收—其他","是","是","否","是","李山",18787760146,"县农业农村局","美党村委会","是","是"]
[348,"峨山县","富良棚乡","石板村委会","产业发展—产业园（区）","、2025年富良棚乡石板村委会蔬菜运输塑料框箱生产工厂（二期）建设项目","2025年","新建","在丫勒交易市场上方空地（一期旁），建设1500㎡的框箱生产厂房，150mm厚C25混凝土场地硬化1500㎡，遮雨棚屋面1500㎡，安装变压器一台，排水沟120m，配套安装水电等设施。\n总投资100万元，项目管理经费不超过省级资金5%。",{"v":155,"d":"155.00"},{"v":155,"d":"155.00"},{"v":155,"d":"155.00"},{"v":0,"d":"0.00"},338,1124,139,579,"富良棚乡石板村委会蔬菜运输塑料框箱生产工厂（二期）建设项目采取以农业经营为基础，带动二三产业联动发展，充分发挥平台作用，吸引高层次市场资源，全面推进乡村振兴。1、经济效益：建设现代化农业示范基地，提高农业生产效益，增加农民收入和促进农村文明为核心，提高农业生产力水平，促进社区集体经济发展，吸纳就业人员，预计每年可增加集体经济收入。","是","带动农户发展生产增产增收—其他","是","是","是","是","施妍蕾",15987731863,"县农业农村局","石板村委会","是","是"]
[349,"峨山县","富良棚乡","翻家村委会","产业发展—小型农田水利设施建设","2025年富良棚乡烤烟及蔬菜产业帮扶项目（富良棚乡农业综合水价改革项目）","2025年","新建","1.翻家村翻家、大田、花椒、石榴四个组农业用水取水方式进行改造，新建农业用水有偿使用节水灌溉工程，DN150取水主管679米，管理房及阀门安装；2.富良棚村阿让比水库农业用水取水方式进行改造，新建DN150取水主管700m，砖混结构管理房，安装水表、阀门，新建DN100取水支管400m；3.含项目管理费。",{"v":40,"d":"40.00"},{"v":40,"d":"40.00"},{"v":40,"d":"40.00"},{"v":0,"d":"0.00"},398,1759,194,651,"项目建成后，富良棚乡主要的烟草产业和蔬菜产业区翻家村翻家、大田、花椒、石榴四个组农业用水取水方式得到改造，新建农业用水有偿使用节水灌溉工程，通过创新的方式实现农业灌溉保障的同时通过有偿的方式约束灌溉用水量，做到节约用水可持续发展。有效提高当地农业生产生活高效节水，大大改善产业基础设施配套。","否","带动农户发展生产增产增收—其他","是","否","否","是","王莹",15758129945,"县农业农村局","翻家村委会","是","是"]
[350,"峨山县","大龙潭乡","司城村委会","产业发展-水产养殖业发展","2025年大龙潭乡云南高原土著鱼研究院保育基地建设项目","2025年","新建","新建土著鱼资源保护池1个，土著鱼培育池12个，新建管理房4间，防护栏安装，管道工程及其附属设施。",{"v":290,"d":"290.00"},{"$f":"L355+M355","v":{"v":290,"d":"290.00"}},{"v":290,"d":"290.00"},{"v":0,"d":"0.00"},399,1358,122,354,"2025年大龙潭乡云南高原土著鱼研究院保育基地建设项目采取以农业经营为基础，带动二三产业联动发展，充分发挥平台作用，吸引高层次市场资源，全面推进乡村振兴。1、经济效益：建设现代化农业示范基地，提高农业生产效益，增加农民收入和促进农村文明为核心，提高农业生产力水平，促进社区集体经济发展，吸纳就业人员，预计每年可增加集体经济收入。","是","带动农户发展生产增产增收—其他","是","是","否","是","赵冲",15187786602,"峨山县委组织部","司城村委会","是","是"]
[351,"峨山县","甸中镇",null,"产业发展—产业园（区）","2025年甸中镇油橄榄加工基地建设项目（民族团结示范乡镇建设项目）","2025年","新建","1.场地压实、平整及硬化2500平方米；2.重钢结构综合生产厂房：占地面积2500平方米，两层，建筑面积4000平方米；3.设施设备：安装油橄榄生产加工设备1套，304不锈钢储油罐（30立方米）20个，橄榄油灌装生产设备1套；4.安装200KVA变压器1台，配套水暖、消防安全等设施。含1%项目管理费。",{"v":500,"d":"500.00"},{"v":500,"d":"500.00"},{"v":500,"d":"500.00"},{"v":0,"d":"0.00"},585,1687,125,338,"2025年甸中镇油橄榄加工基地建设项目采取以农业经营为基础，带动二三产业联动发展，充分发挥平台作用，吸引高层次市场资源，全面推进乡村振兴。1、经济效益：建设现代化农业示范基地，提高农业生产效益，增加农民收入和促进农村文明为核心，提高农业生产力水平，促进社区集体经济发展，吸纳就业人员，预计每年可增加集体经济收入。","是","带动农户发展生产增产增收—其他","是","是","是","是","李山",18787760146,"县农业农村局","甸中镇","是","是"]
[352,"新平县","古城街道","他拉社区","产业发展—市场建设和农村物流","新平县古城街道他拉社区农产品集散中心建设项目","2025年","新建","新建钢结构农产品集散中心870㎡、平整并硬化场地及道路200㎡、室外地坪硬化210㎡、石挡土墙支砌42m³等附属设施，新建24㎡公厕一座。",{"$f":"SUM(K357)","v":57.01},57.01,{"v":50,"d":"50.00"},7.01,986,4437,8,33,"通过建设农产品集散中心可以通过集中交易和存储，能够有效降低物流成本，提高农产品的流通效率。使得农产品从田间地头到市场餐桌的每一步都更加顺畅‌。","否","吸纳就业、订单生产","是","否","否","是","杨锐锋",13887730666,"县农业农村局","他拉社区","是","是"]
[353,"新平县","古城街道","古城社区","乡村建设行动—农村供水保障设施建设","新平县古城街道古城社区白家寨等五个小组人饮安全保障三期项目","2025年","新建","一、100T/H重力式一体化净水设备1台；二、设备安置基础：混凝土条形基础浇筑，规格：11*4.6*4.5；三、三相电路架设，电杆栽立；四、其他。 ",{"v":67,"d":"67.00"},{"v":67,"d":"67.00"},{"v":67,"d":"67.00"},{"v":0,"d":"0.00"},321,1167,1,4," 保障辖区居民的生活用水，改善了群众的饮水卫生，提高生产生活条件。认真贯彻“加强经营管理，讲究经济效益”的方针，进一步深化改革，强化管理，使水厂的社会效益和直接经济效益有一个更大的提高。饮水条件的改善，物质生活水平将得到提高，从而带动农村经济结构和产业结构的进一步调整，带动经济社会的快速发展。","否","不需要","是","否","否","否","陈顺亮",13887756031,"县水利局","古城社区","是","否"]
[354,"新平县","古城街道","他拉社区","其他—少数民族特色村寨建设项目","新平县古城街道他拉社区下鲊马命小组民族团结进步示范村项目","2025年","新建","村庄道路硬化2700平方米；村组排污管网300米；公共照明设施15盏；灌溉沟渠800米；蔬菜运输道路2000平方米，蔬菜交易场地硬化500平方米，挡墙200立方米；蔬菜交易厂房240平方米。",116.17,116.17,{"v":100,"d":"100.00"},16.17,46,199,0,0," 改善群众的生产生活条件，为经济社会的发展进一步创造了基础条件。提升了地方形象，促进村庄的吸纳能力和承载功能，解决部分剩余劳动力务工收入。","否","带动农户发展生产增产增收—其他","是","否","否","否","方德海","15087711658","县民宗局","他拉社区","是","是"]
[355,"新平县","古城街道","纳溪社区","乡村建设行动—村容村貌提升","新平县古城街道纳溪社区阿得甸小组人居环境综合整治项目","2025年","新建","一、水泥混凝土路面浇筑2877平方米；二、污水管网建设：1.污水主管网：埋设DN300钢带增强PE螺旋波纹管94m，垫层及厚度：100mm厚C15混凝土垫层，包封材料：粗砂，其他：含管道铺设、连接、密封。2. 污水支管网：埋设DN200 uPVC管200m，垫层及厚度：100mm厚C15混凝土垫层，包封材料：粗砂，其他：含管道铺设、连接、密封。3. 砖检查井：新建井截面、深度为1000*1000*1000mm 及混凝土井盖的砖检查井4座。三、新建石挡土墙：621m3；四、新建水沟：新建沟底厚100mm、沟心宽400mm、沟壁厚200mm，高300mmC20混凝土水沟400m；五、氧化池：新建100m³氧化池2座。",{"$f":"K360","v":92.68},92.68,92.68,{"v":0,"d":"0.00"},54,227,0,0,"改善群众的生产生活条件和居住环境，加快乡村振兴步伐，提高群众的居住质量和生活质量，提高生态环境水平，提升了地方形象。同时带动周边群众发展新产业项目，壮大集体经济收入为经济社会的发展进一步创造了基础条件。","否","不需要","是","否","否","否","孙建东","15188196802","县农业农村局","纳溪社区","否","否"]
[356,"新平县","古城街道","他拉社区","产业发展—小型农田水利设施建设","新平县古城街道他拉社区河头小组产业发展灌溉沟渠建设项目","2025年","新建","灌溉沟渠支砌2000米，投入资金30万元，其他财政资金0万元。",{"$f":"K361","v":{"v":30,"d":"30.00"}},{"v":30,"d":"30.00"},{"v":30,"d":"30.00"},{"v":0,"d":"0.00"},40,167,0,0," 改善群众的生产生活条件，为经济社会的发展进一步创造了基础条件。提升了地方形象，促进村庄的吸纳能力和承载功能，解决部分剩余劳动力务工收入。","否","带动农户发展生产增产增收—其他","是","否","否","否","方德海","15087711658","县农业农村局","他拉社区","否","否"]
[357,"新平县","桂山街道","亚尼社区","产业发展—产业园（区）","新平县桂山街道亚尼社区现代农业产业示范园项目","2025年","新建","新建钢架结构连体大棚6750平方米，安装控温设备20套，安装水肥一体化设备滴灌管网1380米，机耕道路硬化850平方米，机械场地平整6666.7平方米。",{"$f":"SUM(K362)","v":51.75},51.75,{"v":50,"d":"50.00"},1.75,36,141,0,0,"经济效益得到充分发挥，拓展农业农村多样性功能，全产业链拓展农业增质增效空间，在探索农村“三变”改革同时，扩宽农民增收渠道，拓展集体经济发展新模式，让群众在生产迭代升级中更多共享改革红利，实现农、文、旅深度融合发展，实现政府、企业、集体、群众多方收益受益，为乡村振兴典型带动做出积极示范。","否","带动农户发展生产增产增收—其他","是","否","是","是","白学伟",13608777781,"县农业农村局","亚尼社区","是","是"]
[358,"新平县","桂山街道","太平社区","产业发展—品牌打造和展销平台","新平花陶工贸有限公司民族手工艺融合创新发展项目","2025年","新建","电窑1台、拉坯机20套、展示柜1个、雕刻工具10套、花 腰傣民俗文化调研材料收集整理10套、工作桌3套、公益课10 场的材料费。",8.04,8.04,{"v":5,"d":"5.00"},3.04,45,225,0,0,"通过项目实施，扩大生产规模，促进各民族交往交流交融，拉近了各族群众的和睦关系，促进了民族团结，带动了各族群众增收致富，传承保护花腰傣手工艺陶技。","否","带动农户发展生产增产增收—其他","不涉及","否","是","否","董曜华",13378895268,"县民宗局","太平社区","是","是"]
[359,"新平县","平甸乡","磨皮村","乡村建设行动—村容村貌提升","新平县平甸乡2025年“千万工程”乡村振兴人居环境整治提升建设项目","2025年","新建","阿者大寨小组人居环境基础设施提升建设。1.组内道路硬化680m，2.建设路边挡墙和排水沟120立方；3.村庄护栏建设300米；4.新建阿者大寨小组1座公厕、费贾村公共卫生厕所建设1座。",{"v":41,"d":"41.00"},{"v":41,"d":"41.00"},{"v":41,"d":"41.00"},{"v":0,"d":"0.00"},44,189,9,32,"实现小组组内主要道路全面硬化，解决小组公共区域入厕紧张问题，为下一部全面打造人居环境示范村奠定良好基础。","否","不需要","是","否","否","否","严祥",15969303757,"县农业农村局","磨皮村","是","是"]
[360,"新平县","平甸乡","者甸、红星、弥勒村","产业发展—养殖业基地","新平县平甸乡2025年未消除风险户产业到户补助项目","2025年","新建","未消除风险户产业到户补助4户，其中种植业补助1户，养殖业补助3户。户均补助3000元，由各乡镇制定具体奖补办法，实行差异化补助。",{"v":1.2,"d":"1.20"},{"v":1.2,"d":"1.20"},{"v":1.2,"d":"1.20"},{"v":0,"d":"0.00"},4,17,4,17,"通过实施平甸乡2025年未消除风险户产业到户补助项目，激发农村低收入群体的内生发展动力，通过产业发展直接增加农户家庭经营性收入，减少返贫风险，提升生活质量，从而实现稳定增收、提升自我发展能力，最终巩固脱贫成果、助力乡村产业振兴，推动农村经济社会可持续发展。","是","带动农户发展生产增产增收—其他","不涉及","否","否","否","吴玉祥",15987289155,"县农业农村局","者甸、红星、弥勒村","是","是"]
[361,"新平县","平甸乡","宁河村","乡村建设行动—村容村貌提升","新平县平甸乡宁河村阿梯左小组和美乡村建设项目","2025年","新建","1.建设排污管网1500米、2.雨水排放沟1000米、3.污水处理设施（化粪池）1座，4.照明设施25盏、5.农产品集贸交易市场1056平方米。",{"v":53,"d":"53.00"},{"v":53,"d":"53.00"},{"v":53,"d":"53.00"},{"v":0,"d":"0.00"},95,384,2,7,"1.建设排污管网1500米，2.雨水排放沟1000米，3.污水处理设施（化粪池）3座，4.照明设施25盏，5.农产品集贸交易场地平整1056平方米，6.停车场硬化300平方米。","否","不需要","是","否","否","否","严祥",15969303757,"县农业农村局","宁河村","是","是"]
[362,"新平县","平甸乡","者甸村","产业发展—加工业","新平县平甸乡者甸村百合鲜切花（种球）标准化分拣中心","2025年","新建","新建恒温车间500㎡一座，分级流水线5条，消毒池一座，分拣台一座。\n",{"v":80,"d":"80.00"},{"v":80,"d":"80.00"},{"v":70,"d":"70.00"},{"v":10,"d":"10.00"},95,364,1,3,"发展当地特色产业，解决当地剩余劳动力就近务工。壮大村集体收入每年5万元以上。解决农村剩余劳动力1000人次以上。","否","吸纳农村劳动力稳定就业增收—吸纳就业","是","否","是","是","方芸",18214175275,"县委组织部","者甸村","是","否"]
[363,"新平县","平甸乡","梭克村","产业发展—其他","新平县平甸乡2025年梭克村烤房建设项目","2025年","新建","平甸乡梭克村新建1群烤房，配备主体房、管理房、配电房及室外配套工程等。",{"v":250,"d":"250.00"},{"v":250,"d":"250.00"},{"v":250,"d":"250.00"},{"v":0,"d":"0.00"},90,393,3,10,"梭克、马场片区集中规划建设1群烤房，由村级统一组织实施商品化烘烤，建立与烟农的商品化烘烤服务联农带农机制，提高烟叶烘烤质量，降低群众烘烤成本，促进增加收入。","否","带动农户发展生产增产增收—其他","是","否","否","否","张伟",18308770864,"县烟草产业服务中心","梭克村","是","否"]
[364,"新平县","平甸乡","磨皮村","乡村建设行动—农村供水保障设施建设","新平县平甸乡磨皮村情人谷至秋香晚芒公司提水设施建设项目","2025年","新建","从磨皮村情人谷柠檬基地位置建设2千米左右提水设施至秋香晚芒公司以满足公司及周边群众农业用水需求，项目建设资金预计40万元。",{"v":40,"d":"40.00"},{"v":40,"d":"40.00"},{"v":40,"d":"40.00"},{"v":0,"d":"0.00"},84,337,11,35,"通过提水项目建设，合理开发利用情人谷水力资源，保障和缓解磨皮大小寨片区群众和秋香晚芒公司枯水期农业生产用水紧张问题。","否","带动农户发展生产增产增收—其他","是","否","否","否","吴玉祥",15987289155,"县农业农村局","磨皮村","否","是"]
[365,"新平县","平甸乡","弥勒村","乡村建设行动—农村供水保障设施建设","新平县平甸乡弥勒村大寨小组人饮管子更换","2025年","新建","需要更换1.7公里的人饮管道。",{"v":10,"d":"10.00"},{"v":10,"d":"10.00"},{"v":10,"d":"10.00"},{"v":0,"d":"0.00"},44,159,1,3,"解决大寨小组159个人口人饮困难问题、提升群众生产生活条件。","否","不需要","不涉及","否","否","否","吴玉祥",15987289155,"县农业农村局","弥勒村","否","否"]
[366,"新平县","戛洒镇","腊戛底村","产业发展—市场建设和农村物流","新平戛洒镇腊戛底村平掌小组农副产品集散地建设项目","2025年","新建","项目总占地面积600㎡（约56.2亩），总建筑面积488㎡。其中彩钢瓦房400㎡；设备用房70㎡；场地硬化建设面积：600㎡；公厕一个18㎡。项目建设内容包括新建大平掌竹笋加工厂、购置相关设备、给排水、电力等基础设施。",{"v":52,"d":"52.00"},{"v":52,"d":"52.00"},{"v":52,"d":"52.00"},{"v":0,"d":"0.00"},49,210,null,null,"通过建设改善农副产品集中交易和存储，能够有效降低物流成本，提高农产品的流通效率。使得农产品从田间地头到市场餐桌的每一步都更加顺畅‌。","否","带动生产，就业务工，帮助产销对接","是","否","否","否","魏嘉欣",15825149646,"县农业农村局","腊戛底村","是","是"]
[367,"新平县","戛洒镇","平田村","产业发展—小型农田水利设施建设","新平县戛洒镇平田村柑橘规范化种植管网建设","2025年","新建","1.输水管道工程：新建输水管道全长 3441km ，管径为DN150-DN100；\n2.灌溉水池工程：新建 200m³灌溉水池 1 座、100m³灌溉水池 6 座；\n3.灌溉管道工程：新建 DN50 管 6783m ，DN40 管 4476m ，全长 11259m。",146.88,146.88,115.44,31.44,456,1564,50,164,"该项目的实施一方面提高平田村3000余亩柑橘的产值，增加农户的收入；另一方面村委会依托水利灌溉管网可通过收取水费试行农业水价综合改革和成立柑橘产销专业合作社，凝聚力量，增加村集体经济收入5万元左右。","否","其他，带动生产","是","否","否","否","杨家福",15188179221,"县农业农村局","平田村","是","否"]
[368,"新平县","戛洒镇","新寨村","产业发展—小型农田水利设施建设","新平县戛洒镇新寨村柑橘产业基地提升改造建设项目","2025年","新建","项目覆盖戛洒镇新寨村8个小组2812亩柑橘地，主要建设内容为农业灌溉设施提升改造，包括新建500m³蓄水池2座、200m³蓄水池1座、100m³蓄水池3座；安装DN150热镀锌钢管2785米、DN100热镀锌钢管6850米。",{"v":150,"d":"150.00"},{"v":150,"d":"150.00"},{"v":150,"d":"150.00"},{"v":0,"d":"0.00"},277,856,0,0,"通过项目建设，可以提高苹果种植的生产效率,降低生产成本,推动产业向规模化、集约化、标准化的方向发展，。","否","带动生产，就业务工","是","否","否","否","魏嘉欣",15825149646,"县农业农村局","新寨村","是","是"]
[369,"新平县","戛洒镇","曼哈社区","易地搬迁后扶—“一站式”社区综合服务设施建设","戛洒镇曼哈社区2025年度易地搬迁后续扶持以奖代补项目","2025年","新建","砖砌围墙250.8m³，场地硬化460㎡，锌钢栏杆90米，污水管网修缮57米。",{"v":25,"d":"25.00"},{"v":25,"d":"25.00"},{"v":25,"d":"25.00"},{"v":0,"d":"0.00"},488,1848,null,null,"通过项目建设进一步改善搬迁安置点的居住环境和生活质量，满足居民的基本生活需求。","否","吸纳农村劳动力稳定就业增收—其他","是","是","否","否","魏嘉欣",15825149646,"新平县发改局","曼哈社区","是","是"]
[370,"新平县","戛洒镇","耀南村","产业发展—养殖业基地","新平戛洒镇2025年未消除风险户产业到户补助项目","2025年","新建","未消除风险户产业到户补助11户，其中种植业补助7户，养殖业补助4户。户均补助3000元，由各乡镇制定具体奖补办法，实行差异化补助。",{"v":3.3,"d":"3.30"},{"v":3.3,"d":"3.30"},{"v":3.3,"d":"3.30"},{"v":0,"d":"0.00"},11,46,11,46,"过开展该项目，促进有劳动力且具有产业发展条件的未消除风险户实现产业发展稳定增收，并激发群众内生动力。","是","带动农户发展生产增产增收—其他","不涉及","否","否","否","魏嘉欣",15825149646,"县农业农村局","耀南村","是","是"]
[371,"新平县","戛洒镇","腰街社区","乡村建设行动—村容村貌提升","新平戛洒镇2025年“千万工程”乡村振兴人居环境整治提升建设项目","2025年","新建","1.腰街社区：场地排水改造150米，砖砌隔断300m³，活动场地排污管道改造（DN800混泥土管）50米，场地硬化200㎡。                                                        2.厕所革命：腰街社区第三小组新建公厕1座（20㎡），米尺莫村拉恩格小组建设1座公厕，共2座公厕，三格式化粪池、洗手台等相关设施。",{"v":28,"d":"28.00"},{"v":28,"d":"28.00"},{"v":28,"d":"28.00"},{"v":0,"d":"0.00"},72,230,5,20,"通过该项目实施后，进一步改善人居环境问题，为当地的持续发展打下坚实的环境基础。","否","吸纳农村劳动力稳定就业增收—其他","是","否","否","否","魏嘉欣",15825149646,"县农业农村局","腰街社区","是","是"]
[372,"新平县","戛洒镇","腰街社区","产业发展—加工业","新平县戛洒镇腰街社区一次性筐子厂建设项目","2025年","新建","利用社区位于思源大道边空地建设一次性筐子厂1个，占地900㎡，购置塑框生产线设备1套，钢架大棚、冷库50㎡两个。",{"v":460,"d":"460.00"},{"v":460,"d":"460.00"},{"v":460,"d":"460.00"},{"v":0,"d":"0.00"},1000,3654,15,65,"通过建设一次性筐子厂，带动周边农户收入，促进村集体经济壮大。","否","促进农户共享资产收益增收—房屋租赁获得租金","是","否","是","是","周  明",13988478288,"县农业农村局","腰街社区","否","否"]
[373,"新平县","水塘镇","拉博村","产业发展—小型农田水利设施建设","新平县水塘镇拉博村产业灌溉基础设施提升建设项目","2025年","新建","50m³减压池1座，DN150镀锌钢管218m，\nDN100镀锌钢管3563m。",{"v":50,"d":"50.00"},{"v":50,"d":"50.00"},{"v":50,"d":"50.00"},{"v":0,"d":"0.00"},567,2028,23,60,"通过建设该项目，改善了拉博村农田水利灌溉配套基础设施条件，农业生产力将会再上一个新台阶，从而实现旱涝保收、粮食安全、促进农民增收致富的建设目标。","否","带动生产、\n带动务工","是","否","否","否","周兴贵",15987738149,"县农业农村局","拉博村","是","是"]
[374,"新平县","水塘镇","水塘社区","乡村建设行动—其他","新平县水塘镇水塘社区服务管理成效明显安置区奖补项目","2025年","新建","（1）基础设施建设：C20毛石混凝土排水沟69米、排污管道安装205米、挡土墙支砌25立方米、太阳能路灯安装8盏；（2）农村综合性活动场所：场地硬化1000平方米、红砖支砌90立方米等。",{"v":25,"d":"25.00"},{"v":25,"d":"25.00"},{"v":25,"d":"25.00"},{"v":0,"d":"0.00"},115,435,115,414,"通过建设该项目，能改善完善哪得龙搬迁点小组的基础设施，丰富村民文化生活，强化人居环境整治，显著提升村民生活质量。","否","吸纳农村劳动力参与项目建设—吸纳就业","是","是","否","否","周兴贵",15987738149,"新平县发改局","水塘社区","是","是"]
[375,"新平县","水塘镇","旧哈村、\n拉博村","产业发展—养殖业基地","新平县水塘镇2025年未消除风险户产业到户补助项目","2025年","新建","未消除风险户产业到户补助3户，其中种植业补助1户，养殖业补助2户，每户补助3000元。",{"v":0.9,"d":"0.90"},{"v":0.9,"d":"0.90"},{"v":0.9,"d":"0.90"},{"v":0,"d":"0.00"},3,9,3,9,"过开展该项目，促进有劳动力且具有产业发展条件的未消除风险户实现产业发展稳定增收，并激发群众内生动力。","是","带动农户发展生产","不涉及","否","否","否","周兴贵",15987738149,"县农业农村局","旧哈村、\n拉博村","是","是"]
[376,"新平县","水塘镇","现刀村","乡村建设行动—农村卫生厕所改造（户用、公共厕所）","新平县水塘镇现刀村大麻卡小组公厕建设项目","2025年","新建","建设卫生公厕1座，三格式化粪池、洗手台等相关设施。",{"v":8,"d":"8.00"},{"v":8,"d":"8.00"},{"v":8,"d":"8.00"},{"v":0,"d":"0.00"},56,219,1,6,"通过开展大麻卡小组农村公厕建设工程，完善村寨公共卫生服务配套设施，优化人居环境与旅游基础条件，助力乡村振兴战略实施，推动大麻卡小组农旅融合产业可持续发展，提升乡村生活品质与旅游服务水平 。","否","带动务工","是","否","否","否","周兴贵",15987738149,"县农业农村局","现刀村","是","是"]
[377,"新平县","水塘镇","南达村、\n大口村","乡村建设行动—农村供水保障设施建设","新平县水塘镇人饮管网修复建设项目","2025年","新建","1.南达村：（1）巴哈箐取水点：拦河坝修复1个；（2）南达下村至巴哈箐取水点架设镀锌钢管DN100 2km；（3）上海新村架设镀锌钢管DN100 42m；（4）巴哈大沟架设镀锌钢管DN200 24m；（5）南达下寨山头至控房养殖小区架设镀锌钢管DN50 500m；\n2.大口村：（1）洗脸箐架设镀锌钢管DN125 60m；（2）长石头箐架设镀锌钢管DN80 84m、架设镀锌钢管DN100 24m；（3）大口山头至田房梁子人饮蓄水池架设镀锌钢管DN100 1.5km。",{"v":20,"d":"20.00"},{"v":20,"d":"20.00"},{"v":20,"d":"20.00"},{"v":0,"d":"0.00"},1473,5583,85,278,"通过建设该项目，保障南达、大口村饮水安全，从而提高农村居民的生活满意度和幸福感，全面落实国家乡村振兴政策。","否","带动务工","是","否","否","否","周兴贵",15987738149,"县农业农村局","南达村、\n大口村","是","是"]
[378,"新平县","水塘镇","水塘社区","其他—少数民族特色村寨建设项目","新平县水塘镇水塘社区哪喊小组民族村寨旅游提升项目","2025年","新建","1.场地铺设1200㎡；2.人行道铺设130㎡；3.红砖支砌14.7m³；4.场地土方回填126m³；5.安全围护80m等。",{"v":30,"d":"30.00"},{"v":30,"d":"30.00"},{"v":30,"d":"30.00"},{"v":0,"d":"0.00"},79,380,2,6,"    通过开展该项目，完善了水塘社区哪喊小组民族村寨旅游配套基础设施，有利于推动水塘社区哪喊小组乡村旅游产业的持续健康发展，提升旅游品质。","否","带动务工","是","否","否","否","周兴贵",15987738149,"县民宗局","水塘社区","是","是"]
[379,"新平县","漠沙镇","和平村","产业发展—养殖业基地","新平县漠沙镇和平村肉牛养殖壮大村集体经济建设项目","2025年","新建","1.肉牛养殖场：M7.5毛石挡土墙建设352.09立方米，场地硬化392平米，铝瓦大棚面积450平方米，化粪池1座，D50镀锌钢管牛圈围栏388米，D40镀锌钢管牛圈围栏19.6米，除粪设施1套，排污设施建设20米。2.养殖规模：该项目建成以后，根据该项目的建设规模，能够养殖30头商品牛。",32.61,32.61,{"v":30,"d":"30.00"},2.61,484,1824,27,77,"1、项目实施后，预计次年起可出栏肉牛3头及以上，逐年递增，结合青贮饲料自供自足的饲养模式节约了一定成本，加上出售牛粪，年可增加集体经济年纯收入3万元左右，实现壮大村集体经济收入； 2、肉牛养殖厂与青贮饲料场资源互补，紧密合作，间接带动农户种植皇竹草、青储玉米等饲料原料，还有效促进秸秆回收利用的宽度及广度，增加农民经济收入同时能避免秸秆焚烧对环境的污染，有效改善环境；3、通过发展村集体项目不断壮大集体经济收入，努力解决村集体经济薄弱的现状，提高村党组织威信，提升党组织凝聚力和战斗力、带动农民共同致富，促进乡村全面振兴。","否","吸纳农村劳动力稳定就业增收—吸纳就业","是","否","否","是","夏维谦",18313106661,"县农业农村局","和平村","是","否"]
[380,"新平县","漠沙镇","曼勒社区","产业发展—品牌打造和展销平台","新平傣家竹韵工艺竹编有限公司手工艺融合创新发展项目","2025年","新建","竹子1384棵、购买大砍刀15把、购买小工艺刀12把、购买金光漆200桶、购买铝电锯子4台、购买花边辅料50包、购买竹编成品摆放柜4台、购买竹编制作操作台1套、购买竹编浓缩工艺品350个。",{"v":5,"d":"5.00"},{"v":5,"d":"5.00"},{"v":5,"d":"5.00"},{"v":0,"d":"0.00"},45,225,0,0,"提供就业机会，增加村民的收入。","否","带动农户发展生产增产增收—订单生产","不涉及","否","否","否","夏维谦",18313106661,"县民宗局","曼勒社区","是","否"]
[381,"新平县","漠沙镇","曼线村","其他—少数民族特色村寨建设项目","新平县漠沙镇曼线村南薅小组民族特色村寨旅游提升项目","2025年","新建","漠沙镇曼线村南薅小组民族特色村寨旅游提升项目：1、水果交易市场，建筑面积500平方米；2、小型农田水利设施建设，两面光灌溉水沟沟底硬化3000米；3、人畜饮水水池60立方米；4、基础照明设施60盏。",31.06,31.06,{"v":30,"d":"30.00"},1.06,44,170,1,5,"民族特色村寨旅游提升项目及手工艺融合创新发展项目,彰显漠沙镇曼线村南薅小组民族特色村寨旅游提升项目,全面实施乡村振兴战略，着力推动乡村振兴产业发展，改善乡村发展基础条件，促进乡村全面振兴.","否","带动农户发展生产增产增收—其他","是","否","否","否","夏维谦",18313106661,"县民宗局","曼线村","是","否"]
[382,"新平县","漠沙镇","仁和村、胜利村、曼蚌村","产业发展—种植业基地","新平县漠沙镇2025年未消除风险户产业到户补助项目","2025年","新建","未消除风险户产业到户补助3户，其中种植业补助2户，养殖业补助1户。户均补助3000元，由各乡镇制定具体奖补办法，实行差异化补助。",{"v":0.9,"d":"0.90"},{"v":0.9,"d":"0.90"},{"v":0.9,"d":"0.90"},{"v":0,"d":"0.00"},3,12,3,12,"立足漠沙镇各村（社区）资源优势、区位优势、产业特点，坚持与脱贫户、边缘户实际相结合，以持续增加监测对象收入为核心，进一步增加未消除风险户收入，巩固拓展脱贫攻坚成果。","是","带动农户发展生产增产增收—其他","不涉及","否","否","否","夏维谦",18313106661,"县农业农村局","仁和村、胜利村、曼蚌村","是","是"]
[383,"新平县","漠沙镇","黎明村","产业发展—种植业基地","新平县漠沙镇黎明村中药材种植基地管网配套项目","2025年","新建","新建连体大棚2782㎡及配套设施。",44.78,44.78,{"v":44.2,"d":"44.20"},0.58,32,165,5,5,"通过实施项目，将有效解决漠沙镇中药材种苗资源不足、水资源利用率低问题，从而带动全镇因地制宜发展中药材，增强全镇经济发展后劲，为群众发展生产，种植中药材提供极大的便利，助力全镇产业发展和群众持续增收，为漠沙镇脱贫攻坚巩固提升与乡村振兴夯实基础，让群众得到更多实惠、生活更加富裕。","否","带动农户发展生产增产增收—其他","是","否","否","否","夏维谦",18313106661,"县农业农村局","黎明村","是","是"]
[384,"新平县","漠沙镇","龙河社区、曼竜社区、曼线村","乡村建设行动—村容村貌提升","新平县漠沙镇2025年“千万工程”乡村振兴人居环境整治提升项目","2025年","新建","1、基础设施建设：现浇200mmC25砼道路硬化350米；小红砖支砌围墙7.20立方米，公共照明设施3盏；采购水泥材料242.40吨、砂子材料173.77吨、碎石材料758.40吨供村社区使用。\n2、公厕建设：新建公厕38.48平方米1座、新建公厕22.5平方米1座、新建公厕20平方米1座、改造公厕36平方米1座、新建公厕13.5平方米1座。",57.58,57.58,{"v":57,"d":"57.00"},0.58,237,978,8,60,"通过该项目实施后，进一步改善漠沙镇曼线村大南妈小组、龙河社区上灯笼小组、拉得小组、小六库小组、曼竜社区下曼佑小组的人居环境问题，为当地的持续发展打下坚实的环境基础。","否","带动农户发展生产增产增收—其他","是","否","否","否","夏维谦",18313106661,"县农业农村局","龙河社区、曼竜社区、曼线村","是","是"]
[385,"新平县","漠沙镇","小坝多村","产业发展—小型农田水利设施建设","新平县漠沙镇小坝多村新寨大沟、龙潭新寨四花田至香箐棚库单田管网建设项目","2025年","新建","该项目收益小坝多村新寨小组、小坝多小组；涉及农户：100户、398人，其中：脱贫人口及监测对象1户3人；主要建设项目：新寨大沟160#PE管网建设8.9公里、新建蓄水池100立方；需要资金93万； 2、龙潭新寨小组四花田至香箐棚组裤裆田100#PE管网建设4公里、新建蓄水池100立方；需要资金45万；涉及小组龙潭新寨、竹棚寨、香箐棚、龙潭、阿波黑、红星、社共计6个小组249户940人，其中覆盖脱贫人口及监测对象9户42人；",{"v":140,"d":"140.00"},{"v":140,"d":"140.00"},{"v":140,"d":"140.00"},{"v":0,"d":"0.00"},349,1339,10,45,"以保障农业生产用水为核心，以提高农业综合生产能力为目标，全面建设节水、高效、安全的小型农田水利设施。\n\n","否","带动农户发展生产增产增收—其他","是","否","是","否","夏维谦",18313106661,"县农业农村局","小坝多村","否","否"]
[386,"新平县","老厂乡","黑查莫","乡村建设行动—农村供水保障设施建设","新平县老厂乡人饮水源点巩固提升项目","2025年","新建","崖子脚、黑查莫村平掌地坝人饮水源点除险加固",{"v":50,"d":"50.00"},{"v":50,"d":"50.00"},{"v":50,"d":"50.00"},{"v":0,"d":"0.00"},502,1740,131,417,"解决群众旱季自来水流量小，饮用水紧张的问题","否","不需要","是","否","否","否","赖建晶",18687740069,"县水利局","黑查莫","是","否"]
[387,"新平县","老厂乡","太桥村","产业发展—新型农村集体经济发展项目","新平县老厂乡老厂至大红山供水工程项目","2025年","新建","建设500m³水池1个，铺设DN200管道6000米。",{"v":180,"d":"180.00"},{"v":180,"d":"180.00"},{"v":180,"d":"180.00"},{"v":0,"d":"0.00"},4757,16614,722,2498,"通过盘活老厂河水库水资源，增加村集体经济收入","否","带动农户发展生产增产增收—其他","是","否","否","是","赖建晶",18687740069,"县农业农村局","太桥村","是","否"]
[388,"新平县","老厂乡","太桥村","产业发展—小型农田水利设施建设","新平县老厂集镇片区易地扶贫搬迁安置区2025年产业发展示范项目","2025年","新建","土地复垦600立方米；给水管建设210米；路沿石500米；步道100平方米；方形石桌3套；活动场地及道路浇筑800平方米；路灯14盏；墙体砌筑20平方米；村民活动场所翻新40平方米；危房拆除302平方米。",{"v":50,"d":"50.00"},{"v":50,"d":"50.00"},{"v":50,"d":"50.00"},{"v":0,"d":"0.00"},63,260,61,254,"项目包括土地复垦、给水管建设、步道建设、地板浇筑、路灯安装等，这些都是基础设施建设的重要内容。\n这些基础设施的建设将直接改善搬迁安置点的居住环境和生活质量，满足居民的基本生活需求。","否","吸纳农村劳动力参与项目建设—吸纳就业","是","是","否","否","杨东海",18108772641,"新平县发改局","太桥村","是","是"]
[389,"新平县","老厂乡","太桥村、马家坝村、黑查莫村、保和村、太和村、转马都村、罗柴冲村","产业发展—其他","新平县老厂乡2025年未消除风险户产业到户补助项目","2025年","新建","根据11户未消除风险监测对象的实际情况，结合每户实际情况综合评判分为三类，一是有产业发展条件，但家有病人且长期需要看病就医有医疗支出、家庭收入较低的每户最高补助4000元；二是没有医疗支出但是产业发展和收入来源单一的监测对象每户最高补助3000元；三是帮扶措施稳定有产业发展条件或2025年能消除致贫风险的监测对象每户最高补助2000元。。",{"v":3.3,"d":"3.30"},{"v":3.3,"d":"3.30"},{"v":3.3,"d":"3.30"},{"v":0,"d":"0.00"},11,38,11,38,"围绕未消除风险监测对象现状，立足自身的资源优势、产业基础和群众需求，坚持政府引导与群众自愿相结合，科学谋划产业发展，合理确定符合自身实际的产业发展方向，主要通过烤烟和玉米种植，形成有针对性的一户一策，有效促进群众增收，做到因户施策、巩固拓展脱贫攻坚成果同乡村振兴有效衔接。","是","不需要","不涉及","否","否","否","赖建晶",18687740069,"县农业农村局","太桥村、马家坝村、黑查莫村、保和村、太和村、转马都村、罗柴冲村","是","是"]
[390,"新平县","老厂乡","马家坝村","产业发展—新型农村集体经济发展项目","新平县老厂乡马家坝村壮大村集体经济甘蔗种植示范基地产业配套设施建设项目","2025年","新建","项目建设规划DN80镀锌管网2500米，主要建设内容为DN80镀锌管采购、DN80镀锌管安装等。",{"v":20,"d":"20.00"},{"v":20,"d":"20.00"},{"v":20,"d":"20.00"},{"v":0,"d":"0.00"},37,141,3,12,"通过项目实施，对于促进农产品成长效率、提升农产品市场竞争力、优化资源配置与降低成本、推动农业现代化与产业化发展以及保障社会稳定与促进区域经济发展等方面都具有重要意义","否","吸纳农村劳动力稳定就业增收—其他","是","否","否","是","赖建晶",18687740069,"县农业农村局","马家坝村","是","是"]
[391,"新平县","老厂乡","太桥村、黑查莫村","乡村建设行动—农村卫生厕所改造（户用、公共厕所）","新平县老厂乡2025年黑查莫村、太桥村公厕建设项目","2025年","新建","项目新建40.18m²公厕2座，砖砌5m³化粪池2座，太阳能照明灯6盏，3m³水塔2座。",{"v":16,"d":"16.00"},{"v":16,"d":"16.00"},{"v":16,"d":"16.00"},{"v":0,"d":"0.00"},55,206,11,32,"通过项目实施，将极大改善党员活动室及科技活动文化石室使用功能，提升人居环境卫生，对于推动农业现代化与产业化发展以及保障社会稳定与促进区域经济发展等方面都具有重要意义。","否","不需要","是","否","否","否","赖建晶",18687740069,"县农业农村局","太桥村、黑查莫村","是","是"]
[392,"新平县","老厂乡","太桥村","产业发展—品牌打造和展销平台","新平县老厂乡消费帮扶中心建设项目","2025年","新建","在老厂乡“竹里馆”酒店一楼建设一个集宣传、展示、销售为一体老厂乡特色产品和伴手礼销售中心",{"v":120,"d":"120.00"},{"v":120,"d":"120.00"},{"v":120,"d":"120.00"},{"v":0,"d":"0.00"},4757,16614,721,2466,"通过消费帮扶平台建设可以促进老厂特色产品走出去，加快经济发展、带动脱贫群众增收","否","1.带动农户发展生产增产增收—订单生产2.带动农户发展生产增产增收—产品代销","是","否","否","是","赖建晶",18687740069,"县农业农村局","太桥村","否","否"]
[393,"新平县","老厂乡","太桥村","产业发展—其他","新平县老厂乡集镇新区烟叶烘烤工厂电能烤房种植菌子项目","2025年","改（扩）建","项目改建电能烤房主体内结构30座、恒温控制系统30套、换气系统30套、立体栽培架3000个、生产配套200立方水池1座、DN20镀锌管网1000米设施等。采购优质菌种，配备专业人员进行培训指导。",{"v":30,"d":"30.00"},{"v":30,"d":"30.00"},{"v":30,"d":"30.00"},{"v":0,"d":"0.00"},63,260,61,254,"通过电能烤房种植菌子项目提高了电能烤房的利用率，增加了集体经济收入。促进了农业产业结构的调整和优化，推动了乡村振兴。\n","否","带动农户发展生产增产增收—其他","是","否","否","是","赖建晶",18687740069,"县农业农村局","太桥村","否","是"]
[394,"新平县","老厂乡","黑查莫 村","产业发展—种植业基地","新平县老厂乡黑查莫村金银花“苗、花、药”三级联农链建设项目","2025年","新建","1、新建露天金银花育苗场地2亩，预计投入4.23万元（土地租金每亩1200元，整地费用每亩1200元，苗每株1.5元，密度12000株/亩，灌溉管网布设1500元）。2、新购各种设备预计投入23万元（购买空气烘干机2台，每台6-10万元，包装机一台2-3万元）。3、除湿冷库50m³，预计15万元。合计42.23万元。",{"v":43,"d":"43.00"},{"v":43,"d":"43.00"},{"v":43,"d":"43.00"},{"v":0,"d":"0.00"},"456","1723","135","429","通过打造金银花“苗、花、药”三级联农链，将金银花打造为黑查莫村的“一村一品”。实现金银花的育苗、管理、采摘、销售一体化，带动村民就近就地就业，有效增加村民经济收入，同时，通过这一特色产品带动本村其它特色农产品走出去，巩固拓展脱贫攻坚成果同乡村振兴有效衔接。","否","带动农户发展生产增产增收—其他","是","否","否","是","赖建晶",18687740069,"县农业农村局","黑查莫 村","否","是"]
[395,"新平县","老厂乡","罗柴冲村","产业发展—种植业基地","新平县老厂乡竹林下竹荪种植试验示范基地建设项目","2025年","新建","竹林下竹荪种植试验示范基地建设规模50亩，竹荪种植采用菌丝包种植，整地垄宽80cm,高度15cm，布设喷灌2万米，所需物资：菌丝包50万包、腐殖土250吨、遮阴网。",{"v":100,"d":"100.00"},{"v":100,"d":"100.00"},{"v":100,"d":"100.00"},{"v":0,"d":"0.00"},242,844,24,80,"通过项目实施，“以点带面、辐射带动”，大力推广应用竹林下竹荪种植实用技术，农业产业结构不断优化，群众增收渠道不断拓宽，实现群众收入持续增加。","否","带动农户发展生产增产增收—其他","是","否","否","是","赖建晶",18687740069,"县农业农村局","罗柴冲村","否","是"]
[396,"新平县","平掌乡","仓房村","乡村建设行动—村容村貌提升","新平县平掌乡仓房村老王寨小组民族团结进步示范创建项目","2025年","新建","1.硬化组内道路4.5m，土方开挖外运1190m³，土方回填2660.5m³，土方回填2660.5m³；2.新修安全护栏296m，原先安全护栏除锈粉漆158㎡；3.浇筑C20混凝土259m³558.5m³，\n20cm厚C25钢筋混凝土盖板37.00m³；4.新建排水沟393.90m,\n排水沟恢复20m，原沟底破除清理（人工）90m，浇筑13.5m³；5.m7.5毛石挡墙建设671m³；6.DN600预制混凝土涵管24m；7.古茶树栽种252棵；8.进户路原混凝土板面破除清理36m³，原路拆除建筑物及清运451.88㎡；9.农产品堆放中心屋顶及场院屋架除锈粉漆376㎡，农产品堆放中心更换铝瓦顶20㎡，新建砖混厕所1所。",{"v":100,"d":"100.00"},{"v":100,"d":"100.00"},{"v":100,"d":"100.00"},{"v":0,"d":"0.00"},379,1257,74,261,"通过项目的实施，牢牢把握民族工作主题，充分尊重群众意愿和发挥群众主体作用，以创建民族团结进步示范村寨为契机,全面开展民族团结进步示范村建设，把项目点建设成为产业强、群众富、村美人和谐的民族团结示范村；能使仓房村原有的茶叶产业得到提升，群众生活、生产进一步夯实，有利于增加收入。","否","带动农户发展生产增产增收—其他","是","否","否","否","董元皓",17787717121,"县民宗局","仓房村","是","是"]
[397,"新平县","平掌乡","联合村、库独木村、丫口村、曼干村","产业发展—其他","新平县平掌乡2025年未消除风险户产业到户补助项目","2025年","新建","未消除风险户产业到户补助13户，均为种植业补助户。户均补助3000元，由各村制定具体奖补办法，实行差异化补助。",{"v":3.6,"d":"3.60"},{"v":3.6,"d":"3.60"},{"v":3.6,"d":"3.60"},{"v":0,"d":"0.00"},13,47,13,47,"通过实施平掌乡2025年未消除风险户产业到户补助项目，激发农村低收入群体的内生发展动力，通过产业发展直接增加农户家庭经营性收入，减少返贫风险，提升生活质量，从而实现稳定增收、提升自我发展能力，最终巩固脱贫成果、助力乡村产业振兴，推动农村经济社会可持续发展。","是","带动农户发展生产增产增收—其他","是","否","否","否","龙淼",18787741167,"县农业农村局","联合村、库独木村、丫口村、曼干村","是","是"]
[398,"新平县","平掌乡","仓房村、柏枝村","产业发展—种植业基地","新平县平掌乡茶旅融合项目","2025年","新建","仓房村古茶山提质改造（间伐、深耕、树衣清理、枝条打理等）200亩，新开挖道路排水沟0.8千米，步道建设（片石混凝土支砌，每步0.12-0.15高、宽1.5米，含二次搬运、土方开挖平整）150平方米，手工古茶生产储藏及体验区（包含厕所、生产区、储藏室、手工古茶体验区）100平方米；柏枝村茶叶品种改良80亩。",{"v":100,"d":"100.00"},{"v":100,"d":"100.00"},{"v":100,"d":"100.00"},{"v":0,"d":"0.00"},925,264,57,187,"项目建成后，平掌乡茶产业得到进一步发展，可以增强村集体经济实力，提高村民收入水平。盘活闲置资产，促进可持续发展。增加就业机会，提高村民生活质量。","否","带动农户发展生产增产增收—其他","是","否","否","否","董元晧",17787717121,"县农业农村局","仓房村、柏枝村","是","是"]
[399,"新平县","平掌乡","联合村、库独木村","乡村建设行动—农村供水保障设施建设","新平县平掌乡联合库独木村委会农村饮水修缮工程","2025年","新建","新建DN250螺旋钢管改线468m，用于解决联合、库独木两个村因仓房村山门口小组滑坡段进行改线，避开现状滑坡体地质沉降原因导致供水主管经常损坏的供水不稳定。",21.67,21.67,21.67,{"v":0,"d":"0.00"},834,2692,0,0,"项目主要供水对象为联合、库独木两个村委会23个小组。项目供水主管(DN250螺旋管)途径仓房村段由于地质沉降原因经常损坏，给群众生活用水带来不便，本次计划新建DN250螺旋管468m，绕过地质沉降面供水到联合、库独木水厂，保障两个村的饮水安全。","否","不需要","是","否","否","否","罗世忠",13887782435,"县水利局","联合村、库独木村","否","否"]
[400,"新平县","者竜乡","庆丰社区、者竜村、渔科村、春元村、竹箐村","产业发展—种植业基地","新平县者竜乡林下天麻种植项目","2025年","新建","新建5000个平方林下天麻种植基地，40个菌棒/平方，小计20万个，4.8元/个，预计资金96万元；麻种1.5市斤/平方，小计7500市斤，40元/市斤，预计投入资金30万元；新建围栏6000米，8元/米，预计投入资金4.8万元；新建5km取水管以及简易蓄水池1个，预计投入资金10万元；人工22元/平方，全过程人工投入，（带地面清理）预计投入资金11万元。",{"v":150,"d":"150.00"},{"v":150,"d":"150.00"},{"v":150,"d":"150.00"},{"v":0,"d":"0.00"},314,1099,75,204,"一是基地建成以后，每平方可以产出天麻7-10公斤，预计产量3.5万-5万公斤，单价60元/公斤，预计收益210万-300万元。二是在基地影响下，可以逐步带动周边群众，拓宽收入渠道。三是可以培育市级基地1个，后期随着基地扩大可以培育基地转“四上”企业1个。\n项目建成后，可以增加群众收益，提高群众生活水平，使群众有更多获得感幸福感，解决辖区林地资源利用率低下无效益问题，改变地方经济社会发展。\n项目建成后，可有效利用林地资源，避免林地资源闲置浪费，通过项目实施，促进人与自然和谐共生，既保护山林又给群众增加收益。","否","带动农户发展生产增产增收—产品代销\n吸纳农村劳动力稳定就业增收—吸纳就业","是","否","否","是","周学云、迟天萍、姚存兴、郭小瑜、谢顺富","13887756248、18724839354、13988481996、13618895806、18987742222","县林草局","庆丰社区、者竜村、渔科村、春元村、竹箐村","是","否"]
[401,"新平县","者竜乡","庆丰社区","产业发展—其他","云南新平福涛农产品开发有限公司民族手工业融合创新发展项目","2025年","新建","彝族传统技艺者竜彝族土法木制压榨核桃油具有重要历史研究价值和传承、教育意义。此次项目的建设有利于提高产品质量，扩大销售渠道，打造本土品牌，发挥彝族土法木制压榨核桃油传习馆功能，吸引游客观光、体验，让更多的人了解彝族土法木榨核桃油传统技艺。建设主要内容：1.购买核桃油压榨机1台。2.购买核桃油过滤设备1台。3.购买核桃原料清洗脱皮机1台。",{"v":5,"d":"5.00"},{"v":5,"d":"5.00"},{"v":5,"d":"5.00"},{"v":0,"d":"0.00"},6,20,3,8,"依托政府+农户+企业+传习体验、研学模式，提高产品质量，扩大销售渠道，打造本土品牌，发挥彝族土法木制压榨核桃油传习馆功能，吸引游客观光、体验，让更多的人了解彝族土法木榨核桃油传统技艺。","否","带动农户发展生产增产增收—其他 吸纳农村劳动力稳定就业增收—吸纳就业","是","否","否","否","何旭东",13529795116,"县民宗局","庆丰社区","是","否"]
[402,"新平县","者竜乡","渔科村","产业发展—养殖业基地","新平县者竜乡渔科村发展壮大村集体经济肉牛养殖场设备配套项目","2025年","改（扩）建","新增铡草机1台、揉丝机1套、三轮车2辆、小推车4辆；新建氨化池3个，小型铲草除草机一台，场内地板硬化。",{"v":35,"d":"35.00"},{"v":35,"d":"35.00"},{"v":35,"d":"35.00"},{"v":0,"d":"0.00"},325,1241,11,34,"项目的实施增强了生产能力，有利于促进了农业结构和种植结构的调整，从而提高农民收\n入和改善农民生产生活条件、加速建设农产品市场和加工业，促进优势产业带的形成。可以增加农家肥，明显改善农业生产条件，提高了土地利用率，项目实施将较大改善渔科村自然生态环境，实现经济与环境良好互动，人与自然和谐发展。","否","带动农户发展生产增产增收—托养托管\n吸纳农村劳动力稳定就业增收—吸纳就业","是","否","否","是","姚存兴",13988481996,"县农业农村局","渔科村","是","否"]
[403,"新平县","者竜乡","峨毛村","产业发展—养殖业基地","新平县者竜乡2025年未消除风险户产业到户补助项目","2025年","新建","补助对象2户，计划购买玉米2100公斤，玉米2.9元/公斤，每户补助不超过3000元。",{"v":0.6,"d":"0.60"},{"v":0.6,"d":"0.60"},{"v":0.6,"d":"0.60"},{"v":0,"d":"0.00"},2,8,2,8,"以巩固拓展脱贫攻坚成果同乡村振兴有效衔接为目标，聚焦脱贫户及未消除风险监测户实际需求，通过产业到户补助政策，激发内生动力，帮助其发展特色优势产业，增加经营性收入，降低返贫致贫风险。","是","带动农户发展生产增产增收—其他","不涉及","否","否","否","杨庆有",13887712891,"县农业农村局","峨毛村","是","是"]
[404,"新平县","者竜乡","庆丰社区、竹箐村、向阳村、渔科村、峨毛村","乡村建设行动—农村供水保障设施建设","新平县竜乡各村(社区)人饮管网修复项目","2025年","新建","架设DN20-50PE管10900m;架设DN20-80镀锌1423m;原DN80镀锌管改造990m,水塔安装2个( 5m³不锈钢水塔1个、10m³不锈钢水塔1个)",{"v":10,"d":"10.00"},{"v":10,"d":"10.00"},{"v":10,"d":"10.00"},{"v":0,"d":"0.00"},317,1163,25,null,"者竜乡人饮修复项目的实施，是加快推进村社区致富步伐、产业发展完善的一项重要举措，扩大了社会效益，改善了生态效益，确保了五个村社区群众用水问题","否","不需要","不涉及","否","否","否","周学云、杨庆萍、鲁朝荣、姚存兴、杨庆有","13887756248、15096754308、13759089782、13988481996、13887712891","县水利局","庆丰社区、竹箐村、向阳村、渔科村、峨毛村","是","是"]
[405,"新平县","者竜乡","庆丰社区、竹箐村、向阳村、腰村村、峨毛村","乡村建设行动—农村供水保障设施建设","新平县者竜乡千人以上集中式人饮抗旱应急工程建设项目","2025年","改（扩）建","新建取水坝1座、沉砂池1个、架设DN125-150外镀锌内涂塑钢管1.78km等",{"v":90,"d":"90.00"},{"v":90,"d":"90.00"},{"v":90,"d":"90.00"},{"v":0,"d":"0.00"},988,4984,113,345,"因者竜乡饮水水源点建设时间早，目前已无法满足者竜乡集镇及周边群众的饮水需求，为解决者竜乡集镇及周边村近1000户5000余人的饮水安全，急需实施新平县者竜乡千人以上集中式人饮抗旱应急工程建设项目。项目采取新建或改造部分水源工程、管网延伸、老旧管网改造等提升措施，满足群众随着建设发展和当地居民生活水平的提高，用水量不断增大，对水质标准也不断提高的要求，项目完工后，村集体参与规范化管理运营，计量收取水费，补齐农村供水工程短板，壮大村集体经济。\n项目建成后，能提高集中供水率、自来水普及率等达到新的农村饮水标准，解决者竜乡日益突出的供水和需水矛盾问题，提高了者竜乡人民饮水的安全稳定性，对当地人民安居乐业、和睦相处、社区发展发挥着重要而不可替代的作用。\n项目建成后，可有效合理节约利用水资源，改善哀牢山片区和长虫山片区之间水资源分布不平衡的情况，优化了种养殖结构，扩大了社会效益，改善了生态效益。","否","不需要","是","否","否","否","周学云、谢顺富、杨庆萍、刘兴强、杨庆有","13887756248、18987742222、15096754308、13987792661、13887712891","县水利局","庆丰社区、竹箐村、向阳村、腰村村、峨毛村","否","否"]
[406,"新平县","者竜乡","腰村村委会","产业发展—小型农田水利设施建设","新平县者竜乡腰村村农作物灌溉水利设施修缮","2025年","新建","本项目的设施能有效缓解大春河小组现有灌溉沟渠陈旧，有部分断裂及塌方的情况。主要建设内容为：1.修缮团山窝铺沟3900米；2.延长团山窝铺沟渠1200米；3.支砌挡墙50立方米",{"v":19,"d":"19.00"},{"v":19,"d":"19.00"},{"v":19,"d":"19.00"},{"v":0,"d":"0.00"},153,536,4,14,"项目建成后，可保障大春河小组500余亩柑橘地的灌溉用水，提高农田灌溉效率，改善经济作物灌溉条件，柑橘种植提质增效，亩均提高柑橘产值约1500元。补齐人饮设施短板。大春河小组，除以附近零星小箐水补给外，主要依靠团山窝铺沟渠为生产用水，由于年代久远及单点暴雨已产生3处塌方，严重影响大春河小组的生产。项目建设完成后受益人口153户536人（其中脱贫户3户9人、边缘易致贫户1户5人），解决群众生产用水困难情况。提高了农田灌溉率，优化了种养殖结构，扩大了社会效益，改善了生态效益，确保了大春河小组土地的生产条件，提高了柑橘、蔬菜等农作物的产量和品质。","否","带动农户发展生产促进增产增收—其他 吸纳农村劳动力稳定就业增收—吸纳就业","是","否","否","否","刘兴强",13987792661,"县农业农村局","腰村村委会","否","否"]
[407,"新平县","者竜乡","庆丰社区","产业发展—种植业基地","新平县者竜乡核桃茶叶加工仓储配送一体化建设项目","2025年","新建","建设茶叶生产及装修区400平方米，卫生间改造20㎡，盥洗间20㎡，手工茶加工区㎡，工具房10㎡,萎调区150㎡，杀青区120㎡，购买茶叶加工生产设备5个种类5台套。",{"v":49.1,"d":"49.10"},{"v":49.1,"d":"49.10"},{"v":40,"d":"40.00"},{"v":9.1,"d":"9.10"},720,2985,null,159,"过本项目的建设，切实为广大群众解决了生产、生活和政治文化活动等诸多现存的问题，让人民群众增收，生活更方便，政治文化活动拥有一个良好的场地和环境。","否","带动农户发展生产增产增收—保护价收购","是","否","否","是","周学云",13887756248,"县农业农村局","庆丰社区","是","是"]
[408,"新平县","建兴乡","马鹿社区","产业发展—种植业基地","新平县建兴乡特色中药材（独蒜兰）组培室及示范基地建设项目","2025年","新建","组培室建设900㎡，中药材（独蒜兰）示范基地建设10亩。",{"v":150,"d":"150.00"},{"v":150,"d":"150.00"},{"v":150,"d":"150.00"},{"v":0,"d":"0.00"},845,3664,149,609,"年生产组培苗1000万株以上，独蒜兰种植示范基地10亩，吸纳农村劳动力稳定就业25人，增加村集体经济5万元以上；推动特色中药材产业发展。","否","吸纳农村劳动力稳定就业增收—吸纳就业","是","否","否","是","李培靖",13577708194,"县农业农村局","马鹿社区","是","是"]
[409,"新平县","建兴乡","盘龙村","产业发展—品牌打造和展销平台","新平县建兴乡盘龙村洋坪GAP中药材种植认证项目","2025年","新建","1.50亩工厂化育苗大棚（6米高、钢架）；2.1800亩中药材基地建设，其中：（1）田间道路3公里配套排水沟；（2）500m3的蓄水池5个；（3）扬程100米的抽水站一座；（4）种植800亩紫花宽叶白芨、300亩黄精、300亩当归、400亩绞股蓝和板蓝根；3.60m2的中药材成品展示中心；4.建设1500m2的中药材仓储物流中心（简易彩钢瓦大棚、8米高）。",{"v":134,"d":"134.00"},{"v":134,"d":"134.00"},{"v":134,"d":"134.00"},{"v":0,"d":"0.00"},"482","1727","103","347","建成核心示范区1800亩，设施种植50亩，吸纳农村劳动力稳定就业50人，增加村集体经济收入5万元；推动建兴乡中药材产业标准化种植。","否","吸纳农村劳动力稳定就业增收—吸纳就业","是","否","否","是","李培靖",13577708194,"县农业农村局","盘龙村","是","否"]
[410,"新平县","建兴乡","马鹿社区","其他—少数民族特色村寨建设项目","新平县建兴乡马鹿民族团结进步示范社区建设项目","2025年","新建","中药材种植管理房39.9㎡；中药材展示中心雨棚210.5㎡；新建水冲式厕所1座，23.76㎡；中药材种植现场教学场地建设373.6㎡。",{"v":30,"d":"30.00"},{"v":30,"d":"30.00"},{"v":30,"d":"30.00"},{"v":0,"d":"0.00"},892,3630,149,608,"通过本项目的实施，达到以下目标：增强社区居民的民族团结意识和国家认同感；促进社区内各民族文化的传承与发展；提升社区公共服务水平，改善居民生活质量；建立健全社区民族团结进步长效机制。","否","促进农户共享资产收益增收—其他","是","否","否","否","朱雪玉",15188181902,"县民宗局","马鹿社区","是","是"]
[411,"新平县","建兴乡","磨味村","产业发展—其他","新平县建兴乡 2025 年未消除风险户产业到户补助项目实施方案","2025年","新建","风险未消除户种植龙胆草每亩补助400元，计划种植10亩，共计4000元；种植露水草每亩补助200元，计划种植10亩，共计2000元。每户补助不超过4000元，共计补助不超过6000元。",{"v":0.6,"d":"0.60"},{"v":0.6,"d":"0.60"},{"v":0.6,"d":"0.60"},{"v":0,"d":"0.00"},2,9,2,9,"按照巩固拓展脱贫攻坚成果同乡村振兴有效衔接的要求，通过产业奖补项目资金的投入，相关项目的实施和巩固提升，坚持规划落实到点到户、项目资金到点到户、帮扶措施到点到户、跟踪管理到点到户，紧紧依靠基层组织，进一步整合资源，集中人力财力，强化帮扶措施，扎实做好农业产业结构优化、生产技术提高、群众增收等重点工作，确保全乡巩固拓展脱贫攻坚成果同乡村振兴有效衔接。","是","带动农户发展生产增产增收—其他","不涉及","否","否","否","李培靖",13577708194,"县农业农村局","磨味村","是","是"]
[412,"新平县","扬武镇","赵米克村","产业发展—市场建设和农村物流","新平县扬武镇赵米克村农副产品集散中心建设项目","2025年","新建","1.场地硬化3700㎡；2.轻钢瓦棚搭建3700㎡；3.新建50m³冷库3座；4.小型污水处理站1座；5.新建40吨地磅秤1个；6.新建20㎡管理房1间；7.货物装卸平台3个；8.水电及相关配套设施。",{"v":100,"d":"100.00"},{"v":100,"d":"100.00"},{"v":100,"d":"100.00"},{"v":0,"d":"0.00"},467,1838,17,56,"1.农民增收。不断完善产业基础设施建设，持续推动“一村一品”产业发展与壮大，切实提高农民种植积极性，增加农民收入。\n2.农业增效。项目的建设完善蔬菜交易配套设施，实现传统田间分散零碎交易到规范管理集中交易的转变，对农业生产、发展具有提振信心的作用。\n3.壮大村集体经济。项目建成后，可通过收取合理租金、水电费、管理等费用，为壮大村集体经济注入新的活力源泉。\n4.缓解交通压力。蔬菜交易市场的建设有效缓解扬马路赵米克村段交通压力，消除安全隐患，切实保障人民群众的生命和财产安全。\n5.提高利用效率。集蔬菜交易市场、停车场、临时应急避难场所于一体，综合利用，充分发挥资源价值，实现“一地多用”、“平急两用”。\n6.污水处理排放。项目污水处理站同村庄污水排放、蔬菜交易市场污水排放相衔接，减轻水源污染。\n7.村庄环境提升。集中交易，对废弃果蔬进行统一处理，提升村庄卫生环境。","否","带动农户发展生产增产增收—其他","是","否","否","否","矣会明",15808777748,"县农业农村局","赵米克村","是","是"]
[413,"新平县","扬武镇","扬武镇","产业发展—品牌打造和展销平台","新平县万友乐器制造有限公司民族手工艺融合创新发展项 目","2025年","新建","投资购买制作烟盒舞乐器设备，扩大生产规模。1.带锯机1台 ;2.电刨机2台;3.角磨机1台;4.手电钻1个;5.喷漆机1台;6.牛皮胶40斤；7.油漆4箱；8.切割机1台；9.层板30张；10.台钻1台；11.压刨机1台。",{"v":5,"d":"5.00"},{"v":5,"d":"5.00"},{"v":5,"d":"5.00"},{"v":0,"d":"0.00"},1,9,0,0,"通过项目实施，扩大生产规模，乐器成为了彝族群众之间无形的纽带，增进了族群的凝聚力。同时，因扬武彝族烟盒舞乐器小巧玲珑、便于携带、音色清脆悠扬，深受新平各民族喜爱，在整个县域民间广为流行，在与其他民族的交往交流交融中拉近了各族群众的和睦关系，促进了民族团结，在中华民族伟大复兴的道路上发挥着重要的社会功能和社会价值。","否","带动农户发展生产增产增收—其他","是","否","否","否","李冉",13408941173,"县民宗局","扬武镇","是","是"]
[414,"新平县","扬武镇","老白甸村","乡村建设行动—村容村貌提升","新平扬武镇老白甸村二道箐小组民族团结进步示范村项目","2025年","新建","污水管网712米，硬化道路1008米，排水沟建设419米，人畜分离点1个，新建化粪池2个，支砌浆砌挡土墙60米，蔬菜大棚10亩，铺设灌溉管网1500米，以及监理费、审计费等其他项目建设费用。",{"v":100,"d":"100.00"},{"$f":"L419+M419","v":{"v":100,"d":"100.00"}},{"v":100,"d":"100.00"},{"v":0,"d":"0.00"},50,194,0,0,"通过项目的实施，牢牢把握民族工作主题，充分尊重群众意愿和发挥群众主体作用，以创建民族团结进步示范村寨为契机,全面开展民族团结进步示范村建设，把项目点建设成为产业强、群众富、村美人和谐的民族团结示范村；让农村居民享受城市生活的便利与美好、享受环境的清新与自然，提升公共服务水平缩小城乡差距的需要；尽可能改善小组的生产生活条件，增加群众经济收入，提高群众的精神文化生活，缩小与其他条件较好小组之间的差距，增进群众在民族团结工作方面的获得感和幸福感，调动群众参与村级治理的积极性和主动性，从而达到促进民族团结和巩固党的基层政权。","否","带动农户发展生产增产增收—其他","是","否","否","否","普福",15096746986,"县民宗局","老白甸村","是","是"]
[415,"新平县","扬武镇","扬武镇","产业发展—养殖业基地","新平扬武镇2025年未消除风险户产业到户补助项目","2025年","新建","未消除风险户产业到户补助6户，其中养殖业补助6户。户均补助3000元，由各乡镇制定具体奖补办法，实行差异化补助。",{"v":1.8,"d":"1.80"},{"v":1.8,"d":"1.80"},{"v":1.8,"d":"1.80"},{"v":0,"d":"0.00"},6,24,6,24,"立足扬武镇村（社区）资源优势、区位优势、产业特点，坚持与未消除风险户发展实际相结合，以持续增加未消除风险户收入为核心，进一步增加未消除风险户收入，巩固拓展脱贫攻坚成果。","是","带动农户发展生产增产增收—其他","不涉及","否","否","否","缪翊",15187747200,"县农业农村局","扬武镇","是","是"]
[416,"新平县","扬武镇","扬武镇","乡村建设行动—村容村貌提升","新平县扬武镇2025年“千万工程”乡村振兴人居环境整治提升建设","2025年","新建","1、污水收集管网安装920m，排水管50m；2、村内闲置场地平整和利用1100㎡；3、砌石挡墙10m³。",{"v":14,"d":"14.00"},{"v":14,"d":"14.00"},{"v":14,"d":"14.00"},{"v":0,"d":"0.00"},34,136,6,24,"通过项目的投入使用，可完善道路、垃圾收集、污水管网等基础设施建设，显著改善农村人居环境，提高村民生活质量，增强村民幸福感和满意度，同时促进农村精神文明建设。具体建设内容如下：1、污水收集管网安装920m，排水管50m；2、村内闲置场地平整和利用1100㎡；3、石挡墙10m³。","否","带动农户发展生产增产增收—其他","是","否","否","否","矣学新",15187727004,"县农业农村局","扬武镇","是","是"]
[417,"新平县","扬武镇","丕且莫村","产业发展—加工业","新平县扬武镇丕且莫村选果加工建设项目","2025年","新建","项目规划面积13亩，拟建仓库面积2000平方米，钢架厂房2500平方米，冷库800平方米，其他场地硬化2000平方米及其他配套设施。",{"v":380,"d":"380.00"},{"v":380,"d":"380.00"},{"v":380,"d":"380.00"},{"v":0,"d":"0.00"},261,1022,2,7,"项目建成后，壮大村集体经济年收入20万左右。可将扬武镇区域内种植的7000余亩柑桔集中在扬武分选出售，增加种植户收入，推动粗放型农业产业向现代化农业产业的转变，为周边农户提供就近就业机会。","否","带动农户发展生产增产增收—其他","是","否","是","是","矣学新",15187727004,"县农业农村局","丕且莫村","否","否"]
[418,"新平县","新化乡","大寨村","产业发展—农业社会化服务","新平县新化乡2025年大寨村烤房建设项目（新平县新化乡大寨村等4个村集群式电烤房建设项目）","2025年","新建","新建集群式电烤房4群共20座，单座烤房功率30kW，总功率6600kW。",{"v":280,"d":"280.00"},{"v":280,"d":"280.00"},{"v":280,"d":"280.00"},{"v":0,"d":"0.00"},73,312,3,14,"通过项目的实施，能实现新技术与传统农业的结合，不仅提升了烤烟的质量和产量，更能为当地群众带来实实在在的经济收益，能促使我乡烤烟产业进一步向节能减排绿色转型。","否","带动农户发展生产增产增收—其他","是","否","是","否","鲁永涛",13577739921,"县委组织部、县烟草产业服务中心","大寨村","是","是"]
[419,"新平县","新化乡","鲁一尼、老五斗","产业发展—养殖业基地","新平县新化乡2025年未消除风险户产业到户补助项目","2025年","新建","未消除风险户产业到户补助2户，其中种植业补助1户，种植业、养殖业补助1户。户均补助3000元，由各村制定具体奖补办法，实行差异化补助。",{"v":0.6,"d":"0.60"},{"v":0.6,"d":"0.60"},{"v":0.6,"d":"0.60"},{"v":0,"d":"0.00"},2,7,2,7,"通过实施平甸乡2025年未消除风险户产业到户补助项目，激发农村低收入群体的内生发展动力，通过产业发展直接增加农户家庭经营性收入，减少返贫风险，提升生活质量，从而实现稳定增收、提升自我发展能力，最终巩固脱贫成果、助力乡村产业振兴，推动农村经济社会可持续发展。","是","带动农户发展生产增产增收—其他","是","否","否","否","刘纹成",13170661763,"县农业农村局","鲁一尼、老五斗","是","是"]
[420,"新平县","新化乡","大寨村","产业发展—农业社会化服务","新平县新化乡大寨村罗武片区2025年电烤房建设项目","2025年","新建","项目用地总占地 1.39 亩，新建活动板房20座，电力热泵设备20台，场地硬化560平方米。",{"v":163,"d":"163.00"},{"v":163,"d":"163.00"},{"v":163,"d":"163.00"},{"v":0,"d":"0.00"},73,312,3,14,"通过项目的实施，能实现新技术与传统农业的结合，不仅提升了烤烟的质量和产量，更能为当地群众带来实实在在的经济收益，能促使我乡烤烟产业进一步向节能减排绿色转型。","否","带动农户发展生产增产增收—其他","是","否","是","否","鲁永涛",13577739921,"县烟草产业服务中心","大寨村","是","是"]
[421,"新平县","新化乡","新化社区","产业发展—种植业基地","新平县新化乡新化社区苹果产业种植基地建设项目","2025年","新建","建设规模200亩。建设内容:管理房500平方米；田间凝结石道路2000米；土拱膜水池500立方米6个；铺设管网PE管63mm、50mm、32mm共9500米；泵站I座；变压器及电力设施设备1套；土地整理200亩。",{"$f":"SUM(K426)","v":{"v":100,"d":"100.00"}},{"v":100,"d":"100.00"},{"v":100,"d":"100.00"},{"v":0,"d":"0.00"},385,1427,10,41,"通过项目建设，可以提高苹果种植的生产效率,降低生产成本,推动苹果产业向规模化、集约化、标准化的方向发展，能促进村集体经济壮大发展。","否","吸纳农村劳动力稳定就业增收—吸纳就业","是","否","是","是","王祥",13648777284,"县农业农村局","新化社区","否","否"]
[422,"新平县","新化乡","新化社区、新甸村、六竜村、甸末村、者渣村、鲁一尼村","乡村建设行动—农村供水保障设施建设","新平县新化乡依施河片区鱼拖味等11个村民小组饮水修缮（以工代赈）项目","2025年","改（扩）建","涉及老虎跳、鱼拖味、新营盘、小黑达、团山、扎地干、松树林、莫社代、左西莫、者渣、小戈租11个小组新建DN32内涂塑复合钢管主管1250m，更换村庄老化人饮管网：DN25内涂塑复合钢管11620m、DN20内涂塑复合钢管4930m、DN40内涂塑复合钢管4400m、DN50内涂塑复合钢管5500m。",{"v":80,"d":"80.00"},{"v":80,"d":"80.00"},{"v":80,"d":"80.00"},{"v":0,"d":"0.00"},724,3297,49,176,"项目能进一步提升农村人饮安全水平，巩固脱贫成效，以工代赈实施能促进当地群众增收。","否","吸纳农村劳动力稳定就业增收—吸纳就业","不涉及","否","否","否","杨承龙",15825137002,"县水利局、县发展和改革局","新化社区、新甸村、六竜村、甸末村、者渣村、鲁一尼村","否","否"]
[423,"新平县","全县","各乡镇","产业发展—小额贷款贴息","新平县2025年小额贷款贴息项目","2025年","新建","2025年小额贷款贴息，规模950户。",{"v":190,"d":"190.00"},{"v":190,"d":"190.00"},{"v":190,"d":"190.00"},{"v":0,"d":"0.00"},950,3420,950,3420,"通过实施鼓励脱贫户小额贷款，达到发展生产，促进生产增收。","是","带动农户发展生产增产增收—其他","不涉及","否","否","否","梅兰",15969302385,"县农业农村局","不形成资产","是","否"]
[424,"新平县","全县","各乡镇","就业项目—公益性岗位","新平县2025年村级公益性岗位项目","2025年","新建","为巩固薄弱脱贫户家庭收入，继续保障脱贫户安置公益性岗位-乡村保洁员工作，岗位数110个。",{"v":160,"d":"160.00"},{"v":160,"d":"160.00"},{"v":160,"d":"160.00"},{"v":0,"d":"0.00"},100,100,100,100,"通过实施村级公益性岗位补助，达到脱贫户及监测户年人均增收1.2万元。","是","不需要","不涉及","否","否","否","梅兰",15969302385,"县人社局、县农业农村局","不形成资产","是","否"]
[425,"新平县","全县","各乡镇","巩固三保障成果—享受“雨露计划”职业教育补助","新平县2025年雨露计划补助项目","2025年","新建","雨露计划补助，每生每年补助3000元至5000元。",{"v":139,"d":"139.00"},{"v":139,"d":"139.00"},{"v":139,"d":"139.00"},{"v":0,"d":"0.00"},698,698,698,698,"通过职业教育帮扶补助和特困学生扶贫助学补助发放，减轻脱贫户家庭学生上学的经济压力，在校期间人均增加收入3000-5000元。","是","不需要","不涉及","否","否","否","梅兰",15969302385,"县教体局、县农业农村局","不形成资产","是","否"]
[426,"新平县","全县","各乡镇","项目管理费—项目管理费","新平县2025年项目管理费","2025年","新建","2025年衔接资金项目相关绩效跟踪检查支出。",{"v":10,"d":"10.00"},{"v":10,"d":"10.00"},{"v":10,"d":"10.00"},{"v":0,"d":"0.00"},"——","——","——","——","加强资金使用监督管理，提高资金使用效益。","否","不需要","不涉及","否","否","否","梅兰",15969302385,"县农业农村局","不形成资产","是","否"]
[427,"新平县","全县","各乡镇","就业项目—交通费补助","新平县2025年跨省外出务工脱贫劳动力一次性交通补贴","2025年","新建","脱贫劳动力（含监测对象）跨省外出务工一次性交通补贴740人，补助1000元/人。",{"v":74,"d":"74.00"},{"v":74,"d":"74.00"},{"v":74,"d":"74.00"},{"v":0,"d":"0.00"},740,740,740,740,"通过实施脱贫劳动力（含监测对象）跨省外出务工一次性交通补贴，，增强省外务工积极性，可使脱贫劳动力（含监测对象）增加收入1000元。","是","不需要","不涉及","否","否","否","梅兰",15969302385,"县人社局、县农业农村局","不形成资产","是","否"]
[428,"新平县","全县","各乡镇","就业项目—交通费补助","新平县2025年跨州市务工脱贫劳动力一次性交通补贴","2025年","新建","脱贫劳动力（含监测对象）跨州市务工一次性交通补贴500人，补助500元/人。",{"v":25,"d":"25.00"},{"v":25,"d":"25.00"},{"v":25,"d":"25.00"},{"v":0,"d":"0.00"},500,500,500,500,"通过实施脱贫劳动力（含监测对象）跨州市务工一次性交通补贴，增强跨州市务工积极性，可使脱贫劳动力（含监测对象）增加收入500元。","是","不需要","不涉及","否","否","否","梅兰",15969302385,"县人社局、县农业农村局","不形成资产","是","否"]
[429,"新平县","全县","各乡镇","就业项目—技能培训","新平县2025年就业培训费","2025年","新建","人社局2025年就业培训费。",{"v":38,"d":"38.00"},{"v":38,"d":"38.00"},{"v":38,"d":"38.00"},{"v":0,"d":"0.00"},1800,1800,1800,1800,"通过对脱贫户及监测户劳动力进行就业技术培训，脱贫劳动力掌握一门技术，从而达到相应增加就业收入。","是","不需要","不涉及","否","否","否","梅兰",15969302385,"县人社局、县农业农村局","不形成资产","是","否"]
[430,"新平县","全县","各乡镇","就业项目—公益性岗位","新平彝族傣族自治县_就业项目_公益性岗位_新平县2025年公益性岗位补短板项目","2025年","新建","脱贫人口公益性岗位补短板项目，补助200元/人/月，共494人。",118.56,118.56,118.56,{"v":0,"d":"0.00"},494,494,494,494,"通过实施村级公益性岗位补助，达到脱贫户及监测户年人均增收1.2万元。","是","不需要","不涉及","否","否","否","梅兰",15969302385,"县农业农村局","不形成资产","是","是"]
[431,"新平县","全县","各乡镇","就业项目—生产奖补、劳务补助等","新平县支持联农带农经营主体奖补资金","2025年","新建","对在新平县内注册、投资、运营并符合要求带动小农户发展现代化农业，促进农民特别是脱贫人口持续增收的农业企业、农民专业合作社等经营主体进行奖补。",{"v":150,"d":"150.00"},{"v":150,"d":"150.00"},{"v":150,"d":"150.00"},{"v":0,"d":"0.00"},420,1260,420,1260,"为鼓励各类新型农业经营主体与农民建立稳定的利益联结机制，带动小农户发展现代农业，促进农民特别是脱贫人口持续增收。","否","不需要","不涉及","否","否","否","梅兰",15969302385,"县农业农村局","不形成资产","否","否"]
[432,"元江县","全县","全县","项目管理费—项目管理费","元江县2025年中央衔接资金项目管理费","2025年","新建","主要用于项目前期设计、评审、招标、监理以及验收等与项目管理相关的支出，由县级统筹使用。",{"v":40,"d":"40.00"},{"$f":"SUM(L437:M437)","v":{"v":40,"d":"40.00"}},{"v":40,"d":"40.00"},{"v":0,"d":"0.00"},"——","——","——","——","强化项目管理，促进项目建设","否","带动农户发展生产增产增收—其他","不涉及","否","否","否","潘刚",15887813080,"县农业农村局","不形成资产","是","是"]
[433,"元江县","全县","全县","产业发展—小额贷款贴息","元江县2025年第一、二季度脱贫小额信贷贴息资金项目","2025年","新建","付一、二季度脱贫小额信贷贴息资金",{"v":100,"d":"100.00"},{"v":100,"d":"100.00"},{"v":100,"d":"100.00"},{"v":0,"d":"0.00"},900,2700,900,2700,"帮助群众提升种养殖规模，促进增收，解决群众在产业发展中资金难的问题，提高群众产业发展积极性，促进进一步增收致富","是","促进农户共享资产收益增收—其他","不涉及","否","否","否","潘刚",15887813080,"县农业农村局","不形成资产","是","是"]
[434,"元江县","全县","全县","巩固三保障成果—享受“雨露计划”职业教育补助","元江县2025年春季学期“雨露计划”补助资金项目","2025年","新建","付“雨露计划”职业教育补助资金",{"v":95,"d":"95.00"},{"v":95,"d":"95.00"},{"v":95,"d":"95.00"},{"v":0,"d":"0.00"},390,390,390,390,"促进增收，提升困难家庭学生就学率，降低困难家庭教育成本","是","带动农户发展生产增产增收—其他","不涉及","否","否","否","潘刚",15887813080,"县农业农村局","不形成资产","是","是"]
[435,"元江县","全县","全县","就业项目—公益性岗位","元江县2025年上半年乡村公益性岗位工资项目","2025年","新建","付元江县2025年一、二季衔接资金设置乡村公益性岗位450人工资",{"v":216,"d":"216.00"},{"v":216,"d":"216.00"},{"v":216,"d":"216.00"},{"v":0,"d":"0.00"},450,450,450,450,"解决群众就近就业问题，提高就业率，提升群众收入水平，每人每月增收800元，有利于改善人居环境","是","促进农户共享资产收益增收—其他","不涉及","否","否","否","潘刚",15887813080,"县农业农村局","不形成资产","是","是"]
[436,"元江县","全县","全县","产业发展—人才培养","元江县2025年上半年脱贫人口“人人持证 技能致富”培训补助资金项目","2025年","新建","付元江县2025年一、二季度培训费及补助资金",{"v":50,"d":"50.00"},{"v":50,"d":"50.00"},{"v":50,"d":"50.00"},{"v":0,"d":"0.00"},100,100,100,100,"提高技能，持证促增收","否","促进农户共享资产收益增收—其他","不涉及","否","不涉及","否","白云（业务经办人员）","0877-6553268","元江县人力资源和社会保障局","不形成资产","是","是"]
[437,"元江县","全县","全县","就业项目—交通费补助","元江县2025年上半年脱贫劳动力（含监测对象）跨省务工一次性交通补助项目","2025年","新建","付一、二季度脱贫劳动力（含监测对象）跨省务工满三个月，可申报1000元/人/年的交通补助资金。",{"v":200,"d":"200.00"},{"v":200,"d":"200.00"},{"v":200,"d":"200.00"},{"v":0,"d":"0.00"},1200,2000,1200,2000,"解决群众就近就业问题，提高就业率，提升群众收入水平","是","促进农户共享资产收益增收—其他","不涉及","否","否","否","钟皎（业务经办人员）","0877-6553278","元江县人力资源和社会保障局","不形成资产","是","是"]
[438,"元江县","澧江街道","南昏村","产业发展—其他","元江县澧江街道南昏村委会南昏小组人畜分离工程项目","2025年","新建","一、产业配套设施：猪舍62间534.6㎡、鸡舍62间259.41㎡、挡土墙233.5m³、猪舍及外场地硬化1200㎡、4.0m宽产业道路硬化818㎡；其他附属等；\n二、村内整治：村内道路硬化626㎡、1.2m宽村内道路硬化24㎡、1.5m宽村内道路硬化160㎡、2.5m宽村内道路硬化200㎡、庭院经济1280㎡。",{"v":127,"d":"127.00"},{"v":127,"d":"127.00"},{"v":127,"d":"127.00"},{"v":0,"d":"0.00"},67,297,17,76,"促进群众增收，生产生活条件明显改善，有利于改善人居环境","否","带动农户发展生产增产增收—其他","是","否","否","是","潘刚",15887813080,"县农业农村局","南昏村","是","否"]
[439,"元江县","澧江街道","南洒社区","产业发展—其他","元江县澧江街道南洒社区南洒小组人畜分离工程项目","2025年","新建","产业配套设施：猪舍66间569.59平方米、鸡舍66间276.15平方米、挡土墙210立方米、猪舍及外场地硬化1500平方米、其他附属等；产业道路硬化：1#产业道路硬化432平方米、2#产业道路硬化390平方米；庭院经济200平方米。",{"v":100,"d":"100.00"},{"v":100,"d":"100.00"},{"v":100,"d":"100.00"},{"v":0,"d":"0.00"},93,243,0,0,"促进群众增收，生产生活条件明显改善，有利于改善人居环境","否","带动农户发展生产增产增收—其他","是","否","否","是","潘刚",15887813080,"县农业农村局","南洒社区","是","否"]
[440,"元江县","红河街道","大水平社区","乡村建设行动—村容村貌提升","元江县红河街道荔枝树农村千万工程项目","2025年","新建","1.污水管。（1）DN400 HDPE双壁波纹管(带钢片）长度853米；（2）DN500 HDPE双壁波纹管(带钢片）长度25米；（3）户厕排污接出管DN200长度1000米，DN110长度1000米；(4)破路埋地敷设污水管道并恢复路面面积800平方米；（5）窨井工程量100座；（6）化粪池（48立方米）工程量1座。2.维修村内人饮管网工程（1）DN65人饮管网710米。（2）DN40人饮管网789米。（3）人饮管相关设施修复，造价69000元。（4）破路埋地敷设人饮管道并恢复路面200平方米。3.庭院经济1440㎡；4.道路硬化50米；5.场地硬化800平方米；6.活动设施修缮84.38平方米；7.排水沟盖板150米；8.公厕47.83平方米；9.维修太阳能路灯（更换电池）15组；10.其他临杂整治工程。",{"v":190,"d":"190.00"},{"v":190,"d":"190.00"},{"v":190,"d":"190.00"},{"v":0,"d":"0.00"},104,463,0,0,"带动二三产业发展，促进宜居宜业和美乡村，形成产业发展生态化、生态建设产业化新格局","否","带动农户发展生产增产增收—其他","是","否","否","是","潘刚",15887813080,"县农业农村局","大水平社区","是","否"]
[441,"元江县","甘庄街道","撮科村委会","产业发展—市场建设和农村物流","元江县甘庄街道撮科村委会果蔬产业及配套基础设施建设项目","2025年","新建","1.果蔬产业道路，总长度：1500m。2.果蔬交易市场,总建筑面积：732.89m2。其中交易区550.24㎡，管理用房182.65㎡，交易市场为轻钢结构，管理用房为砌体结构,层数均为1层。3.现代农业综合服务用房,一层，建筑面积：172.33m2。钢筋混凝土框架结构。4.场地硬化,面积：800m2。5.挡土墙。（1）C30钢筋砼挡土墙，挡土墙长度32m。（2）路面硬化，面积:144m2。（3）安全防护栏杆长度32m。",{"v":190,"d":"190.00"},{"v":190,"d":"190.00"},{"v":190,"d":"190.00"},{"v":0,"d":"0.00"},84,246,1,1,"带动二三产业发展，改善生产条件，优化农业产业生态效果","否","带动农户发展生产增产增收—其他","是","否","否","是","潘刚",15887813080,"县农业农村局","撮科村委会","是","否"]
[442,"元江县","甘庄街道","干坝社区","产业发展—其他","元江县甘庄街道干坝社区磨落珠小组人居环境及产业发展设施建设项目","2025年","新建","1.产业道路320m；2.村内道路33m；3.DN300雨水管376m；4.DN500水泥涵管40m；5.DN300污水管590m；6.DN400污水管106m；7.户厕排污接出管2300m；8.窨井172座；9.化粪池1座；10.公厕1栋；11.施工模板、机械1项。",{"v":120,"d":"120.00"},{"v":120,"d":"120.00"},{"v":120,"d":"120.00"},{"v":0,"d":"0.00"},86,378,1,1,"带动二三产业发展，密切党群、干群关系，促进农村团结和谐稳定程度，改善居住环境，发展产业","否","带动农户发展生产增产增收—其他","是","否","否","是","潘刚",15887813080,"县农业农村局","干坝社区","是","否"]
[443,"元江县","曼来镇","东峨社区","产业发展—其他","元江县曼来镇东峨社区窝科组芒果园产业道路等建设项目","2025年","新建","1.村内基础设施。（1）挡土墙85立方米；（2）村内安全防护设施55米；（3）村内道路硬化1081.57平方米；（4）排水设施治理120米（4米宽）；（5）太阳能路灯7米高太阳能路灯5盏，挂壁式12盏。2.两污治理。（1）排水沟300×400共145米；（2）排水检查井2座；（3）HDPE300污水管140米；（4）HDPE200污水管645米；（5）PVC110污水管165米；（6）污水检查井42座；（7）12立方米钢筋混凝土化粪池1座；（8）成品1立方玻璃钢化粪池3座；（9）其他附属设施等。\n3.公厕1座。4.产业道路。（1）1.755KM产业道路硬化8306.25平方米；（2）排水沟660米；（3）其他附属设施等。",{"v":190,"d":"190.00"},{"v":190,"d":"190.00"},{"v":190,"d":"190.00"},{"v":0,"d":"0.00"},34,146,2,8,"带动二三产业发展，改善生产条件，降低劳动成本，提高产量，产值明显，解除生活污水污染问题","否","带动农户发展生产增产增收—其他","是","否","否","是","潘刚",15887813080,"县农业农村局","东峨社区","是","是"]
[444,"元江县","曼来镇","农场田社区","产业发展—其他","元江县曼来镇农场田社区岗塘梁子组村内基础设施建设项目","2025年","新建","（1）村内整治：①挡土墙293.83立方米；②庭院经济1项；③室外台阶1部；④道路硬化2887.82平方米；⑤太阳能路灯5盏；⑥巷道硬化765.27平方米；⑦其他附属等。（2）两污治理：①污水检查井55座；②HDPE200钢带增强波纹管380米；③PVC110管120米；④成品2立方米玻璃钢化粪池22个；⑤隔油池22座；⑥排水沟460.5米；⑦检查井22个；⑧PPR25给水管66米；⑨PE40给水主管290米；⑩其他附属等。\n（3）公厕：①公厕1座。",{"v":100,"d":"100.00"},{"v":100,"d":"100.00"},{"v":100,"d":"100.00"},{"v":0,"d":"0.00"},62,173,0,0,"带动二三产业发展，改善生产条件，降低劳动成本，提高产量，产值明显，形成产业发展生态化、生态建设产业化新格局","否","带动农户发展生产增产增收—其他","是","否","否","是","潘刚",15887813080,"县农业农村局","农场田社区","是","否"]
[445,"元江县","因远镇","安定社区","产业发展—其他","元江县因远镇安定社区沙浦小组产业设施及人居环境建设项目","2025年","新建","产业提升项目：村内产业路修复土路硬化C25混泥土1780平方米，新增安全栏杆250m；新建农产品交易场地一处，面积800平方米；人居环境提升项目：村内雨污分流改造排水沟526m，新建DN300mm污水管323m，新增带轮移动式挂车垃圾桶箱6个。",{"v":120,"d":"120.00"},{"v":120,"d":"120.00"},{"v":120,"d":"120.00"},{"v":0,"d":"0.00"},227,673,16,38,"降低生产成本，提高收入，生产条件明显改善，改善人居环境","否","促进农户共享资产收益增收—房屋租赁获得租金","是","否","否","是","潘刚",15887813080,"县农业农村局","安定社区","是","否"]
[446,"元江县","因远镇","因远社区","乡村建设行动—村容村貌提升","元江县因远镇因远社区安仁小组人居环境建设项目","2025年","新建","人居环境提升改造内容：1.村内道路硬化：土路硬化C25混泥土1855平方米；2.村内雨污分流建设：改造排水沟1188m，新建DN300mm污水管967m，DN400mm污水管355m；3.场地平整一处，面积321平方米；4.新建太阳能路灯10盏、铁皮垃圾箱6个。",{"v":190,"d":"190.00"},{"v":190,"d":"190.00"},{"v":190,"d":"190.00"},{"v":0,"d":"0.00"},308,805,10,32,"带动二三产业发展，密切党群、干群关系，促进农村团结和谐稳定程度，改善人居环境","否","带动农户发展生产增产增收—其他","是","否","否","是","潘刚",15887813080,"县农业农村局","因远社区","是","否"]
[447,"元江县","羊街乡","戈垤村","产业发展—新型农村集体经济发展项目","元江县羊街乡壮大村集体经济八角产业种植示范基地建设项目","2025年","新建","一、厂房改造。①厂房改造267.9平方米；②厂房配套设施改造121.2平方米；③加工厂房配套设施。\n二、产业基础设施。①50立方水池6个；②灌溉管网5800米；③原有机耕道路升级150厚4:6土夹石4830米；④新开挖3米宽机耕路2602米；⑤排水沟300X400长36.6米；预埋HDPE300钢带波纹管4.5米；⑥挡土墙150立方米。",{"v":150,"d":"150.00"},{"v":150,"d":"150.00"},{"v":150,"d":"150.00"},{"v":0,"d":"0.00"},884,3362,169,702,"壮大集体经济收入，改善生产条件，降低劳动成本，提高产量，产值明显","否","带动农户发展生产增产增收—其他","是","否","否","是","李文明",13987769975,"元江县委组织部","戈垤村","是","否"]
[448,"元江县","羊街乡","坝木村委会","产业发展—其他","元江县羊街乡全国GEF生物基因多样性产业发展配套设施建设项目","2025年","新建","新建全国GEF生物基因多样性产业配套设施：1.2米宽产业运输道路210米、产品仓储设施1座、3.5米宽产业发展机耕路2.8km、灌溉水沟600m、附属挡墙30立方米。",{"v":40,"d":"40.00"},{"v":40,"d":"40.00"},{"v":40,"d":"40.00"},{"v":0,"d":"0.00"},326,1175,51,186,"带动二三产业发展，带动村民参与地方水稻种植，重要农业和粮食作物地方品种保护","否","带动农户发展生产增产增收—其他","是","否","否","是","潘刚",15887813080,"县农业农村局","坝木村委会","是","是"]
[449,"元江县","羊街乡","坝木村委会","乡村建设行动—村容村貌提升","元江县羊街乡坝木村委会坝行小组“千万工程”农村人居环境整治项目","2025年","新建","1.两污治理。（1）污水系统检查井158座；（2）HDPE300波纹管822.6米；（3）HDPE200波纹管980米；（4）化粪池V12立方米2座；化粪池V21.8立方米1座；（5）1立方米成品玻璃钢化粪池12座；（6）路面破除及修复1261.82平方米；（7）出户PVC110污水管675米。\n2.村内整治。（1）村内粪水塘治理1项；（2）村内道路铺设石板1299平方米（3）道路加宽4.05平方米及附属；（4）加设排水沟盖板368.6米及附属；（5）村内道路硬化1730.6平方米；（6）场地铺设石板112平方米及附属；（7）HDPE300波纹管41米及附属；（8）高悬臂路肩墙25.92立方米；（9）新建排水沟100米；（10）喷浆护坡150平方米及附属；（11）垃圾池2座；（12）其他附属1项。\n3.农产品交易棚。（1）农产品交易棚240平方米。",{"v":190,"d":"190.00"},{"v":190,"d":"190.00"},{"v":190,"d":"190.00"},{"v":0,"d":"0.00"},145,581,24,105,"带动二三产业发展，生产生活条件明显改善，改善人居环境","否","带动农户发展生产增产增收—其他","是","否","否","是","潘刚",15887813080,"县农业农村局","坝木村委会","是","是"]
[450,"元江县","那诺乡","猪街村","乡村建设行动—农村供水保障设施建设","元江县那诺乡猪街供水站扩建人饮供水工程","2025年","改（扩）建","一、取水工程。1.坝下取水管道改造DN100内外涂塑直缝钢管150m；2.附属配套设施：新建闸阀井2座，DN100法兰50片，DN100闸阀1套，DN50泄水阀1套，DN100机械水表1套。\n二、输水工程新建输水管道，共计长度11.141km；分别为：\n1.地嘎至四角田DN32管2.377km、设置5座调节减压池；2.大麻至扒地龙DN32管906m、设置减压阀1套；3.大麻至松树林DN32管952m、设置减压阀2套；4.大麻至坝那DN32管2.503km、设置减压阀2套，调节减压池1座；5.营盘至大罗村：新建DN32内外涂塑无缝钢管1.13km，DN32内外涂塑直缝钢管910m，DN65内外涂塑直缝钢管166m；设置减压阀2套，调节减压池1座；6.猪街供水站至大麻DN65内外涂塑直缝钢管2.197km。\n三、净水工程。水厂内部改造：拆除已建老水池2座，新建C20混凝土地坪23m³，一体化净水设备维修养护，新建50g/h次氯酸钠发生器1套.PAC自动投加药设备1套，新建200m³清水池1座；厂区外高位水池：大麻新建100m³水池1座，四角田、大罗、地嘎各新建50m³水池1座，松树林新建30m³水池1座，老巴阿新建30m³不锈钢水箱1座。\n四、配水工程。本次新建配水管道长度共计2.27km；分别为：四角田DN32管860m,水井改造DN50主管660m，改造DN32配水管750m。\n五、入户工程。安装水表108套、新建入户管道DN20内外涂塑直缝钢管1296m。",{"v":150,"d":"150.00"},{"v":150,"d":"150.00"},{"v":150,"d":"150.00"},{"v":0,"d":"0.00"},596,2306,75,321,"促进农户增收，生产生活条件明显改善，改善人居环境","否","带动农户发展生产增产增收—其他","是","否","否","是","李秀芝",13708774578,"元江县水利局","猪街村","是","否"]
[451,"元江县","那诺乡","猪街村","产业发展—其他","元江县那诺乡猪街茶产业配套设施","2025年","新建","一、茶叶加工厂房。1、茶叶加工厂房417.2平方米。\n二、产业配套设施。1、1#产业道路硬化676.35平方米；2、2#产业道路硬化244.8平方米；3、挡土墙682立方米；4、其他附属1项\n三、标准化茶园建设（研学基地）。1、茶园生产道路1962平方米；2、标准化茶园建设（种植茶树）25000株；3、标准化茶园建设附属1项。",{"v":190,"d":"190.00"},{"v":190,"d":"190.00"},{"v":190,"d":"190.00"},{"v":0,"d":"0.00"},218,789,3,15,"促进农户增收，生产生活条件明显改善，改善人居环境","否","带动农户发展生产增产增收—其他","是","否","否","是","潘刚",15887813080,"县农业农村局","猪街村","是","否"]
[452,"元江县","那诺乡","打芒村","产业发展—其他","元江县那诺乡打芒村所垤组“千万工程”村内整治及产业发展项目","2025年","新建","一、村内整治。公厕1座；成品1立方米玻璃钢化粪池5座；\n污水检查井9座；HDPE300钢带增强波纹管210m；HDPE200钢带增强波纹管680m；PVC110污水管300m；其他附属等1项；\n二、配套设施建设。4m宽村内道路硬化472㎡；2m宽村内道路硬化316㎡；不规则石板环村田间道路657.2㎡；毛石挡土墙577m³；场地硬化285.58㎡；农产品集散120㎡；其他附属等1项；",{"v":150,"d":"150.00"},{"v":150,"d":"150.00"},{"v":150,"d":"150.00"},{"v":0,"d":"0.00"},51,236,13,58,"促进农户增收，生产生活条件明显改善，改善人居环境","否","带动农户发展生产增产增收—其他","是","否","否","是","潘刚",15887813080,"县农业农村局","打芒村","是","否"]
[453,"元江县","洼垤乡","老茶己村","产业发展—其他","元江县洼垤乡老茶己村龙孔组人居环境提升整治项目","2025年","新建","一、产业基础设施（猪圈）。猪圈28间，猪圈内外硬化1300平方米，挡土墙300立方米，排水沟169米，其他附属等；二、村内基础设施。2米宽村内道路硬化560平方米及附属，2.5米宽村内道路硬化287平方米及附属，沉砂池3座及排水沟190米，2.5米宽村内道路硬化223平方米及附属，3.5米宽村内道路硬化210平方米，安全防护设施234米\n，4米宽村内道路硬化1760平方米及附属，2米宽村内道路硬化270平方米及附属，场地硬化433平方米及附属，2.4米宽村内道路85.5平方米及附属，1.5米宽村内道路硬化50平方米及附属，蓄水池1座，交易场地926平方米及排水沟48米，3米宽村内道路硬化264平方米，庭院经济1项，7米高太阳能路灯10盏，挂壁式太阳能路灯40盏；三、两污治理。HDPE300污水管250米，HDPE200污水管1040米，PVC110污水管300米，污水检查井78座，化粪池V21.8立方米1座，化粪池V12立方米2座，垃圾池1座。",{"v":190,"d":"190.00"},{"v":190,"d":"190.00"},{"v":190,"d":"190.00"},{"v":0,"d":"0.00"},65,225,26,102,"促进农户增收，生产生活条件明显改善，改善人居环境","否","带动农户发展生产增产增收—其他","是","否","否","是","潘刚",15887813080,"县农业农村局","老茶己村","是","否"]
[454,"元江县","洼垤乡","它才吉村","产业发展—其他","元江县洼垤乡它才吉村野猪塘组人居环境提升整治项目","2025年","新建","一、产业基础设施建设。1、猪圈,23间共589.26㎡，2、猪圈内外硬化1150㎡；3、挡土墙612m³；4、排水沟160m；5、其他附属等。\n二、村内基础设施。1、1.2m村内道路硬化及附属121.2㎡；2、挡土墙加固及安全防护设施1项；3、果蔬交易场地硬化及附属20㎡；4、庭院经济1项；5、2.0m村内道路硬化及附属90㎡；6、1.8m村内道路硬化及附属129.8㎡；7、1.5m村内道路硬化及附属36㎡；8、排水沟41m；9、1.4m村内道路硬化及附属124.5㎡；10、1.5m村内道路修复136㎡；11、硬化修复279㎡；12、安全防护设施19m；13、村内道路硬化及附属56㎡；14、太阳能路灯高灯杆5盏，挂壁式30盏；15、管网改造：DN50为50m、DN32为50m及DN25为200m。\n三、两污治理。1、HDPE400为45m；2、HDPE300为238m；3、HDPE200为615m；4、PVC110为300m；5、污水检查井64座；6、钢筋砼化粪池21.8m³等。",{"v":130,"d":"130.00"},{"v":130,"d":"130.00"},{"v":130,"d":"130.00"},{"v":0,"d":"0.00"},51,164,15,44,"促进农户增收，生产生活条件明显改善，改善人居环境","否","带动农户发展生产增产增收—其他","是","否","否","是","潘刚",15887813080,"县农业农村局","它才吉村","是","否"]
[455,"元江县","咪哩乡","咪哩组","产业发展—休闲农业与乡村旅游","元江县咪哩乡咪哩组人居环境及红色文化旅游产业发展基础设施建设项目","2025年","新建","1.红色文旅村庄基础设施建设：（1）安全防护安装231m；（2）排水沟修复30m；（3）沟盖板32.15m³；（4）文旅步道6283.5㎡；（5）挡土墙156.34m³；（6）庭院经济150㎡；（7）壁挂式路灯60盏；（8）零星硬化200㎡；（9）农产品分拣及晾晒场地1处。2.人居环境整治：（1）污水管道基础开挖（砼段）1665㎡；（2）污水主管（DN400）278m；（3）污水主管（DN300）687m；（4）污水支管（DN200）1769m；（5）铸铁排污管（DN300）203m；（6）PVC110塑料管1200m；（7）检查井203座；（8）玻璃钢化粪池11座；（9）转化池2座；（10）氧化塘1座。",{"v":198,"d":"198.00"},{"v":198,"d":"198.00"},{"v":198,"d":"198.00"},{"v":0,"d":"0.00"},231,861,18,66,"促进增收，促进民族团结，促进过上美好生活，改善人居环境","否","带动农户发展生产增产增收—其他","是","否","否","是","潘刚",15887813080,"县农业农村局","咪哩组","是","是"]
[456,"元江县","咪哩乡","哈罗村委会","产业发展—其他","元江县咪哩乡哈罗村委会干田寨组人居环境及产业发展建设项目","2025年","新建","1.产业发展设施建设：（1）农产品分拣及晾晒场790㎡；（2）30m³蓄水池1座；（3）庭院经济1项；（4）高杆路灯安装5盏；（5）挡土墙248.50m³；（6）#1安全防护65m。2.人居环境整治：（1）DN300污水主管137m；（2）DN200污水支管468m；（3）塑料管（PVC110）240m；（4）砖砌检查井48座；（5）玻璃钢化粪池3座；（6）氧化塘1座；（7）垃圾池1座。（8）村内道路硬化966.5㎡；（9）300mm*400mm排水暗沟10m；（10）烤房场地硬化200㎡；（11）壁挂式路灯安装20盏；（12）#2安全防护238m；（13）零星硬化300㎡；（14）临危拆除300㎡；（15）挡土墙二式700㎡。",{"v":93,"d":"93.00"},{"v":93,"d":"93.00"},{"v":93,"d":"93.00"},{"v":0,"d":"0.00"},21,101,7,32,"保进增收，促民族团结，促进过上美好生活，改善人居环境","否","带动农户发展生产增产增收—其他","是","否","否","是","潘刚",15887813080,"县农业农村局","哈罗村委会","是","否"]
[457,"元江县","龙潭乡","大哨村委会","产业发展—其他","元江县龙潭乡大哨村委会双箐小组生猪养殖及村内设施建设项目","2025年","新建","（1）新建猪圈60间(其中村东32间，村西28间)，层数为2层，含附属设施等；（2）拆除村内旧房500㎡，新建村内排水沟490m，散水硬化1100㎡，道路硬化500㎡，石挡土墙80m³，防护栏杆220m,公共活动区50.36㎡；（3）埋设DN400HDPE波纹管188.87m，DN300HDPE波纹管223.74m，DN200HDPE波纹管836.74m，DN110*3.2 PVC-U排水管620m，砖检查井78座，12m³钢筋混凝土化粪池3座；（4）新建30平方米沟槽式水冲厕1座 。",{"v":180,"d":"180.00"},{"v":180,"d":"180.00"},{"v":180,"d":"180.00"},{"v":0,"d":"0.00"},67,202,17,49,"促进农户增收，生产生活条件明显改善，改善人居环境","否","带动农户发展生产增产增收—其他","是","否","否","是","潘刚",15887813080,"县农业农村局","大哨村委会","是","是"]
[458,"元江县","龙潭乡","邑甲冲村委会","乡村建设行动—农村供水保障设施建设","元江县龙潭乡邑甲冲村委会作吉上寨、中寨、下寨集中供水人饮工程","2025年","新建","（一）土建工程。取水坝1座，取水池1座，一体化水厂1座。人工挖土方6m³，人工挖沟槽土方1.5m³，C25砼取水坝7.5m³，取水管12m，冲沙阀闸1套;人工挖土方6m³，毛石垫层0.56m³，C20砼垫层0.56m³，C25砼池底0.2m³，C25砼池壁3.7m³，现浇混凝土池盖板0.41m³;消毒室与管理房1间;带形基础12.6m³，实心砖墙50.4m³，墙面抹灰420㎡，铁艺门2.4㎡。（二）安装工程。简易净水设备1项，BVR Φ 2.5配线50米，BVR Φ 4配线50米，BVR Φ 10配线100米；YIV22- 0.6/1kV 电缆架设1KM，电杆组立21根；DN65*3.75内外涂塑钢管4800米，DN50*3.5内外涂塑钢管3600米，管材二次搬运49.585吨，DN15镀锌钢管1440米，带阀智能水表120个。",{"v":100,"d":"100.00"},{"v":100,"d":"100.00"},{"v":100,"d":"100.00"},{"v":0,"d":"0.00"},128,431,36,136,"带动二三产业发展，解决群众饮水问题问题，改善饮水环境","否","带动农户发展生产增产增收—其他","是","否","否","是","李秀芝",13708774578,"元江县水利局","邑甲冲村委会","是","否"]
[459,"元江县","洼垤乡","尼白村","产业发展—其他","元江县洼垤乡尼白村尼白小寨民族团结进步示范村建设项目","2025年","新建","主要建设村内排污沟100m，9m³三格化粪池一座，村内挡土墙50m³,沉砂池，混泥土护坡，村内杂物拆除、村内产业道路硬化300m(均宽1.5m)，牲畜产业及配套设施建设，庭院经济园建设等。",{"v":90,"d":"90.00"},{"v":90,"d":"90.00"},{"v":90,"d":"90.00"},{"v":0,"d":"0.00"},46,139,13,40,"促进农户增收，生产生活条件明显改善，改善人居环境","否","带动农户发展生产增产增收—其他","是","否","否","是","杨茹荃",13099896669,"元江县民族宗教事务局","尼白村","是","否"]
[460,"元江县","咪哩乡","哈罗村委会","产业发展—其他","元江县咪哩乡哈罗村委会南掌组民族团结进步示范村建设项目","2025年","新建","一、特色农产品交易市场883.06平方米，投资约60万元。1.产业发展附属设施30㎡；2.水泥砼路面156㎡；3.毛石台阶6.81m³；4.市场硬化883 ㎡；5.拆除砖石、混凝土结构258m³；6.石挡土墙328.5m³;7.高杆太阳能路灯7套。二、人居环境提升投资约20万元。1.挂壁式路灯20套；2.排污管DN300钢带管120m；3.排污管HDPE200波纹管140m；4.检查井4座；5.成品混凝土沟篦子8套；6.路侧防护70m；7.村内小路旁土基墙抹灰粉刷（带勾缝）300㎡；8.路基防护砼剪力墙60m³；9.氧化塘1座。",{"v":80,"d":"80.00"},{"v":80,"d":"80.00"},{"v":80,"d":"80.00"},{"v":0,"d":"0.00"},68,280,30,111,"促进农户增收，生产生活条件明显改善，改善人居环境","否","带动农户发展生产增产增收—其他","是","否","否","是","杨茹荃",13099896669,"元江县民族宗教事务局","哈罗村委会","是","否"]
[461,"元江县","龙潭乡","水可莫村委会","产业发展—养殖业基地","元江县龙潭乡水可莫村委会团山组民族团结进步示范村建设项目","2025年","新建","（一）新建人畜分离猪圈30间，两层，化粪池1座等；（二）新建村内污水沟盖板500米，污水管网铺设200米，氧化塘1座；（三）微菜园打造200平方米；（四）产业道路硬化200米，太阳能路灯20盏；（五）新建彩钢瓦活动场所400平方米。",{"v":80,"d":"80.00"},{"v":80,"d":"80.00"},{"v":80,"d":"80.00"},{"v":0,"d":"0.00"},93,28,7,22,"促进农户增收，生产生活条件明显改善，改善人居环境","否","吸纳农村劳动力稳定就业增收—助养帮销","是","否","否","是","杨茹荃",13099896669,"元江县民族宗教事务局","水可莫村委会","是","是"]
[462,"元江县","澧江街道","南洒社区","产业发展—休闲农业与乡村旅游","元江县澧江街道南洒社区旧寨小组民族村寨旅游提升项目","2025年","新建","一、产业道路：生产道路硬化：1450平方米。二、庭院经济打造：庭院经济打造1430平方米。三、村内基础设施（污水管）：村内污水管PVC110共110米。",{"v":30,"d":"30.00"},{"v":30,"d":"30.00"},{"v":30,"d":"30.00"},{"v":0,"d":"0.00"},95,324,0,0,"促进增收，促民族团结，促进过上美好生活，改善人居环境","否","带动农户发展生产增产增收—其他","是","否","否","是","杨茹荃",13099896669,"元江县民族宗教事务局","南洒社区","是","是"]
[463,"元江县","红河街道","兴元社区","产业发展—休闲农业与乡村旅游","元江县红河街道兴元社区团树小组民族村寨旅游提升项目","2025年","新建","1.地坪硬化600平方米；2.配套房车营地功能房间3间及水电改迁；3.新建三面灌溉水沟60米；4.村内绿化整治200平方米。",{"v":30,"d":"30.00"},{"v":30,"d":"30.00"},{"v":30,"d":"30.00"},{"v":0,"d":"0.00"},48,212,0,0,"促进增收，促民族团结，促进过上美好生活，改善人居环境","否","带动农户发展生产增产增收—其他","是","否","否","是","杨茹荃",13099896669,"元江县民族宗教事务局","兴元社区","是","是"]
[464,"元江县","羊街乡","垤霞村委会","产业发展—休闲农业与乡村旅游","元江县羊街乡垤霞村委会尼果上寨民族村寨旅游提升项目","2025年","新建","1.村内基础设建设：仿棕榈树护栏121m、村内坍塌处挡墙建设55.6m³、村内零星场地硬化215㎡；2.村内人居环境提升改造：排污沟建设205m、土基垒砌花台208m、旅游厕所修缮1项、棕榈树栽种110株；环村路旁斜瓦修建349.6m、墙面修复1079㎡。",{"v":30,"d":"30.00"},{"v":30,"d":"30.00"},{"v":30,"d":"30.00"},{"v":0,"d":"0.00"},82,304,2,7,"促进增收，促民族团结，促进过上美好生活，改善人居环境","否","带动农户发展生产增产增收—其他","是","否","否","是","杨茹荃",13099896669,"元江县民族宗教事务局","垤霞村委会","是","是"]
[465,"元江县","洼垤乡","洼垤社区","产业发展—品牌打造和展销平台","元江县洼垤乡洼垤社区大瓦房小组豆腐加工坊建设项目","2025年","新建","1.场地平整300平方米；2.场地硬化200平方米；3.加工坊100平方米；4.排水沟10m、氧化塘1座；5.豆腐加工设备采买等。",{"v":20,"d":"20.00"},{"v":20,"d":"20.00"},{"v":20,"d":"20.00"},{"v":0,"d":"0.00"},28,46,10,28,"增加居民人均收入，改善生产条件，降低劳动成本，提高产量，产值明显，项目村得到科学合理的开发，保护环境。","否","带动农户发展生产增产增收—其他","是","否","否","是","杨茹荃",13099896669,"元江县民族宗教事务局","洼垤社区","是","是"]
[466,"元江县","羊街乡","党舵村","产业发展—新型农村集体经济发展项目","元江县羊街乡党舵村烟粮协同发展苦荞产业建设项目","2025年","新建","（1）配套用房建设：增设设备操作室1间，占地约40㎡；（2）苦荞分拣及附加产品生产线建设：购买苦荞分拣包装、炒制、烘干晾晒以及附加产品等关联设备（苦荞面、苦荞条、苦荞片、苦荞茶设备各1台）；（3）配套设备：道依茨法尔牌904型旋耕机1台，植保辅助设备1台，上料设备1台，货运传送带1条（若相应设备涉及农机补贴，则根据实际补贴后价格调整预算）。",{"v":70,"d":"70.00"},{"v":70,"d":"70.00"},{"v":70,"d":"70.00"},{"v":0,"d":"0.00"},478,1977,128,524,"增加居民人均收入，改善生产条件，降低劳动成本，提高产量，产值明显，项目村得到科学合理的开发，保护环境。","否","带动农户发展生产增产增收—其他","是","否","否","是","李文明",13987769975,"元江县委组织部","党舵村","是","是"]
[467,"元江县","洼垤乡","洼垤社区","产业发展—新型农村集体经济发展项目","元江县洼垤乡洼垤社区青贮饲料加工基地建设项目","2025年","新建","（1）项目土建及附属部分建设。①场地建500㎡；②挡土墙等附属工程。（2）项目主体建设。①青储加工厂房150㎡；②青储饲料发酵室180㎡；③设备管理房80㎡。（3）项目配套设备建设。①加工设备1套（含打包机等附属设施）；②上料设备1台。",{"v":70,"d":"70.00"},{"v":70,"d":"70.00"},{"v":70,"d":"70.00"},{"v":0,"d":"0.00"},512,1960,325,1380,"增加居民人均收入，改善生产条件，降低劳动成本，提高产量，产值明显，项目村得到科学合理的开发，保护环境。","否","带动农户发展生产增产增收—其他","是","否","否","是","李文明",13987769975,"元江县委组织部","洼垤社区","是","是"]
[468,"元江县","那诺乡","猪街村","产业发展—新型农村集体经济发展项目","元江县那诺乡猪街村猪街茶产业发展建设项目","2025年","新建","猪街茶厂房改建设。①购买茶叶生产加工设备。色选机1套、100型电磁加厚全铸铁朝天锅3台、压饼和龙珠模具1套、3工位不锈钢压饼机1台、24千瓦蒸汽机1台、双孔蒸汽桌1台、不锈钢拣茶台2张、不锈钢茶架5张、16层双开门茶叶提香机不锈钢筛1台、30型揉捻机1台、40型揉捻机1台、多层萎凋槽（五层）1套、液压机1台、成品仓库货架1套；②茶叶储藏室、实验室改造（现有茶厂改造为茶叶储藏室、实验室1项，购买茶叶检测仪器等）；③茶叶晒场建设，占地1200㎡。其中：晒场硬化0.2m厚C25混凝土；毛石挡墙500m³；阳光晒棚高度2.7米、透明树脂瓦顶、围板及钢架。",{"v":140,"d":"140.00"},{"v":140,"d":"140.00"},{"v":140,"d":"140.00"},{"v":0,"d":"0.00"},1310,6019,250,1223,"增加居民人均收入，改善生产条件，降低劳动成本，提高产量，产值明显，项目村得到科学合理的开发，保护环境。","否","带动农户发展生产增产增收—其他","是","否","否","是","李文明",13987769975,"元江县委组织部","猪街村","是","是",null,"与元江县那诺乡浪树村猪街茶产业发展建设项目，合并为一个项目"]
[469,"元江县","全县","全县","项目管理费—项目管理费","元江县2025年中央第二批衔接资金项目管理费","2025年","新建","主要用于项目前期设计、评审、招标、监理以及验收等与项目管理相关的支出，由县级统筹使用。",{"$f":"SUM(K474)","v":{"v":4.6,"d":"4.60"}},{"$f":"SUM(L474:M474)","v":{"v":4.6,"d":"4.60"}},{"v":4.6,"d":"4.60"},{"v":0,"d":"0.00"},"——","——","——","——","强化项目管理，促进项目建设","否","促进农户共享资产收益增收—其他","不涉及","否","否","否","潘刚",15887813080,"县农业农村局","不形成资产","是","是"]
[470,"元江县","全县","全县","产业发展—小额贷款贴息","元江县2025年第三、四季度脱贫小额信贷贴息资金项目","2025年","新建","付三、四季度脱贫小额信贷贴息资金",{"v":50,"d":"50.00"},{"v":50,"d":"50.00"},{"v":50,"d":"50.00"},{"v":0,"d":"0.00"},430,1700,430,1700,"帮助群众提升种养殖规模，促进增收，解决群众在产业发展中资金难的问题，提高群众产业发展积极性，促进进一步增收致富","是","促进农户共享资产收益增收—其他","不涉及","否","否","否","潘刚",15887813080,"县农业农村局","不形成资产","是","是"]
[471,"元江县","全县","全县","巩固三保障成果—享受“雨露计划”职业教育补助","元江县2025年秋季学期“雨露计划”补助资金项目","2025年","新建","付“雨露计划”职业教育补助资金",{"v":120,"d":"120.00"},{"v":120,"d":"120.00"},{"v":120,"d":"120.00"},{"v":0,"d":"0.00"},395,395,395,395,"促进增收，提升困难家庭学生就学率，降低困难家庭教育成本","是","促进农户共享资产收益增收—其他","不涉及","否","否","否","潘刚",15887813080,"县农业农村局","不形成资产","是","是"]
[472,"元江县","全县","全县","就业项目—公益性岗位","元江县2025年下半年乡村公益性岗位工资项目","2025年","新建","付元江县2025年三、四季衔接资金设置乡村公益性岗位450人工资",{"v":216,"d":"216.00"},{"v":216,"d":"216.00"},{"v":216,"d":"216.00"},{"v":0,"d":"0.00"},450,450,450,450,"解决群众就近就业问题，提高就业率，提升群众收入水平，每人每月增收800元，有利于改善人居环境","是","促进农户共享资产收益增收—其他","不涉及","否","否","否","潘刚",15887813080,"县农业农村局","不形成资产","是","是"]
[473,"元江县","全县","全县","就业项目—技能培训","元江县2025年探索培训就业模式项目","2025年","新建","开展脱贫人口高标准培训模式输送比亚迪公司就业1人（补助标准操作岗3800元/人，技术岗10000元/人）",{"v":1,"d":"1.00"},{"v":1,"d":"1.00"},{"v":1,"d":"1.00"},{"v":0,"d":"0.00"},1,1,1,1,"解决群众就近就业问题，提高就业率，提升群众收入水平","否","促进农户共享资产收益增收—其他","不涉及","否","否","否","潘刚",15887813080,"县农业农村局","不形成资产","是","是"]
[474,"元江县","全县","全县","就业项目—交通费补助","元江县2025年下半年脱贫劳动力（含监测对象）跨省务工一次性交通补助项目","2025年","新建","付三季度脱贫劳动力（含监测对象）跨省务工满三个月，可申报1000元/人/年的交通补助资金。",{"v":73.4,"d":"73.40"},{"v":73.4,"d":"73.40"},{"v":73.4,"d":"73.40"},{"v":0,"d":"0.00"},163,734,163,734,"解决群众就近就业问题，提高就业率，提升群众收入水平","是","促进农户共享资产收益增收—其他","不涉及","否","否","否","钟皎（业务经办人员）","0877-6553278","元江县人力资源和社会保障局","不形成资产","是","是"]
[475,"元江县","全县","全县","项目管理费—项目管理费","元江县2025年省级衔接资金项目管理费","2025年","新建","主要用于项目前期设计、评审、招标、监理以及验收等与项目管理相关的支出，由县级统筹使用。",{"v":78,"d":"78.00"},{"v":78,"d":"78.00"},{"v":78,"d":"78.00"},{"v":0,"d":"0.00"},"——","——","——","——","强化项目管理，促进项目建设","否","促进农户共享资产收益增收—其他","不涉及","否","否","否","潘刚",15887813080,"县农业农村局","不形成资产","是","是"]
[476,"元江县","澧江街道","红侨社区","产业发展—其他","元江县澧江街道红侨社区“千万工程”示范村奖补资金项目","2025年","新建","农产品交易场地495㎡、毛石挡土墙246m³、5米宽新建产业道路326㎡、其他附属等。",{"v":50,"d":"50.00"},{"v":50,"d":"50.00"},{"v":50,"d":"50.00"},{"v":0,"d":"0.00"},509,1262,0,0,"促产业增产增收，促进农业现代化，优化农业环境","否","带动农户发展生产增产增收—其他","是","否","否","是","潘刚",15887813080,"县农业农村局","红侨社区","是","是"]
[477,"元江县","澧江街道","龙潭社区","产业发展—其他","元江县澧江街道龙潭社区“千万工程”示范村奖补资金项目","2025年","新建","1.产业道路（龙潭）：产业道路硬化1571平方米、挡土墙123.96立方米、排水沟520米；2.道路（鲁倮）:1#产业道路硬化480平方米、2#产业道路硬化580平方米、3#产业道路硬化270平方米、4#产业道路硬化1000平方米、5#产业道路硬化1190平方米其他附属等；3.两污治理（鲁倮）：污水系统HDPE200增强钢带波纹管665米、HDPE300增强钢带波纹管279米、PVC110污水管300米、检查井46座、其他附属等；4.两污治理（坝洪）：污水系统HDPE200增强钢带波纹管410米、HDPE300增强钢带波纹管115米、PVC110污水管180米、检查井43座、其他附属等，公厕1座。",{"v":150,"d":"150.00"},{"v":150,"d":"150.00"},{"v":150,"d":"150.00"},{"v":0,"d":"0.00"},232,926,0,0,"促产业增产增收，生产生活条件明显改善，提高了人民群众生活水平和质量，提升村容村貌，切实改善人居环境","否","带动农户发展生产增产增收—其他","是","否","否","是","潘刚",15887813080,"县农业农村局","龙潭社区","是","是"]
[478,"元江县","红河街道","桥头社区","乡村建设行动—其他","元江县红河街道桥头社区“千万工程”示范村奖补资金项目","2025年","新建","一、红土坡新村小组，灌溉沟826米。\n二、红土坡小组，1.公厕39.06平方米。2.场地平整。\n（1）机械挖土方50立方米。（2）填土方50立方米。（3）C20毛石砼挡土墙30立方米。3.其他临杂整治工程",{"v":50,"d":"50.00"},{"v":50,"d":"50.00"},{"v":50,"d":"50.00"},{"v":0,"d":"0.00"},121,496,0,0,"促产业增产增收，生产生活条件明显改善，提高了人民群众生活水平和质量，提升村容村貌，切实改善人居环境","否","带动农户发展生产增产增收—其他","是","否","否","是","潘刚",15887813080,"县农业农村局","桥头社区","是","是"]
[479,"元江县","红河街道","大水平社区","产业发展—其他","元江县红河街道大水平社区“千万工程”示范村奖补资金项目","2025年","新建","1.产业道路硬化长度300米。2.C20毛石砼挡土墙75立方米。3.场地硬化1320平方米。4.活动设施修缮102.10平方米。5.公厕47.83平方米；6.庭院经济。（1）庭院经济安全护栏120米。（2）清理垃圾及场地平整,回填耕植土，种植各种蔬菜、芒果、菠萝蜜、树冬瓜等果树400平方米。（3）菜园路180米。（4）仿木砼成品庭院篱笆150米。（5）仿木砼成品箱30个。7.太阳能路灯55盏，其中：大北田中杆照明灯 44盏，小白田路灯11盏。8.大北田排水沟长度400米。9.排水沟盖板长度100米。10.其它临杂整治工程。",{"v":150,"d":"150.00"},{"v":150,"d":"150.00"},{"v":150,"d":"150.00"},{"v":0,"d":"0.00"},133,526,0,0,"促产业增产增收，生产生活条件明显改善，提高了人民群众生活水平和质量，提升村容村貌，切实改善人居环境","否","带动农户发展生产增产增收—其他","是","否","否","是","潘刚",15887813080,"县农业农村局","大水平社区","是","是"]
[480,"元江县","甘庄街道","甘庄社区","乡村建设行动—村容村貌提升","元江县甘庄街道甘庄社区“千万工程”示范村奖补资金项目","2025年","新建","1.场地硬化456㎡；2道路硬化300m；3.庭院经济1项\n；4.产业道路硬化1项；5.垃圾池1座；6.污水943m\n；7.户厕排污管1700m；8.窨井118座；9.树池30个；10.太阳能路灯12套；11.其它。施工机械1项等。",{"v":150,"d":"150.00"},{"v":150,"d":"150.00"},{"v":150,"d":"150.00"},{"v":0,"d":"0.00"},88,315,0,0,"促产业增产增收，生产生活条件明显改善，提高了人民群众生活水平和质量，提升村容村貌，切实改善人居环境","否","带动农户发展生产增产增收—其他","是","否","否","是","潘刚",15887813080,"县农业农村局","甘庄社区","是","是"]
[481,"元江县","曼来镇","红光社区","乡村建设行动—其他","元江县曼来镇红光社区“千万工程”示范村奖补资金项目","2025年","新建","1.村内道路硬化：（1）村内道路硬化120平方米；（2）村内巷道硬化2734.73平方米；2.村内给排水：（1）成品2m³玻璃钢化粪池50座；（2）De110PVC排污管1231.8m，De出户存水弯84个，DN200钢带增强波纹管排污管1840m，DN300钢带增强波纹管排污管528.35m；（3）污水检查井234座，排水检查井3座，门前排水检查井84座，跌水井3座；（4）排水暗沟300X400共933米；400X500排水暗沟140米（5）De25生活入户给水管126m，De40生活给水管1044m，De63生活给水管415m；（6）阀门井9座，闸阀9个，室外消火栓4套；（7）化粪池1座V=21.8立方米。3.公厕：（1）新建公厕1座。",{"v":150,"d":"150.00"},{"v":150,"d":"150.00"},{"v":150,"d":"150.00"},{"v":0,"d":"0.00"},96,307,0,0,"促产业增产增收，生产生活条件明显改善，提高了人民群众生活水平和质量，提升村容村貌，切实改善人居环境","否","带动农户发展生产增产增收—其他","是","否","否","是","潘刚",15887813080,"县农业农村局","红光社区","是","是"]
[482,"元江县","澧江街道","龙潭社区","乡村建设行动—村容村貌提升","元江县澧江街道龙潭社区深沟小组人居环境治理工程","2025年","新建","一、道路硬化。3.5米宽产业道路硬化1174.2㎡、200厚村内道路破除及修复485㎡、村内道路硬化一37㎡、村内道路硬化二342㎡、村内道路硬化三195㎡、村内道路硬化四100㎡、村内道路硬化五170㎡、村内道路硬化六52㎡、防护措施189m。\n二、村内整治。污水系统：HDPE200增强钢带波纹管550m、HDPE300增强钢带波纹管200m、PVC110污水管300m、检查井44项、其他附属等1项。\n三、公厕1座。四、其他附属设施1项。",{"v":80,"d":"80.00"},{"v":80,"d":"80.00"},{"v":80,"d":"80.00"},{"v":0,"d":"0.00"},44,168,0,0,"带动二、三产业发展，密切了党群、干群关系促进了农村的团结和谐稳定，提升村容村貌，切实改善人居环境","否","带动农户发展生产增产增收—其他","是","否","否","是","潘刚",15887813080,"县农业农村局","龙潭社区","是","否"]
[483,"元江县","红河街道","大水平社区","产业发展—其他","元江县红河街道麻子寨农村千万工程项目","2025年","新建","1.维修村内人饮管网1380米。2.破路埋地敷设给水管道并恢复路面250平方米。3.场地硬化2800平方米。4.庭院经济540㎡。5.生产便道（宽2.5米）395米。6.其他临杂整治工程。",{"v":120,"d":"120.00"},{"v":120,"d":"120.00"},{"v":120,"d":"120.00"},{"v":0,"d":"0.00"},104,463,1,1,"带动二、三产业发展，促进宜居宜业和美乡村，形成产业发展生态化、生态建设产业化新格局","否","吸纳农村劳动力稳定就业增收—其他","是","否","否","是","潘刚",15887813080,"县农业农村局","大水平社区","是","否"]
[484,"元江县","甘庄街道","阿不都村委","乡村建设行动—村容村貌提升","元江县甘庄街道阿不都村委会凹腰山小组人居环境整治项目","2025年","新建","1.村内道路1065m；2.场地硬化1700㎡；3.DN300雨水管240m；4.DN300污水管675m；5.户厕排污1200m；6.窨井114座；7.挡土墙415m³；8.太阳能路灯15套；9.公厕1座；10.化粪池4座；11.施工模板、机械1项。",{"$f":"SUM(K489)","v":{"v":120,"d":"120.00"}},{"v":120,"d":"120.00"},{"v":120,"d":"120.00"},{"v":0,"d":"0.00"},43,162,5,17,"促进农户增收，生活条件改善，促进了农村的团结和谐稳定，改善人居环境","否","带动农户发展生产增产增收—其他","是","否","否","是","潘刚",15887813080,"县农业农村局","阿不都村委","是","否"]
[485,"元江县","洼垤乡","罗垤村","乡村建设行动—村容村貌提升","元江县洼垤乡罗垤村罗垤组宜居宜业乡村振兴示范村建设项目","2025年","新建","1.产业配套设施：①交易场地硬化及附属375㎡；1.5m宽新建村内道路50㎡；③2.0m宽新建村内道路110㎡；④2.5m宽新建村内道路85㎡；⑤4.0m宽村内道路降坡防滑处理362㎡；⑥猪圈给水管及附属1项；⑦其他附属等。\n2.村内整治：①坝塘安全防护设施205.2m；②新建排水沟、沉砂池及附属1项；③空心砖围挡及附属43m³；④DN800钢筋砼排水管道及附属12m；⑤挡土墙946m³；⑥垃圾池4座；⑦庭院经济1项；⑧暗沟16m；⑨钢筋砼护坡3.6m³；⑩其他附属等。",{"v":120,"d":"120.00"},{"v":120,"d":"120.00"},{"v":120,"d":"120.00"},{"v":0,"d":"0.00"},145,532,93,368,"带动二三产业发展，促进宜居宜业和美乡村，形成产业发展生态化、生态建设产业化新格局","否","带动农户发展生产增产增收—其他","是","否","否","是","潘刚",15887813080,"县农业农村局","罗垤村","是","否"]
[486,"元江县","龙潭乡","大哨村委会","产业发展—养殖业基地","元江县龙潭乡大哨村委会大哨小组生猪养殖及村内设施建设项目","2025年","新建","（1）新建猪圈30间，层数为2层，含附属设施等；（2）埋设DN300HDPE波纹管400m，DN200HDPE波纹管83m，DN110*3.2 PVC-U排水管345m，砖检查井20座，12m³钢筋混凝土化粪池1座；（3）拆除村内旧房250㎡，村内巷道硬化200㎡，产业道路硬化450㎡，灌溉沟渠280m，微菜园33.12m³，防护栏杆250m,石挡土墙80m³，公共活动区20.25㎡，双层式垃圾房1座，垃圾桶10只。\n   ",{"v":100,"d":"100.00"},{"v":100,"d":"100.00"},{"v":100,"d":"100.00"},{"v":0,"d":"0.00"},31,106,0,0,"促进农户增收，生活条件改善，改善人居环境","否","带动农户发展生产增产增收—其他","是","否","否","是","潘刚",15887813080,"县农业农村局","大哨村委会","是","是"]
[487,"元江县","因远镇","安定社区","产业发展—其他","元江县因远镇安定社区安定小组产业发展配套基础设施建设项目","2025年","新建","1.灌溉沟渠A段：拆除重建1.0x1.0m灌溉沟171m；\n2.灌溉沟渠B段：改造灌溉排水沟382m；3.新建产业机耕道：新建泥结碎石路面产业机耕道1850m；\n4.交易场所配套设施修复1290平方米。",{"v":110,"d":"110.00"},{"v":110,"d":"110.00"},{"v":110,"d":"110.00"},{"v":0,"d":"0.00"},604,1585,8,18,"促产业增产增收。生产生活条件明显改善，提高了人民群众生活水平和质量，提升村容村貌，切实改善人居环境","否","带动农户发展生产增产增收—其他","是","否","否","是","潘刚",15887813080,"县农业农村局","安定社区","是","是"]
[488,"元江县","那诺乡","浪树村","产业发展—其他","元江县那诺乡浪树村浪台组人居环境提升及产业设施完善项目","2025年","新建","（一）配套设施。1.苦荞交易市场138.70m²；2.挡土墙253.98m³；3.产业道路硬化（宽4m）1645.93㎡；4.村内道路硬化（宽3m）475.87㎡；5.村内道路硬化（宽2.5m）300.5㎡；6.村内道路硬化（宽2m）172㎡；7.村内道路硬化（宽1.4m）260.5㎡；8.村内道路硬化（宽1.3m）155.5㎡；9.灌溉沟渠1.2米宽：160.2m；10.安全防护设施：361.5m；12.其他附属设施等。\n（二）村内整治。1.PVC110污水管270m；2.HDPE200钢带增强波纹管850m；3.HDPE300钢带增强波纹管95m；4.检查井54座；5.玻璃钢化粪池1立方米8个；6.化粪池2座。7.其他附属等。",{"v":149,"d":"149.00"},{"v":149,"d":"149.00"},{"v":149,"d":"149.00"},{"v":0,"d":"0.00"},63,299,20,90,"促产业增产增收，生产生活条件明显改善，提高了人民群众生活水平和质量，提升村容村貌，切实改善人居环境","否","带动农户发展生产增产增收—其他","是","否","否","是","潘刚",15887813080,"县农业农村局","浪树村","是","是"]
[489,"元江县","曼来镇","大田房村","产业发展—新型农村集体经济发展项目","元江县曼来镇大田房村多功能选果厂建设项目","2025年","新建","（1）分拣设备。①水式提升机一台（含电装）；②过渡提升机一台（含电装）；③壳果料池（含料斗）1个；④青果提升输送机6米；⑤青果除杂分级筛1台；⑥2吨脱皮机6.0加强版3台及果皮输送提升机1台；⑦壳果平面输送及提升机各1台；（2）清洗设备。①清洗机一台（含电装）；②脱水、风干机一台（含电装）；③涂蜡段一台（含电装）；④烘干机一台（含电装）；⑤壳果筛皮清洗一体机1台；⑥浮选机1台；⑦人工分拣、风干一体机8米。",{"v":70,"d":"70.00"},{"v":70,"d":"70.00"},{"v":70,"d":"70.00"},{"v":0,"d":"0.00"},651,2666,39,138,"壮大村集体收入，促进群众增收，改善生产条件，促进干群关系，改善小组群众的生产生活条件及生态环境，","否","吸纳农村劳动力稳定就业增收—其他","是","否","否","是","李文明",13987769975,"元江县委组织部","大田房村","是","是"]
[490,"元江县","澧江街道","南洒社区","产业发展—其他","元江县“干热河谷”特色产业发展暨民族团结进步示范县建设项目（澧江街道南洒社区旧寨小组畜牧业发展设施建设)","2025年","新建","一、牲畜养殖（牛圈）\n1.挡土墙649m³；2.道路及牛圈内硬化2593.1㎡；3.牛圈主体及其他附属1项等。\n二、村内整治\n1.庭院经济1项；2.其他附属1项等。",{"v":100,"d":"100.00"},{"v":100,"d":"100.00"},{"v":100,"d":"100.00"},{"v":0,"d":"0.00"},95,"324",5,16,"促产业增产增收，生产生活条件明显改善，提高了人民群众生活水平和质量，提升村容村貌，切实改善人居环境","否","带动农户发展生产增产增收—其他","是","否","否","是","杨茹荃",13099896669,"元江县民族宗教事务局","南洒社区","是","是"]
[491,"元江县","红河街道","大水平社区","产业发展—加工业","元江县“干热河谷”特色产业发展暨民族团结进步示范县建设项目（红河街道大水平社区土锅寨小组牛油果基地建设）","2025年","新建","1.新建红米紫米产销中心总建筑面积912.53平方米，建筑占地面积290.89平方米。其中:红米、紫米加工区242.61平方米，仓储区41.7平方米，检验室18平方米，展示区156平方米，配套用房257平方米等。2.道路及场地硬化420平方米；3.挡土墙230立方米；4.生产设备1套；5.其他附属。",{"v":100,"d":"100.00"},{"v":100,"d":"100.00"},{"v":100,"d":"100.00"},{"v":0,"d":"0.00"},24,"99",0,0,"促产业增产增收，生产生活条件明显改善，提高了人民群众生活水平和质量，提升村容村貌，切实改善人居环境","否","带动农户发展生产增产增收—其他","是","否","否","是","潘刚",15887813080,"县农业农村局","大水平社区","是","否"]
[492,"元江县","羊街乡","坝木村,垤霞村","产业发展—加工业","元江县“干热河谷”特色产业发展暨民族团结进步示范县建设项目（羊街乡梯田产业发展项目）","2025年","新建","1.产业道路，面积：4685平方米。2.配套污水管预埋。（1）DN500污水管，总长度：196米。（2）DN400污水管，总长度：252米。（3）DN300污水管，总长度：114米。（4）窨井：工程量：38座。3.果蔬集散场地。（1）场地平整及硬化，面积：630平方米。（2）C20毛石砼挡土墙，体积：60立方米。4.牛油果分拣场地修缮，面积：480平方米。5.附属工程。（1）配套路灯。太阳能路灯，数量:34盏,其中32盏灯杆高度为6米，2盏灯杆高度为9米。（2）环境整治工程。",{"v":300,"d":"300.00"},{"v":300,"d":"300.00"},{"v":300,"d":"300.00"},{"v":0,"d":"0.00"},30,"120",30,"120","促产业增产增收，生产生活条件明显改善，提高了人民群众生活水平和质量，农村产业生态环境得到有效治理","否","带动农户发展生产增产增收—其他","是","否","否","是","杨茹荃",13099896669,"元江县民族宗教事务局","坝木村,垤霞村","是","否"]
[493,"元江县","全县","全县","就业项目—交通费补助","元江县2025年下半年脱贫劳动力（含监测对象）跨省务工一次性交通补助项目","2025年","新建","付四季度脱贫劳动力（含监测对象）跨省务工满三个月，可申报1000元/人/年的交通补助资金。",{"v":77,"d":"77.00"},{"v":77,"d":"77.00"},{"v":77,"d":"77.00"},{"v":0,"d":"0.00"},734,734,734,734,"解决群众就近就业问题，提高就业率，提升群众收入水平","是","促进农户共享资产收益增收—其他","不涉及","否","否","否","钟皎（业务经办人员）","0877-6553278","元江县人力资源和社会保障局","不形成资产","是","是"]
[494,"元江县","全县","全县","产业发展—人才培养","元江县2025年下半年脱贫人口“人人持证 技能致富”培训补助资金项目","2025年","新建","付元江县2025年下半年脱贫人口培训费及补助资金。",{"v":33,"d":"33.00"},{"v":33,"d":"33.00"},{"v":33,"d":"33.00"},{"v":0,"d":"0.00"},430,1700,430,1700,"提高技能，持证促增收","否","促进农户共享资产收益增收—其他","不涉及","否","不涉及","否","白云（业务经办人员）","0877-6553268","元江县人力资源和社会保障局","不形成资产","是","是"]
[495,"元江县","全县","全县","就业项目—交通费补助","元江县2025年脱贫劳动力（含监测对象）省内市外务工一次性交通补助项目","2025年","新建","付脱贫劳动力（含监测对象）省内市外务工满三个月，可申报500元/人/年的交通补助资金。",{"v":50,"d":"50.00"},{"$f":"SUM(L500:M500)","v":{"v":50,"d":"50.00"}},{"v":50,"d":"50.00"},{"v":0,"d":"0.00"},450,450,450,450,"解决群众就近就业问题，提高就业率，提升群众收入水平","是","促进农户共享资产收益增收—其他","不涉及","否","否","否","潘刚",15887813080,"县农业农村局","不形成资产","是","否"]
[496,"元江县","那诺乡","打芒村","产业发展—其他","元江县那诺乡打芒村战立阿垤代电能烤房产业道路建设项目","2025年","新建","打芒村战立阿垤代电能烤房产业道路硬化300米，以及排水、护墙等附属工程。",{"v":22,"d":"22.00"},{"v":22,"d":"22.00"},{"v":22,"d":"22.00"},{"v":0,"d":"0.00"},380,380,380,380,"带动二三产业发展，改善生产条件，降低劳动成本，提高产量，产值明显，解除生活污水污染问题","否","带动农户发展生产增产增收—其他","是","否","否","是","潘刚",15887813080,"县农业农村局","打芒村","是","是"]
[497,"元江县","全县","全县","项目管理费—项目管理费","元江县2025年省级第四批衔接资金项目管理费","2025年","新建","主要用于项目前期设计、评审、招标、监理以及验收等与项目管理相关的支出，由县级统筹使用。",{"v":9,"d":"9.00"},{"v":9,"d":"9.00"},{"v":9,"d":"9.00"},{"v":0,"d":"0.00"},"——","——","——","——","强化项目管理，促进项目建设","否","促进农户共享资产收益增收—其他","不涉及","否","否","否","潘刚",15887813080,"县农业农村局","不形成资产","是","是"]
[498,"元江县","全县","全县","产业发展—种植业基地","元江县省级玉米种业基地（第二批）","2025年","新建","新建玉米种子生产基地 1 万亩，包括田间道路、电力设施、提水工程、蓄水池、节水设施、农资农具库房等田间工程和农机具配套；新建玉米种子加工生产线一条，包括加工厂房、冷链仓库和设施设备及检测仪器配套。",{"v":421.2,"d":"421.20"},{"v":421.2,"d":"421.20"},{"v":421.2,"d":"421.20"},{"v":0,"d":"0.00"},143,500,35,122,"新增玉米制种基地 10000 亩,规模达到 22500 亩以上；\n年生产玉米种子 5625 吨。","否","带动农户发展生产增产增收—其他","是","否","是","否","潘刚",15887813080,"县农业农村局","种业公司","是","是"]